Workbook

Sheet VG1 - Stoxx50
A1: XAU Curncy | C1: VG1 Index | D1: 2 | E1: USGG2YR Index | F1: =D1+2 -> 4 | G1: USGG5YR Index | H1: =F1+2 -> 6 | I1: USGG10YR Index | J1: =H1+2 -> 8 | K1: USGG30YR Index | L1: =J1+2 -> 10 | M1: GDBR2 Index | N1: =L1+2 -> 12 | O1: GDBR5 Index | P1: =N1+2 -> 14 | Q1: GDBR10 Index | R1: =P1+2 -> 16 | S1: GDBR30 Index | T1: =R1+2 -> 18 | U1: GJGB2 Index | V1: =T1+2 -> 20 | W1: GJGB5 Index | X1: =V1+2 -> 22 | Y1: GJGB10 Index | Z1: =X1+2 -> 24 | AA1: GJGB30 Index | AB1: =Z1+2 -> 26 | AC1: GUKG2 Index | AD1: =AB1+2 -> 28 | AE1: GUKG5 Index | AF1: =AD1+2 -> 30 | AG1: GUKG10 Index | AH1: =AF1+2 -> 32 | AI1: GUKG30 Index | AJ1: =AH1+2 -> 34 | AK1: GBTPGR2 Index | AL1: =AJ1+2 -> 36 | AM1: GBTPGR5 Index | AN1: =AL1+2 -> 38 | AO1: GBTPGR10 Index | AP1: =AN1+2 -> 40 | AQ1: GBTPGR30 Index | AR1: =AP1+2 -> 42 | AS1: USGGBE02 Index | AT1: =AR1+2 -> 44 | AU1: USGGBE05 Index | AV1: =AT1+2 -> 46 | AW1: USGGBE10 Index | AX1: =AV1+2 -> 48 | AY1: USGGBE30 Index | AZ1: =AX1+2 -> 50 | BA1: ITRX XOVER CDSI GEN 5Y Corp | BB1: =AZ1+2 -> 52 | BC1: SUBFIN CDSI GEN 5Y Corp | BD1: =BB1+2 -> 54 | BE1: CDX HY CDSI GEN 5Y SPRD Corp | BF1: =BD1+2 -> 56 | BG1: ITRX EXJP IG CDSI GEN 5Y Corp | BH1: =BF1+2 -> 58 | BI1: ITRX AUS CDSI GEN 5Y Corp | BJ1: =BH1+2 -> 60 | BK1: CESIGL Index | BL1: =BJ1+2 -> 62 | BM1: CESIG10F Index | BN1: =BL1+2 -> 64 | BO1: CESIUSD Index | BP1: =BN1+2 -> 66 | BQ1: CESIEUR Index | BR1: =BP1+2 -> 68 | BS1: CESIEM Index | BT1: =BR1+2 -> 70 | BU1: CESIAPAC Index | BV1: =BT1+2 -> 72 | BW1: CESICNY Index | BX1: =BV1+2 -> 74 | BY1: EURUSD Curncy | BZ1: =BX1+2 -> 76 | CA1: GBPUSD Curncy | CB1: =BZ1+2 -> 78 | CC1: EURGBP Curncy | CD1: =CB1+2 -> 80 | CE1: USDJPY Curncy | CF1: =CD1+2 -> 82 | CG1: USDCAD Curncy | CH1: =CF1+2 -> 84 | CI1: ADXY Index | CJ1: =CH1+2 -> 86 | CK1: DXY Curncy | CL1: =CJ1+2 -> 88 | CM1: AUDUSD Curncy | CN1: =CL1+2 -> 90 | CO1: USDSEK Curncy | CP1: =CN1+2 -> 92 | CQ1: USDNOK Curncy | CR1: =CP1+2 -> 94 | CS1: USDTWD Curncy | CT1: =CR1+2 -> 96 | CU1: USDBRL Curncy | CV1: =CT1+2 -> 98 | CW1: CNYCNH CMPL Curncy | CX1: =CV1+2 -> 100 | CY1: USDIDR Curncy | CZ1: =CX1+2 -> 102 | DA1: USDINR Curncy | DB1: =CZ1+2 -> 104 | DC1: USDRUB Curncy | DD1: =DB1+2 -> 106 | DE1: USDZAR Curncy | DF1: =DD1+2 -> 108 | DG1: VIX Index | DH1: =DF1+2 -> 110 | DI1: V2X Index | DJ1: =DH1+2 -> 112 | DK1: MOVE Index | DL1: =DJ1+2 -> 114 | DM1: ES1 Index | DN1: =DL1+2 -> 116 | DO1: NQ1 Index | DP1: =DN1+2 -> 118 | DQ1: CA1 Index | DR1: =DP1+2 -> 120 | DS1: ST1 Index | DT1: =DR1+2 -> 122
A2: 2005-01-03 | B2: 428.54 | C2: 2005-01-03 | D2: 2973 | E2: 2005-01-03 | F2: 3.0896 | G2: 2005-01-03 | H2: 3.6214 | I2: 2005-01-03 | J2: 4.2104 | K2: 2005-01-03 | L2: 4.8121 | M2: 2005-01-03 | N2: 2.47 | O2: 2005-01-03 | P2: 2.997 | Q2: 2005-01-03 | R2: 3.639 | S2: 2005-01-03 | T2: 4.241 | U2: 2005-01-03 | V2: 0.115 | W2: 2005-01-03 | X2: 0.61 | Y2: 2005-01-03 | Z2: 1.441 | AA2: 2005-01-03 | AB2: 2.399 | AC2: 2005-01-03 | AD2: 4.44 | AE2: 2005-01-03 | AF2: 4.497 | AG2: 2005-01-03 | AH2: 4.55 | AI2: 2005-01-03 | AJ2: 4.405 | AK2: 2005-01-03 | AL2: 2.41 | AM2: 2005-01-03 | AN2: 2.979 | AO2: 2005-01-03 | AP2: 3.79 | AQ2: 2005-01-03 | AR2: 4.441 | AS2: 2005-01-03 | AT2: 2.6151 | AU2: 2005-01-03 | AV2: 2.5344 | AW2: 2005-01-03 | AX2: 2.5593 | AY2: 2005-01-03 | AZ2: 2.9569 | BA2: 2011-09-09 | BB2: 779.5 | BC2: 2011-09-09 | BD2: 523.667 | BE2: 2012-08-08 | BF2: 548.072 | BG2: 2007-09-27 | BH2: 40.333 | BI2: 2005-01-03 | BJ2: 25.5 | BK2: 2005-01-03 | BL2: 0.5 | BM2: 2005-01-03 | BN2: 7.93 | BO2: 2005-01-03 | BP2: 22 | BQ2: 2005-01-03 | BR2: -10.7 | BS2: 2005-01-03 | BT2: -4.7 | BU2: 2005-01-03 | BV2: 9.1 | BW2: 2005-01-03 | BX2: 11.8 | BY2: 2005-01-03 | BZ2: 1.348 | CA2: 2005-01-03 | CB2: 1.9038 | CC2: 2005-01-03 | CD2: 0.708 | CE2: 2005-01-03 | CF2: 102.79 | CG2: 2005-01-03 | CH2: 1.2098 | CI2: 2005-01-03 | CJ2: 103.86 | CK2: 2005-01-03 | CL2: 81.3 | CM2: 2005-01-03 | CN2: 0.7786 | CO2: 2005-01-03 | CP2: 6.6916 | CQ2: 2005-01-03 | CR2: 6.1126 | CS2: 2005-01-03 | CT2: 31.83 | CU2: 2005-01-03 | CV2: 2.6733 | CW2: 2010-08-23 | CX2: 0.989 | CY2: 2005-01-03 | CZ2: 9290 | DA2: 2005-01-03 | DB2: 43.475 | DC2: 2005-01-03 | DD2: 27.765 | DE2: 2005-01-03 | DF2: 5.6643 | DG2: 2005-01-03 | DH2: 14.08 | DI2: 2005-01-03 | DJ2: 14.47 | DK2: 2005-01-03 | DL2: 83.9 | DM2: 2005-01-03 | DN2: 1206.25 | DO2: 38355 | DP2: 1615.5 | DQ2: 2005-01-03 | DR2: 290.2 | DS2: 2005-01-03 | DT2: 31061
A3: 2005-01-04 | B3: 427.75 | C3: 2005-01-04 | D3: 2964 | E3: 2005-01-04 | F3: 3.1962 | G3: 2005-01-04 | H3: 3.709 | I3: 2005-01-04 | J3: 4.2886 | K3: 2005-01-04 | L3: 4.8856 | M3: 2005-01-04 | N3: 2.491 | O3: 2005-01-04 | P3: 3.028 | Q3: 2005-01-04 | R3: 3.653 | S3: 2005-01-04 | T3: 4.253 | U3: 2005-01-04 | V3: 0.109 | W3: 2005-01-04 | X3: 0.579 | Y3: 2005-01-04 | Z3: 1.404 | AA3: 2005-01-04 | AB3: 2.364 | AC3: 2005-01-04 | AD3: 4.429 | AE3: 2005-01-04 | AF3: 4.478 | AG3: 2005-01-04 | AH3: 4.53 | AI3: 2005-01-04 | AJ3: 4.399 | AK3: 2005-01-04 | AL3: 2.431 | AM3: 2005-01-04 | AN3: 3.006 | AO3: 2005-01-04 | AP3: 3.8 | AQ3: 2005-01-04 | AR3: 4.452 | AS3: 2005-01-04 | AT3: 2.6205 | AU3: 2005-01-04 | AV3: 2.5479 | AW3: 2005-01-04 | AX3: 2.5709 | AY3: 2005-01-04 | AZ3: 2.9667 | BA3: 2011-09-12 | BB3: 800.75 | BC3: 2011-09-12 | BD3: 556 | BE3: 2012-08-09 | BF3: 551.268 | BG3: 2007-09-28 | BH3: 39.333 | BI3: 2005-01-04 | BJ3: 25.167 | BK3: 2005-01-04 | BL3: 0.9 | BM3: 2005-01-04 | BN3: 7.96 | BO3: 2005-01-04 | BP3: 22.5 | BQ3: 2005-01-04 | BR3: -9.7 | BS3: 2005-01-04 | BT3: -4.1 | BU3: 2005-01-04 | BV3: 9.5 | BW3: 2005-01-04 | BX3: 11.5 | BY3: 2005-01-04 | BZ3: 1.3303 | CA3: 2005-01-04 | CB3: 1.8833 | CC3: 2005-01-04 | CD3: 0.70627 | CE3: 2005-01-04 | CF3: 104.27 | CG3: 2005-01-04 | CH3: 1.2211 | CI3: 2005-01-04 | CJ3: 103.42 | CK3: 2005-01-04 | CL3: 82.52 | CM3: 2005-01-04 | CN3: 0.7688 | CO3: 2005-01-04 | CP3: 6.8091 | CQ3: 2005-01-04 | CR3: 6.2253 | CS3: 2005-01-04 | CT3: 31.805 | CU3: 2005-01-04 | CV3: 2.698 | CW3: 2010-08-24 | CX3: 0.9896 | CY3: 2005-01-04 | CZ3: 9300 | DA3: 2005-01-04 | DB3: 43.52 | DC3: 2005-01-04 | DD3: 27.72 | DE3: 2005-01-04 | DF3: 5.8582 | DG3: 2005-01-04 | DH3: 13.98 | DI3: 2005-01-04 | DJ3: 14.51 | DK3: 2005-01-04 | DL3: 83.3 | DM3: 2005-01-04 | DN3: 1191 | DO3: 38356 | DP3: 1582.5 | DQ3: 2005-01-04 | DR3: 292.2 | DS3: 2005-01-04 | DT3: 31187
A4: 2005-01-05 | B4: 426.44 | C4: 2005-01-05 | D4: 2966 | E4: 2005-01-05 | F4: 3.2046 | G4: 2005-01-05 | H4: 3.7161 | I4: 2005-01-05 | J4: 4.2808 | K4: 2005-01-05 | L4: 4.8472 | M4: 2005-01-05 | N4: 2.484 | O4: 2005-01-05 | P4: 3.022 | Q4: 2005-01-05 | R4: 3.654 | S4: 2005-01-05 | T4: 4.243 | U4: 2005-01-05 | V4: 0.11 | W4: 2005-01-05 | X4: 0.584 | Y4: 2005-01-05 | Z4: 1.404 | AA4: 2005-01-05 | AB4: 2.365 | AC4: 2005-01-05 | AD4: 4.439 | AE4: 2005-01-05 | AF4: 4.483 | AG4: 2005-01-05 | AH4: 4.547 | AI4: 2005-01-05 | AJ4: 4.415 | AK4: 2005-01-05 | AL4: 2.419 | AM4: 2005-01-05 | AN4: 2.998 | AO4: 2005-01-05 | AP4: 3.8 | AQ4: 2005-01-05 | AR4: 4.442 | AS4: 2005-01-05 | AT4: 2.58 | AU4: 2005-01-05 | AV4: 2.5209 | AW4: 2005-01-05 | AX4: 2.5455 | AY4: 2005-01-05 | AZ4: 2.9209 | BA4: 2011-09-13 | BB4: 771.167 | BC4: 2011-09-13 | BD4: 543.667 | BE4: 2012-08-10 | BF4: 552.893 | BG4: 2007-10-01 | BH4: 40 | BI4: 2005-01-05 | BJ4: 24.5 | BK4: 2005-01-05 | BL4: 2.9 | BM4: 2005-01-05 | BN4: 10.5 | BO4: 2005-01-05 | BP4: 27.6 | BQ4: 2005-01-05 | BR4: -8.4 | BS4: 2005-01-05 | BT4: -3 | BU4: 2005-01-05 | BV4: 9.7 | BW4: 2005-01-05 | BX4: 11.2 | BY4: 2005-01-05 | BZ4: 1.3282 | CA4: 2005-01-05 | CB4: 1.8852 | CC4: 2005-01-05 | CD4: 0.70452 | CE4: 2005-01-05 | CF4: 103.91 | CG4: 2005-01-05 | CH4: 1.2254 | CI4: 2005-01-05 | CJ4: 103.53 | CK4: 2005-01-05 | CL4: 82.54 | CM4: 2005-01-05 | CN4: 0.7662 | CO4: 2005-01-05 | CP4: 6.7979 | CQ4: 2005-01-05 | CR4: 6.2241 | CS4: 2005-01-05 | CT4: 31.93 | CU4: 2005-01-05 | CV4: 2.7063 | CW4: 2010-08-25 | CX4: 0.9902 | CY4: 2005-01-05 | CZ4: 9310 | DA4: 2005-01-05 | DB4: 43.83 | DC4: 2005-01-05 | DD4: 27.881 | DE4: 2005-01-05 | DF4: 5.92 | DG4: 2005-01-05 | DH4: 14.09 | DI4: 2005-01-05 | DJ4: 14.42 | DK4: 2005-01-05 | DL4: 93.2 | DM4: 2005-01-05 | DN4: 1183.25 | DO4: 38357 | DP4: 1565.5 | DQ4: 2005-01-05 | DR4: 289.5 | DS4: 2005-01-05 | DT4: 31131
A5: 2005-01-06 | B5: 422.06 | C5: 2005-01-06 | D5: 2981 | E5: 2005-01-06 | F5: 3.1556 | G5: 2005-01-06 | H5: 3.6811 | I5: 2005-01-06 | J5: 4.2612 | K5: 2005-01-06 | L5: 4.8451 | M5: 2005-01-06 | N5: 2.441 | O5: 2005-01-06 | P5: 2.98 | Q5: 2005-01-06 | R5: 3.625 | S5: 2005-01-06 | T5: 4.213 | U5: 2005-01-06 | V5: 0.11 | W5: 2005-01-06 | X5: 0.59 | Y5: 2005-01-06 | Z5: 1.405 | AA5: 2005-01-06 | AB5: 2.366 | AC5: 2005-01-06 | AD5: 4.419 | AE5: 2005-01-06 | AF5: 4.458 | AG5: 2005-01-06 | AH5: 4.521 | AI5: 2005-01-06 | AJ5: 4.382 | AK5: 2005-01-06 | AL5: 2.382 | AM5: 2005-01-06 | AN5: 2.952 | AO5: 2005-01-06 | AP5: 3.766 | AQ5: 2005-01-06 | AR5: 4.409 | AS5: 2005-01-06 | AT5: 2.5645 | AU5: 2005-01-06 | AV5: 2.5197 | AW5: 2005-01-06 | AX5: 2.5506 | AY5: 2005-01-06 | AZ5: 2.922 | BA5: 2011-09-14 | BB5: 744.166 | BC5: 2011-09-14 | BD5: 522.334 | BE5: 2012-08-13 | BF5: 554.523 | BG5: 2007-10-02 | BH5: 40 | BI5: 2005-01-06 | BJ5: 24.5 | BK5: 2005-01-06 | BL5: 6.1 | BM5: 2005-01-06 | BN5: 10.03 | BO5: 2005-01-06 | BP5: 27.7 | BQ5: 2005-01-06 | BR5: -7.6 | BS5: 2005-01-06 | BT5: 5.8 | BU5: 2005-01-06 | BV5: 9.5 | BW5: 2005-01-06 | BX5: 10.9 | BY5: 2005-01-06 | BZ5: 1.3182 | CA5: 2005-01-06 | CB5: 1.8745 | CC5: 2005-01-06 | CD5: 0.70325 | CE5: 2005-01-06 | CF5: 104.93 | CG5: 2005-01-06 | CH5: 1.2376 | CI5: 2005-01-06 | CJ5: 103.09 | CK5: 2005-01-06 | CL5: 83.15 | CM5: 2005-01-06 | CN5: 0.7611 | CO5: 2005-01-06 | CP5: 6.8678 | CQ5: 2005-01-06 | CR5: 6.2637 | CS5: 2005-01-06 | CT5: 32.045 | CU5: 2005-01-06 | CV5: 2.7225 | CW5: 2010-08-26 | CX5: 0.992 | CY5: 2005-01-06 | CZ5: 9323 | DA5: 2005-01-06 | DB5: 43.91 | DC5: 2005-01-06 | DD5: 27.761 | DE5: 2005-01-06 | DF5: 6.1125 | DG5: 2005-01-06 | DH5: 13.58 | DI5: 2005-01-06 | DJ5: 13.8 | DK5: 2005-01-06 | DL5: 92.4 | DM5: 2005-01-06 | DN5: 1188.25 | DO5: 38358 | DP5: 1563 | DQ5: 2005-01-06 | DR5: 292.8 | DS5: 2005-01-06 | DT5: 31180
A6: 2005-01-07 | B6: 417.5 | C6: 2005-01-07 | D6: 2984 | E6: 2005-01-07 | F6: 3.1891 | G6: 2005-01-07 | H6: 3.713 | I6: 2005-01-07 | J6: 4.269 | K6: 2005-01-07 | L6: 4.835 | M6: 2005-01-07 | N6: 2.439 | O6: 2005-01-07 | P6: 2.97 | Q6: 2005-01-07 | R6: 3.61 | S6: 2005-01-07 | T6: 4.185 | U6: 2005-01-07 | V6: 0.109 | W6: 2005-01-07 | X6: 0.584 | Y6: 2005-01-07 | Z6: 1.414 | AA6: 2005-01-07 | AB6: 2.374 | AC6: 2005-01-07 | AD6: 4.425 | AE6: 2005-01-07 | AF6: 4.458 | AG6: 2005-01-07 | AH6: 4.515 | AI6: 2005-01-07 | AJ6: 4.372 | AK6: 2005-01-07 | AL6: 2.378 | AM6: 2005-01-07 | AN6: 2.942 | AO6: 2005-01-07 | AP6: 3.747 | AQ6: 2005-01-07 | AR6: 4.382 | AS6: 2005-01-07 | AT6: 2.5409 | AU6: 2005-01-07 | AV6: 2.514 | AW6: 2005-01-07 | AX6: 2.5251 | AY6: 2005-01-07 | AZ6: 2.8834 | BA6: 2011-09-15 | BB6: 716.5 | BC6: 2011-09-15 | BD6: 474.584 | BE6: 2012-08-14 | BF6: 553.75 | BG6: 2007-10-03 | BH6: 40.5 | BI6: 2005-01-07 | BJ6: 25.188 | BK6: 2005-01-07 | BL6: 3.9 | BM6: 2005-01-07 | BN6: 7.3 | BO6: 2005-01-07 | BP6: 26 | BQ6: 2005-01-07 | BR6: -18.4 | BS6: 2005-01-07 | BT6: 5.3 | BU6: 2005-01-07 | BV6: 9 | BW6: 2005-01-07 | BX6: 10.6 | BY6: 2005-01-07 | BZ6: 1.3032 | CA6: 2005-01-07 | CB6: 1.866 | CC6: 2005-01-07 | CD6: 0.6983 | CE6: 2005-01-07 | CF6: 105.08 | CG6: 2005-01-07 | CH6: 1.2355 | CI6: 2005-01-07 | CJ6: 103.2 | CK6: 2005-01-07 | CL6: 83.6 | CM6: 2005-01-07 | CN6: 0.7559 | CO6: 2005-01-07 | CP6: 6.9407 | CQ6: 2005-01-07 | CR6: 6.3135 | CS6: 2005-01-07 | CT6: 32.01 | CU6: 2005-01-07 | CV6: 2.7111 | CW6: 2010-08-27 | CX6: 0.9922 | CY6: 2005-01-07 | CZ6: 9310 | DA6: 2005-01-07 | DB6: 43.82 | DC6: 2005-01-07 | DD6: 27.76 | DE6: 2005-01-07 | DF6: 6.105 | DG6: 2005-01-07 | DH6: 13.49 | DI6: 2005-01-07 | DJ6: 13.57 | DK6: 2005-01-07 | DL6: 92.38 | DM6: 2005-01-07 | DN6: 1186.25 | DO6: 38359 | DP6: 1567.5 | DQ6: 2005-01-07 | DR6: 294.6 | DS6: 2005-01-07 | DT6: 31236
A7: 2005-01-10 | B7: 419.07 | C7: 2005-01-10 | D7: 2987 | E7: 2005-01-10 | F7: 3.2141 | G7: 2005-01-10 | H7: 3.7271 | I7: 2005-01-10 | J7: 4.269 | K7: 2005-01-10 | L7: 4.817 | M7: 2005-01-10 | N7: 2.422 | O7: 2005-01-10 | P7: 2.95 | Q7: 2005-01-10 | R7: 3.592 | S7: 2005-01-10 | T7: 4.176 | U7: 2005-01-10 | V7: 0.11 | W7: 2005-01-10 | X7: 0.585 | Y7: 2005-01-10 | Z7: 1.415 | AA7: 2005-01-10 | AB7: 2.374 | AC7: 2005-01-10 | AD7: 4.412 | AE7: 2005-01-10 | AF7: 4.447 | AG7: 2005-01-10 | AH7: 4.507 | AI7: 2005-01-10 | AJ7: 4.382 | AK7: 2005-01-10 | AL7: 2.363 | AM7: 2005-01-10 | AN7: 2.924 | AO7: 2005-01-10 | AP7: 3.728 | AQ7: 2005-01-10 | AR7: 4.371 | AS7: 2005-01-10 | AT7: 2.5694 | AU7: 2005-01-10 | AV7: 2.5466 | AW7: 2005-01-10 | AX7: 2.5411 | AY7: 2005-01-10 | AZ7: 2.8811 | BA7: 2011-09-16 | BB7: 717 | BC7: 2011-09-16 | BD7: 467.667 | BE7: 2012-08-15 | BF7: 558.182 | BG7: 2007-10-04 | BH7: 42 | BI7: 2005-01-10 | BJ7: 25.5 | BK7: 2005-01-10 | BL7: 3.9 | BM7: 2005-01-10 | BN7: 9.15 | BO7: 2005-01-10 | BP7: 27.5 | BQ7: 2005-01-10 | BR7: -14.9 | BS7: 2005-01-10 | BT7: 2.7 | BU7: 2005-01-10 | BV7: 8.3 | BW7: 2005-01-10 | BX7: 9.4 | BY7: 2005-01-10 | BZ7: 1.309 | CA7: 2005-01-10 | CB7: 1.8732 | CC7: 2005-01-10 | CD7: 0.69878 | CE7: 2005-01-10 | CF7: 104.23 | CG7: 2005-01-10 | CH7: 1.2214 | CI7: 2005-01-10 | CJ7: 103.28 | CK7: 2005-01-10 | CL7: 83.35 | CM7: 2005-01-10 | CN7: 0.7595 | CO7: 2005-01-10 | CP7: 6.9037 | CQ7: 2005-01-10 | CR7: 6.2792 | CS7: 2005-01-10 | CT7: 32.225 | CU7: 2005-01-10 | CV7: 2.7025 | CW7: 2010-08-30 | CX7: 0.9944 | CY7: 2005-01-10 | CZ7: 9295 | DA7: 2005-01-10 | DB7: 43.93 | DC7: 2005-01-10 | DD7: 27.799 | DE7: 2005-01-10 | DF7: 5.9903 | DG7: 2005-01-10 | DH7: 13.23 | DI7: 2005-01-10 | DJ7: 12.92 | DK7: 2005-01-10 | DL7: 79.01 | DM7: 2005-01-10 | DN7: 1191.75 | DO7: 38362 | DP7: 1568 | DQ7: 2005-01-10 | DR7: 295.1 | DS7: 2005-01-10 | DT7: 31241
A8: 2005-01-11 | B8: 422.1 | C8: 2005-01-11 | D8: 2943 | E8: 2005-01-11 | F8: 3.2061 | G8: 2005-01-11 | H8: 3.7061 | I8: 2005-01-11 | J8: 4.2357 | K8: 2005-01-11 | L8: 4.7801 | M8: 2005-01-11 | N8: 2.428 | O8: 2005-01-11 | P8: 2.958 | Q8: 2005-01-11 | R8: 3.598 | S8: 2005-01-11 | T8: 4.181 | U8: 2005-01-11 | V8: 0.105 | W8: 2005-01-11 | X8: 0.57 | Y8: 2005-01-11 | Z8: 1.4 | AA8: 2005-01-11 | AB8: 2.364 | AC8: 2005-01-11 | AD8: 4.414 | AE8: 2005-01-11 | AF8: 4.455 | AG8: 2005-01-11 | AH8: 4.515 | AI8: 2005-01-11 | AJ8: 4.402 | AK8: 2005-01-11 | AL8: 2.372 | AM8: 2005-01-11 | AN8: 2.93 | AO8: 2005-01-11 | AP8: 3.733 | AQ8: 2005-01-11 | AR8: 4.373 | AS8: 2005-01-11 | AT8: 2.5498 | AU8: 2005-01-11 | AV8: 2.5254 | AW8: 2005-01-11 | AX8: 2.5149 | AY8: 2005-01-11 | AZ8: 2.8606 | BA8: 2011-09-19 | BB8: 749.084 | BC8: 2011-09-19 | BD8: 497.334 | BE8: 2012-08-16 | BF8: 546.616 | BG8: 2007-10-05 | BH8: 41.5 | BI8: 2005-01-11 | BJ8: 25.5 | BK8: 2005-01-11 | BL8: 7 | BM8: 2005-01-11 | BN8: 12.07 | BO8: 2005-01-11 | BP8: 29.1 | BQ8: 2005-01-11 | BR8: -6.7 | BS8: 2005-01-11 | BT8: 5.8 | BU8: 2005-01-11 | BV8: 9 | BW8: 2005-01-11 | BX8: 9 | BY8: 2005-01-11 | BZ8: 1.3136 | CA8: 2005-01-11 | CB8: 1.8785 | CC8: 2005-01-11 | CD8: 0.69925 | CE8: 2005-01-11 | CF8: 103.24 | CG8: 2005-01-11 | CH8: 1.2161 | CI8: 2005-01-11 | CJ8: 103.67 | CK8: 2005-01-11 | CL8: 83.07 | CM8: 2005-01-11 | CN8: 0.7629 | CO8: 2005-01-11 | CP8: 6.8736 | CQ8: 2005-01-11 | CR8: 6.25 | CS8: 2005-01-11 | CT8: 32.119 | CU8: 2005-01-11 | CV8: 2.7203 | CW8: 2010-08-31 | CX8: 0.9952 | CY8: 2005-01-11 | CZ8: 9283 | DA8: 2005-01-11 | DB8: 43.8025 | DC8: 2005-01-11 | DD8: 27.955 | DE8: 2005-01-11 | DF8: 5.965 | DG8: 2005-01-11 | DH8: 13.19 | DI8: 2005-01-11 | DJ8: 13.68 | DK8: 2005-01-11 | DL8: 77.85 | DM8: 2005-01-11 | DN8: 1184 | DO8: 38363 | DP8: 1559 | DQ8: 2005-01-11 | DR8: 291.7 | DS8: 2005-01-11 | DT8: 30823
A9: 2005-01-12 | B9: 426.31 | C9: 2005-01-12 | D9: 2927 | E9: 2005-01-12 | F9: 3.2064 | G9: 2005-01-12 | H9: 3.6992 | I9: 2005-01-12 | J9: 4.2337 | K9: 2005-01-12 | L9: 4.7672 | M9: 2005-01-12 | N9: 2.432 | O9: 2005-01-12 | P9: 2.963 | Q9: 2005-01-12 | R9: 3.602 | S9: 2005-01-12 | T9: 4.185 | U9: 2005-01-12 | V9: 0.1 | W9: 2005-01-12 | X9: 0.55 | Y9: 2005-01-12 | Z9: 1.37 | AA9: 2005-01-12 | AB9: 2.349 | AC9: 2005-01-12 | AD9: 4.414 | AE9: 2005-01-12 | AF9: 4.457 | AG9: 2005-01-12 | AH9: 4.524 | AI9: 2005-01-12 | AJ9: 4.423 | AK9: 2005-01-12 | AL9: 2.375 | AM9: 2005-01-12 | AN9: 2.934 | AO9: 2005-01-12 | AP9: 3.734 | AQ9: 2005-01-12 | AR9: 4.376 | AS9: 2005-01-12 | AT9: 2.5915 | AU9: 2005-01-12 | AV9: 2.5431 | AW9: 2005-01-12 | AX9: 2.5359 | AY9: 2005-01-12 | AZ9: 2.8764 | BA9: 2011-10-12 | BB9: 743.834 | BC9: 2011-10-12 | BD9: 471.5 | BE9: 2012-08-17 | BF9: 540.682 | BG9: 2007-10-08 | BH9: 39.667 | BI9: 2005-01-12 | BJ9: 25.5 | BK9: 2005-01-12 | BL9: -0.5 | BM9: 2005-01-12 | BN9: 2.07 | BO9: 2005-01-12 | BP9: 0.4 | BQ9: 2005-01-12 | BR9: -6.3 | BS9: 2005-01-12 | BT9: 4.9 | BU9: 2005-01-12 | BV9: 7.8 | BW9: 2005-01-12 | BX9: 8.5 | BY9: 2005-01-12 | BZ9: 1.3275 | CA9: 2005-01-12 | CB9: 1.8929 | CC9: 2005-01-12 | CD9: 0.70125 | CE9: 2005-01-12 | CF9: 102.33 | CG9: 2005-01-12 | CH9: 1.1982 | CI9: 2005-01-12 | CJ9: 104.03 | CK9: 2005-01-12 | CL9: 82.17 | CM9: 2005-01-12 | CN9: 0.7674 | CO9: 2005-01-12 | CP9: 6.8134 | CQ9: 2005-01-12 | CR9: 6.1751 | CS9: 2005-01-12 | CT9: 31.76 | CU9: 2005-01-12 | CV9: 2.6987 | CW9: 2010-09-01 | CX9: 0.9962 | CY9: 2005-01-12 | CZ9: 9195 | DA9: 2005-01-12 | DB9: 43.81 | DC9: 2005-01-12 | DD9: 27.825 | DE9: 2005-01-12 | DF9: 5.98 | DG9: 2005-01-12 | DH9: 12.56 | DI9: 2005-01-12 | DJ9: 14.05 | DK9: 2005-01-12 | DL9: 76.95 | DM9: 2005-01-12 | DN9: 1187.5 | DO9: 38364 | DP9: 1568 | DQ9: 2005-01-12 | DR9: 290 | DS9: 2005-01-12 | DT9: 30659
A10: 2005-01-13 | B10: 424.55 | C10: 2005-01-13 | D10: 2941 | E10: 2005-01-13 | F10: 3.1734 | G10: 2005-01-13 | H10: 3.6526 | I10: 2005-01-13 | J10: 4.1635 | K10: 2005-01-13 | L10: 4.6896 | M10: 2005-01-13 | N10: 2.378 | O10: 2005-01-13 | P10: 2.909 | Q10: 2005-01-13 | R10: 3.561 | S10: 2005-01-13 | T10: 4.145 | U10: 2005-01-13 | V10: 0.1 | W10: 2005-01-13 | X10: 0.559 | Y10: 2005-01-13 | Z10: 1.38 | AA10: 2005-01-13 | AB10: 2.354 | AC10: 2005-01-13 | AD10: 4.375 | AE10: 2005-01-13 | AF10: 4.417 | AG10: 2005-01-13 | AH10: 4.488 | AI10: 2005-01-13 | AJ10: 4.404 | AK10: 2005-01-13 | AL10: 2.331 | AM10: 2005-01-13 | AN10: 2.88 | AO10: 2005-01-13 | AP10: 3.697 | AQ10: 2005-01-13 | AR10: 4.336 | AS10: 2005-01-13 | AT10: 2.5774 | AU10: 2005-01-13 | AV10: 2.5273 | AW10: 2005-01-13 | AX10: 2.5185 | AY10: 2005-01-13 | AZ10: 2.8452 | BA10: 2011-10-13 | BB10: 766.833 | BC10: 2011-10-13 | BD10: 487 | BE10: 2012-08-20 | BF10: 534.009 | BG10: 2007-10-09 | BH10: 38.833 | BI10: 2005-01-13 | BJ10: 25.75 | BK10: 2005-01-13 | BL10: -1.2 | BM10: 2005-01-13 | BN10: 1.01 | BO10: 2005-01-13 | BP10: -2.2 | BQ10: 2005-01-13 | BR10: -5.9 | BS10: 2005-01-13 | BT10: 4.9 | BU10: 2005-01-13 | BV10: 7.5 | BW10: 2005-01-13 | BX10: 8 | BY10: 2005-01-13 | BZ10: 1.3216 | CA10: 2005-01-13 | CB10: 1.8831 | CC10: 2005-01-13 | CD10: 0.70175 | CE10: 2005-01-13 | CF10: 102.56 | CG10: 2005-01-13 | CH10: 1.2008 | CI10: 2005-01-13 | CJ10: 104.14 | CK10: 2005-01-13 | CL10: 82.51 | CM10: 2005-01-13 | CN10: 0.7666 | CO10: 2005-01-13 | CP10: 6.8508 | CQ10: 2005-01-13 | CR10: 6.1943 | CS10: 2005-01-13 | CT10: 31.745 | CU10: 2005-01-13 | CV10: 2.698 | CW10: 2010-09-02 | CX10: 0.9967 | CY10: 2005-01-13 | CZ10: 9144 | DA10: 2005-01-13 | DB10: 43.735 | DC10: 2005-01-13 | DD10: 27.9 | DE10: 2005-01-13 | DF10: 6.04 | DG10: 2005-01-13 | DH10: 12.84 | DI10: 2005-01-13 | DJ10: 13.64 | DK10: 2005-01-13 | DL10: 75.77 | DM10: 2005-01-13 | DN10: 1178 | DO10: 38365 | DP10: 1550 | DQ10: 2005-01-13 | DR10: 291.4 | DS10: 2005-01-13 | DT10: 30928
A11: 2005-01-14 | B11: 422.85 | C11: 2005-01-14 | D11: 2945 | E11: 2005-01-14 | F11: 3.2244 | G11: 2005-01-14 | H11: 3.7114 | I11: 2005-01-14 | J11: 4.208 | K11: 2005-01-14 | L11: 4.7276 | M11: 2005-01-14 | N11: 2.392 | O11: 2005-01-14 | P11: 2.921 | Q11: 2005-01-14 | R11: 3.56 | S11: 2005-01-14 | T11: 4.122 | U11: 2005-01-14 | V11: 0.101 | W11: 2005-01-14 | X11: 0.575 | Y11: 2005-01-14 | Z11: 1.393 | AA11: 2005-01-14 | AB11: 2.375 | AC11: 2005-01-14 | AD11: 4.386 | AE11: 2005-01-14 | AF11: 4.427 | AG11: 2005-01-14 | AH11: 4.496 | AI11: 2005-01-14 | AJ11: 4.427 | AK11: 2005-01-14 | AL11: 2.337 | AM11: 2005-01-14 | AN11: 2.892 | AO11: 2005-01-14 | AP11: 3.693 | AQ11: 2005-01-14 | AR11: 4.311 | AS11: 2005-01-14 | AT11: 2.5743 | AU11: 2005-01-14 | AV11: 2.5391 | AW11: 2005-01-14 | AX11: 2.4855 | AY11: 2005-01-14 | AZ11: 2.8584 | BA11: 2011-10-14 | BB11: 741 | BC11: 2011-10-14 | BD11: 478 | BE11: 2012-08-21 | BF11: 537.531 | BG11: 2007-10-10 | BH11: 37 | BI11: 2005-01-14 | BJ11: 25.625 | BK11: 2005-01-14 | BL11: 3 | BM11: 2005-01-14 | BN11: 8.21 | BO11: 2005-01-14 | BP11: 1.6 | BQ11: 2005-01-14 | BR11: -5.5 | BS11: 2005-01-14 | BT11: 4.9 | BU11: 2005-01-14 | BV11: 7.1 | BW11: 2005-01-14 | BX11: 7.3 | BY11: 2005-01-14 | BZ11: 1.3097 | CA11: 2005-01-14 | CB11: 1.8682 | CC11: 2005-01-14 | CD11: 0.70115 | CE11: 2005-01-14 | CF11: 102.06 | CG11: 2005-01-14 | CH11: 1.2204 | CI11: 2005-01-14 | CJ11: 103.96 | CK11: 2005-01-14 | CL11: 82.97 | CM11: 2005-01-14 | CN11: 0.7588 | CO11: 2005-01-14 | CP11: 6.9164 | CQ11: 2005-01-14 | CR11: 6.2598 | CS11: 2005-01-14 | CT11: 31.895 | CU11: 2005-01-14 | CV11: 2.7003 | CW11: 2010-09-03 | CX11: 0.9955 | CY11: 2005-01-14 | CZ11: 9160 | DA11: 2005-01-14 | DB11: 43.7475 | DC11: 2005-01-14 | DD11: 27.945 | DE11: 2005-01-14 | DF11: 6.0375 | DG11: 2005-01-14 | DH11: 12.43 | DI11: 2005-01-14 | DJ11: 13.57 | DK11: 2005-01-14 | DL11: 76.61 | DM11: 2005-01-14 | DN11: 1183.75 | DO11: 38366 | DP11: 1562.5 | DQ11: 2005-01-14 | DR11: 292.4 | DS11: 2005-01-14 | DT11: 31135
A12: 2005-01-17 | B12: 422.45 | C12: 2005-01-17 | D12: 2963 | E12: 2005-01-17 | F12: 3.2246 | G12: 2005-01-17 | H12: 3.7079 | I12: 2005-01-17 | J12: 4.2082 | K12: 2005-01-17 | L12: 4.7256 | M12: 2005-01-17 | N12: 2.39 | O12: 2005-01-17 | P12: 2.916 | Q12: 2005-01-17 | R12: 3.545 | S12: 2005-01-17 | T12: 4.098 | U12: 2005-01-17 | V12: 0.105 | W12: 2005-01-17 | X12: 0.584 | Y12: 2005-01-17 | Z12: 1.4 | AA12: 2005-01-17 | AB12: 2.389 | AC12: 2005-01-17 | AD12: 4.363 | AE12: 2005-01-17 | AF12: 4.413 | AG12: 2005-01-17 | AH12: 4.49 | AI12: 2005-01-17 | AJ12: 4.417 | AK12: 2005-01-17 | AL12: 2.336 | AM12: 2005-01-17 | AN12: 2.885 | AO12: 2005-01-17 | AP12: 3.678 | AQ12: 2005-01-17 | AR12: 4.287 | AS12: 2005-01-17 | AT12: 2.5743 | AU12: 2005-01-17 | AV12: 2.5356 | AW12: 2005-01-17 | AX12: 2.4844 | AY12: 2005-01-17 | AZ12: 2.8669 | BA12: 2011-10-17 | BB12: 745 | BC12: 2011-10-17 | BD12: 473 | BE12: 2012-08-22 | BF12: 540.046 | BG12: 2007-10-11 | BH12: 37.333 | BI12: 2005-01-17 | BJ12: 25.583 | BK12: 2005-01-17 | BL12: 2.6 | BM12: 2005-01-17 | BN12: 7.22 | BO12: 2005-01-17 | BP12: -1 | BQ12: 2005-01-17 | BR12: -3.6 | BS12: 2005-01-17 | BT12: 5.4 | BU12: 2005-01-17 | BV12: 5.8 | BW12: 2005-01-17 | BX12: 4.6 | BY12: 2005-01-17 | BZ12: 1.3079 | CA12: 2005-01-17 | CB12: 1.8615 | CC12: 2005-01-17 | CD12: 0.70265 | CE12: 2005-01-17 | CF12: 102.05 | CG12: 2005-01-17 | CH12: 1.217 | CI12: 2005-01-17 | CJ12: 104.1 | CK12: 2005-01-17 | CL12: 83.24 | CM12: 2005-01-17 | CN12: 0.7585 | CO12: 2005-01-17 | CP12: 6.9201 | CQ12: 2005-01-17 | CR12: 6.2644 | CS12: 2005-01-17 | CT12: 31.79 | CU12: 2005-01-17 | CV12: 2.7004 | CW12: 2010-09-06 | CX12: 0.9966 | CY12: 2005-01-17 | CZ12: 9134 | DA12: 2005-01-17 | DB12: 43.655 | DC12: 2005-01-17 | DD12: 28.05 | DE12: 2005-01-17 | DF12: 6.0249 | DG12: 2005-01-18 | DH12: 12.47 | DI12: 2005-01-17 | DJ12: 13.2 | DK12: 2005-01-18 | DL12: 76.53 | DM12: 2005-01-17 | DN12: 1186 | DO12: 38369 | DP12: 1567 | DQ12: 2005-01-17 | DR12: 294.4 | DS12: 2005-01-17 | DT12: 31209
A13: 2005-01-18 | B13: 423.35 | C13: 2005-01-18 | D13: 2972 | E13: 2005-01-18 | F13: 3.2249 | G13: 2005-01-18 | H13: 3.7045 | I13: 2005-01-18 | J13: 4.1848 | K13: 2005-01-18 | L13: 4.6787 | M13: 2005-01-18 | N13: 2.396 | O13: 2005-01-18 | P13: 2.923 | Q13: 2005-01-18 | R13: 3.542 | S13: 2005-01-18 | T13: 4.074 | U13: 2005-01-18 | V13: 0.1 | W13: 2005-01-18 | X13: 0.563 | Y13: 2005-01-18 | Z13: 1.37 | AA13: 2005-01-18 | AB13: 2.359 | AC13: 2005-01-18 | AD13: 4.476 | AE13: 2005-01-18 | AF13: 4.507 | AG13: 2005-01-18 | AH13: 4.548 | AI13: 2005-01-18 | AJ13: 4.435 | AK13: 2005-01-18 | AL13: 2.34 | AM13: 2005-01-18 | AN13: 2.89 | AO13: 2005-01-18 | AP13: 3.673 | AQ13: 2005-01-18 | AR13: 4.263 | AS13: 2005-01-18 | AT13: 2.5552 | AU13: 2005-01-18 | AV13: 2.5258 | AW13: 2005-01-18 | AX13: 2.4866 | AY13: 2005-01-18 | AZ13: 2.8471 | BA13: 2011-10-18 | BB13: 752.5 | BC13: 2011-10-18 | BD13: 488 | BE13: 2012-08-23 | BF13: 552.015 | BG13: 2007-10-12 | BH13: 36.352 | BI13: 2005-01-18 | BJ13: 25.5 | BK13: 2005-01-18 | BL13: 4.7 | BM13: 2005-01-18 | BN13: 9.15 | BO13: 2005-01-18 | BP13: 5.1 | BQ13: 2005-01-18 | BR13: -2.4 | BS13: 2005-01-18 | BT13: 5.3 | BU13: 2005-01-18 | BV13: 8.1 | BW13: 2005-01-18 | BX13: 3.2 | BY13: 2005-01-18 | BZ13: 1.3037 | CA13: 2005-01-18 | CB13: 1.8682 | CC13: 2005-01-18 | CD13: 0.6977 | CE13: 2005-01-18 | CF13: 102.48 | CG13: 2005-01-18 | CH13: 1.2214 | CI13: 2005-01-18 | CJ13: 104.04 | CK13: 2005-01-18 | CL13: 83.36 | CM13: 2005-01-18 | CN13: 0.7575 | CO13: 2005-01-18 | CP13: 6.9333 | CQ13: 2005-01-18 | CR13: 6.2616 | CS13: 2005-01-18 | CT13: 31.89 | CU13: 2005-01-18 | CV13: 2.7181 | CW13: 2010-09-07 | CX13: 0.9973 | CY13: 2005-01-18 | CZ13: 9157 | DA13: 2005-01-18 | DB13: 43.725 | DC13: 2005-01-18 | DD13: 28.125 | DE13: 2005-01-18 | DF13: 6.0675 | DG13: 2005-01-19 | DH13: 13.18 | DI13: 2005-01-18 | DJ13: 13.17 | DK13: 2005-01-19 | DL13: 75.96 | DM13: 2005-01-18 | DN13: 1195.75 | DO13: 38370 | DP13: 1576 | DQ13: 2005-01-18 | DR13: 295.1 | DS13: 2005-01-18 | DT13: 31191
A14: 2005-01-19 | B14: 423.65 | C14: 2005-01-19 | D14: 2963 | E14: 2005-01-19 | F14: 3.2165 | G14: 2005-01-19 | H14: 3.701 | I14: 2005-01-19 | J14: 4.1711 | K14: 2005-01-19 | L14: 4.6554 | M14: 2005-01-19 | N14: 2.393 | O14: 2005-01-19 | P14: 2.909 | Q14: 2005-01-19 | R14: 3.523 | S14: 2005-01-19 | T14: 4.031 | U14: 2005-01-19 | V14: 0.1 | W14: 2005-01-19 | X14: 0.555 | Y14: 2005-01-19 | Z14: 1.36 | AA14: 2005-01-19 | AB14: 2.349 | AC14: 2005-01-19 | AD14: 4.495 | AE14: 2005-01-19 | AF14: 4.53 | AG14: 2005-01-19 | AH14: 4.568 | AI14: 2005-01-19 | AJ14: 4.446 | AK14: 2005-01-19 | AL14: 2.338 | AM14: 2005-01-19 | AN14: 2.878 | AO14: 2005-01-19 | AP14: 3.652 | AQ14: 2005-01-19 | AR14: 4.218 | AS14: 2005-01-19 | AT14: 2.4662 | AU14: 2005-01-19 | AV14: 2.5066 | AW14: 2005-01-19 | AX14: 2.4764 | AY14: 2005-01-19 | AZ14: 2.8177 | BA14: 2011-10-19 | BB14: 735.334 | BC14: 2011-10-19 | BD14: 484.333 | BE14: 2012-08-24 | BF14: 547.989 | BG14: 2007-10-15 | BH14: 30.153 | BI14: 2005-01-19 | BJ14: 25.5 | BK14: 2005-01-19 | BL14: 4.3 | BM14: 2005-01-19 | BN14: 8.65 | BO14: 2005-01-19 | BP14: 3.9 | BQ14: 2005-01-19 | BR14: -2.3 | BS14: 2005-01-19 | BT14: 4.5 | BU14: 2005-01-19 | BV14: 7 | BW14: 2005-01-19 | BX14: 0.9 | BY14: 2005-01-19 | BZ14: 1.3011 | CA14: 2005-01-19 | CB14: 1.8714 | CC14: 2005-01-19 | CD14: 0.69525 | CE14: 2005-01-19 | CF14: 102.47 | CG14: 2005-01-19 | CH14: 1.2297 | CI14: 2005-01-19 | CJ14: 104.14 | CK14: 2005-01-19 | CL14: 83.6 | CM14: 2005-01-19 | CN14: 0.7592 | CO14: 2005-01-19 | CP14: 6.9436 | CQ14: 2005-01-19 | CR14: 6.2813 | CS14: 2005-01-19 | CT14: 31.8 | CU14: 2005-01-19 | CV14: 2.7086 | CW14: 2010-09-08 | CX14: 0.9972 | CY14: 2005-01-19 | CZ14: 9162 | DA14: 2005-01-19 | DB14: 43.725 | DC14: 2005-01-19 | DD14: 28.1413 | DE14: 2005-01-19 | DF14: 6.0425 | DG14: 2005-01-20 | DH14: 13.83 | DI14: 2005-01-19 | DJ14: 13.63 | DK14: 2005-01-20 | DL14: 74.4647 | DM14: 2005-01-19 | DN14: 1183.5 | DO14: 38371 | DP14: 1542.5 | DQ14: 2005-01-19 | DR14: 295 | DS14: 2005-01-19 | DT14: 31302
A15: 2005-01-20 | B15: 422.34 | C15: 2005-01-20 | D15: 2926 | E15: 2005-01-20 | F15: 3.1833 | G15: 2005-01-20 | H15: 3.6733 | I15: 2005-01-20 | J15: 4.1614 | K15: 2005-01-20 | L15: 4.6563 | M15: 2005-01-20 | N15: 2.423 | O15: 2005-01-20 | P15: 2.952 | Q15: 2005-01-20 | R15: 3.574 | S15: 2005-01-20 | T15: 4.095 | U15: 2005-01-20 | V15: 0.101 | W15: 2005-01-20 | X15: 0.55 | Y15: 2005-01-20 | Z15: 1.358 | AA15: 2005-01-20 | AB15: 2.349 | AC15: 2005-01-20 | AD15: 4.511 | AE15: 2005-01-20 | AF15: 4.557 | AG15: 2005-01-20 | AH15: 4.606 | AI15: 2005-01-20 | AJ15: 4.47 | AK15: 2005-01-20 | AL15: 2.366 | AM15: 2005-01-20 | AN15: 2.919 | AO15: 2005-01-20 | AP15: 3.702 | AQ15: 2005-01-20 | AR15: 4.282 | AS15: 2005-01-20 | AT15: 2.4057 | AU15: 2005-01-20 | AV15: 2.4693 | AW15: 2005-01-20 | AX15: 2.4529 | AY15: 2005-01-20 | AZ15: 2.8108 | BA15: 2011-10-20 | BB15: 759.375 | BC15: 2011-10-20 | BD15: 497 | BE15: 2012-08-27 | BF15: 543.469 | BG15: 2007-10-16 | BH15: 31.066 | BI15: 2005-01-20 | BJ15: 25.813 | BK15: 2005-01-20 | BL15: 1.3 | BM15: 2005-01-20 | BN15: 6.04 | BO15: 2005-01-20 | BP15: -3 | BQ15: 2005-01-20 | BR15: -2.3 | BS15: 2005-01-20 | BT15: 0.8 | BU15: 2005-01-20 | BV15: 6 | BW15: 2005-01-20 | BX15: -1.3 | BY15: 2005-01-20 | BZ15: 1.2948 | CA15: 2005-01-20 | CB15: 1.8706 | CC15: 2005-01-20 | CD15: 0.69214 | CE15: 2005-01-20 | CF15: 103.39 | CG15: 2005-01-20 | CH15: 1.2342 | CI15: 2005-01-20 | CJ15: 103.96 | CK15: 2005-01-20 | CL15: 83.84 | CM15: 2005-01-20 | CN15: 0.7594 | CO15: 2005-01-20 | CP15: 6.9778 | CQ15: 2005-01-20 | CR15: 6.3299 | CS15: 2005-01-20 | CT15: 31.8 | CU15: 2005-01-20 | CV15: 2.7173 | CW15: 2010-09-09 | CX15: 0.9987 | CY15: 2005-01-20 | CZ15: 9160 | DA15: 2005-01-20 | DB15: 43.81 | DC15: 2005-01-20 | DD15: 28.175 | DE15: 2005-01-20 | DF15: 6.075 | DG15: 2005-01-21 | DH15: 14.36 | DI15: 2005-01-20 | DJ15: 14.17 | DK15: 2005-01-21 | DL15: 76.3 | DM15: 2005-01-20 | DN15: 1176.5 | DO15: 38372 | DP15: 1522.5 | DQ15: 2005-01-20 | DR15: 293.3 | DS15: 2005-01-20 | DT15: 31229
A16: 2005-01-21 | B16: 427.45 | C16: 2005-01-21 | D16: 2937 | E16: 2005-01-21 | F16: 3.1419 | G16: 2005-01-21 | H16: 3.6352 | I16: 2005-01-21 | J16: 4.1399 | K16: 2005-01-21 | L16: 4.6427 | M16: 2005-01-21 | N16: 2.401 | O16: 2005-01-21 | P16: 2.932 | Q16: 2005-01-21 | R16: 3.573 | S16: 2005-01-21 | T16: 4.108 | U16: 2005-01-21 | V16: 0.101 | W16: 2005-01-21 | X16: 0.541 | Y16: 2005-01-21 | Z16: 1.355 | AA16: 2005-01-21 | AB16: 2.349 | AC16: 2005-01-21 | AD16: 4.467 | AE16: 2005-01-21 | AF16: 4.53 | AG16: 2005-01-21 | AH16: 4.602 | AI16: 2005-01-21 | AJ16: 4.484 | AK16: 2005-01-21 | AL16: 2.343 | AM16: 2005-01-21 | AN16: 2.898 | AO16: 2005-01-21 | AP16: 3.698 | AQ16: 2005-01-21 | AR16: 4.296 | AS16: 2005-01-21 | AT16: 2.4212 | AU16: 2005-01-21 | AV16: 2.4682 | AW16: 2005-01-21 | AX16: 2.4536 | AY16: 2005-01-21 | AZ16: 2.8195 | BA16: 2011-10-21 | BB16: 730.5 | BC16: 2011-10-21 | BD16: 477 | BE16: 2012-08-28 | BF16: 546.825 | BG16: 2007-10-17 | BH16: 38.028 | BI16: 2005-01-21 | BJ16: 25.438 | BK16: 2005-01-21 | BL16: 0.5 | BM16: 2005-01-21 | BN16: 5.08 | BO16: 2005-01-21 | BP16: -4.6 | BQ16: 2005-01-21 | BR16: 1.5 | BS16: 2005-01-21 | BT16: 1 | BU16: 2005-01-21 | BV16: 6.3 | BW16: 2005-01-21 | BX16: 0 | BY16: 2005-01-21 | BZ16: 1.3055 | CA16: 2005-01-21 | CB16: 1.879 | CC16: 2005-01-21 | CD16: 0.69474 | CE16: 2005-01-21 | CF16: 102.74 | CG16: 2005-01-21 | CH16: 1.2195 | CI16: 2005-01-21 | CJ16: 104.13 | CK16: 2005-01-21 | CL16: 83.26 | CM16: 2005-01-21 | CN16: 0.771 | CO16: 2005-01-21 | CP16: 6.9361 | CQ16: 2005-01-21 | CR16: 6.2905 | CS16: 2005-01-21 | CT16: 31.85 | CU16: 2005-01-21 | CV16: 2.6868 | CW16: 2010-09-10 | CX16: 0.9993 | CY16: 2005-01-21 | CZ16: 9152 | DA16: 2005-01-21 | DB16: 43.81 | DC16: 2005-01-21 | DD16: 28.075 | DE16: 2005-01-21 | DF16: 5.9605 | DG16: 2005-01-24 | DH16: 14.65 | DI16: 2005-01-21 | DJ16: 13.96 | DK16: 2005-01-24 | DL16: 76.95 | DM16: 2005-01-21 | DN16: 1168.5 | DO16: 38373 | DP16: 1509.5 | DQ16: 2005-01-21 | DR16: 292 | DS16: 2005-01-21 | DT16: 31285
A17: 2005-01-24 | B17: 427.04 | C17: 2005-01-24 | D17: 2940 | E17: 2005-01-24 | F17: 3.1842 | G17: 2005-01-24 | H17: 3.6456 | I17: 2005-01-24 | J17: 4.1204 | K17: 2005-01-24 | L17: 4.6004 | M17: 2005-01-24 | N17: 2.382 | O17: 2005-01-24 | P17: 2.915 | Q17: 2005-01-24 | R17: 3.546 | S17: 2005-01-24 | T17: 4.075 | U17: 2005-01-24 | V17: 0.101 | W17: 2005-01-24 | X17: 0.54 | Y17: 2005-01-24 | Z17: 1.36 | AA17: 2005-01-24 | AB17: 2.364 | AC17: 2005-01-24 | AD17: 4.469 | AE17: 2005-01-24 | AF17: 4.525 | AG17: 2005-01-24 | AH17: 4.594 | AI17: 2005-01-24 | AJ17: 4.481 | AK17: 2005-01-24 | AL17: 2.324 | AM17: 2005-01-24 | AN17: 2.881 | AO17: 2005-01-24 | AP17: 3.671 | AQ17: 2005-01-24 | AR17: 4.262 | AS17: 2005-01-24 | AT17: 2.4593 | AU17: 2005-01-24 | AV17: 2.4847 | AW17: 2005-01-24 | AX17: 2.4479 | AY17: 2005-01-24 | AZ17: 2.8004 | BA17: 2011-10-24 | BB17: 710.292 | BC17: 2011-10-24 | BD17: 470.5 | BE17: 2012-08-29 | BF17: 545.434 | BG17: 2007-10-18 | BH17: 38.551 | BI17: 2005-01-24 | BJ17: 25.625 | BK17: 2005-01-24 | BL17: -0.1 | BM17: 2005-01-24 | BN17: 4.93 | BO17: 2005-01-24 | BP17: -6.6 | BQ17: 2005-01-24 | BR17: 3 | BS17: 2005-01-24 | BT17: -0.2 | BU17: 2005-01-24 | BV17: 5.6 | BW17: 2005-01-24 | BX17: -0.4 | BY17: 2005-01-24 | BZ17: 1.3045 | CA17: 2005-01-24 | CB17: 1.8774 | CC17: 2005-01-24 | CD17: 0.69485 | CE17: 2005-01-24 | CF17: 102.73 | CG17: 2005-01-24 | CH17: 1.2252 | CI17: 2005-01-24 | CJ17: 104.2 | CK17: 2005-01-24 | CL17: 83.24 | CM17: 2005-01-24 | CN17: 0.7693 | CO17: 2005-01-24 | CP17: 6.9502 | CQ17: 2005-01-24 | CR17: 6.2884 | CS17: 2005-01-24 | CT17: 31.8 | CU17: 2005-01-24 | CV17: 2.6808 | CW17: 2010-09-13 | CX17: 0.9988 | CY17: 2005-01-24 | CZ17: 9135 | DA17: 2005-01-24 | DB17: 43.765 | DC17: 2005-01-24 | DD17: 27.996 | DE17: 2005-01-24 | DF17: 5.9458 | DG17: 2005-01-25 | DH17: 14.06 | DI17: 2005-01-24 | DJ17: 14.11 | DK17: 2005-01-25 | DL17: 77.32 | DM17: 2005-01-24 | DN17: 1166.25 | DO17: 38376 | DP17: 1491 | DQ17: 2005-01-24 | DR17: 291.9 | DS17: 2005-01-24 | DT17: 31135
A18: 2005-01-25 | B18: 421.7 | C18: 2005-01-25 | D18: 2961 | E18: 2005-01-25 | F18: 3.2098 | G18: 2005-01-25 | H18: 3.7046 | I18: 2005-01-25 | J18: 4.1925 | K18: 2005-01-25 | L18: 4.6814 | M18: 2005-01-25 | N18: 2.39 | O18: 2005-01-25 | P18: 2.927 | Q18: 2005-01-25 | R18: 3.554 | S18: 2005-01-25 | T18: 4.07 | U18: 2005-01-25 | V18: 0.101 | W18: 2005-01-25 | X18: 0.531 | Y18: 2005-01-25 | Z18: 1.341 | AA18: 2005-01-25 | AB18: 2.365 | AC18: 2005-01-25 | AD18: 4.472 | AE18: 2005-01-25 | AF18: 4.52 | AG18: 2005-01-25 | AH18: 4.587 | AI18: 2005-01-25 | AJ18: 4.476 | AK18: 2005-01-25 | AL18: 2.328 | AM18: 2005-01-25 | AN18: 2.891 | AO18: 2005-01-25 | AP18: 3.676 | AQ18: 2005-01-25 | AR18: 4.253 | AS18: 2005-01-25 | AT18: 2.4729 | AU18: 2005-01-25 | AV18: 2.5123 | AW18: 2005-01-25 | AX18: 2.4425 | AY18: 2005-01-25 | AZ18: 2.7813 | BA18: 2011-10-25 | BB18: 720 | BC18: 2011-10-25 | BD18: 480.167 | BE18: 2012-08-30 | BF18: 553.592 | BG18: 2007-10-19 | BH18: 39.08 | BI18: 2005-01-25 | BJ18: 25.625 | BK18: 2005-01-25 | BL18: 2.5 | BM18: 2005-01-25 | BN18: 6.02 | BO18: 2005-01-25 | BP18: -3.3 | BQ18: 2005-01-25 | BR18: 0.8 | BS18: 2005-01-25 | BT18: 4.4 | BU18: 2005-01-25 | BV18: 12.9 | BW18: 2005-01-25 | BX18: 19.9 | BY18: 2005-01-25 | BZ18: 1.2965 | CA18: 2005-01-25 | CB18: 1.8638 | CC18: 2005-01-25 | CD18: 0.69562 | CE18: 2005-01-25 | CF18: 104.26 | CG18: 2005-01-25 | CH18: 1.2362 | CI18: 2005-01-25 | CJ18: 103.87 | CK18: 2005-01-25 | CL18: 83.99 | CM18: 2005-01-25 | CN18: 0.7645 | CO18: 2005-01-25 | CP18: 7.0062 | CQ18: 2005-01-25 | CR18: 6.3358 | CS18: 2005-01-25 | CT18: 31.85 | CU18: 2005-01-25 | CV18: 2.6865 | CW18: 2010-09-14 | CX18: 0.999 | CY18: 2005-01-25 | CZ18: 9150 | DA18: 2005-01-25 | DB18: 43.795 | DC18: 2005-01-25 | DD18: 28.029 | DE18: 2005-01-25 | DF18: 5.9678 | DG18: 2005-01-26 | DH18: 13.44 | DI18: 2005-01-25 | DJ18: 13.63 | DK18: 2005-01-26 | DL18: 78.19 | DM18: 2005-01-25 | DN18: 1169.75 | DO18: 38377 | DP18: 1495 | DQ18: 2005-01-25 | DR18: 293.9 | DS18: 2005-01-25 | DT18: 31295
A19: 2005-01-26 | B19: 427.62 | C19: 2005-01-26 | D19: 2960 | E19: 2005-01-26 | F19: 3.2523 | G19: 2005-01-26 | H19: 3.7255 | I19: 2005-01-26 | J19: 4.1964 | K19: 2005-01-26 | L19: 4.6668 | M19: 2005-01-26 | N19: 2.405 | O19: 2005-01-26 | P19: 2.947 | Q19: 2005-01-26 | R19: 3.565 | S19: 2005-01-26 | T19: 4.063 | U19: 2005-01-26 | V19: 0.1 | W19: 2005-01-26 | X19: 0.536 | Y19: 2005-01-26 | Z19: 1.345 | AA19: 2005-01-26 | AB19: 2.374 | AC19: 2005-01-26 | AD19: 4.503 | AE19: 2005-01-26 | AF19: 4.541 | AG19: 2005-01-26 | AH19: 4.599 | AI19: 2005-01-26 | AJ19: 4.475 | AK19: 2005-01-26 | AL19: 2.335 | AM19: 2005-01-26 | AN19: 2.911 | AO19: 2005-01-26 | AP19: 3.689 | AQ19: 2005-01-26 | AR19: 4.251 | AS19: 2005-01-26 | AT19: 2.5191 | AU19: 2005-01-26 | AV19: 2.5424 | AW19: 2005-01-26 | AX19: 2.4774 | AY19: 2005-01-26 | AZ19: 2.7749 | BA19: 2011-10-26 | BB19: 719.583 | BC19: 2011-10-26 | BD19: 470 | BE19: 2012-08-31 | BF19: 543.072 | BG19: 2007-10-22 | BH19: 42.299 | BI19: 2005-01-26 | BJ19: 25.625 | BK19: 2005-01-26 | BL19: 6.9 | BM19: 2005-01-26 | BN19: 8.01 | BO19: 2005-01-26 | BP19: -4.3 | BQ19: 2005-01-26 | BR19: 8.6 | BS19: 2005-01-26 | BT19: 10.9 | BU19: 2005-01-26 | BV19: 22.4 | BW19: 2005-01-26 | BX19: 38.3 | BY19: 2005-01-26 | BZ19: 1.3098 | CA19: 2005-01-26 | CB19: 1.884 | CC19: 2005-01-26 | CD19: 0.69515 | CE19: 2005-01-26 | CF19: 102.93 | CG19: 2005-01-26 | CH19: 1.2305 | CI19: 2005-01-26 | CJ19: 104.25 | CK19: 2005-01-26 | CL19: 83.3 | CM19: 2005-01-26 | CN19: 0.7755 | CO19: 2005-01-26 | CP19: 6.9317 | CQ19: 2005-01-26 | CR19: 6.3005 | CS19: 2005-01-26 | CT19: 31.76 | CU19: 2005-01-26 | CV19: 2.663 | CW19: 2010-09-15 | CX19: 0.9988 | CY19: 2005-01-26 | CZ19: 9140 | DA19: 2005-01-26 | DB19: 43.795 | DC19: 2005-01-26 | DD19: 28.026 | DE19: 2005-01-26 | DF19: 5.9307 | DG19: 2005-01-27 | DH19: 13.24 | DI19: 2005-01-26 | DJ19: 13.32 | DK19: 2005-01-27 | DL19: 80.21 | DM19: 2005-01-26 | DN19: 1173.25 | DO19: 38378 | DP19: 1506.5 | DQ19: 2005-01-26 | DR19: 293 | DS19: 2005-01-26 | DT19: 31239
A20: 2005-01-27 | B20: 425.61 | C20: 2005-01-27 | D20: 2971 | E20: 2005-01-27 | F20: 3.2796 | G20: 2005-01-27 | H20: 3.7535 | I20: 2005-01-27 | J20: 4.2179 | K20: 2005-01-27 | L20: 4.6843 | M20: 2005-01-27 | N20: 2.434 | O20: 2005-01-27 | P20: 2.976 | Q20: 2005-01-27 | R20: 3.593 | S20: 2005-01-27 | T20: 4.08 | U20: 2005-01-27 | V20: 0.096 | W20: 2005-01-27 | X20: 0.534 | Y20: 2005-01-27 | Z20: 1.34 | AA20: 2005-01-27 | AB20: 2.36 | AC20: 2005-01-27 | AD20: 4.528 | AE20: 2005-01-27 | AF20: 4.568 | AG20: 2005-01-27 | AH20: 4.632 | AI20: 2005-01-27 | AJ20: 4.505 | AK20: 2005-01-27 | AL20: 2.361 | AM20: 2005-01-27 | AN20: 2.94 | AO20: 2005-01-27 | AP20: 3.715 | AQ20: 2005-01-27 | AR20: 4.269 | AS20: 2005-01-27 | AT20: 2.5187 | AU20: 2005-01-27 | AV20: 2.5702 | AW20: 2005-01-27 | AX20: 2.5076 | AY20: 2005-01-27 | AZ20: 2.785 | BA20: 2011-10-27 | BB20: 636.5 | BC20: 2011-10-27 | BD20: 414 | BE20: 2012-09-03 | BF20: 542.673 | BG20: 2007-10-23 | BH20: 39.39 | BI20: 2005-01-27 | BJ20: 25.5 | BK20: 2005-01-27 | BL20: 5.7 | BM20: 2005-01-27 | BN20: 7.83 | BO20: 2005-01-27 | BP20: -5 | BQ20: 2005-01-27 | BR20: 9.8 | BS20: 2005-01-27 | BT20: 8.2 | BU20: 2005-01-27 | BV20: 17.8 | BW20: 2005-01-27 | BX20: 38 | BY20: 2005-01-27 | BZ20: 1.3032 | CA20: 2005-01-27 | CB20: 1.8867 | CC20: 2005-01-27 | CD20: 0.69065 | CE20: 2005-01-27 | CF20: 103.18 | CG20: 2005-01-27 | CH20: 1.2396 | CI20: 2005-01-27 | CJ20: 104.26 | CK20: 2005-01-27 | CL20: 83.43 | CM20: 2005-01-27 | CN20: 0.7756 | CO20: 2005-01-27 | CP20: 6.9749 | CQ20: 2005-01-27 | CR20: 6.3326 | CS20: 2005-01-27 | CT20: 31.87 | CU20: 2005-01-27 | CV20: 2.664 | CW20: 2010-09-16 | CX20: 1.0001 | CY20: 2005-01-27 | CZ20: 9150 | DA20: 2005-01-27 | DB20: 43.785 | DC20: 2005-01-27 | DD20: 28.068 | DE20: 2005-01-27 | DF20: 5.9325 | DG20: 2005-01-28 | DH20: 13.24 | DI20: 2005-01-27 | DJ20: 12.46 | DK20: 2005-01-28 | DL20: 78.62 | DM20: 2005-01-27 | DN20: 1174.75 | DO20: 38379 | DP20: 1509 | DQ20: 2005-01-27 | DR20: 293.3 | DS20: 2005-01-27 | DT20: 31180
A21: 2005-01-28 | B21: 425.2 | C21: 2005-01-28 | D21: 2959 | E21: 2005-01-28 | F21: 3.2551 | G21: 2005-01-28 | H21: 3.6908 | I21: 2005-01-28 | J21: 4.1397 | K21: 2005-01-28 | L21: 4.6079 | M21: 2005-01-28 | N21: 2.391 | O21: 2005-01-28 | P21: 2.923 | Q21: 2005-01-28 | R21: 3.549 | S21: 2005-01-28 | T21: 4.057 | U21: 2005-01-28 | V21: 0.1 | W21: 2005-01-28 | X21: 0.524 | Y21: 2005-01-28 | Z21: 1.315 | AA21: 2005-01-28 | AB21: 2.324 | AC21: 2005-01-28 | AD21: 4.506 | AE21: 2005-01-28 | AF21: 4.543 | AG21: 2005-01-28 | AH21: 4.606 | AI21: 2005-01-28 | AJ21: 4.492 | AK21: 2005-01-28 | AL21: 2.323 | AM21: 2005-01-28 | AN21: 2.888 | AO21: 2005-01-28 | AP21: 3.669 | AQ21: 2005-01-28 | AR21: 4.246 | AS21: 2005-01-28 | AT21: 2.4892 | AU21: 2005-01-28 | AV21: 2.5634 | AW21: 2005-01-28 | AX21: 2.4927 | AY21: 2005-01-28 | AZ21: 2.7467 | BA21: 2011-10-28 | BB21: 624.834 | BC21: 2011-10-28 | BD21: 401 | BE21: 2012-09-04 | BF21: 540.642 | BG21: 2007-10-24 | BH21: 40.247 | BI21: 2005-01-28 | BJ21: 25.5 | BK21: 2005-01-28 | BL21: 5.8 | BM21: 2005-01-28 | BN21: 8.84 | BO21: 2005-01-28 | BP21: -13.2 | BQ21: 2005-01-28 | BR21: 21.4 | BS21: 2005-01-28 | BT21: 8 | BU21: 2005-01-28 | BV21: 16.8 | BW21: 2005-01-28 | BX21: 37.8 | BY21: 2005-01-28 | BZ21: 1.3032 | CA21: 2005-01-28 | CB21: 1.8856 | CC21: 2005-01-28 | CD21: 0.69109 | CE21: 2005-01-28 | CF21: 103.47 | CG21: 2005-01-28 | CH21: 1.2429 | CI21: 2005-01-28 | CJ21: 104.33 | CK21: 2005-01-28 | CL21: 83.48 | CM21: 2005-01-28 | CN21: 0.7733 | CO21: 2005-01-28 | CP21: 6.9851 | CQ21: 2005-01-28 | CR21: 6.3338 | CS21: 2005-01-28 | CT21: 31.79 | CU21: 2005-01-28 | CV21: 2.6455 | CW21: 2010-09-17 | CX21: 0.9968 | CY21: 2005-01-28 | CZ21: 9150 | DA21: 2005-01-28 | DB21: 43.725 | DC21: 2005-01-28 | DD21: 28.0765 | DE21: 2005-01-28 | DF21: 5.9405 | DG21: 2005-01-31 | DH21: 12.82 | DI21: 2005-01-28 | DJ21: 12.81 | DK21: 2005-01-31 | DL21: 79.29 | DM21: 2005-01-28 | DN21: 1174.75 | DO21: 38380 | DP21: 1509.5 | DQ21: 2005-01-28 | DR21: 292.1 | DS21: 2005-01-28 | DT21: 31081
A22: 2005-01-31 | B22: 421.5 | C22: 2005-01-31 | D22: 2994 | E22: 2005-01-31 | F22: 3.2716 | G22: 2005-01-31 | H22: 3.6943 | I22: 2005-01-31 | J22: 4.128 | K22: 2005-01-31 | L22: 4.5849 | M22: 2005-01-31 | N22: 2.398 | O22: 2005-01-31 | P22: 2.927 | Q22: 2005-01-31 | R22: 3.547 | S22: 2005-01-31 | T22: 4.04 | U22: 2005-01-31 | V22: 0.1 | W22: 2005-01-31 | X22: 0.535 | Y22: 2005-01-31 | Z22: 1.33 | AA22: 2005-01-31 | AB22: 2.334 | AC22: 2005-01-31 | AD22: 4.515 | AE22: 2005-01-31 | AF22: 4.547 | AG22: 2005-01-31 | AH22: 4.606 | AI22: 2005-01-31 | AJ22: 4.493 | AK22: 2005-01-31 | AL22: 2.326 | AM22: 2005-01-31 | AN22: 2.891 | AO22: 2005-01-31 | AP22: 3.665 | AQ22: 2005-01-31 | AR22: 4.229 | AS22: 2005-01-31 | AT22: 2.4623 | AU22: 2005-01-31 | AV22: 2.548 | AW22: 2005-01-31 | AX22: 2.4913 | AY22: 2005-01-31 | AZ22: 2.741 | BA22: 2011-10-31 | BB22: 662.708 | BC22: 2011-10-31 | BD22: 430.666 | BE22: 2012-09-05 | BF22: 541.451 | BG22: 2007-10-25 | BH22: 39.939 | BI22: 2005-01-31 | BJ22: 25.25 | BK22: 2005-01-31 | BL22: 3.9 | BM22: 2005-01-31 | BN22: 6.41 | BO22: 2005-01-31 | BP22: -17.2 | BQ22: 2005-01-31 | BR22: 24.9 | BS22: 2005-01-31 | BT22: 4 | BU22: 2005-01-31 | BV22: 10.4 | BW22: 2005-01-31 | BX22: 36.9 | BY22: 2005-01-31 | BZ22: 1.3046 | CA22: 2005-01-31 | CB22: 1.8827 | CC22: 2005-01-31 | CD22: 0.69294 | CE22: 2005-01-31 | CF22: 103.57 | CG22: 2005-01-31 | CH22: 1.2391 | CI22: 2005-01-31 | CJ22: 104.22 | CK22: 2005-01-31 | CL22: 83.57 | CM22: 2005-01-31 | CN22: 0.7752 | CO22: 2005-01-31 | CP22: 6.9818 | CQ22: 2005-01-31 | CR22: 6.3577 | CS22: 2005-01-31 | CT22: 31.76 | CU22: 2005-01-31 | CV22: 2.6085 | CW22: 2010-09-20 | CX22: 0.9979 | CY22: 2005-01-31 | CZ22: 9165 | DA22: 2005-01-31 | DB22: 43.72 | DC22: 2005-01-31 | DD22: 28.02 | DE22: 2005-01-31 | DF22: 5.955 | DG22: 2005-02-01 | DH22: 12.03 | DI22: 2005-01-31 | DJ22: 12.72 | DK22: 2005-02-01 | DL22: 75.96 | DM22: 2005-01-31 | DN22: 1181.75 | DO22: 38383 | DP22: 1524 | DQ22: 2005-01-31 | DR22: 294.1 | DS22: 2005-01-31 | DT22: 31432
A23: 2005-02-01 | B23: 420.72 | C23: 2005-02-01 | D23: 3017 | E23: 2005-02-01 | F23: 3.2799 | G23: 2005-02-01 | H23: 3.7013 | I23: 2005-02-01 | J23: 4.1377 | K23: 2005-02-01 | L23: 4.5944 | M23: 2005-02-01 | N23: 2.399 | O23: 2005-02-01 | P23: 2.922 | Q23: 2005-02-01 | R23: 3.534 | S23: 2005-02-01 | T23: 4.023 | U23: 2005-02-01 | V23: 0.098 | W23: 2005-02-01 | X23: 0.52 | Y23: 2005-02-01 | Z23: 1.305 | AA23: 2005-02-01 | AB23: 2.309 | AC23: 2005-02-01 | AD23: 4.51 | AE23: 2005-02-01 | AF23: 4.533 | AG23: 2005-02-01 | AH23: 4.589 | AI23: 2005-02-01 | AJ23: 4.472 | AK23: 2005-02-01 | AL23: 2.328 | AM23: 2005-02-01 | AN23: 2.889 | AO23: 2005-02-01 | AP23: 3.653 | AQ23: 2005-02-01 | AR23: 4.214 | AS23: 2005-02-01 | AT23: 2.4427 | AU23: 2005-02-01 | AV23: 2.5392 | AW23: 2005-02-01 | AX23: 2.4788 | AY23: 2005-02-01 | AZ23: 2.7396 | BA23: 2011-11-01 | BB23: 736.9 | BC23: 2011-11-01 | BD23: 494 | BE23: 2012-09-06 | BF23: 512.403 | BG23: 2007-10-26 | BH23: 40.233 | BI23: 2005-02-01 | BJ23: 25.375 | BK23: 2005-02-01 | BL23: 4.4 | BM23: 2005-02-01 | BN23: 5.66 | BO23: 2005-02-01 | BP23: -20.9 | BQ23: 2005-02-01 | BR23: 28.2 | BS23: 2005-02-01 | BT23: 6.3 | BU23: 2005-02-01 | BV23: 14.1 | BW23: 2005-02-01 | BX23: 36.5 | BY23: 2005-02-01 | BZ23: 1.3034 | CA23: 2005-02-01 | CB23: 1.8822 | CC23: 2005-02-01 | CD23: 0.69245 | CE23: 2005-02-01 | CF23: 103.69 | CG23: 2005-02-01 | CH23: 1.237 | CI23: 2005-02-01 | CJ23: 104.21 | CK23: 2005-02-01 | CL23: 83.45 | CM23: 2005-02-01 | CN23: 0.774 | CO23: 2005-02-01 | CP23: 6.9722 | CQ23: 2005-02-01 | CR23: 6.3558 | CS23: 2005-02-01 | CT23: 31.79 | CU23: 2005-02-01 | CV23: 2.6089 | CW23: 2010-09-21 | CX23: 0.9901 | CY23: 2005-02-01 | CZ23: 9240 | DA23: 2005-02-01 | DB23: 43.705 | DC23: 2005-02-01 | DD23: 27.9775 | DE23: 2005-02-01 | DF23: 6.035 | DG23: 2005-02-02 | DH23: 11.66 | DI23: 2005-02-01 | DJ23: 12.36 | DK23: 2005-02-02 | DL23: 83.9 | DM23: 2005-02-01 | DN23: 1189.25 | DO23: 38384 | DP23: 1529.5 | DQ23: 2005-02-01 | DR23: 296.1 | DS23: 2005-02-01 | DT23: 31579
A24: 2005-02-02 | B24: 420.69 | C24: 2005-02-02 | D24: 3020 | E24: 2005-02-02 | F24: 3.3128 | G24: 2005-02-02 | H24: 3.7223 | I24: 2005-02-02 | J24: 4.1396 | K24: 2005-02-02 | L24: 4.5791 | M24: 2005-02-02 | N24: 2.415 | O24: 2005-02-02 | P24: 2.941 | Q24: 2005-02-02 | R24: 3.548 | S24: 2005-02-02 | T24: 4.014 | U24: 2005-02-02 | V24: 0.098 | W24: 2005-02-02 | X24: 0.514 | Y24: 2005-02-02 | Z24: 1.279 | AA24: 2005-02-02 | AB24: 2.255 | AC24: 2005-02-02 | AD24: 4.518 | AE24: 2005-02-02 | AF24: 4.539 | AG24: 2005-02-02 | AH24: 4.593 | AI24: 2005-02-02 | AJ24: 4.477 | AK24: 2005-02-02 | AL24: 2.343 | AM24: 2005-02-02 | AN24: 2.907 | AO24: 2005-02-02 | AP24: 3.666 | AQ24: 2005-02-02 | AR24: 4.205 | AS24: 2005-02-02 | AT24: 2.4713 | AU24: 2005-02-02 | AV24: 2.5255 | AW24: 2005-02-02 | AX24: 2.4498 | AY24: 2005-02-02 | AZ24: 2.712 | BA24: 2011-11-02 | BB24: 728.167 | BC24: 2011-11-02 | BD24: 478.417 | BE24: 2012-09-07 | BF24: 498.442 | BG24: 2007-10-29 | BH24: 40.246 | BI24: 2005-02-02 | BJ24: 24.917 | BK24: 2005-02-02 | BL24: 5.2 | BM24: 2005-02-02 | BN24: 4.87 | BO24: 2005-02-02 | BP24: -23.7 | BQ24: 2005-02-02 | BR24: 31.3 | BS24: 2005-02-02 | BT24: 9 | BU24: 2005-02-02 | BV24: 18.8 | BW24: 2005-02-02 | BX24: 36.2 | BY24: 2005-02-02 | BZ24: 1.3022 | CA24: 2005-02-02 | CB24: 1.8835 | CC24: 2005-02-02 | CD24: 0.69145 | CE24: 2005-02-02 | CF24: 103.95 | CG24: 2005-02-02 | CH24: 1.2411 | CI24: 2005-02-02 | CJ24: 104.29 | CK24: 2005-02-02 | CL24: 83.54 | CM24: 2005-02-02 | CN24: 0.7746 | CO24: 2005-02-02 | CP24: 6.972 | CQ24: 2005-02-02 | CR24: 6.3425 | CS24: 2005-02-02 | CT24: 31.58 | CU24: 2005-02-02 | CV24: 2.6153 | CW24: 2010-09-22 | CX24: 0.9916 | CY24: 2005-02-02 | CZ24: 9185 | DA24: 2005-02-02 | DB24: 43.42 | DC24: 2005-02-02 | DD24: 27.982 | DE24: 2005-02-02 | DF24: 6.034 | DG24: 2005-02-03 | DH24: 11.79 | DI24: 2005-02-02 | DJ24: 12.25 | DK24: 2005-02-03 | DL24: 83.78 | DM24: 2005-02-02 | DN24: 1193.25 | DO24: 38385 | DP24: 1524.5 | DQ24: 2005-02-02 | DR24: 296.9 | DS24: 2005-02-02 | DT24: 31653
A25: 2005-02-03 | B25: 416.43 | C25: 2005-02-03 | D25: 3020 | E25: 2005-02-03 | F25: 3.3377 | G25: 2005-02-03 | H25: 3.7608 | I25: 2005-02-03 | J25: 4.163 | K25: 2005-02-03 | L25: 4.581 | M25: 2005-02-03 | N25: 2.433 | O25: 2005-02-03 | P25: 2.964 | Q25: 2005-02-03 | R25: 3.561 | S25: 2005-02-03 | T25: 4.008 | U25: 2005-02-03 | V25: 0.1 | W25: 2005-02-03 | X25: 0.53 | Y25: 2005-02-03 | Z25: 1.315 | AA25: 2005-02-03 | AB25: 2.276 | AC25: 2005-02-03 | AD25: 4.545 | AE25: 2005-02-03 | AF25: 4.56 | AG25: 2005-02-03 | AH25: 4.607 | AI25: 2005-02-03 | AJ25: 4.484 | AK25: 2005-02-03 | AL25: 2.356 | AM25: 2005-02-03 | AN25: 2.931 | AO25: 2005-02-03 | AP25: 3.679 | AQ25: 2005-02-03 | AR25: 4.202 | AS25: 2005-02-03 | AT25: 2.5153 | AU25: 2005-02-03 | AV25: 2.5419 | AW25: 2005-02-03 | AX25: 2.4422 | AY25: 2005-02-03 | AZ25: 2.7072 | BA25: 2011-11-03 | BB25: 689.5 | BC25: 2011-11-03 | BD25: 456.667 | BE25: 2012-09-10 | BF25: 503.074 | BG25: 2007-10-30 | BH25: 40.384 | BI25: 2005-02-03 | BJ25: 24.667 | BK25: 2005-02-03 | BL25: 5 | BM25: 2005-02-03 | BN25: 3.26 | BO25: 2005-02-03 | BP25: -29.1 | BQ25: 2005-02-03 | BR25: 32.8 | BS25: 2005-02-03 | BT25: 11.1 | BU25: 2005-02-03 | BV25: 19 | BW25: 2005-02-03 | BX25: 35.8 | BY25: 2005-02-03 | BZ25: 1.2964 | CA25: 2005-02-03 | CB25: 1.88 | CC25: 2005-02-03 | CD25: 0.68955 | CE25: 2005-02-03 | CF25: 104.6 | CG25: 2005-02-03 | CH25: 1.2426 | CI25: 2005-02-03 | CJ25: 104.28 | CK25: 2005-02-03 | CL25: 83.93 | CM25: 2005-02-03 | CN25: 0.7691 | CO25: 2005-02-03 | CP25: 7.0054 | CQ25: 2005-02-03 | CR25: 6.3861 | CS25: 2005-02-03 | CT25: 31.635 | CU25: 2005-02-03 | CV25: 2.6045 | CW25: 2010-09-23 | CX25: 0.9919 | CY25: 2005-02-03 | CZ25: 9200 | DA25: 2005-02-03 | DB25: 43.42 | DC25: 2005-02-03 | DD25: 28.015 | DE25: 2005-02-03 | DF25: 6.132 | DG25: 2005-02-04 | DH25: 11.21 | DI25: 2005-02-03 | DJ25: 12.38 | DK25: 2005-02-04 | DL25: 75.51 | DM25: 2005-02-03 | DN25: 1189.5 | DO25: 38386 | DP25: 1511.5 | DQ25: 2005-02-03 | DR25: 297 | DS25: 2005-02-03 | DT25: 31600
A26: 2005-02-04 | B26: 414.8 | C26: 2005-02-04 | D26: 3050 | E26: 2005-02-04 | F26: 3.2808 | G26: 2005-02-04 | H26: 3.67 | I26: 2005-02-04 | J26: 4.0753 | K26: 2005-02-04 | L26: 4.4817 | M26: 2005-02-04 | N26: 2.402 | O26: 2005-02-04 | P26: 2.916 | Q26: 2005-02-04 | R26: 3.497 | S26: 2005-02-04 | T26: 3.931 | U26: 2005-02-04 | V26: 0.1 | W26: 2005-02-04 | X26: 0.54 | Y26: 2005-02-04 | Z26: 1.331 | AA26: 2005-02-04 | AB26: 2.234 | AC26: 2005-02-04 | AD26: 4.518 | AE26: 2005-02-04 | AF26: 4.502 | AG26: 2005-02-04 | AH26: 4.524 | AI26: 2005-02-04 | AJ26: 4.399 | AK26: 2005-02-04 | AL26: 2.328 | AM26: 2005-02-04 | AN26: 2.887 | AO26: 2005-02-04 | AP26: 3.613 | AQ26: 2005-02-04 | AR26: 4.123 | AS26: 2005-02-04 | AT26: 2.5479 | AU26: 2005-02-04 | AV26: 2.5604 | AW26: 2005-02-04 | AX26: 2.4284 | AY26: 2005-02-04 | AZ26: 2.6885 | BA26: 2011-11-04 | BB26: 713 | BC26: 2011-11-04 | BD26: 465 | BE26: 2012-09-11 | BF26: 493.82 | BG26: 2007-10-31 | BH26: 42.45 | BI26: 2005-02-04 | BJ26: 24.583 | BK26: 2005-02-04 | BL26: 8.7 | BM26: 2005-02-04 | BN26: 9.34 | BO26: 2005-02-04 | BP26: -32.7 | BQ26: 2005-02-04 | BR26: 70.1 | BS26: 2005-02-04 | BT26: 7.6 | BU26: 2005-02-04 | BV26: 18.7 | BW26: 2005-02-04 | BX26: 35.3 | BY26: 2005-02-04 | BZ26: 1.2887 | CA26: 2005-02-04 | CB26: 1.879 | CC26: 2005-02-04 | CD26: 0.68575 | CE26: 2005-02-04 | CF26: 103.88 | CG26: 2005-02-04 | CH26: 1.2494 | CI26: 2005-02-04 | CJ26: 104.49 | CK26: 2005-02-04 | CL26: 84.39 | CM26: 2005-02-04 | CN26: 0.7709 | CO26: 2005-02-04 | CP26: 7.0399 | CQ26: 2005-02-04 | CR26: 6.4343 | CS26: 2005-02-04 | CT26: 31.46 | CU26: 2005-02-04 | CV26: 2.614 | CW26: 2010-09-24 | CX26: 0.9903 | CY26: 2005-02-04 | CZ26: 9198 | DA26: 2005-02-04 | DB26: 43.475 | DC26: 2005-02-04 | DD26: 27.9575 | DE26: 2005-02-04 | DF26: 6.17 | DG26: 2005-02-07 | DH26: 11.73 | DI26: 2005-02-04 | DJ26: 11.6 | DK26: 2005-02-07 | DL26: 72.24 | DM26: 2005-02-04 | DN26: 1202 | DO26: 38387 | DP26: 1534 | DQ26: 2005-02-04 | DR26: 299.2 | DS26: 2005-02-04 | DT26: 31949
A27: 2005-02-07 | B27: 413.72 | C27: 2005-02-07 | D27: 3054 | E27: 2005-02-07 | F27: 3.2974 | G27: 2005-02-07 | H27: 3.6665 | I27: 2005-02-07 | J27: 4.0501 | K27: 2005-02-07 | L27: 4.4222 | M27: 2005-02-07 | N27: 2.423 | O27: 2005-02-07 | P27: 2.922 | Q27: 2005-02-07 | R27: 3.482 | S27: 2005-02-07 | T27: 3.886 | U27: 2005-02-07 | V27: 0.1 | W27: 2005-02-07 | X27: 0.54 | Y27: 2005-02-07 | Z27: 1.323 | AA27: 2005-02-07 | AB27: 2.2 | AC27: 2005-02-07 | AD27: 4.536 | AE27: 2005-02-07 | AF27: 4.496 | AG27: 2005-02-07 | AH27: 4.504 | AI27: 2005-02-07 | AJ27: 4.359 | AK27: 2005-02-07 | AL27: 2.348 | AM27: 2005-02-07 | AN27: 2.894 | AO27: 2005-02-07 | AP27: 3.599 | AQ27: 2005-02-07 | AR27: 4.08 | AS27: 2005-02-07 | AT27: 2.5366 | AU27: 2005-02-07 | AV27: 2.5505 | AW27: 2005-02-07 | AX27: 2.439 | AY27: 2005-02-07 | AZ27: 2.6823 | BA27: 2011-11-07 | BB27: 728 | BC27: 2011-11-07 | BD27: 471.75 | BE27: 2012-09-12 | BF27: 483.802 | BG27: 2007-11-01 | BH27: 44.167 | BI27: 2005-02-07 | BJ27: 24.5 | BK27: 2005-02-07 | BL27: 8.8 | BM27: 2005-02-07 | BN27: 10.38 | BO27: 2005-02-07 | BP27: -37.2 | BQ27: 2005-02-07 | BR27: 78.1 | BS27: 2005-02-07 | BT27: 6.7 | BU27: 2005-02-07 | BV27: 16.9 | BW27: 2005-02-07 | BX27: 33.5 | BY27: 2005-02-07 | BZ27: 1.2759 | CA27: 2005-02-07 | CB27: 1.8573 | CC27: 2005-02-07 | CD27: 0.68693 | CE27: 2005-02-07 | CF27: 104.85 | CG27: 2005-02-07 | CH27: 1.2567 | CI27: 2005-02-07 | CJ27: 104.33 | CK27: 2005-02-07 | CL27: 85.12 | CM27: 2005-02-07 | CN27: 0.7688 | CO27: 2005-02-07 | CP27: 7.1192 | CQ27: 2005-02-07 | CR27: 6.554 | CS27: 2005-02-07 | CT27: 31.51 | CU27: 2005-02-07 | CV27: 2.6023 | CW27: 2010-09-27 | CX27: 0.9894 | CY27: 2005-02-07 | CZ27: 9215 | DA27: 2005-02-07 | DB27: 43.49 | DC27: 2005-02-07 | DD27: 28.135 | DE27: 2005-02-07 | DF27: 6.205 | DG27: 2005-02-08 | DH27: 11.6 | DI27: 2005-02-07 | DJ27: 11.99 | DK27: 2005-02-08 | DL27: 72.84 | DM27: 2005-02-07 | DN27: 1200.75 | DO27: 38390 | DP27: 1530.5 | DQ27: 2005-02-07 | DR27: 298.6 | DS27: 2005-02-07 | DT27: 32117
A28: 2005-02-08 | B28: 413.17 | C28: 2005-02-08 | D28: 3065 | E28: 2005-02-08 | F28: 3.3059 | G28: 2005-02-08 | H28: 3.6595 | I28: 2005-02-08 | J28: 4.0153 | K28: 2005-02-08 | L28: 4.3735 | M28: 2005-02-08 | N28: 2.43 | O28: 2005-02-08 | P28: 2.912 | Q28: 2005-02-08 | R28: 3.463 | S28: 2005-02-08 | T28: 3.86 | U28: 2005-02-08 | V28: 0.104 | W28: 2005-02-08 | X28: 0.545 | Y28: 2005-02-08 | Z28: 1.329 | AA28: 2005-02-08 | AB28: 2.221 | AC28: 2005-02-08 | AD28: 4.551 | AE28: 2005-02-08 | AF28: 4.494 | AG28: 2005-02-08 | AH28: 4.497 | AI28: 2005-02-08 | AJ28: 4.321 | AK28: 2005-02-08 | AL28: 2.357 | AM28: 2005-02-08 | AN28: 2.89 | AO28: 2005-02-08 | AP28: 3.58 | AQ28: 2005-02-08 | AR28: 4.059 | AS28: 2005-02-08 | AT28: 2.5803 | AU28: 2005-02-08 | AV28: 2.534 | AW28: 2005-02-08 | AX28: 2.4672 | AY28: 2005-02-08 | AZ28: 2.6884 | BA28: 2011-11-08 | BB28: 725.25 | BC28: 2011-11-08 | BD28: 472.917 | BE28: 2012-09-13 | BF28: 457.195 | BG28: 2007-11-02 | BH28: 47.498 | BI28: 2005-02-08 | BJ28: 24.625 | BK28: 2005-02-08 | BL28: 8.7 | BM28: 2005-02-08 | BN28: 10.65 | BO28: 2005-02-08 | BP28: -37.9 | BQ28: 2005-02-08 | BR28: 79.5 | BS28: 2005-02-08 | BT28: 6.2 | BU28: 2005-02-08 | BV28: 16.5 | BW28: 2005-02-08 | BX28: 32.9 | BY28: 2005-02-08 | BZ28: 1.2787 | CA28: 2005-02-08 | CB28: 1.8557 | CC28: 2005-02-08 | CD28: 0.68915 | CE28: 2005-02-08 | CF28: 105.61 | CG28: 2005-02-08 | CH28: 1.2458 | CI28: 2005-02-08 | CJ28: 104.04 | CK28: 2005-02-08 | CL28: 85.1 | CM28: 2005-02-08 | CN28: 0.7669 | CO28: 2005-02-08 | CP28: 7.1037 | CQ28: 2005-02-08 | CR28: 6.5608 | CS28: 2005-02-08 | CT28: 31.71 | CU28: 2005-02-08 | CV28: 2.631 | CW28: 2010-09-28 | CX28: 0.9886 | CY28: 2005-02-08 | CZ28: 9290 | DA28: 2005-02-08 | DB28: 43.7 | DC28: 2005-02-08 | DD28: 28.195 | DE28: 2005-02-08 | DF28: 6.2363 | DG28: 2005-02-09 | DH28: 12 | DI28: 2005-02-08 | DJ28: 11.92 | DK28: 2005-02-09 | DL28: 77.1 | DM28: 2005-02-08 | DN28: 1202.25 | DO28: 38391 | DP28: 1529.5 | DQ28: 2005-02-08 | DR28: 300.4 | DS28: 2005-02-08 | DT28: 32231
A29: 2005-02-09 | B29: 412.41 | C29: 2005-02-09 | D29: 3054 | E29: 2005-02-09 | F29: 3.2318 | G29: 2005-02-09 | H29: 3.579 | I29: 2005-02-09 | J29: 3.979 | K29: 2005-02-09 | L29: 4.3689 | M29: 2005-02-09 | N29: 2.404 | O29: 2005-02-09 | P29: 2.889 | Q29: 2005-02-09 | R29: 3.444 | S29: 2005-02-09 | T29: 3.848 | U29: 2005-02-09 | V29: 0.115 | W29: 2005-02-09 | X29: 0.585 | Y29: 2005-02-09 | Z29: 1.375 | AA29: 2005-02-09 | AB29: 2.269 | AC29: 2005-02-09 | AD29: 4.576 | AE29: 2005-02-09 | AF29: 4.507 | AG29: 2005-02-09 | AH29: 4.489 | AI29: 2005-02-09 | AJ29: 4.3 | AK29: 2005-02-09 | AL29: 2.336 | AM29: 2005-02-09 | AN29: 2.865 | AO29: 2005-02-09 | AP29: 3.562 | AQ29: 2005-02-09 | AR29: 4.043 | AS29: 2005-02-09 | AT29: 2.6206 | AU29: 2005-02-09 | AV29: 2.6019 | AW29: 2005-02-09 | AX29: 2.5055 | AY29: 2005-02-09 | AZ29: 2.7328 | BA29: 2011-11-09 | BB29: 751 | BC29: 2011-11-09 | BD29: 501.25 | BE29: 2012-09-14 | BF29: 445.933 | BG29: 2007-11-05 | BH29: 54.807 | BI29: 2005-02-09 | BJ29: 24.7 | BK29: 2005-02-09 | BL29: 9.3 | BM29: 2005-02-09 | BN29: 11.53 | BO29: 2005-02-09 | BP29: -39.1 | BQ29: 2005-02-09 | BR29: 79.2 | BS29: 2005-02-09 | BT29: 5.9 | BU29: 2005-02-09 | BV29: 16.1 | BW29: 2005-02-09 | BX29: 32.2 | BY29: 2005-02-09 | BZ29: 1.2788 | CA29: 2005-02-09 | CB29: 1.8573 | CC29: 2005-02-09 | CD29: 0.68855 | CE29: 2005-02-09 | CF29: 105.83 | CG29: 2005-02-09 | CH29: 1.251 | CI29: 2005-02-09 | CJ29: 103.92 | CK29: 2005-02-09 | CL29: 84.91 | CM29: 2005-02-09 | CN29: 0.7686 | CO29: 2005-02-09 | CP29: 7.094 | CQ29: 2005-02-09 | CR29: 6.5506 | CS29: 2005-02-09 | CT29: 31.79 | CU29: 2005-02-09 | CV29: 2.604 | CW29: 2010-09-29 | CX29: 0.9904 | CY29: 2005-02-09 | CZ29: 9290 | DA29: 2005-02-09 | DB29: 43.71 | DC29: 2005-02-09 | DD29: 28.122 | DE29: 2005-02-09 | DF29: 6.2323 | DG29: 2005-02-10 | DH29: 11.51 | DI29: 2005-02-09 | DJ29: 12.19 | DK29: 2005-02-10 | DL29: 80.4 | DM29: 2005-02-09 | DN29: 1193 | DO29: 38392 | DP29: 1509 | DQ29: 2005-02-09 | DR29: 300.2 | DS29: 2005-02-09 | DT29: 32186
A30: 2005-02-10 | B30: 417.99 | C30: 2005-02-10 | D30: 3060 | E30: 2005-02-10 | F30: 3.2898 | G30: 2005-02-10 | H30: 3.6621 | I30: 2005-02-10 | J30: 4.0888 | K30: 2005-02-10 | L30: 4.4732 | M30: 2005-02-10 | N30: 2.377 | O30: 2005-02-10 | P30: 2.869 | Q30: 2005-02-10 | R30: 3.445 | S30: 2005-02-10 | T30: 3.867 | U30: 2005-02-10 | V30: 0.124 | W30: 2005-02-10 | X30: 0.604 | Y30: 2005-02-10 | Z30: 1.41 | AA30: 2005-02-10 | AB30: 2.325 | AC30: 2005-02-10 | AD30: 4.555 | AE30: 2005-02-10 | AF30: 4.508 | AG30: 2005-02-10 | AH30: 4.507 | AI30: 2005-02-10 | AJ30: 4.327 | AK30: 2005-02-10 | AL30: 2.31 | AM30: 2005-02-10 | AN30: 2.847 | AO30: 2005-02-10 | AP30: 3.566 | AQ30: 2005-02-10 | AR30: 4.063 | AS30: 2005-02-10 | AT30: 2.6665 | AU30: 2005-02-10 | AV30: 2.6521 | AW30: 2005-02-10 | AX30: 2.5289 | AY30: 2005-02-10 | AZ30: 2.7688 | BA30: 2011-11-10 | BB30: 760.042 | BC30: 2011-11-10 | BD30: 519.667 | BE30: 2012-09-17 | BF30: 449.574 | BG30: 2007-11-06 | BH30: 53.415 | BI30: 2005-02-10 | BJ30: 24.75 | BK30: 2005-02-10 | BL30: 9.1 | BM30: 2005-02-10 | BN30: 12.29 | BO30: 2005-02-10 | BP30: -36.4 | BQ30: 2005-02-10 | BR30: 79 | BS30: 2005-02-10 | BT30: 4.4 | BU30: 2005-02-10 | BV30: 14.1 | BW30: 2005-02-10 | BX30: 31.4 | BY30: 2005-02-10 | BZ30: 1.2905 | CA30: 2005-02-10 | CB30: 1.8726 | CC30: 2005-02-10 | CD30: 0.68895 | CE30: 2005-02-10 | CF30: 105.54 | CG30: 2005-02-10 | CH30: 1.2397 | CI30: 2005-02-10 | CJ30: 104 | CK30: 2005-02-10 | CL30: 84.54 | CM30: 2005-02-10 | CN30: 0.7826 | CO30: 2005-02-10 | CP30: 7.0474 | CQ30: 2005-02-10 | CR30: 6.5401 | CS30: 2005-02-10 | CT30: 31.79 | CU30: 2005-02-10 | CV30: 2.6178 | CW30: 2010-09-30 | CX30: 0.9897 | CY30: 2005-02-10 | CZ30: 9278 | DA30: 2005-02-10 | DB30: 43.78 | DC30: 2005-02-10 | DD30: 28.09 | DE30: 2005-02-10 | DF30: 6.1328 | DG30: 2005-02-11 | DH30: 11.43 | DI30: 2005-02-10 | DJ30: 12.04 | DK30: 2005-02-11 | DL30: 81.95 | DM30: 2005-02-10 | DN30: 1196.5 | DO30: 38393 | DP30: 1506.5 | DQ30: 2005-02-10 | DR30: 301.7 | DS30: 2005-02-10 | DT30: 32192
A31: 2005-02-11 | B31: 420.23 | C31: 2005-02-11 | D31: 3088 | E31: 2005-02-11 | F31: 3.3236 | G31: 2005-02-11 | H31: 3.6863 | I31: 2005-02-11 | J31: 4.0844 | K31: 2005-02-11 | L31: 4.4805 | M31: 2005-02-11 | N31: 2.377 | O31: 2005-02-11 | P31: 2.869 | Q31: 2005-02-11 | R31: 3.463 | S31: 2005-02-11 | T31: 3.909 | U31: 2005-02-11 | V31: 0.125 | W31: 2005-02-11 | X31: 0.605 | Y31: 2005-02-11 | Z31: 1.409 | AA31: 2005-02-11 | AB31: 2.325 | AC31: 2005-02-11 | AD31: 4.581 | AE31: 2005-02-11 | AF31: 4.536 | AG31: 2005-02-11 | AH31: 4.534 | AI31: 2005-02-11 | AJ31: 4.352 | AK31: 2005-02-11 | AL31: 2.308 | AM31: 2005-02-11 | AN31: 2.849 | AO31: 2005-02-11 | AP31: 3.585 | AQ31: 2005-02-11 | AR31: 4.106 | AS31: 2005-02-11 | AT31: 2.7198 | AU31: 2005-02-11 | AV31: 2.6543 | AW31: 2005-02-11 | AX31: 2.5229 | AY31: 2005-02-11 | AZ31: 2.8067 | BA31: 2011-11-11 | BB31: 719.5 | BC31: 2011-11-11 | BD31: 491 | BE31: 2012-09-18 | BF31: 449.551 | BG31: 2007-11-07 | BH31: 54.784 | BI31: 2005-02-11 | BJ31: 24.625 | BK31: 2005-02-11 | BL31: 7.9 | BM31: 2005-02-11 | BN31: 12.15 | BO31: 2005-02-11 | BP31: -36.6 | BQ31: 2005-02-11 | BR31: 78.7 | BS31: 2005-02-11 | BT31: 1.5 | BU31: 2005-02-11 | BV31: 13.3 | BW31: 2005-02-11 | BX31: 30.3 | BY31: 2005-02-11 | BZ31: 1.2867 | CA31: 2005-02-11 | CB31: 1.8671 | CC31: 2005-02-11 | CD31: 0.6892 | CE31: 2005-02-11 | CF31: 105.65 | CG31: 2005-02-11 | CH31: 1.2367 | CI31: 2005-02-11 | CJ31: 103.99 | CK31: 2005-02-11 | CL31: 84.57 | CM31: 2005-02-11 | CN31: 0.7856 | CO31: 2005-02-11 | CP31: 7.0661 | CQ31: 2005-02-11 | CR31: 6.5555 | CS31: 2005-02-11 | CT31: 31.66 | CU31: 2005-02-11 | CV31: 2.6038 | CW31: 2010-10-01 | CX31: 0.9907 | CY31: 2005-02-11 | CZ31: 9280 | DA31: 2005-02-11 | DB31: 43.825 | DC31: 2005-02-11 | DD31: 28.0763 | DE31: 2005-02-11 | DF31: 6.0875 | DG31: 2005-02-14 | DH31: 11.52 | DI31: 2005-02-11 | DJ31: 11.99 | DK31: 2005-02-14 | DL31: 84.66 | DM31: 2005-02-11 | DN31: 1207 | DO31: 38394 | DP31: 1534 | DQ31: 2005-02-11 | DR31: 304.4 | DS31: 2005-02-11 | DT31: 32363
A32: 2005-02-14 | B32: 425.1 | C32: 2005-02-14 | D32: 3081 | E32: 2005-02-14 | F32: 3.3488 | G32: 2005-02-14 | H32: 3.6898 | I32: 2005-02-14 | J32: 4.069 | K32: 2005-02-14 | L32: 4.4488 | M32: 2005-02-14 | N32: 2.396 | O32: 2005-02-14 | P32: 2.895 | Q32: 2005-02-14 | R32: 3.488 | S32: 2005-02-14 | T32: 3.939 | U32: 2005-02-14 | V32: 0.129 | W32: 2005-02-14 | X32: 0.625 | Y32: 2005-02-14 | Z32: 1.45 | AA32: 2005-02-14 | AB32: 2.399 | AC32: 2005-02-14 | AD32: 4.625 | AE32: 2005-02-14 | AF32: 4.581 | AG32: 2005-02-14 | AH32: 4.579 | AI32: 2005-02-14 | AJ32: 4.382 | AK32: 2005-02-14 | AL32: 2.326 | AM32: 2005-02-14 | AN32: 2.876 | AO32: 2005-02-14 | AP32: 3.61 | AQ32: 2005-02-14 | AR32: 4.138 | AS32: 2005-02-14 | AT32: 2.7409 | AU32: 2005-02-14 | AV32: 2.6889 | AW32: 2005-02-14 | AX32: 2.5381 | AY32: 2005-02-14 | AZ32: 2.8256 | BA32: 2011-11-14 | BB32: 745.583 | BC32: 2011-11-14 | BD32: 516 | BE32: 2012-09-19 | BF32: 448.018 | BG32: 2007-11-08 | BH32: 59.881 | BI32: 2005-02-14 | BJ32: 24.625 | BK32: 2005-02-14 | BL32: 7.1 | BM32: 2005-02-14 | BN32: 12.01 | BO32: 2005-02-14 | BP32: -38.2 | BQ32: 2005-02-14 | BR32: 77.9 | BS32: 2005-02-14 | BT32: -0.5 | BU32: 2005-02-14 | BV32: 11.5 | BW32: 2005-02-14 | BX32: 26.3 | BY32: 2005-02-14 | BZ32: 1.2976 | CA32: 2005-02-14 | CB32: 1.8904 | CC32: 2005-02-14 | CD32: 0.68633 | CE32: 2005-02-14 | CF32: 105.05 | CG32: 2005-02-14 | CH32: 1.2341 | CI32: 2005-02-14 | CJ32: 104.4 | CK32: 2005-02-14 | CL32: 83.96 | CM32: 2005-02-14 | CN32: 0.7883 | CO32: 2005-02-14 | CP32: 6.9955 | CQ32: 2005-02-14 | CR32: 6.4735 | CS32: 2005-02-14 | CT32: 31.545 | CU32: 2005-02-14 | CV32: 2.5795 | CW32: 2010-10-04 | CX32: 0.9886 | CY32: 2005-02-14 | CZ32: 9245 | DA32: 2005-02-14 | DB32: 43.755 | DC32: 2005-02-14 | DD32: 28.02 | DE32: 2005-02-14 | DF32: 6.045 | DG32: 2005-02-15 | DH32: 11.27 | DI32: 2005-02-14 | DJ32: 12.52 | DK32: 2005-02-15 | DL32: 84.12 | DM32: 2005-02-14 | DN32: 1206.25 | DO32: 38397 | DP32: 1537.5 | DQ32: 2005-02-14 | DR32: 304.4 | DS32: 2005-02-14 | DT32: 32337
A33: 2005-02-15 | B33: 425.77 | C33: 2005-02-15 | D33: 3084 | E33: 2005-02-15 | F33: 3.3407 | G33: 2005-02-15 | H33: 3.7072 | I33: 2005-02-15 | J33: 4.096 | K33: 2005-02-15 | L33: 4.4851 | M33: 2005-02-15 | N33: 2.426 | O33: 2005-02-15 | P33: 2.931 | Q33: 2005-02-15 | R33: 3.513 | S33: 2005-02-15 | T33: 3.959 | U33: 2005-02-15 | V33: 0.129 | W33: 2005-02-15 | X33: 0.625 | Y33: 2005-02-15 | Z33: 1.464 | AA33: 2005-02-15 | AB33: 2.465 | AC33: 2005-02-15 | AD33: 4.621 | AE33: 2005-02-15 | AF33: 4.585 | AG33: 2005-02-15 | AH33: 4.587 | AI33: 2005-02-15 | AJ33: 4.385 | AK33: 2005-02-15 | AL33: 2.347 | AM33: 2005-02-15 | AN33: 2.91 | AO33: 2005-02-15 | AP33: 3.635 | AQ33: 2005-02-15 | AR33: 4.159 | AS33: 2005-02-15 | AT33: 2.6888 | AU33: 2005-02-15 | AV33: 2.6311 | AW33: 2005-02-15 | AX33: 2.4987 | AY33: 2005-02-15 | AZ33: 2.8044 | BA33: 2011-11-15 | BB33: 772.167 | BC33: 2011-11-15 | BD33: 542.75 | BE33: 2012-09-20 | BF33: 455.546 | BG33: 2007-11-09 | BH33: 63.119 | BI33: 2005-02-15 | BJ33: 24.25 | BK33: 2005-02-15 | BL33: 11.9 | BM33: 2005-02-15 | BN33: 15.72 | BO33: 2005-02-15 | BP33: -32.9 | BQ33: 2005-02-15 | BR33: 86 | BS33: 2005-02-15 | BT33: 3.6 | BU33: 2005-02-15 | BV33: 10.5 | BW33: 2005-02-15 | BX33: 26.3 | BY33: 2005-02-15 | BZ33: 1.3024 | CA33: 2005-02-15 | CB33: 1.8947 | CC33: 2005-02-15 | CD33: 0.68755 | CE33: 2005-02-15 | CF33: 104.31 | CG33: 2005-02-15 | CH33: 1.2313 | CI33: 2005-02-15 | CJ33: 104.42 | CK33: 2005-02-15 | CL33: 83.59 | CM33: 2005-02-15 | CN33: 0.788 | CO33: 2005-02-15 | CP33: 6.9623 | CQ33: 2005-02-15 | CR33: 6.4353 | CS33: 2005-02-15 | CT33: 31.455 | CU33: 2005-02-15 | CV33: 2.5828 | CW33: 2010-10-05 | CX33: 0.9881 | CY33: 2005-02-15 | CZ33: 9285 | DA33: 2005-02-15 | DB33: 43.82 | DC33: 2005-02-15 | DD33: 28.0113 | DE33: 2005-02-15 | DF33: 5.9675 | DG33: 2005-02-16 | DH33: 11.1 | DI33: 2005-02-15 | DJ33: 12.35 | DK33: 2005-02-16 | DL33: 84.1 | DM33: 2005-02-15 | DN33: 1210.75 | DO33: 38398 | DP33: 1548.5 | DQ33: 2005-02-15 | DR33: 304.5 | DS33: 2005-02-15 | DT33: 32440
A34: 2005-02-16 | B34: 425.09 | C34: 2005-02-16 | D34: 3069 | E34: 2005-02-16 | F34: 3.3995 | G34: 2005-02-16 | H34: 3.7734 | I34: 2005-02-16 | J34: 4.1521 | K34: 2005-02-16 | L34: 4.5179 | M34: 2005-02-16 | N34: 2.432 | O34: 2005-02-16 | P34: 2.95 | Q34: 2005-02-16 | R34: 3.548 | S34: 2005-02-16 | T34: 3.996 | U34: 2005-02-16 | V34: 0.123 | W34: 2005-02-16 | X34: 0.605 | Y34: 2005-02-16 | Z34: 1.423 | AA34: 2005-02-16 | AB34: 2.448 | AC34: 2005-02-16 | AD34: 4.604 | AE34: 2005-02-16 | AF34: 4.583 | AG34: 2005-02-16 | AH34: 4.597 | AI34: 2005-02-16 | AJ34: 4.403 | AK34: 2005-02-16 | AL34: 2.348 | AM34: 2005-02-16 | AN34: 2.929 | AO34: 2005-02-16 | AP34: 3.669 | AQ34: 2005-02-16 | AR34: 4.198 | AS34: 2005-02-16 | AT34: 2.7354 | AU34: 2005-02-16 | AV34: 2.6689 | AW34: 2005-02-16 | AX34: 2.5171 | AY34: 2005-02-16 | AZ34: 2.8154 | BA34: 2011-11-16 | BB34: 751 | BC34: 2011-11-16 | BD34: 525 | BE34: 2012-09-21 | BF34: 457.8 | BG34: 2007-11-12 | BH34: 65.972 | BI34: 2005-02-16 | BJ34: 25.125 | BK34: 2005-02-16 | BL34: 14.6 | BM34: 2005-02-16 | BN34: 15.2 | BO34: 2005-02-16 | BP34: -30.5 | BQ34: 2005-02-16 | BR34: 85.7 | BS34: 2005-02-16 | BT34: 10.8 | BU34: 2005-02-16 | BV34: 18.8 | BW34: 2005-02-16 | BX34: 26.3 | BY34: 2005-02-16 | BZ34: 1.302 | CA34: 2005-02-16 | CB34: 1.8809 | CC34: 2005-02-16 | CD34: 0.69216 | CE34: 2005-02-16 | CF34: 105.46 | CG34: 2005-02-16 | CH34: 1.2399 | CI34: 2005-02-16 | CJ34: 104.2 | CK34: 2005-02-16 | CL34: 83.67 | CM34: 2005-02-16 | CN34: 0.7843 | CO34: 2005-02-16 | CP34: 6.9808 | CQ34: 2005-02-16 | CR34: 6.4252 | CS34: 2005-02-16 | CT34: 31.6 | CU34: 2005-02-16 | CV34: 2.5808 | CW34: 2010-10-06 | CX34: 0.9857 | CY34: 2005-02-16 | CZ34: 9295 | DA34: 2005-02-16 | DB34: 43.765 | DC34: 2005-02-16 | DD34: 28.0015 | DE34: 2005-02-16 | DF34: 5.9968 | DG34: 2005-02-17 | DH34: 11.77 | DI34: 2005-02-16 | DJ34: 13.66 | DK34: 2005-02-17 | DL34: 74.24 | DM34: 2005-02-16 | DN34: 1210.5 | DO34: 38399 | DP34: 1545.5 | DQ34: 2005-02-16 | DR34: 303.1 | DS34: 2005-02-16 | DT34: 32185
A35: 2005-02-17 | B35: 427.39 | C35: 2005-02-17 | D35: 3074 | E35: 2005-02-17 | F35: 3.358 | G35: 2005-02-17 | H35: 3.7736 | I35: 2005-02-17 | J35: 4.1794 | K35: 2005-02-17 | L35: 4.5738 | M35: 2005-02-17 | N35: 2.444 | O35: 2005-02-17 | P35: 2.968 | Q35: 2005-02-17 | R35: 3.573 | S35: 2005-02-17 | T35: 4.02 | U35: 2005-02-17 | V35: 0.123 | W35: 2005-02-17 | X35: 0.591 | Y35: 2005-02-17 | Z35: 1.412 | AA35: 2005-02-17 | AB35: 2.415 | AC35: 2005-02-17 | AD35: 4.622 | AE35: 2005-02-17 | AF35: 4.612 | AG35: 2005-02-17 | AH35: 4.63 | AI35: 2005-02-17 | AJ35: 4.431 | AK35: 2005-02-17 | AL35: 2.356 | AM35: 2005-02-17 | AN35: 2.947 | AO35: 2005-02-17 | AP35: 3.694 | AQ35: 2005-02-17 | AR35: 4.225 | AS35: 2005-02-17 | AT35: 2.6977 | AU35: 2005-02-17 | AV35: 2.6752 | AW35: 2005-02-17 | AX35: 2.5478 | AY35: 2005-02-17 | AZ35: 2.8373 | BA35: 2011-11-17 | BB35: 761.667 | BC35: 2011-11-17 | BD35: 535 | BE35: 2012-09-24 | BF35: 470.873 | BG35: 2007-11-13 | BH35: 66.945 | BI35: 2005-02-17 | BJ35: 24.417 | BK35: 2005-02-17 | BL35: 17.5 | BM35: 2005-02-17 | BN35: 16.39 | BO35: 2005-02-17 | BP35: -26.5 | BQ35: 2005-02-17 | BR35: 85.5 | BS35: 2005-02-17 | BT35: 15.9 | BU35: 2005-02-17 | BV35: 17.7 | BW35: 2005-02-17 | BX35: 26.4 | BY35: 2005-02-17 | BZ35: 1.3084 | CA35: 2005-02-17 | CB35: 1.8944 | CC35: 2005-02-17 | CD35: 0.69066 | CE35: 2005-02-17 | CF35: 105.42 | CG35: 2005-02-17 | CH35: 1.2267 | CI35: 2005-02-17 | CJ35: 104.29 | CK35: 2005-02-17 | CL35: 83.48 | CM35: 2005-02-17 | CN35: 0.7892 | CO35: 2005-02-17 | CP35: 6.9555 | CQ35: 2005-02-17 | CR35: 6.3714 | CS35: 2005-02-17 | CT35: 31.553 | CU35: 2005-02-17 | CV35: 2.5626 | CW35: 2010-10-07 | CX35: 0.9831 | CY35: 2005-02-17 | CZ35: 9290 | DA35: 2005-02-17 | DB35: 43.81 | DC35: 2005-02-17 | DD35: 27.975 | DE35: 2005-02-17 | DF35: 5.9415 | DG35: 2005-02-18 | DH35: 11.18 | DI35: 2005-02-17 | DJ35: 13.57 | DK35: 2005-02-18 | DL35: 78.46 | DM35: 2005-02-17 | DN35: 1201 | DO35: 38400 | DP35: 1524 | DQ35: 2005-02-17 | DR35: 303.4 | DS35: 2005-02-17 | DT35: 32210
A36: 2005-02-18 | B36: 427.42 | C36: 2005-02-18 | D36: 3076 | E36: 2005-02-18 | F36: 3.435 | G36: 2005-02-18 | H36: 3.8722 | I36: 2005-02-18 | J36: 4.2655 | K36: 2005-02-18 | L36: 4.6495 | M36: 2005-02-18 | N36: 2.484 | O36: 2005-02-18 | P36: 3.047 | Q36: 2005-02-18 | R36: 3.664 | S36: 2005-02-18 | T36: 4.125 | U36: 2005-02-18 | V36: 0.119 | W36: 2005-02-18 | X36: 0.595 | Y36: 2005-02-18 | Z36: 1.425 | AA36: 2005-02-18 | AB36: 2.431 | AC36: 2005-02-18 | AD36: 4.647 | AE36: 2005-02-18 | AF36: 4.656 | AG36: 2005-02-18 | AH36: 4.691 | AI36: 2005-02-18 | AJ36: 4.495 | AK36: 2005-02-18 | AL36: 2.379 | AM36: 2005-02-18 | AN36: 3.019 | AO36: 2005-02-18 | AP36: 3.782 | AQ36: 2005-02-18 | AR36: 4.331 | AS36: 2005-02-18 | AT36: 2.798 | AU36: 2005-02-18 | AV36: 2.7608 | AW36: 2005-02-18 | AX36: 2.5961 | AY36: 2005-02-18 | AZ36: 2.8961 | BA36: 2011-11-18 | BB36: 760.5 | BC36: 2011-11-18 | BD36: 535 | BE36: 2012-09-25 | BF36: 496.862 | BG36: 2007-11-14 | BH36: 65.278 | BI36: 2005-02-18 | BJ36: 25.063 | BK36: 2005-02-18 | BL36: 23.7 | BM36: 2005-02-18 | BN36: 15.87 | BO36: 2005-02-18 | BP36: -27.1 | BQ36: 2005-02-18 | BR36: 85.4 | BS36: 2005-02-18 | BT36: 31.9 | BU36: 2005-02-18 | BV36: 44.5 | BW36: 2005-02-18 | BX36: 95 | BY36: 2005-02-18 | BZ36: 1.3073 | CA36: 2005-02-18 | CB36: 1.8934 | CC36: 2005-02-18 | CD36: 0.69035 | CE36: 2005-02-18 | CF36: 105.66 | CG36: 2005-02-18 | CH36: 1.2307 | CI36: 2005-02-18 | CJ36: 104.32 | CK36: 2005-02-18 | CL36: 83.49 | CM36: 2005-02-18 | CN36: 0.7884 | CO36: 2005-02-18 | CP36: 6.9692 | CQ36: 2005-02-18 | CR36: 6.3431 | CS36: 2005-02-18 | CT36: 31.531 | CU36: 2005-02-18 | CV36: 2.574 | CW36: 2010-10-08 | CX36: 0.984 | CY36: 2005-02-18 | CZ36: 9250 | DA36: 2005-02-18 | DB36: 43.8488 | DC36: 2005-02-18 | DD36: 27.9425 | DE36: 2005-02-18 | DF36: 5.9343 | DG36: 2005-02-22 | DH36: 13.14 | DI36: 2005-02-18 | DJ36: 13.01 | DK36: 2005-02-22 | DL36: 83.99 | DM36: 2005-02-18 | DN36: 1202.25 | DO36: 38401 | DP36: 1517 | DQ36: 2005-02-18 | DR36: 302.9 | DS36: 2005-02-18 | DT36: 32057
A37: 2005-02-21 | B37: 427.45 | C37: 2005-02-21 | D37: 3078 | E37: 2005-02-21 | F37: 3.4269 | G37: 2005-02-21 | H37: 3.8548 | I37: 2005-02-21 | J37: 4.2616 | K37: 2005-02-21 | L37: 4.6446 | M37: 2005-02-21 | N37: 2.504 | O37: 2005-02-21 | P37: 3.077 | Q37: 2005-02-21 | R37: 3.7 | S37: 2005-02-21 | T37: 4.155 | U37: 2005-02-21 | V37: 0.12 | W37: 2005-02-21 | X37: 0.615 | Y37: 2005-02-21 | Z37: 1.455 | AA37: 2005-02-21 | AB37: 2.469 | AC37: 2005-02-21 | AD37: 4.689 | AE37: 2005-02-21 | AF37: 4.698 | AG37: 2005-02-21 | AH37: 4.73 | AI37: 2005-02-21 | AJ37: 4.516 | AK37: 2005-02-21 | AL37: 2.392 | AM37: 2005-02-21 | AN37: 3.049 | AO37: 2005-02-21 | AP37: 3.816 | AQ37: 2005-02-21 | AR37: 4.363 | AS37: 2005-02-21 | AT37: 2.7895 | AU37: 2005-02-21 | AV37: 2.7464 | AW37: 2005-02-21 | AX37: 2.5922 | AY37: 2005-02-21 | AZ37: 2.8912 | BA37: 2011-11-21 | BB37: 792.333 | BC37: 2011-11-21 | BD37: 555.583 | BE37: 2012-09-26 | BF37: 500.773 | BG37: 2007-11-15 | BH37: 71.361 | BI37: 2005-02-21 | BJ37: 24.25 | BK37: 2005-02-21 | BL37: 22.9 | BM37: 2005-02-21 | BN37: 14.93 | BO37: 2005-02-21 | BP37: -26 | BQ37: 2005-02-21 | BR37: 85.8 | BS37: 2005-02-21 | BT37: 31.4 | BU37: 2005-02-21 | BV37: 44.2 | BW37: 2005-02-21 | BX37: 94.6 | BY37: 2005-02-21 | BZ37: 1.3071 | CA37: 2005-02-21 | CB37: 1.8976 | CC37: 2005-02-21 | CD37: 0.68874 | CE37: 2005-02-21 | CF37: 105.52 | CG37: 2005-02-21 | CH37: 1.2344 | CI37: 2005-02-21 | CJ37: 104.39 | CK37: 2005-02-21 | CL37: 83.52 | CM37: 2005-02-21 | CN37: 0.7903 | CO37: 2005-02-21 | CP37: 6.9704 | CQ37: 2005-02-21 | CR37: 6.3321 | CS37: 2005-02-21 | CT37: 31.39 | CU37: 2005-02-21 | CV37: 2.578 | CW37: 2010-10-11 | CX37: 0.9801 | CY37: 2005-02-21 | CZ37: 9270 | DA37: 2005-02-21 | DB37: 43.8288 | DC37: 2005-02-21 | DD37: 27.933 | DE37: 2005-02-21 | DF37: 5.94 | DG37: 2005-02-23 | DH37: 12.39 | DI37: 2005-02-21 | DJ37: 13.24 | DK37: 2005-02-23 | DL37: 81.69 | DM37: 2005-02-22 | DN37: 1184.75 | DO37: 38404 | DP37: 1513.5 | DQ37: 2005-02-21 | DR37: 301.4 | DS37: 2005-02-21 | DT37: 31713
A38: 2005-02-22 | B38: 434.7 | C38: 2005-02-22 | D38: 3033 | E38: 2005-02-22 | F38: 3.4273 | G38: 2005-02-22 | H38: 3.869 | I38: 2005-02-22 | J38: 4.2853 | K38: 2005-02-22 | L38: 4.6854 | M38: 2005-02-22 | N38: 2.487 | O38: 2005-02-22 | P38: 3.064 | Q38: 2005-02-22 | R38: 3.696 | S38: 2005-02-22 | T38: 4.152 | U38: 2005-02-22 | V38: 0.119 | W38: 2005-02-22 | X38: 0.604 | Y38: 2005-02-22 | Z38: 1.439 | AA38: 2005-02-22 | AB38: 2.44 | AC38: 2005-02-22 | AD38: 4.708 | AE38: 2005-02-22 | AF38: 4.707 | AG38: 2005-02-22 | AH38: 4.731 | AI38: 2005-02-22 | AJ38: 4.526 | AK38: 2005-02-22 | AL38: 2.383 | AM38: 2005-02-22 | AN38: 3.036 | AO38: 2005-02-22 | AP38: 3.811 | AQ38: 2005-02-22 | AR38: 4.361 | AS38: 2005-02-22 | AT38: 2.8501 | AU38: 2005-02-22 | AV38: 2.7731 | AW38: 2005-02-22 | AX38: 2.621 | AY38: 2005-02-22 | AZ38: 2.8842 | BA38: 2011-11-22 | BB38: 803.375 | BC38: 2011-11-22 | BD38: 560.25 | BE38: 2012-09-27 | BF38: 503.592 | BG38: 2007-11-16 | BH38: 80.049 | BI38: 2005-02-22 | BJ38: 24.25 | BK38: 2005-02-22 | BL38: 25 | BM38: 2005-02-22 | BN38: 17.83 | BO38: 2005-02-22 | BP38: -24.1 | BQ38: 2005-02-22 | BR38: 95.5 | BS38: 2005-02-22 | BT38: 31.4 | BU38: 2005-02-22 | BV38: 43.8 | BW38: 2005-02-22 | BX38: 94.5 | BY38: 2005-02-22 | BZ38: 1.3234 | CA38: 2005-02-22 | CB38: 1.9081 | CC38: 2005-02-22 | CD38: 0.69349 | CE38: 2005-02-22 | CF38: 104.22 | CG38: 2005-02-22 | CH38: 1.2299 | CI38: 2005-02-22 | CJ38: 105.12 | CK38: 2005-02-22 | CL38: 82.41 | CM38: 2005-02-22 | CN38: 0.7945 | CO38: 2005-02-22 | CP38: 6.8709 | CQ38: 2005-02-22 | CR38: 6.2435 | CS38: 2005-02-22 | CT38: 31.185 | CU38: 2005-02-22 | CV38: 2.5966 | CW38: 2010-10-12 | CX38: 0.9802 | CY38: 2005-02-22 | CZ38: 9202 | DA38: 2005-02-22 | DB38: 43.7563 | DC38: 2005-02-22 | DD38: 27.7938 | DE38: 2005-02-22 | DF38: 5.7798 | DG38: 2005-02-24 | DH38: 11.57 | DI38: 2005-02-22 | DJ38: 13.49 | DK38: 2005-02-24 | DL38: 82.94 | DM38: 2005-02-23 | DN38: 1192.75 | DO38: 38405 | DP38: 1502 | DQ38: 2005-02-22 | DR38: 298.8 | DS38: 2005-02-22 | DT38: 31544
A39: 2005-02-23 | B39: 434.87 | C39: 2005-02-23 | D39: 3028 | E39: 2005-02-23 | F39: 3.4358 | G39: 2005-02-23 | H39: 3.8549 | I39: 2005-02-23 | J39: 4.2617 | K39: 2005-02-23 | L39: 4.6523 | M39: 2005-02-23 | N39: 2.473 | O39: 2005-02-23 | P39: 3.053 | Q39: 2005-02-23 | R39: 3.695 | S39: 2005-02-23 | T39: 4.176 | U39: 2005-02-23 | V39: 0.115 | W39: 2005-02-23 | X39: 0.58 | Y39: 2005-02-23 | Z39: 1.41 | AA39: 2005-02-23 | AB39: 2.41 | AC39: 2005-02-23 | AD39: 4.753 | AE39: 2005-02-23 | AF39: 4.737 | AG39: 2005-02-23 | AH39: 4.755 | AI39: 2005-02-23 | AJ39: 4.548 | AK39: 2005-02-23 | AL39: 2.37 | AM39: 2005-02-23 | AN39: 3.022 | AO39: 2005-02-23 | AP39: 3.806 | AQ39: 2005-02-23 | AR39: 4.38 | AS39: 2005-02-23 | AT39: 2.8709 | AU39: 2005-02-23 | AV39: 2.7717 | AW39: 2005-02-23 | AX39: 2.6387 | AY39: 2005-02-23 | AZ39: 2.8755 | BA39: 2011-11-23 | BB39: 839.25 | BC39: 2011-11-23 | BD39: 591 | BE39: 2012-09-28 | BF39: 503.593 | BG39: 2007-11-19 | BH39: 78.444 | BI39: 2005-02-23 | BJ39: 25.417 | BK39: 2005-02-23 | BL39: 20.1 | BM39: 2005-02-23 | BN39: 9.74 | BO39: 2005-02-23 | BP39: -23.9 | BQ39: 2005-02-23 | BR39: 67.2 | BS39: 2005-02-23 | BT39: 31.6 | BU39: 2005-02-23 | BV39: 43.1 | BW39: 2005-02-23 | BX39: 94.4 | BY39: 2005-02-23 | BZ39: 1.3207 | CA39: 2005-02-23 | CB39: 1.9074 | CC39: 2005-02-23 | CD39: 0.6924 | CE39: 2005-02-23 | CF39: 104.94 | CG39: 2005-02-23 | CH39: 1.2389 | CI39: 2005-02-23 | CJ39: 104.94 | CK39: 2005-02-23 | CL39: 82.68 | CM39: 2005-02-23 | CN39: 0.7872 | CO39: 2005-02-23 | CP39: 6.8799 | CQ39: 2005-02-23 | CR39: 6.2402 | CS39: 2005-02-23 | CT39: 31.2 | CU39: 2005-02-23 | CV39: 2.5825 | CW39: 2010-10-13 | CX39: 0.9799 | CY39: 2005-02-23 | CZ39: 9212 | DA39: 2005-02-23 | DB39: 43.715 | DC39: 2005-02-23 | DD39: 27.7938 | DE39: 2005-02-23 | DF39: 5.8045 | DG39: 2005-02-25 | DH39: 11.49 | DI39: 2005-02-23 | DJ39: 13.99 | DK39: 2005-02-25 | DL39: 80.7 | DM39: 2005-02-24 | DN39: 1200.75 | DO39: 38406 | DP39: 1501.5 | DQ39: 2005-02-23 | DR39: 298.3 | DS39: 2005-02-23 | DT39: 31410
A40: 2005-02-24 | B40: 434.21 | C40: 2005-02-24 | D40: 3031 | E40: 2005-02-24 | F40: 3.4785 | G40: 2005-02-24 | H40: 3.9009 | I40: 2005-02-24 | J40: 4.2833 | K40: 2005-02-24 | L40: 4.6688 | M40: 2005-02-24 | N40: 2.486 | O40: 2005-02-24 | P40: 3.074 | Q40: 2005-02-24 | R40: 3.724 | S40: 2005-02-24 | T40: 4.196 | U40: 2005-02-24 | V40: 0.114 | W40: 2005-02-24 | X40: 0.575 | Y40: 2005-02-24 | Z40: 1.41 | AA40: 2005-02-24 | AB40: 2.415 | AC40: 2005-02-24 | AD40: 4.795 | AE40: 2005-02-24 | AF40: 4.799 | AG40: 2005-02-24 | AH40: 4.79 | AI40: 2005-02-24 | AJ40: 4.562 | AK40: 2005-02-24 | AL40: 2.385 | AM40: 2005-02-24 | AN40: 3.043 | AO40: 2005-02-24 | AP40: 3.838 | AQ40: 2005-02-24 | AR40: 4.405 | AS40: 2005-02-24 | AT40: 2.8692 | AU40: 2005-02-24 | AV40: 2.7922 | AW40: 2005-02-24 | AX40: 2.6466 | AY40: 2005-02-24 | AZ40: 2.8623 | BA40: 2011-11-24 | BB40: 840.583 | BC40: 2011-11-24 | BD40: 591.75 | BE40: 2012-10-01 | BF40: 502.143 | BG40: 2007-11-20 | BH40: 84.398 | BI40: 2005-02-24 | BJ40: 24.813 | BK40: 2005-02-24 | BL40: 19.6 | BM40: 2005-02-24 | BN40: 9.14 | BO40: 2005-02-24 | BP40: -24.7 | BQ40: 2005-02-24 | BR40: 66.5 | BS40: 2005-02-24 | BT40: 30.9 | BU40: 2005-02-24 | BV40: 42.1 | BW40: 2005-02-24 | BX40: 94.4 | BY40: 2005-02-24 | BZ40: 1.3214 | CA40: 2005-02-24 | CB40: 1.9128 | CC40: 2005-02-24 | CD40: 0.69075 | CE40: 2005-02-24 | CF40: 105.38 | CG40: 2005-02-24 | CH40: 1.2401 | CI40: 2005-02-24 | CJ40: 104.83 | CK40: 2005-02-24 | CL40: 82.9 | CM40: 2005-02-24 | CN40: 0.7874 | CO40: 2005-02-24 | CP40: 6.8649 | CQ40: 2005-02-24 | CR40: 6.2381 | CS40: 2005-02-24 | CT40: 31.172 | CU40: 2005-02-24 | CV40: 2.6158 | CW40: 2010-10-14 | CX40: 0.9781 | CY40: 2005-02-24 | CZ40: 9256 | DA40: 2005-02-24 | DB40: 43.7 | DC40: 2005-02-24 | DD40: 27.745 | DE40: 2005-02-24 | DF40: 5.817 | DG40: 2005-02-28 | DH40: 12.08 | DI40: 2005-02-24 | DJ40: 13.19 | DK40: 2005-02-28 | DL40: 90.05 | DM40: 2005-02-25 | DN40: 1212 | DO40: 38407 | DP40: 1518.5 | DQ40: 2005-02-24 | DR40: 299.8 | DS40: 2005-02-24 | DT40: 31446
A41: 2005-02-25 | B41: 435.19 | C41: 2005-02-25 | D41: 3071 | E41: 2005-02-25 | F41: 3.5219 | G41: 2005-02-25 | H41: 3.8944 | I41: 2005-02-25 | J41: 4.2638 | K41: 2005-02-25 | L41: 4.6386 | M41: 2005-02-25 | N41: 2.493 | O41: 2005-02-25 | P41: 3.069 | Q41: 2005-02-25 | R41: 3.71 | S41: 2005-02-25 | T41: 4.17 | U41: 2005-02-25 | V41: 0.125 | W41: 2005-02-25 | X41: 0.599 | Y41: 2005-02-25 | Z41: 1.435 | AA41: 2005-02-25 | AB41: 2.445 | AC41: 2005-02-25 | AD41: 4.775 | AE41: 2005-02-25 | AF41: 4.772 | AG41: 2005-02-25 | AH41: 4.762 | AI41: 2005-02-25 | AJ41: 4.533 | AK41: 2005-02-25 | AL41: 2.387 | AM41: 2005-02-25 | AN41: 3.038 | AO41: 2005-02-25 | AP41: 3.825 | AQ41: 2005-02-25 | AR41: 4.38 | AS41: 2005-02-25 | AT41: 2.9161 | AU41: 2005-02-25 | AV41: 2.7537 | AW41: 2005-02-25 | AX41: 2.6237 | AY41: 2005-02-25 | AZ41: 2.833 | BA41: 2011-11-25 | BB41: 845 | BC41: 2011-11-25 | BD41: 614 | BE41: 2012-10-02 | BF41: 502.144 | BG41: 2007-11-21 | BH41: 96.932 | BI41: 2005-02-25 | BJ41: 25.333 | BK41: 2005-02-25 | BL41: 19 | BM41: 2005-02-25 | BN41: 8.04 | BO41: 2005-02-25 | BP41: -22.5 | BQ41: 2005-02-25 | BR41: 61.1 | BS41: 2005-02-25 | BT41: 31 | BU41: 2005-02-25 | BV41: 41.4 | BW41: 2005-02-25 | BX41: 94.3 | BY41: 2005-02-25 | BZ41: 1.3228 | CA41: 2005-02-25 | CB41: 1.9179 | CC41: 2005-02-25 | CD41: 0.6896 | CE41: 2005-02-25 | CF41: 105.16 | CG41: 2005-02-25 | CH41: 1.24 | CI41: 2005-02-25 | CJ41: 104.9 | CK41: 2005-02-25 | CL41: 82.66 | CM41: 2005-02-25 | CN41: 0.7874 | CO41: 2005-02-25 | CP41: 6.8547 | CQ41: 2005-02-25 | CR41: 6.2529 | CS41: 2005-02-25 | CT41: 31.175 | CU41: 2005-02-25 | CV41: 2.635 | CW41: 2010-10-15 | CX41: 0.9792 | CY41: 2005-02-25 | CZ41: 9268 | DA41: 2005-02-25 | DB41: 43.7 | DC41: 2005-02-25 | DD41: 27.7402 | DE41: 2005-02-25 | DF41: 5.8175 | DG41: 2005-03-01 | DH41: 12.04 | DI41: 2005-02-25 | DJ41: 12.21 | DK41: 2005-03-01 | DL41: 89.23 | DM41: 2005-02-28 | DN41: 1204 | DO41: 38408 | DP41: 1531 | DQ41: 2005-02-25 | DR41: 302.7 | DS41: 2005-02-25 | DT41: 31747
A42: 2005-02-28 | B42: 436 | C42: 2005-02-28 | D42: 3047 | E42: 2005-02-28 | F42: 3.5958 | G42: 2005-02-28 | H42: 4.0114 | I42: 2005-02-28 | J42: 4.3766 | K42: 2005-02-28 | L42: 4.7195 | M42: 2005-02-28 | N42: 2.491 | O42: 2005-02-28 | P42: 3.076 | Q42: 2005-02-28 | R42: 3.715 | S42: 2005-02-28 | T42: 4.195 | U42: 2005-02-28 | V42: 0.139 | W42: 2005-02-28 | X42: 0.63 | Y42: 2005-02-28 | Z42: 1.475 | AA42: 2005-02-28 | AB42: 2.466 | AC42: 2005-02-28 | AD42: 4.77 | AE42: 2005-02-28 | AF42: 4.759 | AG42: 2005-02-28 | AH42: 4.736 | AI42: 2005-02-28 | AJ42: 4.507 | AK42: 2005-02-28 | AL42: 2.382 | AM42: 2005-02-28 | AN42: 3.035 | AO42: 2005-02-28 | AP42: 3.828 | AQ42: 2005-02-28 | AR42: 4.367 | AS42: 2005-02-28 | AT42: 2.9533 | AU42: 2005-02-28 | AV42: 2.8007 | AW42: 2005-02-28 | AX42: 2.6742 | AY42: 2005-02-28 | AZ42: 2.8549 | BA42: 2011-11-28 | BB42: 800.188 | BC42: 2011-11-28 | BD42: 574.708 | BE42: 2012-10-03 | BF42: 495.674 | BG42: 2007-11-22 | BH42: 94.209 | BI42: 2005-02-28 | BJ42: 24.563 | BK42: 2005-02-28 | BL42: 22.1 | BM42: 2005-02-28 | BN42: 10.42 | BO42: 2005-02-28 | BP42: -20 | BQ42: 2005-02-28 | BR42: 59.5 | BS42: 2005-02-28 | BT42: 34.5 | BU42: 2005-02-28 | BV42: 45.8 | BW42: 2005-02-28 | BX42: 94.2 | BY42: 2005-02-28 | BZ42: 1.3254 | CA42: 2005-02-28 | CB42: 1.9232 | CC42: 2005-02-28 | CD42: 0.68915 | CE42: 2005-02-28 | CF42: 104.48 | CG42: 2005-02-28 | CH42: 1.2336 | CI42: 2005-02-28 | CJ42: 105.1 | CK42: 2005-02-28 | CL42: 82.51 | CM42: 2005-02-28 | CN42: 0.7922 | CO42: 2005-02-28 | CP42: 6.8321 | CQ42: 2005-02-28 | CR42: 6.2028 | CS42: 2005-02-28 | CT42: 31.07 | CU42: 2005-02-28 | CV42: 2.592 | CW42: 2010-10-18 | CX42: 0.9744 | CY42: 2005-02-28 | CZ42: 9264 | DA42: 2005-02-28 | DB42: 43.675 | DC42: 2005-02-28 | DD42: 27.675 | DE42: 2005-02-28 | DF42: 5.805 | DG42: 2005-03-02 | DH42: 12.5 | DI42: 2005-02-28 | DJ42: 12.89 | DK42: 2005-03-02 | DL42: 101.41 | DM42: 2005-03-01 | DN42: 1210 | DO42: 38411 | DP42: 1513 | DQ42: 2005-02-28 | DR42: 302.2 | DS42: 2005-02-28 | DT42: 31854
A43: 2005-03-01 | B43: 431.86 | C43: 2005-03-01 | D43: 3083 | E43: 2005-03-01 | F43: 3.5714 | G43: 2005-03-01 | H43: 3.9974 | I43: 2005-03-01 | J43: 4.3647 | K43: 2005-03-01 | L43: 4.7145 | M43: 2005-03-01 | N43: 2.481 | O43: 2005-03-01 | P43: 3.08 | Q43: 2005-03-01 | R43: 3.733 | S43: 2005-03-01 | T43: 4.207 | U43: 2005-03-01 | V43: 0.145 | W43: 2005-03-01 | X43: 0.644 | Y43: 2005-03-01 | Z43: 1.499 | AA43: 2005-03-01 | AB43: 2.48 | AC43: 2005-03-01 | AD43: 4.796 | AE43: 2005-03-01 | AF43: 4.793 | AG43: 2005-03-01 | AH43: 4.786 | AI43: 2005-03-01 | AJ43: 4.573 | AK43: 2005-03-01 | AL43: 2.381 | AM43: 2005-03-01 | AN43: 3.041 | AO43: 2005-03-01 | AP43: 3.851 | AQ43: 2005-03-01 | AR43: 4.408 | AS43: 2005-03-01 | AT43: 3.006 | AU43: 2005-03-01 | AV43: 2.8152 | AW43: 2005-03-01 | AX43: 2.6918 | AY43: 2005-03-01 | AZ43: 2.8686 | BA43: 2011-11-29 | BB43: 792.125 | BC43: 2011-11-29 | BD43: 579 | BE43: 2012-10-04 | BF43: 486.378 | BG43: 2007-11-23 | BH43: 88.057 | BI43: 2005-03-01 | BJ43: 24.438 | BK43: 2005-03-01 | BL43: 19.3 | BM43: 2005-03-01 | BN43: 6.06 | BO43: 2005-03-01 | BP43: -25 | BQ43: 2005-03-01 | BR43: 58.2 | BS43: 2005-03-01 | BT43: 32.6 | BU43: 2005-03-01 | BV43: 44 | BW43: 2005-03-01 | BX43: 94.2 | BY43: 2005-03-01 | BZ43: 1.3174 | CA43: 2005-03-01 | CB43: 1.9188 | CC43: 2005-03-01 | CD43: 0.6866 | CE43: 2005-03-01 | CF43: 104.4 | CG43: 2005-03-01 | CH43: 1.2442 | CI43: 2005-03-01 | CJ43: 105.18 | CK43: 2005-03-01 | CL43: 82.78 | CM43: 2005-03-01 | CN43: 0.7837 | CO43: 2005-03-01 | CP43: 6.8748 | CQ43: 2005-03-01 | CR43: 6.23 | CS43: 2005-03-01 | CT43: 30.955 | CU43: 2005-03-01 | CV43: 2.6061 | CW43: 2010-10-19 | CX43: 0.9744 | CY43: 2005-03-01 | CZ43: 9274 | DA43: 2005-03-01 | DB43: 43.72 | DC43: 2005-03-01 | DD43: 27.685 | DE43: 2005-03-01 | DF43: 5.8518 | DG43: 2005-03-03 | DH43: 12.93 | DI43: 2005-03-01 | DJ43: 12.35 | DK43: 2005-03-03 | DL43: 99.44 | DM43: 2005-03-02 | DN43: 1209.5 | DO43: 38412 | DP43: 1529 | DQ43: 2005-03-01 | DR43: 304.5 | DS43: 2005-03-01 | DT43: 31980
A44: 2005-03-02 | B44: 433.29 | C44: 2005-03-02 | D44: 3074 | E44: 2005-03-02 | F44: 3.5552 | G44: 2005-03-02 | H44: 3.9941 | I44: 2005-03-02 | J44: 4.3767 | K44: 2005-03-02 | L44: 4.7341 | M44: 2005-03-02 | N44: 2.486 | O44: 2005-03-02 | P44: 3.105 | Q44: 2005-03-02 | R44: 3.775 | S44: 2005-03-02 | T44: 4.26 | U44: 2005-03-02 | V44: 0.145 | W44: 2005-03-02 | X44: 0.65 | Y44: 2005-03-02 | Z44: 1.505 | AA44: 2005-03-02 | AB44: 2.489 | AC44: 2005-03-02 | AD44: 4.833 | AE44: 2005-03-02 | AF44: 4.84 | AG44: 2005-03-02 | AH44: 4.843 | AI44: 2005-03-02 | AJ44: 4.65 | AK44: 2005-03-02 | AL44: 2.386 | AM44: 2005-03-02 | AN44: 3.064 | AO44: 2005-03-02 | AP44: 3.89 | AQ44: 2005-03-02 | AR44: 4.463 | AS44: 2005-03-02 | AT44: 3.0019 | AU44: 2005-03-02 | AV44: 2.8371 | AW44: 2005-03-02 | AX44: 2.7072 | AY44: 2005-03-02 | AZ44: 2.8958 | BA44: 2011-11-30 | BB44: 758 | BC44: 2011-11-30 | BD44: 530.75 | BE44: 2012-10-05 | BF44: 483.512 | BG44: 2007-11-26 | BH44: 80.869 | BI44: 2005-03-02 | BJ44: 24.625 | BK44: 2005-03-02 | BL44: 19 | BM44: 2005-03-02 | BN44: 5.52 | BO44: 2005-03-02 | BP44: -24.3 | BQ44: 2005-03-02 | BR44: 56.8 | BS44: 2005-03-02 | BT44: 32.7 | BU44: 2005-03-02 | BV44: 43.9 | BW44: 2005-03-02 | BX44: 94.3 | BY44: 2005-03-02 | BZ44: 1.3125 | CA44: 2005-03-02 | CB44: 1.912 | CC44: 2005-03-02 | CD44: 0.68641 | CE44: 2005-03-02 | CF44: 104.73 | CG44: 2005-03-02 | CH44: 1.24 | CI44: 2005-03-02 | CJ44: 105.12 | CK44: 2005-03-02 | CL44: 83.08 | CM44: 2005-03-02 | CN44: 0.7828 | CO44: 2005-03-02 | CP44: 6.9118 | CQ44: 2005-03-02 | CR44: 6.2623 | CS44: 2005-03-02 | CT44: 30.75 | CU44: 2005-03-02 | CV44: 2.6312 | CW44: 2010-10-20 | CX44: 0.9777 | CY44: 2005-03-02 | CZ44: 9282 | DA44: 2005-03-02 | DB44: 43.71 | DC44: 2005-03-02 | DD44: 27.7388 | DE44: 2005-03-02 | DF44: 5.9151 | DG44: 2005-03-04 | DH44: 11.94 | DI44: 2005-03-02 | DJ44: 12.86 | DK44: 2005-03-04 | DL44: 83 | DM44: 2005-03-03 | DN44: 1210 | DO44: 38413 | DP44: 1525 | DQ44: 2005-03-02 | DR44: 304.1 | DS44: 2005-03-02 | DT44: 31938
A45: 2005-03-03 | B45: 430.97 | C45: 2005-03-03 | D45: 3081 | E45: 2005-03-03 | F45: 3.5636 | G45: 2005-03-03 | H45: 3.9979 | I45: 2005-03-03 | J45: 4.3768 | K45: 2005-03-03 | L45: 4.7381 | M45: 2005-03-03 | N45: 2.466 | O45: 2005-03-03 | P45: 3.079 | Q45: 2005-03-03 | R45: 3.759 | S45: 2005-03-03 | T45: 4.257 | U45: 2005-03-03 | V45: 0.145 | W45: 2005-03-03 | X45: 0.664 | Y45: 2005-03-03 | Z45: 1.515 | AA45: 2005-03-03 | AB45: 2.5 | AC45: 2005-03-03 | AD45: 4.818 | AE45: 2005-03-03 | AF45: 4.823 | AG45: 2005-03-03 | AH45: 4.824 | AI45: 2005-03-03 | AJ45: 4.644 | AK45: 2005-03-03 | AL45: 2.365 | AM45: 2005-03-03 | AN45: 3.036 | AO45: 2005-03-03 | AP45: 3.871 | AQ45: 2005-03-03 | AR45: 4.458 | AS45: 2005-03-03 | AT45: 3.0143 | AU45: 2005-03-03 | AV45: 2.844 | AW45: 2005-03-03 | AX45: 2.6986 | AY45: 2005-03-03 | AZ45: 2.8979 | BA45: 2011-12-01 | BB45: 758.125 | BC45: 2011-12-01 | BD45: 527.25 | BE45: 2012-10-09 | BF45: 497.828 | BG45: 2007-11-27 | BH45: 84.241 | BI45: 2005-03-03 | BJ45: 23.708 | BK45: 2005-03-03 | BL45: 19.3 | BM45: 2005-03-03 | BN45: 4.25 | BO45: 2005-03-03 | BP45: -24.5 | BQ45: 2005-03-03 | BR45: 55.1 | BS45: 2005-03-03 | BT45: 35.5 | BU45: 2005-03-03 | BV45: 43.9 | BW45: 2005-03-03 | BX45: 94.4 | BY45: 2005-03-03 | BZ45: 1.3125 | CA45: 2005-03-03 | CB45: 1.9093 | CC45: 2005-03-03 | CD45: 0.68745 | CE45: 2005-03-03 | CF45: 105.1 | CG45: 2005-03-03 | CH45: 1.2444 | CI45: 2005-03-03 | CJ45: 105.05 | CK45: 2005-03-03 | CL45: 83.31 | CM45: 2005-03-03 | CN45: 0.7828 | CO45: 2005-03-03 | CP45: 6.889 | CQ45: 2005-03-03 | CR45: 6.2618 | CS45: 2005-03-03 | CT45: 30.858 | CU45: 2005-03-03 | CV45: 2.6872 | CW45: 2010-10-21 | CX45: 0.9805 | CY45: 2005-03-03 | CZ45: 9291 | DA45: 2005-03-03 | DB45: 43.715 | DC45: 2005-03-03 | DD45: 27.731 | DE45: 2005-03-03 | DF45: 5.9582 | DG45: 2005-03-07 | DH45: 12.26 | DI45: 2005-03-03 | DJ45: 12.57 | DK45: 2005-03-07 | DL45: 76.3 | DM45: 2005-03-04 | DN45: 1224.25 | DO45: 38414 | DP45: 1514 | DQ45: 2005-03-03 | DR45: 303.8 | DS45: 2005-03-03 | DT45: 31910
A46: 2005-03-04 | B46: 434.74 | C46: 2005-03-04 | D46: 3115 | E46: 2005-03-04 | F46: 3.556 | G46: 2005-03-04 | H46: 3.9559 | I46: 2005-03-04 | J46: 4.3076 | K46: 2005-03-04 | L46: 4.6489 | M46: 2005-03-04 | N46: 2.428 | O46: 2005-03-04 | P46: 3.007 | Q46: 2005-03-04 | R46: 3.696 | S46: 2005-03-04 | T46: 4.179 | U46: 2005-03-04 | V46: 0.14 | W46: 2005-03-04 | X46: 0.65 | Y46: 2005-03-04 | Z46: 1.529 | AA46: 2005-03-04 | AB46: 2.499 | AC46: 2005-03-04 | AD46: 4.794 | AE46: 2005-03-04 | AF46: 4.792 | AG46: 2005-03-04 | AH46: 4.788 | AI46: 2005-03-04 | AJ46: 4.618 | AK46: 2005-03-04 | AL46: 2.331 | AM46: 2005-03-04 | AN46: 2.972 | AO46: 2005-03-04 | AP46: 3.807 | AQ46: 2005-03-04 | AR46: 4.382 | AS46: 2005-03-04 | AT46: 3.0189 | AU46: 2005-03-04 | AV46: 2.8334 | AW46: 2005-03-04 | AX46: 2.6708 | AY46: 2005-03-04 | AZ46: 2.8805 | BA46: 2011-12-02 | BB46: 744.25 | BC46: 2011-12-02 | BD46: 502.875 | BE46: 2012-10-10 | BF46: 508.675 | BG46: 2007-11-28 | BH46: 81.201 | BI46: 2005-03-04 | BJ46: 24.656 | BK46: 2005-03-04 | BL46: 20.5 | BM46: 2005-03-04 | BN46: 6.24 | BO46: 2005-03-04 | BP46: -23.8 | BQ46: 2005-03-04 | BR46: 59.9 | BS46: 2005-03-04 | BT46: 34.8 | BU46: 2005-03-04 | BV46: 42.3 | BW46: 2005-03-04 | BX46: 94.7 | BY46: 2005-03-04 | BZ46: 1.3245 | CA46: 2005-03-04 | CB46: 1.9237 | CC46: 2005-03-04 | CD46: 0.68845 | CE46: 2005-03-04 | CF46: 104.58 | CG46: 2005-03-04 | CH46: 1.2303 | CI46: 2005-03-04 | CJ46: 104.98 | CK46: 2005-03-04 | CL46: 82.52 | CM46: 2005-03-04 | CN46: 0.7919 | CO46: 2005-03-04 | CP46: 6.8207 | CQ46: 2005-03-04 | CR46: 6.2124 | CS46: 2005-03-04 | CT46: 30.945 | CU46: 2005-03-04 | CV46: 2.6532 | CW46: 2010-10-22 | CX46: 0.9857 | CY46: 2005-03-04 | CZ46: 9346 | DA46: 2005-03-04 | DB46: 43.73 | DC46: 2005-03-04 | DD46: 27.6935 | DE46: 2005-03-04 | DF46: 5.8448 | DG46: 2005-03-08 | DH46: 12.4 | DI46: 2005-03-04 | DJ46: 11.93 | DK46: 2005-03-08 | DL46: 81.93 | DM46: 2005-03-07 | DN46: 1225.25 | DO46: 38415 | DP46: 1525 | DQ46: 2005-03-04 | DR46: 308.1 | DS46: 2005-03-04 | DT46: 32166
A47: 2005-03-07 | B47: 435.1 | C47: 2005-03-07 | D47: 3115 | E47: 2005-03-07 | F47: 3.5892 | G47: 2005-03-07 | H47: 3.9775 | I47: 2005-03-07 | J47: 4.3076 | K47: 2005-03-07 | L47: 4.6237 | M47: 2005-03-07 | N47: 2.398 | O47: 2005-03-07 | P47: 2.97 | Q47: 2005-03-07 | R47: 3.671 | S47: 2005-03-07 | T47: 4.151 | U47: 2005-03-07 | V47: 0.135 | W47: 2005-03-07 | X47: 0.635 | Y47: 2005-03-07 | Z47: 1.512 | AA47: 2005-03-07 | AB47: 2.475 | AC47: 2005-03-07 | AD47: 4.798 | AE47: 2005-03-07 | AF47: 4.795 | AG47: 2005-03-07 | AH47: 4.792 | AI47: 2005-03-07 | AJ47: 4.625 | AK47: 2005-03-07 | AL47: 2.312 | AM47: 2005-03-07 | AN47: 2.94 | AO47: 2005-03-07 | AP47: 3.782 | AQ47: 2005-03-07 | AR47: 4.354 | AS47: 2005-03-07 | AT47: 3.0234 | AU47: 2005-03-07 | AV47: 2.8421 | AW47: 2005-03-07 | AX47: 2.6864 | AY47: 2005-03-07 | AZ47: 2.9108 | BA47: 2011-12-05 | BB47: 716.417 | BC47: 2011-12-05 | BD47: 464 | BE47: 2012-10-11 | BF47: 502.871 | BG47: 2007-11-29 | BH47: 74.442 | BI47: 2005-03-07 | BJ47: 23.583 | BK47: 2005-03-07 | BL47: 19.4 | BM47: 2005-03-07 | BN47: 4.61 | BO47: 2005-03-07 | BP47: -23.2 | BQ47: 2005-03-07 | BR47: 53.6 | BS47: 2005-03-07 | BT47: 34.5 | BU47: 2005-03-07 | BV47: 40.2 | BW47: 2005-03-07 | BX47: 96.4 | BY47: 2005-03-07 | BZ47: 1.3215 | CA47: 2005-03-07 | CB47: 1.9161 | CC47: 2005-03-07 | CD47: 0.68966 | CE47: 2005-03-07 | CF47: 105.18 | CG47: 2005-03-07 | CH47: 1.229 | CI47: 2005-03-07 | CJ47: 105.11 | CK47: 2005-03-07 | CL47: 82.79 | CM47: 2005-03-07 | CN47: 0.7925 | CO47: 2005-03-07 | CP47: 6.8387 | CQ47: 2005-03-07 | CR47: 6.2111 | CS47: 2005-03-07 | CT47: 30.876 | CU47: 2005-03-07 | CV47: 2.6666 | CW47: 2010-10-25 | CX47: 0.9882 | CY47: 2005-03-07 | CZ47: 9330 | DA47: 2005-03-07 | DB47: 43.725 | DC47: 2005-03-07 | DD47: 27.6976 | DE47: 2005-03-07 | DF47: 5.8576 | DG47: 2005-03-09 | DH47: 12.7 | DI47: 2005-03-07 | DJ47: 11.72 | DK47: 2005-03-09 | DL47: 92.1 | DM47: 2005-03-08 | DN47: 1220.5 | DO47: 38418 | DP47: 1544.5 | DQ47: 2005-03-07 | DR47: 307.2 | DS47: 2005-03-07 | DT47: 32241
A48: 2005-03-08 | B48: 438.56 | C48: 2005-03-08 | D48: 3098 | E48: 2005-03-08 | F48: 3.6143 | G48: 2005-03-08 | H48: 4.049 | I48: 2005-03-08 | J48: 4.3911 | K48: 2005-03-08 | L48: 4.7073 | M48: 2005-03-08 | N48: 2.413 | O48: 2005-03-08 | P48: 3.004 | Q48: 2005-03-08 | R48: 3.712 | S48: 2005-03-08 | T48: 4.201 | U48: 2005-03-08 | V48: 0.134 | W48: 2005-03-08 | X48: 0.635 | Y48: 2005-03-08 | Z48: 1.505 | AA48: 2005-03-08 | AB48: 2.455 | AC48: 2005-03-08 | AD48: 4.841 | AE48: 2005-03-08 | AF48: 4.849 | AG48: 2005-03-08 | AH48: 4.842 | AI48: 2005-03-08 | AJ48: 4.669 | AK48: 2005-03-08 | AL48: 2.319 | AM48: 2005-03-08 | AN48: 2.964 | AO48: 2005-03-08 | AP48: 3.823 | AQ48: 2005-03-08 | AR48: 4.405 | AS48: 2005-03-08 | AT48: 3.0854 | AU48: 2005-03-08 | AV48: 2.8784 | AW48: 2005-03-08 | AX48: 2.7285 | AY48: 2005-03-08 | AZ48: 2.9555 | BA48: 2011-12-06 | BB48: 721.125 | BC48: 2011-12-06 | BD48: 472.5 | BE48: 2012-10-12 | BF48: 500.717 | BG48: 2007-11-30 | BH48: 66.568 | BI48: 2005-03-08 | BJ48: 24.375 | BK48: 2005-03-08 | BL48: 20.1 | BM48: 2005-03-08 | BN48: 4.29 | BO48: 2005-03-08 | BP48: -23.1 | BQ48: 2005-03-08 | BR48: 52.3 | BS48: 2005-03-08 | BT48: 36.7 | BU48: 2005-03-08 | BV48: 37.4 | BW48: 2005-03-08 | BX48: 98.1 | BY48: 2005-03-08 | BZ48: 1.3331 | CA48: 2005-03-08 | CB48: 1.928 | CC48: 2005-03-08 | CD48: 0.69145 | CE48: 2005-03-08 | CF48: 104.66 | CG48: 2005-03-08 | CH48: 1.2161 | CI48: 2005-03-08 | CJ48: 105.21 | CK48: 2005-03-08 | CL48: 81.98 | CM48: 2005-03-08 | CN48: 0.7976 | CO48: 2005-03-08 | CP48: 6.7765 | CQ48: 2005-03-08 | CR48: 6.144 | CS48: 2005-03-08 | CT48: 30.87 | CU48: 2005-03-08 | CV48: 2.6951 | CW48: 2010-10-26 | CX48: 0.9907 | CY48: 2005-03-08 | CZ48: 9385 | DA48: 2005-03-08 | DB48: 43.6988 | DC48: 2005-03-08 | DD48: 27.6975 | DE48: 2005-03-08 | DF48: 5.7825 | DG48: 2005-03-10 | DH48: 12.49 | DI48: 2005-03-08 | DJ48: 12 | DK48: 2005-03-10 | DL48: 91.14 | DM48: 2005-03-09 | DN48: 1207 | DO48: 38419 | DP48: 1532 | DQ48: 2005-03-08 | DR48: 306.5 | DS48: 2005-03-08 | DT48: 32082
A49: 2005-03-09 | B49: 442.01 | C49: 2005-03-09 | D49: 3076 | E49: 2005-03-09 | F49: 3.6562 | G49: 2005-03-09 | H49: 4.1425 | I49: 2005-03-09 | J49: 4.5196 | K49: 2005-03-09 | L49: 4.8305 | M49: 2005-03-09 | N49: 2.442 | O49: 2005-03-09 | P49: 3.055 | Q49: 2005-03-09 | R49: 3.764 | S49: 2005-03-09 | T49: 4.246 | U49: 2005-03-09 | V49: 0.134 | W49: 2005-03-09 | X49: 0.636 | Y49: 2005-03-09 | Z49: 1.502 | AA49: 2005-03-09 | AB49: 2.45 | AC49: 2005-03-09 | AD49: 4.844 | AE49: 2005-03-09 | AF49: 4.862 | AG49: 2005-03-09 | AH49: 4.864 | AI49: 2005-03-09 | AJ49: 4.687 | AK49: 2005-03-09 | AL49: 2.338 | AM49: 2005-03-09 | AN49: 3.011 | AO49: 2005-03-09 | AP49: 3.874 | AQ49: 2005-03-09 | AR49: 4.452 | AS49: 2005-03-09 | AT49: 3.1231 | AU49: 2005-03-09 | AV49: 2.8981 | AW49: 2005-03-09 | AX49: 2.7579 | AY49: 2005-03-09 | AZ49: 2.9842 | BA49: 2011-12-07 | BB49: 714.201 | BC49: 2011-12-07 | BD49: 480.667 | BE49: 2012-10-15 | BF49: 497.083 | BG49: 2007-12-03 | BH49: 68.299 | BI49: 2005-03-09 | BJ49: 24.719 | BK49: 2005-03-09 | BL49: 22.4 | BM49: 2005-03-09 | BN49: 7.92 | BO49: 2005-03-09 | BP49: -23 | BQ49: 2005-03-09 | BR49: 68.4 | BS49: 2005-03-09 | BT49: 36.9 | BU49: 2005-03-09 | BV49: 36.3 | BW49: 2005-03-09 | BX49: 97.8 | BY49: 2005-03-09 | BZ49: 1.3408 | CA49: 2005-03-09 | CB49: 1.9269 | CC49: 2005-03-09 | CD49: 0.6959 | CE49: 2005-03-09 | CF49: 103.75 | CG49: 2005-03-09 | CH49: 1.2017 | CI49: 2005-03-09 | CJ49: 105.34 | CK49: 2005-03-09 | CL49: 81.63 | CM49: 2005-03-09 | CN49: 0.7945 | CO49: 2005-03-09 | CP49: 6.7505 | CQ49: 2005-03-09 | CR49: 6.1146 | CS49: 2005-03-09 | CT49: 30.813 | CU49: 2005-03-09 | CV49: 2.6979 | CW49: 2010-10-27 | CX49: 0.9924 | CY49: 2005-03-09 | CZ49: 9340 | DA49: 2005-03-09 | DB49: 43.645 | DC49: 2005-03-09 | DD49: 27.5513 | DE49: 2005-03-09 | DF49: 5.7634 | DG49: 2005-03-11 | DH49: 12.8 | DI49: 2005-03-09 | DJ49: 12.53 | DK49: 2005-03-11 | DL49: 93.7 | DM49: 2005-03-10 | DN49: 1209.5 | DO49: 38420 | DP49: 1524 | DQ49: 2005-03-09 | DR49: 304.4 | DS49: 2005-03-09 | DT49: 31995
A50: 2005-03-10 | B50: 441.86 | C50: 2005-03-10 | D50: 3069 | E50: 2005-03-10 | F50: 3.6648 | G50: 2005-03-10 | H50: 4.1362 | I50: 2005-03-10 | J50: 4.4633 | K50: 2005-03-10 | L50: 4.7635 | M50: 2005-03-10 | N50: 2.446 | O50: 2005-03-10 | P50: 3.062 | Q50: 2005-03-10 | R50: 3.776 | S50: 2005-03-10 | T50: 4.265 | U50: 2005-03-10 | V50: 0.134 | W50: 2005-03-10 | X50: 0.62 | Y50: 2005-03-10 | Z50: 1.48 | AA50: 2005-03-10 | AB50: 2.429 | AC50: 2005-03-10 | AD50: 4.843 | AE50: 2005-03-10 | AF50: 4.866 | AG50: 2005-03-10 | AH50: 4.873 | AI50: 2005-03-10 | AJ50: 4.717 | AK50: 2005-03-10 | AL50: 2.343 | AM50: 2005-03-10 | AN50: 3.018 | AO50: 2005-03-10 | AP50: 3.888 | AQ50: 2005-03-10 | AR50: 4.477 | AS50: 2005-03-10 | AT50: 3.0947 | AU50: 2005-03-10 | AV50: 2.8852 | AW50: 2005-03-10 | AX50: 2.7138 | AY50: 2005-03-10 | AZ50: 2.9093 | BA50: 2011-12-08 | BB50: 761.25 | BC50: 2011-12-08 | BD50: 531 | BE50: 2012-10-16 | BF50: 475.57 | BG50: 2007-12-04 | BH50: 74.353 | BI50: 2005-03-10 | BJ50: 24.063 | BK50: 2005-03-10 | BL50: 22 | BM50: 2005-03-10 | BN50: 6.26 | BO50: 2005-03-10 | BP50: -22.6 | BQ50: 2005-03-10 | BR50: 67.2 | BS50: 2005-03-10 | BT50: 37.9 | BU50: 2005-03-10 | BV50: 36.9 | BW50: 2005-03-10 | BX50: 97.5 | BY50: 2005-03-10 | BZ50: 1.3417 | CA50: 2005-03-10 | CB50: 1.9227 | CC50: 2005-03-10 | CD50: 0.69775 | CE50: 2005-03-10 | CF50: 104.1 | CG50: 2005-03-10 | CH50: 1.2032 | CI50: 2005-03-10 | CJ50: 105.29 | CK50: 2005-03-10 | CL50: 81.59 | CM50: 2005-03-10 | CN50: 0.7895 | CO50: 2005-03-10 | CP50: 6.7624 | CQ50: 2005-03-10 | CR50: 6.0946 | CS50: 2005-03-10 | CT50: 30.788 | CU50: 2005-03-10 | CV50: 2.7231 | CW50: 2010-10-28 | CX50: 0.9912 | CY50: 2005-03-10 | CZ50: 9365 | DA50: 2005-03-10 | DB50: 43.595 | DC50: 2005-03-10 | DD50: 27.458 | DE50: 2005-03-10 | DF50: 5.85 | DG50: 2005-03-14 | DH50: 12.39 | DI50: 2005-03-10 | DJ50: 13.47 | DK50: 2005-03-14 | DL50: 93.2 | DM50: 2005-03-11 | DN50: 1201 | DO50: 38421 | DP50: 1524.5 | DQ50: 2005-03-10 | DR50: 305.8 | DS50: 2005-03-10 | DT50: 31712
A51: 2005-03-11 | B51: 446.15 | C51: 2005-03-11 | D51: 3054 | E51: 2005-03-11 | F51: 3.716 | G51: 2005-03-11 | H51: 4.2169 | I51: 2005-03-11 | J51: 4.5423 | K51: 2005-03-11 | L51: 4.8093 | M51: 2005-03-11 | N51: 2.435 | O51: 2005-03-11 | P51: 3.047 | Q51: 2005-03-11 | R51: 3.767 | S51: 2005-03-11 | T51: 4.271 | U51: 2005-03-11 | V51: 0.135 | W51: 2005-03-11 | X51: 0.675 | Y51: 2005-03-11 | Z51: 1.489 | AA51: 2005-03-11 | AB51: 2.439 | AC51: 2005-03-11 | AD51: 4.831 | AE51: 2005-03-11 | AF51: 4.849 | AG51: 2005-03-11 | AH51: 4.857 | AI51: 2005-03-11 | AJ51: 4.71 | AK51: 2005-03-11 | AL51: 2.329 | AM51: 2005-03-11 | AN51: 3.002 | AO51: 2005-03-11 | AP51: 3.879 | AQ51: 2005-03-11 | AR51: 4.484 | AS51: 2005-03-11 | AT51: 3.1001 | AU51: 2005-03-11 | AV51: 2.8784 | AW51: 2005-03-11 | AX51: 2.7331 | AY51: 2005-03-11 | AZ51: 2.9168 | BA51: 2011-12-09 | BB51: 751 | BC51: 2011-12-09 | BD51: 533 | BE51: 2012-10-17 | BF51: 459.958 | BG51: 2007-12-05 | BH51: 73.219 | BI51: 2005-03-11 | BJ51: 23.833 | BK51: 2005-03-11 | BL51: 20.9 | BM51: 2005-03-11 | BN51: 4.21 | BO51: 2005-03-11 | BP51: -29.1 | BQ51: 2005-03-11 | BR51: 65.8 | BS51: 2005-03-11 | BT51: 39.1 | BU51: 2005-03-11 | BV51: 38.5 | BW51: 2005-03-11 | BX51: 97.2 | BY51: 2005-03-11 | BZ51: 1.3462 | CA51: 2005-03-11 | CB51: 1.926 | CC51: 2005-03-11 | CD51: 0.69895 | CE51: 2005-03-11 | CF51: 103.94 | CG51: 2005-03-11 | CH51: 1.2039 | CI51: 2005-03-11 | CJ51: 105.39 | CK51: 2005-03-11 | CL51: 81.42 | CM51: 2005-03-11 | CN51: 0.7935 | CO51: 2005-03-11 | CP51: 6.7376 | CQ51: 2005-03-11 | CR51: 6.0708 | CS51: 2005-03-11 | CT51: 30.815 | CU51: 2005-03-11 | CV51: 2.7033 | CW51: 2010-10-29 | CX51: 0.9865 | CY51: 2005-03-11 | CZ51: 9365 | DA51: 2005-03-11 | DB51: 43.565 | DC51: 2005-03-11 | DD51: 27.4488 | DE51: 2005-03-11 | DF51: 5.8075 | DG51: 2005-03-15 | DH51: 13.15 | DI51: 2005-03-11 | DJ51: 12.96 | DK51: 2005-03-15 | DL51: 92 | DM51: 2005-03-14 | DN51: 1207.75 | DO51: 38422 | DP51: 1509 | DQ51: 2005-03-11 | DR51: 303.6 | DS51: 2005-03-11 | DT51: 31675
A52: 2005-03-14 | B52: 440.9 | C52: 2005-03-14 | D52: 3061 | E52: 2005-03-14 | F52: 3.7248 | G52: 2005-03-14 | H52: 4.1888 | I52: 2005-03-14 | J52: 4.508 | K52: 2005-03-14 | L52: 4.7793 | M52: 2005-03-14 | N52: 2.453 | O52: 2005-03-14 | P52: 3.067 | Q52: 2005-03-14 | R52: 3.77 | S52: 2005-03-14 | T52: 4.268 | U52: 2005-03-14 | V52: 0.135 | W52: 2005-03-14 | X52: 0.685 | Y52: 2005-03-14 | Z52: 1.51 | AA52: 2005-03-14 | AB52: 2.469 | AC52: 2005-03-14 | AD52: 4.823 | AE52: 2005-03-14 | AF52: 4.843 | AG52: 2005-03-14 | AH52: 4.856 | AI52: 2005-03-14 | AJ52: 4.695 | AK52: 2005-03-14 | AL52: 2.34 | AM52: 2005-03-14 | AN52: 3.022 | AO52: 2005-03-14 | AP52: 3.882 | AQ52: 2005-03-14 | AR52: 4.48 | AS52: 2005-03-14 | AT52: 3.1295 | AU52: 2005-03-14 | AV52: 2.8565 | AW52: 2005-03-14 | AX52: 2.7023 | AY52: 2005-03-14 | AZ52: 2.9006 | BA52: 2011-12-12 | BB52: 795.125 | BC52: 2011-12-12 | BD52: 565 | BE52: 2012-10-18 | BF52: 468.393 | BG52: 2007-12-06 | BH52: 71.835 | BI52: 2005-03-14 | BJ52: 22.875 | BK52: 2005-03-14 | BL52: 20.6 | BM52: 2005-03-14 | BN52: 4.35 | BO52: 2005-03-14 | BP52: -27.3 | BQ52: 2005-03-14 | BR52: 59.8 | BS52: 2005-03-14 | BT52: 38.5 | BU52: 2005-03-14 | BV52: 38.2 | BW52: 2005-03-14 | BX52: 96.3 | BY52: 2005-03-14 | BZ52: 1.3353 | CA52: 2005-03-14 | CB52: 1.9127 | CC52: 2005-03-14 | CD52: 0.69808 | CE52: 2005-03-14 | CF52: 105.12 | CG52: 2005-03-14 | CH52: 1.2075 | CI52: 2005-03-14 | CJ52: 105.18 | CK52: 2005-03-14 | CL52: 81.97 | CM52: 2005-03-14 | CN52: 0.787 | CO52: 2005-03-14 | CP52: 6.8115 | CQ52: 2005-03-14 | CR52: 6.1202 | CS52: 2005-03-14 | CT52: 30.827 | CU52: 2005-03-14 | CV52: 2.7648 | CW52: 2010-11-01 | CX52: 0.9837 | CY52: 2005-03-14 | CZ52: 9375 | DA52: 2005-03-14 | DB52: 43.5575 | DC52: 2005-03-14 | DD52: 27.4838 | DE52: 2005-03-14 | DF52: 5.9713 | DG52: 2005-03-16 | DH52: 13.49 | DI52: 2005-03-14 | DJ52: 13.35 | DK52: 2005-03-16 | DL52: 90.77 | DM52: 2005-03-15 | DN52: 1198.5 | DO52: 38425 | DP52: 1515.5 | DQ52: 2005-03-14 | DR52: 303.5 | DS52: 2005-03-14 | DT52: 31737
A53: 2005-03-15 | B53: 440.63 | C53: 2005-03-15 | D53: 3073 | E53: 2005-03-15 | F53: 3.7336 | G53: 2005-03-15 | H53: 4.2205 | I53: 2005-03-15 | J53: 4.5445 | K53: 2005-03-15 | L53: 4.8253 | M53: 2005-03-15 | N53: 2.432 | O53: 2005-03-15 | P53: 3.021 | Q53: 2005-03-15 | R53: 3.712 | S53: 2005-03-15 | T53: 4.205 | U53: 2005-03-15 | V53: 0.129 | W53: 2005-03-15 | X53: 0.66 | Y53: 2005-03-15 | Z53: 1.475 | AA53: 2005-03-15 | AB53: 2.435 | AC53: 2005-03-15 | AD53: 4.787 | AE53: 2005-03-15 | AF53: 4.793 | AG53: 2005-03-15 | AH53: 4.792 | AI53: 2005-03-15 | AJ53: 4.619 | AK53: 2005-03-15 | AL53: 2.322 | AM53: 2005-03-15 | AN53: 2.982 | AO53: 2005-03-15 | AP53: 3.821 | AQ53: 2005-03-15 | AR53: 4.416 | AS53: 2005-03-15 | AT53: 3.134 | AU53: 2005-03-15 | AV53: 2.8783 | AW53: 2005-03-15 | AX53: 2.7282 | AY53: 2005-03-15 | AZ53: 2.9035 | BA53: 2011-12-13 | BB53: 791 | BC53: 2011-12-13 | BD53: 560 | BE53: 2012-10-19 | BF53: 485.524 | BG53: 2007-12-07 | BH53: 68.781 | BI53: 2005-03-15 | BJ53: 23.167 | BK53: 2005-03-15 | BL53: 22 | BM53: 2005-03-15 | BN53: 4.17 | BO53: 2005-03-15 | BP53: -22.2 | BQ53: 2005-03-15 | BR53: 59.3 | BS53: 2005-03-15 | BT53: 37.8 | BU53: 2005-03-15 | BV53: 38.9 | BW53: 2005-03-15 | BX53: 95.9 | BY53: 2005-03-15 | BZ53: 1.3317 | CA53: 2005-03-15 | CB53: 1.9144 | CC53: 2005-03-15 | CD53: 0.69555 | CE53: 2005-03-15 | CF53: 104.36 | CG53: 2005-03-15 | CH53: 1.2059 | CI53: 2005-03-15 | CJ53: 105.09 | CK53: 2005-03-15 | CL53: 82.12 | CM53: 2005-03-15 | CN53: 0.7904 | CO53: 2005-03-15 | CP53: 6.8309 | CQ53: 2005-03-15 | CR53: 6.1422 | CS53: 2005-03-15 | CT53: 30.999 | CU53: 2005-03-15 | CV53: 2.7705 | CW53: 2010-11-02 | CX53: 0.9896 | CY53: 2005-03-15 | CZ53: 9355 | DA53: 2005-03-15 | DB53: 43.5875 | DC53: 2005-03-15 | DD53: 27.4663 | DE53: 2005-03-15 | DF53: 6.1078 | DG53: 2005-03-17 | DH53: 13.29 | DI53: 2005-03-15 | DJ53: 12.49 | DK53: 2005-03-17 | DL53: 92.12 | DM53: 2005-03-16 | DN53: 1187.75 | DO53: 38426 | DP53: 1504.5 | DQ53: 2005-03-15 | DR53: 304.5 | DS53: 2005-03-15 | DT53: 31959
A54: 2005-03-16 | B54: 443.41 | C54: 2005-03-16 | D54: 3028 | E54: 2005-03-16 | F54: 3.7089 | G54: 2005-03-16 | H54: 4.1714 | I54: 2005-03-16 | J54: 4.5062 | K54: 2005-03-16 | L54: 4.7941 | M54: 2005-03-16 | N54: 2.512 | O54: 2005-03-16 | P54: 3.02 | Q54: 2005-03-16 | R54: 3.668 | S54: 2005-03-16 | T54: 4.142 | U54: 2005-03-16 | V54: 0.125 | W54: 2005-03-16 | X54: 0.66 | Y54: 2005-03-16 | Z54: 1.475 | AA54: 2005-03-16 | AB54: 2.434 | AC54: 2005-03-16 | AD54: 4.767 | AE54: 2005-03-16 | AF54: 4.769 | AG54: 2005-03-16 | AH54: 4.774 | AI54: 2005-03-16 | AJ54: 4.618 | AK54: 2005-03-16 | AL54: 2.353 | AM54: 2005-03-16 | AN54: 2.985 | AO54: 2005-03-16 | AP54: 3.779 | AQ54: 2005-03-16 | AR54: 4.355 | AS54: 2005-03-16 | AT54: 3.1798 | AU54: 2005-03-16 | AV54: 2.8902 | AW54: 2005-03-16 | AX54: 2.7285 | AY54: 2005-03-16 | AZ54: 2.9169 | BA54: 2011-12-14 | BB54: 811.667 | BC54: 2011-12-14 | BD54: 583.833 | BE54: 2012-10-22 | BF54: 492.018 | BG54: 2007-12-10 | BH54: 68.49 | BI54: 2005-03-16 | BJ54: 23.5 | BK54: 2005-03-16 | BL54: 22.2 | BM54: 2005-03-16 | BN54: 3.46 | BO54: 2005-03-16 | BP54: -19.5 | BQ54: 2005-03-16 | BR54: 53.6 | BS54: 2005-03-16 | BT54: 39.5 | BU54: 2005-03-16 | BV54: 42 | BW54: 2005-03-16 | BX54: 95.5 | BY54: 2005-03-16 | BZ54: 1.3412 | CA54: 2005-03-16 | CB54: 1.9258 | CC54: 2005-03-16 | CD54: 0.69625 | CE54: 2005-03-16 | CF54: 104.24 | CG54: 2005-03-16 | CH54: 1.2035 | CI54: 2005-03-16 | CJ54: 105.13 | CK54: 2005-03-16 | CL54: 81.59 | CM54: 2005-03-16 | CN54: 0.7939 | CO54: 2005-03-16 | CP54: 6.7828 | CQ54: 2005-03-16 | CR54: 6.0939 | CS54: 2005-03-16 | CT54: 31.013 | CU54: 2005-03-16 | CV54: 2.746 | CW54: 2010-11-03 | CX54: 0.9869 | CY54: 2005-03-16 | CZ54: 9338 | DA54: 2005-03-16 | DB54: 43.6325 | DC54: 2005-03-16 | DD54: 27.4763 | DE54: 2005-03-16 | DF54: 6.0632 | DG54: 2005-03-18 | DH54: 13.14 | DI54: 2005-03-16 | DJ54: 14.57 | DK54: 2005-03-18 | DL54: 90.1 | DM54: 2005-03-17 | DN54: 1190 | DO54: 38427 | DP54: 1486.5 | DQ54: 2005-03-16 | DR54: 299.4 | DS54: 2005-03-16 | DT54: 31590
A55: 2005-03-17 | B55: 438.39 | C55: 2005-03-17 | D55: 3036 | E55: 2005-03-17 | F55: 3.6673 | G55: 2005-03-17 | H55: 4.1328 | I55: 2005-03-17 | J55: 4.464 | K55: 2005-03-17 | L55: 4.7662 | M55: 2005-03-17 | N55: 2.522 | O55: 2005-03-17 | P55: 3.03 | Q55: 2005-03-17 | R55: 3.681 | S55: 2005-03-17 | T55: 4.16 | U55: 2005-03-17 | V55: 0.115 | W55: 2005-03-17 | X55: 0.623 | Y55: 2005-03-17 | Z55: 1.425 | AA55: 2005-03-17 | AB55: 2.37 | AC55: 2005-03-17 | AD55: 4.764 | AE55: 2005-03-17 | AF55: 4.778 | AG55: 2005-03-17 | AH55: 4.803 | AI55: 2005-03-17 | AJ55: 4.673 | AK55: 2005-03-17 | AL55: 2.363 | AM55: 2005-03-17 | AN55: 2.996 | AO55: 2005-03-17 | AP55: 3.798 | AQ55: 2005-03-17 | AR55: 4.379 | AS55: 2005-03-17 | AT55: 3.159 | AU55: 2005-03-17 | AV55: 2.8933 | AW55: 2005-03-17 | AX55: 2.7474 | AY55: 2005-03-17 | AZ55: 2.9453 | BA55: 2011-12-15 | BB55: 790.583 | BC55: 2011-12-15 | BD55: 563.5 | BE55: 2012-10-23 | BF55: 502.89 | BG55: 2007-12-11 | BH55: 65.723 | BI55: 2005-03-17 | BJ55: 24.5 | BK55: 2005-03-17 | BL55: 21.2 | BM55: 2005-03-17 | BN55: 1.35 | BO55: 2005-03-17 | BP55: -24 | BQ55: 2005-03-17 | BR55: 53.3 | BS55: 2005-03-17 | BT55: 40 | BU55: 2005-03-17 | BV55: 42.7 | BW55: 2005-03-17 | BX55: 95 | BY55: 2005-03-17 | BZ55: 1.336 | CA55: 2005-03-17 | CB55: 1.9235 | CC55: 2005-03-17 | CD55: 0.69448 | CE55: 2005-03-17 | CF55: 104.62 | CG55: 2005-03-17 | CH55: 1.2037 | CI55: 2005-03-17 | CJ55: 105.08 | CK55: 2005-03-17 | CL55: 81.84 | CM55: 2005-03-17 | CN55: 0.7916 | CO55: 2005-03-17 | CP55: 6.8125 | CQ55: 2005-03-17 | CR55: 6.0926 | CS55: 2005-03-17 | CT55: 31.092 | CU55: 2005-03-17 | CV55: 2.7373 | CW55: 2010-11-04 | CX55: 0.9862 | CY55: 2005-03-17 | CZ55: 9363 | DA55: 2005-03-17 | DB55: 43.66 | DC55: 2005-03-17 | DD55: 27.4863 | DE55: 2005-03-17 | DF55: 6.0665 | DG55: 2005-03-21 | DH55: 13.61 | DI55: 2005-03-17 | DJ55: 13.46 | DK55: 2005-03-21 | DL55: 91.3 | DM55: 2005-03-18 | DN55: 1190.7 | DO55: 38428 | DP55: 1489.5 | DQ55: 2005-03-17 | DR55: 299.2 | DS55: 2005-03-17 | DT55: 31663
A56: 2005-03-18 | B56: 439.09 | C56: 2005-03-18 | D56: 3057 | E56: 2005-03-18 | F56: 3.6937 | G56: 2005-03-18 | H56: 4.1646 | I56: 2005-03-18 | J56: 4.5066 | K56: 2005-03-18 | L56: 4.81 | M56: 2005-03-18 | N56: 2.538 | O56: 2005-03-18 | P56: 3.061 | Q56: 2005-03-18 | R56: 3.703 | S56: 2005-03-18 | T56: 4.176 | U56: 2005-03-18 | V56: 0.119 | W56: 2005-03-18 | X56: 0.63 | Y56: 2005-03-18 | Z56: 1.43 | AA56: 2005-03-18 | AB56: 2.37 | AC56: 2005-03-18 | AD56: 4.778 | AE56: 2005-03-18 | AF56: 4.796 | AG56: 2005-03-18 | AH56: 4.827 | AI56: 2005-03-18 | AJ56: 4.689 | AK56: 2005-03-18 | AL56: 2.372 | AM56: 2005-03-18 | AN56: 3.028 | AO56: 2005-03-18 | AP56: 3.829 | AQ56: 2005-03-18 | AR56: 4.406 | AS56: 2005-03-18 | AT56: 3.1812 | AU56: 2005-03-18 | AV56: 2.9051 | AW56: 2005-03-18 | AX56: 2.755 | AY56: 2005-03-18 | AZ56: 2.9531 | BA56: 2011-12-16 | BB56: 801 | BC56: 2011-12-16 | BD56: 560 | BE56: 2012-10-24 | BF56: 516.322 | BG56: 2007-12-12 | BH56: 65.746 | BI56: 2005-03-18 | BJ56: 24.583 | BK56: 2005-03-18 | BL56: 20.8 | BM56: 2005-03-18 | BN56: 0.44 | BO56: 2005-03-18 | BP56: -25.2 | BQ56: 2005-03-18 | BR56: 53 | BS56: 2005-03-18 | BT56: 39.9 | BU56: 2005-03-18 | BV56: 42.6 | BW56: 2005-03-18 | BX56: 94.5 | BY56: 2005-03-18 | BZ56: 1.3316 | CA56: 2005-03-18 | CB56: 1.9203 | CC56: 2005-03-18 | CD56: 0.69338 | CE56: 2005-03-18 | CF56: 104.76 | CG56: 2005-03-18 | CH56: 1.2007 | CI56: 2005-03-18 | CJ56: 104.98 | CK56: 2005-03-18 | CL56: 82.05 | CM56: 2005-03-18 | CN56: 0.7945 | CO56: 2005-03-18 | CP56: 6.8527 | CQ56: 2005-03-18 | CR56: 6.11 | CS56: 2005-03-18 | CT56: 31.144 | CU56: 2005-03-18 | CV56: 2.718 | CW56: 2010-11-05 | CX56: 0.9881 | CY56: 2005-03-18 | CZ56: 9363 | DA56: 2005-03-18 | DB56: 43.655 | DC56: 2005-03-18 | DD56: 27.515 | DE56: 2005-03-18 | DF56: 6.0363 | DG56: 2005-03-22 | DH56: 14.27 | DI56: 2005-03-18 | DJ56: 12.83 | DK56: 2005-03-22 | DL56: 90.7 | DM56: 2005-03-21 | DN56: 1186.25 | DO56: 38429 | DP56: 1486.9 | DQ56: 2005-03-18 | DR56: 300.43 | DS56: 2005-03-18 | DT56: 31630
A57: 2005-03-21 | B57: 430.59 | C57: 2005-03-21 | D57: 2999 | E57: 2005-03-21 | F57: 3.711 | G57: 2005-03-21 | H57: 4.1717 | I57: 2005-03-21 | J57: 4.5229 | K57: 2005-03-21 | L57: 4.8351 | M57: 2005-03-21 | N57: 2.581 | O57: 2005-03-21 | P57: 3.102 | Q57: 2005-03-21 | R57: 3.731 | S57: 2005-03-21 | T57: 4.188 | U57: 2005-03-21 | V57: 0.12 | W57: 2005-03-21 | X57: 0.63 | Y57: 2005-03-21 | Z57: 1.43 | AA57: 2005-03-21 | AB57: 2.37 | AC57: 2005-03-21 | AD57: 4.779 | AE57: 2005-03-21 | AF57: 4.8 | AG57: 2005-03-21 | AH57: 4.84 | AI57: 2005-03-21 | AJ57: 4.696 | AK57: 2005-03-21 | AL57: 2.404 | AM57: 2005-03-21 | AN57: 3.071 | AO57: 2005-03-21 | AP57: 3.857 | AQ57: 2005-03-21 | AR57: 4.423 | AS57: 2005-03-21 | AT57: 3.186 | AU57: 2005-03-21 | AV57: 2.8862 | AW57: 2005-03-21 | AX57: 2.7415 | AY57: 2005-03-21 | AZ57: 2.9621 | BA57: 2011-12-19 | BB57: 802.5 | BC57: 2011-12-19 | BD57: 559.5 | BE57: 2012-10-25 | BF57: 514.253 | BG57: 2007-12-13 | BH57: 64.927 | BI57: 2005-03-22 | BJ57: 26.625 | BK57: 2005-03-21 | BL57: 21.6 | BM57: 2005-03-21 | BN57: 0.06 | BO57: 2005-03-21 | BP57: -24.6 | BQ57: 2005-03-21 | BR57: 52.2 | BS57: 2005-03-21 | BT57: 42.4 | BU57: 2005-03-21 | BV57: 46.7 | BW57: 2005-03-21 | BX57: 93.1 | BY57: 2005-03-21 | BZ57: 1.3158 | CA57: 2005-03-21 | CB57: 1.8968 | CC57: 2005-03-21 | CD57: 0.69358 | CE57: 2005-03-21 | CF57: 105.24 | CG57: 2005-03-21 | CH57: 1.2106 | CI57: 2005-03-21 | CJ57: 104.78 | CK57: 2005-03-21 | CL57: 82.97 | CM57: 2005-03-21 | CN57: 0.7858 | CO57: 2005-03-21 | CP57: 6.9396 | CQ57: 2005-03-21 | CR57: 6.1911 | CS57: 2005-03-21 | CT57: 31.289 | CU57: 2005-03-21 | CV57: 2.7233 | CW57: 2010-11-08 | CX57: 0.9918 | CY57: 2005-03-21 | CZ57: 9415 | DA57: 2005-03-21 | DB57: 43.7275 | DC57: 2005-03-21 | DD57: 27.5713 | DE57: 2005-03-21 | DF57: 6.101 | DG57: 2005-03-23 | DH57: 14.06 | DI57: 2005-03-21 | DJ57: 13.39 | DK57: 2005-03-23 | DL57: 89 | DM57: 2005-03-22 | DN57: 1174.25 | DO57: 38432 | DP57: 1488.5 | DQ57: 2005-03-21 | DR57: 294.2 | DS57: 2005-03-21 | DT57: 31455
A58: 2005-03-22 | B58: 431.25 | C58: 2005-03-22 | D58: 3016 | E58: 2005-03-22 | F58: 3.8216 | G58: 2005-03-22 | H58: 4.3096 | I58: 2005-03-22 | J58: 4.6411 | K58: 2005-03-22 | L58: 4.9051 | M58: 2005-03-22 | N58: 2.558 | O58: 2005-03-22 | P58: 3.062 | Q58: 2005-03-22 | R58: 3.687 | S58: 2005-03-22 | T58: 4.144 | U58: 2005-03-22 | V58: 0.12 | W58: 2005-03-22 | X58: 0.63 | Y58: 2005-03-22 | Z58: 1.43 | AA58: 2005-03-22 | AB58: 2.37 | AC58: 2005-03-22 | AD58: 4.735 | AE58: 2005-03-22 | AF58: 4.746 | AG58: 2005-03-22 | AH58: 4.784 | AI58: 2005-03-22 | AJ58: 4.649 | AK58: 2005-03-22 | AL58: 2.566 | AM58: 2005-03-22 | AN58: 3.153 | AO58: 2005-03-22 | AP58: 3.82 | AQ58: 2005-03-22 | AR58: 4.386 | AS58: 2005-03-22 | AT58: 3.1748 | AU58: 2005-03-22 | AV58: 2.9137 | AW58: 2005-03-22 | AX58: 2.7839 | AY58: 2005-03-22 | AZ58: 2.9392 | BA58: 2011-12-20 | BB58: 772.5 | BC58: 2011-12-20 | BD58: 540 | BE58: 2012-10-26 | BF58: 515.547 | BG58: 2007-12-14 | BH58: 64.798 | BI58: 2005-03-23 | BJ58: 28.5 | BK58: 2005-03-22 | BL58: 22.4 | BM58: 2005-03-22 | BN58: 0.68 | BO58: 2005-03-22 | BP58: -24 | BQ58: 2005-03-22 | BR58: 50.4 | BS58: 2005-03-22 | BT58: 42.6 | BU58: 2005-03-22 | BV58: 46.5 | BW58: 2005-03-22 | BX58: 92.6 | BY58: 2005-03-22 | BZ58: 1.3196 | CA58: 2005-03-22 | CB58: 1.8984 | CC58: 2005-03-22 | CD58: 0.69512 | CE58: 2005-03-22 | CF58: 105.09 | CG58: 2005-03-22 | CH58: 1.2015 | CI58: 2005-03-22 | CJ58: 104.57 | CK58: 2005-03-22 | CL58: 83.36 | CM58: 2005-03-22 | CN58: 0.7912 | CO58: 2005-03-22 | CP58: 6.9184 | CQ58: 2005-03-22 | CR58: 6.196 | CS58: 2005-03-22 | CT58: 31.385 | CU58: 2005-03-22 | CV58: 2.7055 | CW58: 2010-11-09 | CX58: 0.9938 | CY58: 2005-03-22 | CZ58: 9406 | DA58: 2005-03-22 | DB58: 43.7325 | DC58: 2005-03-22 | DD58: 27.575 | DE58: 2005-03-22 | DF58: 6.0725 | DG58: 2005-03-24 | DH58: 13.42 | DI58: 2005-03-22 | DJ58: 13.36 | DK58: 2005-03-24 | DL58: 88.37 | DM58: 2005-03-23 | DN58: 1174.5 | DO58: 38433 | DP58: 1474.5 | DQ58: 2005-03-22 | DR58: 295.2 | DS58: 2005-03-22 | DT58: 31513
A59: 2005-03-23 | B59: 425.91 | C59: 2005-03-23 | D59: 2998 | E59: 2005-03-23 | F59: 3.8136 | G59: 2005-03-23 | H59: 4.2708 | I59: 2005-03-23 | J59: 4.5841 | K59: 2005-03-23 | L59: 4.8502 | M59: 2005-03-23 | N59: 2.597 | O59: 2005-03-23 | P59: 3.112 | Q59: 2005-03-23 | R59: 3.738 | S59: 2005-03-23 | T59: 4.183 | U59: 2005-03-23 | V59: 0.12 | W59: 2005-03-23 | X59: 0.619 | Y59: 2005-03-23 | Z59: 1.415 | AA59: 2005-03-23 | AB59: 2.36 | AC59: 2005-03-23 | AD59: 4.778 | AE59: 2005-03-23 | AF59: 4.801 | AG59: 2005-03-23 | AH59: 4.841 | AI59: 2005-03-23 | AJ59: 4.691 | AK59: 2005-03-23 | AL59: 2.61 | AM59: 2005-03-23 | AN59: 3.204 | AO59: 2005-03-23 | AP59: 3.872 | AQ59: 2005-03-23 | AR59: 4.425 | AS59: 2005-03-23 | AT59: 3.1288 | AU59: 2005-03-23 | AV59: 2.8386 | AW59: 2005-03-23 | AX59: 2.7002 | AY59: 2005-03-23 | AZ59: 2.9122 | BA59: 2011-12-21 | BB59: 775 | BC59: 2011-12-21 | BD59: 525.5 | BE59: 2012-10-29 | BF59: 530.944 | BG59: 2007-12-17 | BH59: 68.495 | BI59: 2005-03-24 | BJ59: 28.167 | BK59: 2005-03-23 | BL59: 18.6 | BM59: 2005-03-23 | BN59: -4.37 | BO59: 2005-03-23 | BP59: -20.5 | BQ59: 2005-03-23 | BR59: 24 | BS59: 2005-03-23 | BT59: 42.9 | BU59: 2005-03-23 | BV59: 46.4 | BW59: 2005-03-23 | BX59: 92 | BY59: 2005-03-23 | BZ59: 1.2992 | CA59: 2005-03-23 | CB59: 1.8705 | CC59: 2005-03-23 | CD59: 0.6945 | CE59: 2005-03-23 | CF59: 106.09 | CG59: 2005-03-23 | CH59: 1.2139 | CI59: 2005-03-23 | CJ59: 104.6 | CK59: 2005-03-23 | CL59: 83.94 | CM59: 2005-03-23 | CN59: 0.7725 | CO59: 2005-03-23 | CP59: 7.0264 | CQ59: 2005-03-23 | CR59: 6.3083 | CS59: 2005-03-23 | CT59: 31.365 | CU59: 2005-03-23 | CV59: 2.7392 | CW59: 2010-11-10 | CX59: 0.9961 | CY59: 2005-03-23 | CZ59: 9413 | DA59: 2005-03-23 | DB59: 43.78 | DC59: 2005-03-23 | DD59: 27.695 | DE59: 2005-03-23 | DF59: 6.2128 | DG59: 2005-03-28 | DH59: 13.75 | DI59: 2005-03-23 | DJ59: 13.47 | DK59: 2005-03-28 | DL59: 88.91 | DM59: 2005-03-24 | DN59: 1175.5 | DO59: 38434 | DP59: 1479 | DQ59: 2005-03-23 | DR59: 294.1 | DS59: 2005-03-23 | DT59: 31441
A60: 2005-03-24 | B60: 425.47 | C60: 2005-03-24 | D60: 3026 | E60: 2005-03-24 | F60: 3.8501 | G60: 2005-03-24 | H60: 4.3174 | I60: 2005-03-24 | J60: 4.5968 | K60: 2005-03-24 | L60: 4.844 | M60: 2005-03-24 | N60: 2.589 | O60: 2005-03-24 | P60: 3.087 | Q60: 2005-03-24 | R60: 3.705 | S60: 2005-03-24 | T60: 4.163 | U60: 2005-03-24 | V60: 0.115 | W60: 2005-03-24 | X60: 0.599 | Y60: 2005-03-24 | Z60: 1.39 | AA60: 2005-03-24 | AB60: 2.338 | AC60: 2005-03-24 | AD60: 4.773 | AE60: 2005-03-24 | AF60: 4.786 | AG60: 2005-03-24 | AH60: 4.814 | AI60: 2005-03-24 | AJ60: 4.663 | AK60: 2005-03-24 | AL60: 2.602 | AM60: 2005-03-24 | AN60: 3.18 | AO60: 2005-03-24 | AP60: 3.842 | AQ60: 2005-03-24 | AR60: 4.404 | AS60: 2005-03-24 | AT60: 3.1388 | AU60: 2005-03-24 | AV60: 2.8645 | AW60: 2005-03-24 | AX60: 2.7055 | AY60: 2005-03-24 | AZ60: 2.9039 | BA60: 2011-12-22 | BB60: 761 | BC60: 2011-12-22 | BD60: 506 | BE60: 2012-10-31 | BF60: 521.307 | BG60: 2007-12-18 | BH60: 68.274 | BI60: 2005-03-25 | BJ60: 27.833 | BK60: 2005-03-24 | BL60: 18.6 | BM60: 2005-03-24 | BN60: -3.8 | BO60: 2005-03-24 | BP60: -17.2 | BQ60: 2005-03-24 | BR60: 17.5 | BS60: 2005-03-24 | BT60: 42.7 | BU60: 2005-03-24 | BV60: 46.3 | BW60: 2005-03-24 | BX60: 91.5 | BY60: 2005-03-24 | BZ60: 1.2954 | CA60: 2005-03-24 | CB60: 1.8699 | CC60: 2005-03-24 | CD60: 0.6928 | CE60: 2005-03-24 | CF60: 106.32 | CG60: 2005-03-24 | CH60: 1.217 | CI60: 2005-03-24 | CJ60: 104.4 | CK60: 2005-03-24 | CL60: 84.13 | CM60: 2005-03-24 | CN60: 0.7719 | CO60: 2005-03-24 | CP60: 7.0421 | CQ60: 2005-03-24 | CR60: 6.3335 | CS60: 2005-03-24 | CT60: 31.459 | CU60: 2005-03-24 | CV60: 2.7378 | CW60: 2010-11-11 | CX60: 0.9969 | CY60: 2005-03-24 | CZ60: 9416 | DA60: 2005-03-24 | DB60: 43.7563 | DC60: 2005-03-24 | DD60: 27.672 | DE60: 2005-03-24 | DF60: 6.236 | DG60: 2005-03-29 | DH60: 14.49 | DI60: 2005-03-24 | DJ60: 12.48 | DK60: 2005-03-29 | DL60: 89.59 | DM60: 2005-03-28 | DN60: 1177.5 | DO60: 38435 | DP60: 1480 | DQ60: 2005-03-24 | DR60: 296.8 | DS60: 2005-03-24 | DT60: 31639
A61: 2005-03-25 | B61: 424.88 | C61: 2005-03-29 | D61: 3017 | E61: 2005-03-25 | F61: 3.8507 | G61: 2005-03-25 | H61: 4.3069 | I61: 2005-03-25 | J61: 4.5929 | K61: 2005-03-25 | L61: 4.844 | M61: 2005-03-25 | N61: 2.59 | O61: 2005-03-25 | P61: 3.092 | Q61: 2005-03-25 | R61: 3.71 | S61: 2005-03-25 | T61: 4.166 | U61: 2005-03-25 | V61: 0.125 | W61: 2005-03-25 | X61: 0.581 | Y61: 2005-03-25 | Z61: 1.377 | AA61: 2005-03-25 | AB61: 2.325 | AC61: 2005-03-25 | AD61: 4.773 | AE61: 2005-03-25 | AF61: 4.787 | AG61: 2005-03-25 | AH61: 4.815 | AI61: 2005-03-25 | AJ61: 4.664 | AK61: 2005-03-25 | AL61: 2.601 | AM61: 2005-03-25 | AN61: 3.185 | AO61: 2005-03-25 | AP61: 3.846 | AQ61: 2005-03-25 | AR61: 4.407 | AS61: 2005-03-25 | AT61: 3.1388 | AU61: 2005-03-25 | AV61: 2.8473 | AW61: 2005-03-25 | AX61: 2.7015 | AY61: 2005-03-25 | AZ61: 2.9026 | BA61: 2011-12-23 | BB61: 754 | BC61: 2011-12-23 | BD61: 500 | BE61: 2012-11-01 | BF61: 503.647 | BG61: 2007-12-19 | BH61: 67.554 | BI61: 2005-03-28 | BJ61: 27.875 | BK61: 2005-03-28 | BL61: 14.1 | BM61: 2005-03-25 | BN61: -3.65 | BO61: 2005-03-25 | BP61: -16.8 | BQ61: 2005-03-25 | BR61: 17.6 | BS61: 2005-03-25 | BT61: 42.5 | BU61: 2005-03-25 | BV61: 46.3 | BW61: 2005-03-25 | BX61: 91 | BY61: 2005-03-25 | BZ61: 1.2953 | CA61: 2005-03-25 | CB61: 1.8687 | CC61: 2005-03-25 | CD61: 0.6932 | CE61: 2005-03-25 | CF61: 106.4 | CG61: 2005-03-25 | CH61: 1.2188 | CI61: 2005-03-25 | CJ61: 104.38 | CK61: 2005-03-25 | CL61: 84.15 | CM61: 2005-03-25 | CN61: 0.7713 | CO61: 2005-03-25 | CP61: 7.0447 | CQ61: 2005-03-25 | CR61: 6.3368 | CS61: 2005-03-25 | CT61: 31.496 | CU61: 2005-03-25 | CV61: 2.7395 | CW61: 2010-11-12 | CX61: 0.9967 | CY61: 2005-03-25 | CZ61: 9418 | DA61: 2005-03-25 | DB61: 43.7562 | DC61: 2005-03-25 | DD61: 27.7035 | DE61: 2005-03-25 | DF61: 6.2121 | DG61: 2005-03-30 | DH61: 13.64 | DI61: 2005-03-25 | DJ61: 12.48 | DK61: 2005-03-30 | DL61: 91 | DM61: 2005-03-29 | DN61: 1170 | DO61: 38439 | DP61: 1481 | DQ61: 2005-03-29 | DR61: 296.2 | DS61: 2005-03-29 | DT61: 31703
A62: 2005-03-28 | B62: 426.1 | C62: 2005-03-30 | D62: 3027 | E62: 2005-03-28 | F62: 3.8685 | G62: 2005-03-28 | H62: 4.3319 | I62: 2005-03-28 | J62: 4.64 | K62: 2005-03-28 | L62: 4.8886 | M62: 2005-03-28 | N62: 2.592 | O62: 2005-03-28 | P62: 3.091 | Q62: 2005-03-28 | R62: 3.711 | S62: 2005-03-28 | T62: 4.168 | U62: 2005-03-28 | V62: 0.125 | W62: 2005-03-28 | X62: 0.579 | Y62: 2005-03-28 | Z62: 1.375 | AA62: 2005-03-28 | AB62: 2.325 | AC62: 2005-03-28 | AD62: 4.774 | AE62: 2005-03-28 | AF62: 4.788 | AG62: 2005-03-28 | AH62: 4.815 | AI62: 2005-03-28 | AJ62: 4.665 | AK62: 2005-03-28 | AL62: 2.601 | AM62: 2005-03-28 | AN62: 3.184 | AO62: 2005-03-28 | AP62: 3.848 | AQ62: 2005-03-28 | AR62: 4.409 | AS62: 2005-03-28 | AT62: 3.135 | AU62: 2005-03-28 | AV62: 2.8556 | AW62: 2005-03-28 | AX62: 2.7094 | AY62: 2005-03-28 | AZ62: 2.9251 | BA62: 2011-12-27 | BB62: 754 | BC62: 2011-12-28 | BD62: 506.5 | BE62: 2012-11-02 | BF62: 511.703 | BG62: 2007-12-20 | BH62: 67.767 | BI62: 2005-03-29 | BJ62: 27.833 | BK62: 2005-03-29 | BL62: 10.1 | BM62: 2005-03-28 | BN62: -3.16 | BO62: 2005-03-28 | BP62: -15.4 | BQ62: 2005-03-28 | BR62: 18.4 | BS62: 2005-03-28 | BT62: 30.3 | BU62: 2005-03-28 | BV62: 27.4 | BW62: 2005-03-28 | BX62: 89.2 | BY62: 2005-03-28 | BZ62: 1.2884 | CA62: 2005-03-28 | CB62: 1.866 | CC62: 2005-03-28 | CD62: 0.69045 | CE62: 2005-03-28 | CF62: 107.3 | CG62: 2005-03-28 | CH62: 1.2231 | CI62: 2005-03-28 | CJ62: 104.11 | CK62: 2005-03-28 | CL62: 84.51 | CM62: 2005-03-28 | CN62: 0.7692 | CO62: 2005-03-28 | CP62: 7.0727 | CQ62: 2005-03-28 | CR62: 6.3842 | CS62: 2005-03-28 | CT62: 31.672 | CU62: 2005-03-28 | CV62: 2.7371 | CW62: 2010-11-15 | CX62: 0.9968 | CY62: 2005-03-28 | CZ62: 9455 | DA62: 2005-03-28 | DB62: 43.7888 | DC62: 2005-03-28 | DD62: 27.825 | DE62: 2005-03-28 | DF62: 6.3431 | DG62: 2005-03-31 | DH62: 14.02 | DI62: 2005-03-29 | DJ62: 13.06 | DK62: 2005-03-31 | DL62: 87.7 | DM62: 2005-03-30 | DN62: 1185.5 | DO62: 38440 | DP62: 1477 | DQ62: 2005-03-30 | DR62: 296.3 | DS62: 2005-03-30 | DT62: 31745
A63: 2005-03-29 | B63: 426.45 | C63: 2005-03-31 | D63: 3003 | E63: 2005-03-29 | F63: 3.8342 | G63: 2005-03-29 | H63: 4.2679 | I63: 2005-03-29 | J63: 4.5726 | K63: 2005-03-29 | L63: 4.8409 | M63: 2005-03-29 | N63: 2.588 | O63: 2005-03-29 | P63: 3.088 | Q63: 2005-03-29 | R63: 3.703 | S63: 2005-03-29 | T63: 4.16 | U63: 2005-03-29 | V63: 0.12 | W63: 2005-03-29 | X63: 0.56 | Y63: 2005-03-29 | Z63: 1.355 | AA63: 2005-03-29 | AB63: 2.31 | AC63: 2005-03-29 | AD63: 4.756 | AE63: 2005-03-29 | AF63: 4.763 | AG63: 2005-03-29 | AH63: 4.787 | AI63: 2005-03-29 | AJ63: 4.637 | AK63: 2005-03-29 | AL63: 2.603 | AM63: 2005-03-29 | AN63: 3.18 | AO63: 2005-03-29 | AP63: 3.841 | AQ63: 2005-03-29 | AR63: 4.399 | AS63: 2005-03-29 | AT63: 3.1818 | AU63: 2005-03-29 | AV63: 2.8209 | AW63: 2005-03-29 | AX63: 2.6758 | AY63: 2005-03-29 | AZ63: 2.906 | BA63: 2011-12-28 | BB63: 755 | BC63: 2011-12-29 | BD63: 517 | BE63: 2012-11-05 | BF63: 511.505 | BG63: 2007-12-21 | BH63: 67.835 | BI63: 2005-03-30 | BJ63: 27.833 | BK63: 2005-03-30 | BL63: 7.1 | BM63: 2005-03-29 | BN63: -7.96 | BO63: 2005-03-29 | BP63: -15.7 | BQ63: 2005-03-29 | BR63: 2.5 | BS63: 2005-03-29 | BT63: 28.6 | BU63: 2005-03-29 | BV63: 27.5 | BW63: 2005-03-29 | BX63: 88.6 | BY63: 2005-03-29 | BZ63: 1.2914 | CA63: 2005-03-29 | CB63: 1.8749 | CC63: 2005-03-29 | CD63: 0.68863 | CE63: 2005-03-29 | CF63: 107.58 | CG63: 2005-03-29 | CH63: 1.2122 | CI63: 2005-03-29 | CJ63: 103.74 | CK63: 2005-03-29 | CL63: 84.32 | CM63: 2005-03-29 | CN63: 0.7715 | CO63: 2005-03-29 | CP63: 7.0709 | CQ63: 2005-03-29 | CR63: 6.3557 | CS63: 2005-03-29 | CT63: 31.772 | CU63: 2005-03-29 | CV63: 2.7008 | CW63: 2010-11-16 | CX63: 0.9959 | CY63: 2005-03-29 | CZ63: 9524 | DA63: 2005-03-29 | DB63: 43.82 | DC63: 2005-03-29 | DD63: 27.8638 | DE63: 2005-03-29 | DF63: 6.34 | DG63: 2005-04-01 | DH63: 14.09 | DI63: 2005-03-30 | DJ63: 13.27 | DK63: 2005-04-01 | DL63: 75.16 | DM63: 2005-03-31 | DN63: 1184 | DO63: 38441 | DP63: 1499 | DQ63: 2005-03-31 | DR63: 295.4 | DS63: 2005-03-31 | DT63: 31858
A64: 2005-03-30 | B64: 427.95 | C64: 2005-04-01 | D64: 2995 | E64: 2005-03-30 | F64: 3.8262 | G64: 2005-03-30 | H64: 4.2431 | I64: 2005-03-30 | J64: 4.5462 | K64: 2005-03-30 | L64: 4.7976 | M64: 2005-03-30 | N64: 2.55 | O64: 2005-03-30 | P64: 3.045 | Q64: 2005-03-30 | R64: 3.672 | S64: 2005-03-30 | T64: 4.139 | U64: 2005-03-30 | V64: 0.121 | W64: 2005-03-30 | X64: 0.564 | Y64: 2005-03-30 | Z64: 1.359 | AA64: 2005-03-30 | AB64: 2.314 | AC64: 2005-03-30 | AD64: 4.716 | AE64: 2005-03-30 | AF64: 4.72 | AG64: 2005-03-30 | AH64: 4.737 | AI64: 2005-03-30 | AJ64: 4.596 | AK64: 2005-03-30 | AL64: 2.567 | AM64: 2005-03-30 | AN64: 3.136 | AO64: 2005-03-30 | AP64: 3.81 | AQ64: 2005-03-30 | AR64: 4.377 | AS64: 2005-03-30 | AT64: 3.1779 | AU64: 2005-03-30 | AV64: 2.8351 | AW64: 2005-03-30 | AX64: 2.6921 | AY64: 2005-03-30 | AZ64: 2.9056 | BA64: 2011-12-29 | BB64: 760 | BC64: 2011-12-30 | BD64: 517 | BE64: 2012-11-06 | BF64: 502.552 | BG64: 2008-01-02 | BH64: 67.165 | BI64: 2005-03-31 | BJ64: 27.833 | BK64: 2005-03-31 | BL64: 8.8 | BM64: 2005-03-30 | BN64: -12.91 | BO64: 2005-03-30 | BP64: -19.2 | BQ64: 2005-03-30 | BR64: -2 | BS64: 2005-03-30 | BT64: 28.6 | BU64: 2005-03-30 | BV64: 27.7 | BW64: 2005-03-30 | BX64: 88 | BY64: 2005-03-30 | BZ64: 1.2964 | CA64: 2005-03-30 | CB64: 1.8817 | CC64: 2005-03-30 | CD64: 0.689 | CE64: 2005-03-30 | CF64: 107.33 | CG64: 2005-03-30 | CH64: 1.2171 | CI64: 2005-03-30 | CJ64: 103.93 | CK64: 2005-03-30 | CL64: 84.29 | CM64: 2005-03-30 | CN64: 0.7715 | CO64: 2005-03-30 | CP64: 7.0433 | CQ64: 2005-03-30 | CR64: 6.318 | CS64: 2005-03-30 | CT64: 31.78 | CU64: 2005-03-30 | CV64: 2.6756 | CW64: 2010-11-17 | CX64: 0.9939 | CY64: 2005-03-30 | CZ64: 9513 | DA64: 2005-03-30 | DB64: 43.82 | DC64: 2005-03-30 | DD64: 27.85 | DE64: 2005-03-30 | DF64: 6.2875 | DG64: 2005-04-04 | DH64: 14.11 | DI64: 2005-03-31 | DJ64: 13.24 | DK64: 2005-04-04 | DL64: 75.11 | DM64: 2005-04-01 | DN64: 1177.75 | DO64: 38442 | DP64: 1491 | DQ64: 2005-04-01 | DR64: 293.8 | DS64: 2005-04-01 | DT64: 32020
A65: 2005-03-31 | B65: 428.24 | C65: 2005-04-04 | D65: 3002 | E65: 2005-03-31 | F65: 3.7745 | G65: 2005-03-31 | H65: 4.1652 | I65: 2005-03-31 | J65: 4.4815 | K65: 2005-03-31 | L65: 4.7548 | M65: 2005-03-31 | N65: 2.492 | O65: 2005-03-31 | P65: 3.061 | Q65: 2005-03-31 | R65: 3.622 | S65: 2005-03-31 | T65: 4.101 | U65: 2005-03-31 | V65: 0.11 | W65: 2005-03-31 | X65: 0.544 | Y65: 2005-03-31 | Z65: 1.33 | AA65: 2005-03-31 | AB65: 2.266 | AC65: 2005-03-31 | AD65: 4.677 | AE65: 2005-03-31 | AF65: 4.677 | AG65: 2005-03-31 | AH65: 4.699 | AI65: 2005-03-31 | AJ65: 4.562 | AK65: 2005-03-31 | AL65: 2.512 | AM65: 2005-03-31 | AN65: 3.072 | AO65: 2005-03-31 | AP65: 3.758 | AQ65: 2005-03-31 | AR65: 4.334 | AS65: 2005-03-31 | AT65: 3.2152 | AU65: 2005-03-31 | AV65: 2.8775 | AW65: 2005-03-31 | AX65: 2.7102 | AY65: 2005-03-31 | AZ65: 2.9414 | BA65: 2011-12-30 | BB65: 755 | BC65: 2012-01-03 | BD65: 495 | BE65: 2012-11-07 | BF65: 525.712 | BG65: 2008-01-03 | BH65: 69.99 | BI65: 2005-04-01 | BJ65: 27.917 | BK65: 2005-04-01 | BL65: 5.8 | BM65: 2005-03-31 | BN65: -11.04 | BO65: 2005-03-31 | BP65: -7.8 | BQ65: 2005-03-31 | BR65: -4.6 | BS65: 2005-03-31 | BT65: 28.1 | BU65: 2005-03-31 | BV65: 25 | BW65: 2005-03-31 | BX65: 87.4 | BY65: 2005-03-31 | BZ65: 1.2968 | CA65: 2005-03-31 | CB65: 1.8884 | CC65: 2005-03-31 | CD65: 0.68675 | CE65: 2005-03-31 | CF65: 107.2 | CG65: 2005-03-31 | CH65: 1.2099 | CI65: 2005-03-31 | CJ65: 104.25 | CK65: 2005-03-31 | CL65: 84.06 | CM65: 2005-03-31 | CN65: 0.7733 | CO65: 2005-03-31 | CP65: 7.0659 | CQ65: 2005-03-31 | CR65: 6.349 | CS65: 2005-03-31 | CT65: 31.519 | CU65: 2005-03-31 | CV65: 2.679 | CW65: 2010-11-18 | CX65: 0.9932 | CY65: 2005-03-31 | CZ65: 9470 | DA65: 2005-03-31 | DB65: 43.745 | DC65: 2005-03-31 | DD65: 27.8621 | DE65: 2005-03-31 | DF65: 6.24 | DG65: 2005-04-05 | DH65: 13.68 | DI65: 2005-04-01 | DJ65: 12.61 | DK65: 2005-04-05 | DL65: 73.64 | DM65: 2005-04-04 | DN65: 1179.75 | DO65: 38443 | DP65: 1480 | DQ65: 2005-04-04 | DR65: 295.7 | DS65: 2005-04-04 | DT65: 31875
A66: 2005-04-01 | B66: 425.86 | C66: 2005-04-05 | D66: 3024 | E66: 2005-04-01 | F66: 3.7251 | G66: 2005-04-01 | H66: 4.1229 | I66: 2005-04-01 | J66: 4.4475 | K66: 2005-04-01 | L66: 4.721 | M66: 2005-04-01 | N66: 2.467 | O66: 2005-04-01 | P66: 3.036 | Q66: 2005-04-01 | R66: 3.613 | S66: 2005-04-01 | T66: 4.107 | U66: 2005-04-01 | V66: 0.104 | W66: 2005-04-01 | X66: 0.539 | Y66: 2005-04-01 | Z66: 1.339 | AA66: 2005-04-01 | AB66: 2.278 | AC66: 2005-04-01 | AD66: 4.691 | AE66: 2005-04-01 | AF66: 4.704 | AG66: 2005-04-01 | AH66: 4.739 | AI66: 2005-04-01 | AJ66: 4.624 | AK66: 2005-04-01 | AL66: 2.49 | AM66: 2005-04-01 | AN66: 3.053 | AO66: 2005-04-01 | AP66: 3.759 | AQ66: 2005-04-01 | AR66: 4.346 | AS66: 2005-04-01 | AT66: 3.2638 | AU66: 2005-04-01 | AV66: 2.8378 | AW66: 2005-04-01 | AX66: 2.6972 | AY66: 2005-04-01 | AZ66: 2.9221 | BA66: 2012-01-02 | BB66: 755 | BC66: 2012-01-04 | BD66: 505.917 | BE66: 2012-11-08 | BF66: 544.575 | BG66: 2008-01-04 | BH66: 75.054 | BI66: 2005-04-04 | BJ66: 27.833 | BK66: 2005-04-04 | BL66: 5.1 | BM66: 2005-04-01 | BN66: -16.73 | BO66: 2005-04-01 | BP66: -7.7 | BQ66: 2005-04-01 | BR66: -4.6 | BS66: 2005-04-01 | BT66: 28.8 | BU66: 2005-04-01 | BV66: 26.9 | BW66: 2005-04-01 | BX66: 86.7 | BY66: 2005-04-01 | BZ66: 1.2895 | CA66: 2005-04-01 | CB66: 1.879 | CC66: 2005-04-01 | CD66: 0.68626 | CE66: 2005-04-01 | CF66: 107.61 | CG66: 2005-04-01 | CH66: 1.2147 | CI66: 2005-04-01 | CJ66: 104.35 | CK66: 2005-04-01 | CL66: 84.43 | CM66: 2005-04-01 | CN66: 0.7696 | CO66: 2005-04-01 | CP66: 7.1118 | CQ66: 2005-04-01 | CR66: 6.3494 | CS66: 2005-04-01 | CT66: 31.39 | CU66: 2005-04-01 | CV66: 2.6578 | CW66: 2010-11-19 | CX66: 0.992 | CY66: 2005-04-01 | CZ66: 9475 | DA66: 2005-04-01 | DB66: 43.75 | DC66: 2005-04-01 | DD66: 27.8085 | DE66: 2005-04-01 | DF66: 6.23 | DG66: 2005-04-06 | DH66: 13.15 | DI66: 2005-04-04 | DJ66: 13.67 | DK66: 2005-04-06 | DL66: 81.15 | DM66: 2005-04-05 | DN66: 1185.25 | DO66: 38446 | DP66: 1485 | DQ66: 2005-04-05 | DR66: 297.3 | DS66: 2005-04-05 | DT66: 31904
A67: 2005-04-04 | B67: 423.84 | C67: 2005-04-06 | D67: 3027 | E67: 2005-04-04 | F67: 3.7168 | G67: 2005-04-04 | H67: 4.1159 | I67: 2005-04-04 | J67: 4.4556 | K67: 2005-04-04 | L67: 4.7348 | M67: 2005-04-04 | N67: 2.457 | O67: 2005-04-04 | P67: 3.017 | Q67: 2005-04-04 | R67: 3.584 | S67: 2005-04-04 | T67: 4.076 | U67: 2005-04-04 | V67: 0.1 | W67: 2005-04-04 | X67: 0.533 | Y67: 2005-04-04 | Z67: 1.335 | AA67: 2005-04-04 | AB67: 2.294 | AC67: 2005-04-04 | AD67: 4.653 | AE67: 2005-04-04 | AF67: 4.66 | AG67: 2005-04-04 | AH67: 4.698 | AI67: 2005-04-04 | AJ67: 4.597 | AK67: 2005-04-04 | AL67: 2.477 | AM67: 2005-04-04 | AN67: 3.033 | AO67: 2005-04-04 | AP67: 3.729 | AQ67: 2005-04-04 | AR67: 4.312 | AS67: 2005-04-04 | AT67: 3.2257 | AU67: 2005-04-04 | AV67: 2.8306 | AW67: 2005-04-04 | AX67: 2.6877 | AY67: 2005-04-04 | AZ67: 2.92 | BA67: 2012-01-03 | BB67: 737.75 | BC67: 2012-01-05 | BD67: 526.25 | BE67: 2012-11-09 | BF67: 551.501 | BG67: 2008-01-07 | BH67: 82.023 | BI67: 2005-04-05 | BJ67: 27.667 | BK67: 2005-04-05 | BL67: 5.7 | BM67: 2005-04-04 | BN67: -16.37 | BO67: 2005-04-04 | BP67: -6.9 | BQ67: 2005-04-04 | BR67: -4.4 | BS67: 2005-04-04 | BT67: 26.6 | BU67: 2005-04-04 | BV67: 30.4 | BW67: 2005-04-04 | BX67: 84.6 | BY67: 2005-04-04 | BZ67: 1.2841 | CA67: 2005-04-04 | CB67: 1.874 | CC67: 2005-04-04 | CD67: 0.6853 | CE67: 2005-04-04 | CF67: 108.3 | CG67: 2005-04-04 | CH67: 1.2207 | CI67: 2005-04-04 | CJ67: 103.91 | CK67: 2005-04-04 | CL67: 84.78 | CM67: 2005-04-04 | CN67: 0.7674 | CO67: 2005-04-04 | CP67: 7.1484 | CQ67: 2005-04-04 | CR67: 6.375 | CS67: 2005-04-04 | CT67: 31.583 | CU67: 2005-04-04 | CV67: 2.6607 | CW67: 2010-11-22 | CX67: 0.9935 | CY67: 2005-04-04 | CZ67: 9490 | DA67: 2005-04-04 | DB67: 43.7825 | DC67: 2005-04-04 | DD67: 27.895 | DE67: 2005-04-04 | DF67: 6.2388 | DG67: 2005-04-07 | DH67: 12.33 | DI67: 2005-04-05 | DJ67: 12.72 | DK67: 2005-04-07 | DL67: 79.28 | DM67: 2005-04-06 | DN67: 1189.25 | DO67: 38447 | DP67: 1491.5 | DQ67: 2005-04-06 | DR67: 298.5 | DS67: 2005-04-06 | DT67: 32039
A68: 2005-04-05 | B68: 424.85 | C68: 2005-04-07 | D68: 3045 | E68: 2005-04-05 | F68: 3.7167 | G68: 2005-04-05 | H68: 4.1265 | I68: 2005-04-05 | J68: 4.4678 | K68: 2005-04-05 | L68: 4.7516 | M68: 2005-04-05 | N68: 2.465 | O68: 2005-04-05 | P68: 3.028 | Q68: 2005-04-05 | R68: 3.597 | S68: 2005-04-05 | T68: 4.092 | U68: 2005-04-05 | V68: 0.1 | W68: 2005-04-05 | X68: 0.55 | Y68: 2005-04-05 | Z68: 1.365 | AA68: 2005-04-05 | AB68: 2.345 | AC68: 2005-04-05 | AD68: 4.664 | AE68: 2005-04-05 | AF68: 4.673 | AG68: 2005-04-05 | AH68: 4.716 | AI68: 2005-04-05 | AJ68: 4.615 | AK68: 2005-04-05 | AL68: 2.486 | AM68: 2005-04-05 | AN68: 3.043 | AO68: 2005-04-05 | AP68: 3.741 | AQ68: 2005-04-05 | AR68: 4.327 | AS68: 2005-04-05 | AT68: 3.1956 | AU68: 2005-04-05 | AV68: 2.8117 | AW68: 2005-04-05 | AX68: 2.677 | AY68: 2005-04-05 | AZ68: 2.9111 | BA68: 2012-01-04 | BB68: 746.417 | BC68: 2012-01-06 | BD68: 529 | BE68: 2012-11-13 | BF68: 552.142 | BG68: 2008-01-08 | BH68: 81.425 | BI68: 2005-04-06 | BJ68: 27.5 | BK68: 2005-04-06 | BL68: 1.6 | BM68: 2005-04-05 | BN68: -14.54 | BO68: 2005-04-05 | BP68: -5.9 | BQ68: 2005-04-05 | BR68: -3.9 | BS68: 2005-04-05 | BT68: 25.3 | BU68: 2005-04-05 | BV68: 30 | BW68: 2005-04-05 | BX68: 83.8 | BY68: 2005-04-05 | BZ68: 1.2849 | CA68: 2005-04-05 | CB68: 1.8774 | CC68: 2005-04-05 | CD68: 0.68436 | CE68: 2005-04-05 | CF68: 108.36 | CG68: 2005-04-05 | CH68: 1.2203 | CI68: 2005-04-05 | CJ68: 104.16 | CK68: 2005-04-05 | CL68: 84.66 | CM68: 2005-04-05 | CN68: 0.7675 | CO68: 2005-04-05 | CP68: 7.1424 | CQ68: 2005-04-05 | CR68: 6.355 | CS68: 2005-04-05 | CT68: 31.584 | CU68: 2005-04-05 | CV68: 2.6264 | CW68: 2010-11-23 | CX68: 0.9971 | CY68: 2005-04-05 | CZ68: 9491 | DA68: 2005-04-05 | DB68: 43.7825 | DC68: 2005-04-05 | DD68: 27.9145 | DE68: 2005-04-05 | DF68: 6.1925 | DG68: 2005-04-08 | DH68: 12.62 | DI68: 2005-04-06 | DJ68: 12.29 | DK68: 2005-04-08 | DL68: 81.4 | DM68: 2005-04-07 | DN68: 1195.25 | DO68: 38448 | DP68: 1493 | DQ68: 2005-04-07 | DR68: 299.8 | DS68: 2005-04-07 | DT68: 32357
A69: 2005-04-06 | B69: 427.16 | C69: 2005-04-08 | D69: 3043 | E69: 2005-04-06 | F69: 3.6754 | G69: 2005-04-06 | H69: 4.0735 | I69: 2005-04-06 | J69: 4.4215 | K69: 2005-04-06 | L69: 4.7337 | M69: 2005-04-06 | N69: 2.45 | O69: 2005-04-06 | P69: 3.011 | Q69: 2005-04-06 | R69: 3.59 | S69: 2005-04-06 | T69: 4.11 | U69: 2005-04-06 | V69: 0.1 | W69: 2005-04-06 | X69: 0.565 | Y69: 2005-04-06 | Z69: 1.396 | AA69: 2005-04-06 | AB69: 2.35 | AC69: 2005-04-06 | AD69: 4.652 | AE69: 2005-04-06 | AF69: 4.657 | AG69: 2005-04-06 | AH69: 4.696 | AI69: 2005-04-06 | AJ69: 4.584 | AK69: 2005-04-06 | AL69: 2.47 | AM69: 2005-04-06 | AN69: 3.024 | AO69: 2005-04-06 | AP69: 3.732 | AQ69: 2005-04-06 | AR69: 4.347 | AS69: 2005-04-06 | AT69: 3.1758 | AU69: 2005-04-06 | AV69: 2.7878 | AW69: 2005-04-06 | AX69: 2.6553 | AY69: 2005-04-06 | AZ69: 2.8933 | BA69: 2012-01-05 | BB69: 756.5 | BC69: 2012-01-09 | BD69: 527.667 | BE69: 2012-11-14 | BF69: 563.28 | BG69: 2008-01-09 | BH69: 84.072 | BI69: 2005-04-07 | BJ69: 27.25 | BK69: 2005-04-07 | BL69: 0.4 | BM69: 2005-04-06 | BN69: -17.53 | BO69: 2005-04-06 | BP69: -4.7 | BQ69: 2005-04-06 | BR69: -19.1 | BS69: 2005-04-06 | BT69: 21 | BU69: 2005-04-06 | BV69: 29.7 | BW69: 2005-04-06 | BX69: 83.1 | BY69: 2005-04-06 | BZ69: 1.2887 | CA69: 2005-04-06 | CB69: 1.8826 | CC69: 2005-04-06 | CD69: 0.68446 | CE69: 2005-04-06 | CF69: 108.56 | CG69: 2005-04-06 | CH69: 1.2206 | CI69: 2005-04-06 | CJ69: 104.01 | CK69: 2005-04-06 | CL69: 84.68 | CM69: 2005-04-06 | CN69: 0.7661 | CO69: 2005-04-06 | CP69: 7.1082 | CQ69: 2005-04-06 | CR69: 6.3459 | CS69: 2005-04-06 | CT69: 31.569 | CU69: 2005-04-06 | CV69: 2.602 | CW69: 2010-11-24 | CX69: 0.9959 | CY69: 2005-04-06 | CZ69: 9481 | DA69: 2005-04-06 | DB69: 43.7538 | DC69: 2005-04-06 | DD69: 27.93 | DE69: 2005-04-06 | DF69: 6.1232 | DG69: 2005-04-11 | DH69: 11.98 | DI69: 2005-04-07 | DJ69: 11.72 | DK69: 2005-04-11 | DL69: 78.2 | DM69: 2005-04-08 | DN69: 1183.5 | DO69: 38449 | DP69: 1509 | DQ69: 2005-04-08 | DR69: 300.3 | DS69: 2005-04-08 | DT69: 32336
A70: 2005-04-07 | B70: 426.92 | C70: 2005-04-11 | D70: 3043 | E70: 2005-04-07 | F70: 3.7166 | G70: 2005-04-07 | H70: 4.1302 | I70: 2005-04-07 | J70: 4.4802 | K70: 2005-04-07 | L70: 4.7944 | M70: 2005-04-07 | N70: 2.411 | O70: 2005-04-07 | P70: 2.967 | Q70: 2005-04-07 | R70: 3.549 | S70: 2005-04-07 | T70: 4.094 | U70: 2005-04-07 | V70: 0.099 | W70: 2005-04-07 | X70: 0.551 | Y70: 2005-04-07 | Z70: 1.374 | AA70: 2005-04-07 | AB70: 2.344 | AC70: 2005-04-07 | AD70: 4.607 | AE70: 2005-04-07 | AF70: 4.615 | AG70: 2005-04-07 | AH70: 4.654 | AI70: 2005-04-07 | AJ70: 4.553 | AK70: 2005-04-07 | AL70: 2.43 | AM70: 2005-04-07 | AN70: 2.98 | AO70: 2005-04-07 | AP70: 3.688 | AQ70: 2005-04-07 | AR70: 4.326 | AS70: 2005-04-07 | AT70: 3.1955 | AU70: 2005-04-07 | AV70: 2.7821 | AW70: 2005-04-07 | AX70: 2.6521 | AY70: 2005-04-07 | AZ70: 2.8836 | BA70: 2012-01-06 | BB70: 751.25 | BC70: 2012-01-10 | BD70: 506.5 | BE70: 2012-11-15 | BF70: 572.139 | BG70: 2008-01-10 | BH70: 93.736 | BI70: 2005-04-08 | BJ70: 27.333 | BK70: 2005-04-08 | BL70: 1.7 | BM70: 2005-04-07 | BN70: -18.93 | BO70: 2005-04-07 | BP70: -3.5 | BQ70: 2005-04-07 | BR70: -26.1 | BS70: 2005-04-07 | BT70: 20.2 | BU70: 2005-04-07 | BV70: 29.9 | BW70: 2005-04-07 | BX70: 82.2 | BY70: 2005-04-07 | BZ70: 1.2904 | CA70: 2005-04-07 | CB70: 1.8774 | CC70: 2005-04-07 | CD70: 0.68727 | CE70: 2005-04-07 | CF70: 108.46 | CG70: 2005-04-07 | CH70: 1.2206 | CI70: 2005-04-07 | CJ70: 104.14 | CK70: 2005-04-07 | CL70: 84.87 | CM70: 2005-04-07 | CN70: 0.7679 | CO70: 2005-04-07 | CP70: 7.0957 | CQ70: 2005-04-07 | CR70: 6.3303 | CS70: 2005-04-07 | CT70: 31.551 | CU70: 2005-04-07 | CV70: 2.6012 | CW70: 2010-11-25 | CX70: 0.9969 | CY70: 2005-04-07 | CZ70: 9495 | DA70: 2005-04-07 | DB70: 43.7275 | DC70: 2005-04-07 | DD70: 27.803 | DE70: 2005-04-07 | DF70: 6.1278 | DG70: 2005-04-12 | DH70: 11.3 | DI70: 2005-04-08 | DJ70: 11.79 | DK70: 2005-04-12 | DL70: 75.94 | DM70: 2005-04-11 | DN70: 1183.75 | DO70: 38450 | DP70: 1493.5 | DQ70: 2005-04-11 | DR70: 300.4 | DS70: 2005-04-11 | DT70: 32378
A71: 2005-04-08 | B71: 426.69 | C71: 2005-04-12 | D71: 3022 | E71: 2005-04-08 | F71: 3.7412 | G71: 2005-04-08 | H71: 4.1339 | I71: 2005-04-08 | J71: 4.4683 | K71: 2005-04-08 | L71: 4.7683 | M71: 2005-04-08 | N71: 2.412 | O71: 2005-04-08 | P71: 2.984 | Q71: 2005-04-08 | R71: 3.58 | S71: 2005-04-08 | T71: 4.154 | U71: 2005-04-08 | V71: 0.099 | W71: 2005-04-08 | X71: 0.555 | Y71: 2005-04-08 | Z71: 1.369 | AA71: 2005-04-08 | AB71: 2.359 | AC71: 2005-04-08 | AD71: 4.628 | AE71: 2005-04-08 | AF71: 4.648 | AG71: 2005-04-08 | AH71: 4.694 | AI71: 2005-04-08 | AJ71: 4.604 | AK71: 2005-04-08 | AL71: 2.43 | AM71: 2005-04-08 | AN71: 2.996 | AO71: 2005-04-08 | AP71: 3.716 | AQ71: 2005-04-08 | AR71: 4.385 | AS71: 2005-04-08 | AT71: 3.2071 | AU71: 2005-04-08 | AV71: 2.7818 | AW71: 2005-04-08 | AX71: 2.6596 | AY71: 2005-04-08 | AZ71: 2.881 | BA71: 2012-01-09 | BB71: 760.625 | BC71: 2012-01-11 | BD71: 499.25 | BE71: 2012-11-16 | BF71: 564.486 | BG71: 2008-01-11 | BH71: 91.065 | BI71: 2005-04-11 | BJ71: 27.417 | BK71: 2005-04-11 | BL71: 0.9 | BM71: 2005-04-08 | BN71: -18.31 | BO71: 2005-04-08 | BP71: -2.2 | BQ71: 2005-04-08 | BR71: -26.9 | BS71: 2005-04-08 | BT71: 22.6 | BU71: 2005-04-08 | BV71: 33.2 | BW71: 2005-04-08 | BX71: 81.4 | BY71: 2005-04-08 | BZ71: 1.2923 | CA71: 2005-04-08 | CB71: 1.8823 | CC71: 2005-04-08 | CD71: 0.68635 | CE71: 2005-04-08 | CF71: 108.37 | CG71: 2005-04-08 | CH71: 1.2252 | CI71: 2005-04-08 | CJ71: 104.17 | CK71: 2005-04-08 | CL71: 84.4 | CM71: 2005-04-08 | CN71: 0.7716 | CO71: 2005-04-08 | CP71: 7.097 | CQ71: 2005-04-08 | CR71: 6.3286 | CS71: 2005-04-08 | CT71: 31.609 | CU71: 2005-04-08 | CV71: 2.5933 | CW71: 2010-11-26 | CX71: 0.997 | CY71: 2005-04-08 | CZ71: 9500 | DA71: 2005-04-08 | DB71: 43.7663 | DC71: 2005-04-08 | DD71: 27.851 | DE71: 2005-04-08 | DF71: 6.1523 | DG71: 2005-04-13 | DH71: 13.31 | DI71: 2005-04-11 | DJ71: 12.02 | DK71: 2005-04-13 | DL71: 75.59 | DM71: 2005-04-12 | DN71: 1190 | DO71: 38453 | DP71: 1486 | DQ71: 2005-04-12 | DR71: 299.1 | DS71: 2005-04-12 | DT71: 32197
A72: 2005-04-11 | B72: 428.64 | C72: 2005-04-13 | D72: 3031 | E72: 2005-04-11 | F72: 3.7162 | G72: 2005-04-11 | H72: 4.1055 | I72: 2005-04-11 | J72: 4.428 | K72: 2005-04-11 | L72: 4.7237 | M72: 2005-04-11 | N72: 2.399 | O72: 2005-04-11 | P72: 2.968 | Q72: 2005-04-11 | R72: 3.557 | S72: 2005-04-11 | T72: 4.119 | U72: 2005-04-11 | V72: 0.1 | W72: 2005-04-11 | X72: 0.555 | Y72: 2005-04-11 | Z72: 1.37 | AA72: 2005-04-11 | AB72: 2.371 | AC72: 2005-04-11 | AD72: 4.625 | AE72: 2005-04-11 | AF72: 4.644 | AG72: 2005-04-11 | AH72: 4.685 | AI72: 2005-04-11 | AJ72: 4.596 | AK72: 2005-04-11 | AL72: 2.418 | AM72: 2005-04-11 | AN72: 2.984 | AO72: 2005-04-11 | AP72: 3.694 | AQ72: 2005-04-11 | AR72: 4.347 | AS72: 2005-04-11 | AT72: 3.2037 | AU72: 2005-04-11 | AV72: 2.7728 | AW72: 2005-04-11 | AX72: 2.6458 | AY72: 2005-04-11 | AZ72: 2.8707 | BA72: 2012-01-10 | BB72: 729.517 | BC72: 2012-01-12 | BD72: 481.75 | BE72: 2012-11-19 | BF72: 534.368 | BG72: 2008-01-14 | BH72: 102.397 | BI72: 2005-04-12 | BJ72: 27.417 | BK72: 2005-04-12 | BL72: -4.6 | BM72: 2005-04-11 | BN72: -15.79 | BO72: 2005-04-11 | BP72: 6.4 | BQ72: 2005-04-11 | BR72: -30 | BS72: 2005-04-11 | BT72: 16.5 | BU72: 2005-04-11 | BV72: 31.8 | BW72: 2005-04-11 | BX72: 78.6 | BY72: 2005-04-11 | BZ72: 1.2995 | CA72: 2005-04-11 | CB72: 1.8921 | CC72: 2005-04-11 | CD72: 0.68665 | CE72: 2005-04-11 | CF72: 107.74 | CG72: 2005-04-11 | CH72: 1.2357 | CI72: 2005-04-11 | CJ72: 104.23 | CK72: 2005-04-11 | CL72: 84.22 | CM72: 2005-04-11 | CN72: 0.775 | CO72: 2005-04-11 | CP72: 7.0459 | CQ72: 2005-04-11 | CR72: 6.3089 | CS72: 2005-04-11 | CT72: 31.558 | CU72: 2005-04-11 | CV72: 2.577 | CW72: 2010-11-29 | CX72: 0.9975 | CY72: 2005-04-11 | CZ72: 9494 | DA72: 2005-04-11 | DB72: 43.7163 | DC72: 2005-04-11 | DD72: 27.772 | DE72: 2005-04-11 | DF72: 6.1533 | DG72: 2005-04-14 | DH72: 14.53 | DI72: 2005-04-12 | DJ72: 12.47 | DK72: 2005-04-14 | DL72: 74.42 | DM72: 2005-04-13 | DN72: 1176 | DO72: 38454 | DP72: 1493.5 | DQ72: 2005-04-13 | DR72: 299.4 | DS72: 2005-04-13 | DT72: 32199
A73: 2005-04-12 | B73: 427.52 | C73: 2005-04-14 | D73: 3023 | E73: 2005-04-12 | F73: 3.6829 | G73: 2005-04-12 | H73: 4.0277 | I73: 2005-04-12 | J73: 4.3518 | K73: 2005-04-12 | L73: 4.658 | M73: 2005-04-12 | N73: 2.408 | O73: 2005-04-12 | P73: 2.967 | Q73: 2005-04-12 | R73: 3.545 | S73: 2005-04-12 | T73: 4.102 | U73: 2005-04-12 | V73: 0.1 | W73: 2005-04-12 | X73: 0.54 | Y73: 2005-04-12 | Z73: 1.35 | AA73: 2005-04-12 | AB73: 2.344 | AC73: 2005-04-12 | AD73: 4.63 | AE73: 2005-04-12 | AF73: 4.649 | AG73: 2005-04-12 | AH73: 4.69 | AI73: 2005-04-12 | AJ73: 4.61 | AK73: 2005-04-12 | AL73: 2.424 | AM73: 2005-04-12 | AN73: 2.983 | AO73: 2005-04-12 | AP73: 3.687 | AQ73: 2005-04-12 | AR73: 4.33 | AS73: 2005-04-12 | AT73: 3.2093 | AU73: 2005-04-12 | AV73: 2.7242 | AW73: 2005-04-12 | AX73: 2.6363 | AY73: 2005-04-12 | AZ73: 2.8606 | BA73: 2012-01-11 | BB73: 735.801 | BC73: 2012-01-13 | BD73: 486 | BE73: 2012-11-20 | BF73: 522.206 | BG73: 2008-01-15 | BH73: 106.38 | BI73: 2005-04-13 | BJ73: 27.417 | BK73: 2005-04-13 | BL73: -7.8 | BM73: 2005-04-12 | BN73: -19.53 | BO73: 2005-04-12 | BP73: -2.8 | BQ73: 2005-04-12 | BR73: -30.5 | BS73: 2005-04-12 | BT73: 9.4 | BU73: 2005-04-12 | BV73: 19.8 | BW73: 2005-04-12 | BX73: 77.6 | BY73: 2005-04-12 | BZ73: 1.2883 | CA73: 2005-04-12 | CB73: 1.8854 | CC73: 2005-04-12 | CD73: 0.6833 | CE73: 2005-04-12 | CF73: 108.21 | CG73: 2005-04-12 | CH73: 1.2395 | CI73: 2005-04-12 | CJ73: 104.17 | CK73: 2005-04-12 | CL73: 84.44 | CM73: 2005-04-12 | CN73: 0.7734 | CO73: 2005-04-12 | CP73: 7.0993 | CQ73: 2005-04-12 | CR73: 6.3519 | CS73: 2005-04-12 | CT73: 31.566 | CU73: 2005-04-12 | CV73: 2.5988 | CW73: 2010-11-30 | CX73: 0.9982 | CY73: 2005-04-12 | CZ73: 9500 | DA73: 2005-04-12 | DB73: 43.7325 | DC73: 2005-04-12 | DD73: 27.783 | DE73: 2005-04-12 | DF73: 6.1738 | DG73: 2005-04-15 | DH73: 17.74 | DI73: 2005-04-13 | DJ73: 12.21 | DK73: 2005-04-15 | DL73: 83.84 | DM73: 2005-04-14 | DN73: 1160.5 | DO73: 38455 | DP73: 1470 | DQ73: 2005-04-14 | DR73: 298.4 | DS73: 2005-04-14 | DT73: 32112
A74: 2005-04-13 | B74: 428.91 | C74: 2005-04-15 | D74: 2954 | E74: 2005-04-13 | F74: 3.6495 | G74: 2005-04-13 | H74: 4.0171 | I74: 2005-04-13 | J74: 4.3599 | K74: 2005-04-13 | L74: 4.6814 | M74: 2005-04-13 | N74: 2.393 | O74: 2005-04-13 | P74: 2.942 | Q74: 2005-04-13 | R74: 3.513 | S74: 2005-04-13 | T74: 4.083 | U74: 2005-04-13 | V74: 0.1 | W74: 2005-04-13 | X74: 0.539 | Y74: 2005-04-13 | Z74: 1.355 | AA74: 2005-04-13 | AB74: 2.339 | AC74: 2005-04-13 | AD74: 4.594 | AE74: 2005-04-13 | AF74: 4.622 | AG74: 2005-04-13 | AH74: 4.667 | AI74: 2005-04-13 | AJ74: 4.588 | AK74: 2005-04-13 | AL74: 2.409 | AM74: 2005-04-13 | AN74: 2.962 | AO74: 2005-04-13 | AP74: 3.659 | AQ74: 2005-04-13 | AR74: 4.31 | AS74: 2005-04-13 | AT74: 3.1109 | AU74: 2005-04-13 | AV74: 2.7265 | AW74: 2005-04-13 | AX74: 2.6356 | AY74: 2005-04-13 | AZ74: 2.8663 | BA74: 2012-01-12 | BB74: 715.5 | BC74: 2012-01-16 | BD74: 479.333 | BE74: 2012-11-21 | BF74: 519.239 | BG74: 2008-01-16 | BH74: 113.252 | BI74: 2005-04-14 | BJ74: 27.5 | BK74: 2005-04-14 | BL74: -10.6 | BM74: 2005-04-13 | BN74: -24.39 | BO74: 2005-04-13 | BP74: -11.5 | BQ74: 2005-04-13 | BR74: -30.9 | BS74: 2005-04-13 | BT74: 9.1 | BU74: 2005-04-13 | BV74: 19.2 | BW74: 2005-04-13 | BX74: 76.5 | BY74: 2005-04-13 | BZ74: 1.2904 | CA74: 2005-04-13 | CB74: 1.8916 | CC74: 2005-04-13 | CD74: 0.68215 | CE74: 2005-04-13 | CF74: 107.44 | CG74: 2005-04-13 | CH74: 1.2377 | CI74: 2005-04-13 | CJ74: 104.35 | CK74: 2005-04-13 | CL74: 84.4 | CM74: 2005-04-13 | CN74: 0.7782 | CO74: 2005-04-13 | CP74: 7.0945 | CQ74: 2005-04-13 | CR74: 6.371 | CS74: 2005-04-13 | CT74: 31.534 | CU74: 2005-04-13 | CV74: 2.559 | CW74: 2010-12-01 | CX74: 0.9988 | CY74: 2005-04-13 | CZ74: 9480 | DA74: 2005-04-13 | DB74: 43.75 | DC74: 2005-04-13 | DD74: 27.8194 | DE74: 2005-04-13 | DF74: 6.1365 | DG74: 2005-04-18 | DH74: 16.56 | DI74: 2005-04-14 | DJ74: 12.24 | DK74: 2005-04-18 | DL74: 83.84 | DM74: 2005-04-15 | DN74: 1143.5 | DO74: 38456 | DP74: 1441 | DQ74: 2005-04-15 | DR74: 292.4 | DS74: 2005-04-15 | DT74: 31207
A75: 2005-04-14 | B75: 423.42 | C75: 2005-04-18 | D75: 2906 | E75: 2005-04-14 | F75: 3.5495 | G75: 2005-04-14 | H75: 3.9375 | I75: 2005-04-14 | J75: 4.308 | K75: 2005-04-14 | L75: 4.6804 | M75: 2005-04-14 | N75: 2.394 | O75: 2005-04-14 | P75: 2.95 | Q75: 2005-04-14 | R75: 3.531 | S75: 2005-04-14 | T75: 4.1 | U75: 2005-04-14 | V75: 0.095 | W75: 2005-04-14 | X75: 0.529 | Y75: 2005-04-14 | Z75: 1.35 | AA75: 2005-04-14 | AB75: 2.334 | AC75: 2005-04-14 | AD75: 4.594 | AE75: 2005-04-14 | AF75: 4.615 | AG75: 2005-04-14 | AH75: 4.654 | AI75: 2005-04-14 | AJ75: 4.566 | AK75: 2005-04-14 | AL75: 2.411 | AM75: 2005-04-14 | AN75: 2.975 | AO75: 2005-04-14 | AP75: 3.684 | AQ75: 2005-04-14 | AR75: 4.331 | AS75: 2005-04-14 | AT75: 3.1021 | AU75: 2005-04-14 | AV75: 2.7381 | AW75: 2005-04-14 | AX75: 2.6363 | AY75: 2005-04-14 | AZ75: 2.8776 | BA75: 2012-01-13 | BB75: 726.5 | BC75: 2012-01-17 | BD75: 462.833 | BE75: 2012-11-23 | BF75: 510.406 | BG75: 2008-01-17 | BH75: 116.799 | BI75: 2005-04-15 | BJ75: 30.125 | BK75: 2005-04-15 | BL75: -11.2 | BM75: 2005-04-14 | BN75: -24.37 | BO75: 2005-04-14 | BP75: -11.5 | BQ75: 2005-04-14 | BR75: -31.5 | BS75: 2005-04-14 | BT75: 3 | BU75: 2005-04-14 | BV75: 18.6 | BW75: 2005-04-14 | BX75: 75.3 | BY75: 2005-04-14 | BZ75: 1.2815 | CA75: 2005-04-14 | CB75: 1.8811 | CC75: 2005-04-14 | CD75: 0.68124 | CE75: 2005-04-14 | CF75: 108.2 | CG75: 2005-04-14 | CH75: 1.2414 | CI75: 2005-04-14 | CJ75: 103.88 | CK75: 2005-04-14 | CL75: 85 | CM75: 2005-04-14 | CN75: 0.7706 | CO75: 2005-04-14 | CP75: 7.1685 | CQ75: 2005-04-14 | CR75: 6.4271 | CS75: 2005-04-14 | CT75: 31.616 | CU75: 2005-04-14 | CV75: 2.5764 | CW75: 2010-12-02 | CX75: 0.9978 | CY75: 2005-04-14 | CZ75: 9530 | DA75: 2005-04-14 | DB75: 43.75 | DC75: 2005-04-14 | DD75: 27.8755 | DE75: 2005-04-14 | DF75: 6.266 | DG75: 2005-04-19 | DH75: 14.96 | DI75: 2005-04-15 | DJ75: 15.39 | DK75: 2005-04-19 | DL75: 84.11 | DM75: 2005-04-18 | DN75: 1146.75 | DO75: 38457 | DP75: 1414.5 | DQ75: 2005-04-18 | DR75: 288.1 | DS75: 2005-04-18 | DT75: 30767
A76: 2005-04-15 | B76: 425.07 | C76: 2005-04-19 | D76: 2917 | E76: 2005-04-15 | F76: 3.4902 | G76: 2005-04-15 | H76: 3.8715 | I76: 2005-04-15 | J76: 4.2406 | K76: 2005-04-15 | L76: 4.6084 | M76: 2005-04-15 | N76: 2.35 | O76: 2005-04-15 | P76: 2.902 | Q76: 2005-04-15 | R76: 3.491 | S76: 2005-04-15 | T76: 4.079 | U76: 2005-04-15 | V76: 0.085 | W76: 2005-04-15 | X76: 0.509 | Y76: 2005-04-15 | Z76: 1.313 | AA76: 2005-04-15 | AB76: 2.316 | AC76: 2005-04-15 | AD76: 4.557 | AE76: 2005-04-15 | AF76: 4.574 | AG76: 2005-04-15 | AH76: 4.613 | AI76: 2005-04-15 | AJ76: 4.539 | AK76: 2005-04-15 | AL76: 2.372 | AM76: 2005-04-15 | AN76: 2.935 | AO76: 2005-04-15 | AP76: 3.653 | AQ76: 2005-04-15 | AR76: 4.325 | AS76: 2005-04-15 | AT76: 3.0824 | AU76: 2005-04-15 | AV76: 2.6846 | AW76: 2005-04-15 | AX76: 2.6037 | AY76: 2005-04-15 | AZ76: 2.842 | BA76: 2012-01-16 | BB76: 711.417 | BC76: 2012-01-18 | BD76: 457.5 | BE76: 2012-11-26 | BF76: 513.325 | BG76: 2008-01-18 | BH76: 124.881 | BI76: 2005-04-18 | BJ76: 31.625 | BK76: 2005-04-18 | BL76: -11.9 | BM76: 2005-04-15 | BN76: -26.41 | BO76: 2005-04-15 | BP76: -10 | BQ76: 2005-04-15 | BR76: -32.1 | BS76: 2005-04-15 | BT76: 1.2 | BU76: 2005-04-15 | BV76: 16.3 | BW76: 2005-04-15 | BX76: 74.1 | BY76: 2005-04-15 | BZ76: 1.2921 | CA76: 2005-04-15 | CB76: 1.8918 | CC76: 2005-04-15 | CD76: 0.68302 | CE76: 2005-04-15 | CF76: 107.7 | CG76: 2005-04-15 | CH76: 1.2433 | CI76: 2005-04-15 | CJ76: 103.97 | CK76: 2005-04-15 | CL76: 84.56 | CM76: 2005-04-15 | CN76: 0.7695 | CO76: 2005-04-15 | CP76: 7.0972 | CQ76: 2005-04-15 | CR76: 6.3706 | CS76: 2005-04-15 | CT76: 31.696 | CU76: 2005-04-15 | CV76: 2.5962 | CW76: 2010-12-03 | CX76: 0.9972 | CY76: 2005-04-15 | CZ76: 9525 | DA76: 2005-04-15 | DB76: 43.83 | DC76: 2005-04-15 | DD76: 27.9019 | DE76: 2005-04-15 | DF76: 6.274 | DG76: 2005-04-20 | DH76: 16.92 | DI76: 2005-04-18 | DJ76: 18.31 | DK76: 2005-04-20 | DL76: 84 | DM76: 2005-04-19 | DN76: 1155.75 | DO76: 38460 | DP76: 1414.5 | DQ76: 2005-04-19 | DR76: 288.8 | DS76: 2005-04-19 | DT76: 30768
A77: 2005-04-18 | B77: 427.24 | C77: 2005-04-20 | D77: 2882 | E77: 2005-04-18 | F77: 3.5483 | G77: 2005-04-18 | H77: 3.913 | I77: 2005-04-18 | J77: 4.2704 | K77: 2005-04-18 | L77: 4.6093 | M77: 2005-04-18 | N77: 2.325 | O77: 2005-04-18 | P77: 2.868 | Q77: 2005-04-18 | R77: 3.46 | S77: 2005-04-18 | T77: 4.055 | U77: 2005-04-18 | V77: 0.08 | W77: 2005-04-18 | X77: 0.484 | Y77: 2005-04-18 | Z77: 1.28 | AA77: 2005-04-18 | AB77: 2.275 | AC77: 2005-04-18 | AD77: 4.54 | AE77: 2005-04-18 | AF77: 4.549 | AG77: 2005-04-18 | AH77: 4.583 | AI77: 2005-04-18 | AJ77: 4.514 | AK77: 2005-04-18 | AL77: 2.348 | AM77: 2005-04-18 | AN77: 2.905 | AO77: 2005-04-18 | AP77: 3.625 | AQ77: 2005-04-18 | AR77: 4.305 | AS77: 2005-04-18 | AT77: 3.1188 | AU77: 2005-04-18 | AV77: 2.7227 | AW77: 2005-04-18 | AX77: 2.6126 | AY77: 2005-04-18 | AZ77: 2.8527 | BA77: 2012-01-17 | BB77: 690.667 | BC77: 2012-01-19 | BD77: 417.333 | BE77: 2012-11-27 | BF77: 516.31 | BG77: 2008-01-21 | BH77: 140.139 | BI77: 2005-04-19 | BJ77: 31.417 | BK77: 2005-04-19 | BL77: -18.5 | BM77: 2005-04-18 | BN77: -26.31 | BO77: 2005-04-18 | BP77: -9.8 | BQ77: 2005-04-18 | BR77: -34.3 | BS77: 2005-04-18 | BT77: 0.4 | BU77: 2005-04-18 | BV77: 13.6 | BW77: 2005-04-18 | BX77: 69.8 | BY77: 2005-04-18 | BZ77: 1.3033 | CA77: 2005-04-18 | CB77: 1.9037 | CC77: 2005-04-18 | CD77: 0.68455 | CE77: 2005-04-18 | CF77: 107.41 | CG77: 2005-04-18 | CH77: 1.2477 | CI77: 2005-04-18 | CJ77: 104.05 | CK77: 2005-04-18 | CL77: 84 | CM77: 2005-04-18 | CN77: 0.7668 | CO77: 2005-04-18 | CP77: 7.0562 | CQ77: 2005-04-18 | CR77: 6.3024 | CS77: 2005-04-18 | CT77: 31.698 | CU77: 2005-04-18 | CV77: 2.6185 | CW77: 2010-12-06 | CX77: 0.9982 | CY77: 2005-04-18 | CZ77: 9577 | DA77: 2005-04-18 | DB77: 43.83 | DC77: 2005-04-18 | DD77: 27.7933 | DE77: 2005-04-18 | DF77: 6.2531 | DG77: 2005-04-21 | DH77: 14.41 | DI77: 2005-04-19 | DJ77: 17.18 | DK77: 2005-04-21 | DL77: 85.81 | DM77: 2005-04-20 | DN77: 1139.75 | DO77: 38461 | DP77: 1426 | DQ77: 2005-04-20 | DR77: 286.3 | DS77: 2005-04-20 | DT77: 30698
A78: 2005-04-19 | B78: 433.18 | C78: 2005-04-21 | D78: 2932 | E78: 2005-04-19 | F78: 3.5062 | G78: 2005-04-19 | H78: 3.8505 | I78: 2005-04-19 | J78: 4.2109 | K78: 2005-04-19 | L78: 4.5423 | M78: 2005-04-19 | N78: 2.309 | O78: 2005-04-19 | P78: 2.849 | Q78: 2005-04-19 | R78: 3.443 | S78: 2005-04-19 | T78: 4.023 | U78: 2005-04-19 | V78: 0.086 | W78: 2005-04-19 | X78: 0.489 | Y78: 2005-04-19 | Z78: 1.29 | AA78: 2005-04-19 | AB78: 2.295 | AC78: 2005-04-19 | AD78: 4.578 | AE78: 2005-04-19 | AF78: 4.571 | AG78: 2005-04-19 | AH78: 4.594 | AI78: 2005-04-19 | AJ78: 4.51 | AK78: 2005-04-19 | AL78: 2.331 | AM78: 2005-04-19 | AN78: 2.887 | AO78: 2005-04-19 | AP78: 3.604 | AQ78: 2005-04-19 | AR78: 4.269 | AS78: 2005-04-19 | AT78: 3.1511 | AU78: 2005-04-19 | AV78: 2.7122 | AW78: 2005-04-19 | AX78: 2.5984 | AY78: 2005-04-19 | AZ78: 2.8298 | BA78: 2012-01-18 | BB78: 685.125 | BC78: 2012-01-20 | BD78: 418.875 | BE78: 2012-11-28 | BF78: 508.855 | BG78: 2008-01-22 | BH78: 136.72 | BI78: 2005-04-20 | BJ78: 29.563 | BK78: 2005-04-20 | BL78: -15.9 | BM78: 2005-04-19 | BN78: -35 | BO78: 2005-04-19 | BP78: -14.1 | BQ78: 2005-04-19 | BR78: -63.4 | BS78: 2005-04-19 | BT78: -1.9 | BU78: 2005-04-19 | BV78: 11.4 | BW78: 2005-04-19 | BX78: 68 | BY78: 2005-04-19 | BZ78: 1.3026 | CA78: 2005-04-19 | CB78: 1.9152 | CC78: 2005-04-19 | CD78: 0.68011 | CE78: 2005-04-19 | CF78: 107.02 | CG78: 2005-04-19 | CH78: 1.242 | CI78: 2005-04-19 | CJ78: 104.3 | CK78: 2005-04-19 | CL78: 83.76 | CM78: 2005-04-19 | CN78: 0.7706 | CO78: 2005-04-19 | CP78: 7.0542 | CQ78: 2005-04-19 | CR78: 6.3006 | CS78: 2005-04-19 | CT78: 31.571 | CU78: 2005-04-19 | CV78: 2.5845 | CW78: 2010-12-07 | CX78: 0.999 | CY78: 2005-04-19 | CZ78: 9573 | DA78: 2005-04-19 | DB78: 43.765 | DC78: 2005-04-19 | DD78: 27.758 | DE78: 2005-04-19 | DF78: 6.2023 | DG78: 2005-04-22 | DH78: 15.38 | DI78: 2005-04-20 | DJ78: 17.3837 | DK78: 2005-04-22 | DL78: 84.18 | DM78: 2005-04-21 | DN78: 1161.5 | DO78: 38462 | DP78: 1414.5 | DQ78: 2005-04-21 | DR78: 289.2 | DS78: 2005-04-21 | DT78: 30827
A79: 2005-04-20 | B79: 435.32 | C79: 2005-04-22 | D79: 2933 | E79: 2005-04-20 | F79: 3.4807 | G79: 2005-04-20 | H79: 3.8262 | I79: 2005-04-20 | J79: 4.1853 | K79: 2005-04-20 | L79: 4.5479 | M79: 2005-04-20 | N79: 2.314 | O79: 2005-04-20 | P79: 2.856 | Q79: 2005-04-20 | R79: 3.455 | S79: 2005-04-20 | T79: 4.035 | U79: 2005-04-20 | V79: 0.081 | W79: 2005-04-20 | X79: 0.47 | Y79: 2005-04-20 | Z79: 1.259 | AA79: 2005-04-20 | AB79: 2.265 | AC79: 2005-04-20 | AD79: 4.607 | AE79: 2005-04-20 | AF79: 4.588 | AG79: 2005-04-20 | AH79: 4.595 | AI79: 2005-04-20 | AJ79: 4.495 | AK79: 2005-04-20 | AL79: 2.336 | AM79: 2005-04-20 | AN79: 2.896 | AO79: 2005-04-20 | AP79: 3.62 | AQ79: 2005-04-20 | AR79: 4.287 | AS79: 2005-04-20 | AT79: 3.1914 | AU79: 2005-04-20 | AV79: 2.7268 | AW79: 2005-04-20 | AX79: 2.6145 | AY79: 2005-04-20 | AZ79: 2.8577 | BA79: 2012-01-19 | BB79: 642.5 | BC79: 2012-01-23 | BD79: 402.75 | BE79: 2012-11-29 | BF79: 501.276 | BG79: 2008-01-23 | BH79: 134.571 | BI79: 2005-04-21 | BJ79: 29.5 | BK79: 2005-04-21 | BL79: -15.8 | BM79: 2005-04-20 | BN79: -31.38 | BO79: 2005-04-20 | BP79: -7.5 | BQ79: 2005-04-20 | BR79: -64.7 | BS79: 2005-04-20 | BT79: 0.4 | BU79: 2005-04-20 | BV79: 15.3 | BW79: 2005-04-20 | BX79: 78.2 | BY79: 2005-04-20 | BZ79: 1.3087 | CA79: 2005-04-20 | CB79: 1.9192 | CC79: 2005-04-20 | CD79: 0.6818 | CE79: 2005-04-20 | CF79: 106.76 | CG79: 2005-04-20 | CH79: 1.2392 | CI79: 2005-04-20 | CJ79: 104.43 | CK79: 2005-04-20 | CL79: 83.52 | CM79: 2005-04-20 | CN79: 0.7759 | CO79: 2005-04-20 | CP79: 7.0164 | CQ79: 2005-04-20 | CR79: 6.2443 | CS79: 2005-04-20 | CT79: 31.508 | CU79: 2005-04-20 | CV79: 2.5644 | CW79: 2010-12-08 | CX79: 0.9979 | CY79: 2005-04-20 | CZ79: 9576 | DA79: 2005-04-20 | DB79: 43.755 | DC79: 2005-04-20 | DD79: 27.74 | DE79: 2005-04-20 | DF79: 6.0988 | DG79: 2005-04-25 | DH79: 14.62 | DI79: 2005-04-21 | DJ79: 16.7983 | DK79: 2005-04-25 | DL79: 78.55 | DM79: 2005-04-22 | DN79: 1157.25 | DO79: 38463 | DP79: 1449 | DQ79: 2005-04-22 | DR79: 289.5 | DS79: 2005-04-22 | DT79: 30980
A80: 2005-04-21 | B80: 433 | C80: 2005-04-25 | D80: 2947 | E80: 2005-04-21 | F80: 3.6228 | G80: 2005-04-21 | H80: 3.958 | I80: 2005-04-21 | J80: 4.2945 | K80: 2005-04-21 | L80: 4.6363 | M80: 2005-04-21 | N80: 2.328 | O80: 2005-04-21 | P80: 2.88 | Q80: 2005-04-21 | R80: 3.486 | S80: 2005-04-21 | T80: 4.074 | U80: 2005-04-21 | V80: 0.085 | W80: 2005-04-21 | X80: 0.485 | Y80: 2005-04-21 | Z80: 1.278 | AA80: 2005-04-21 | AB80: 2.27 | AC80: 2005-04-21 | AD80: 4.589 | AE80: 2005-04-21 | AF80: 4.579 | AG80: 2005-04-21 | AH80: 4.592 | AI80: 2005-04-21 | AJ80: 4.481 | AK80: 2005-04-21 | AL80: 2.347 | AM80: 2005-04-21 | AN80: 2.918 | AO80: 2005-04-21 | AP80: 3.646 | AQ80: 2005-04-21 | AR80: 4.296 | AS80: 2005-04-21 | AT80: 3.2771 | AU80: 2005-04-21 | AV80: 2.8031 | AW80: 2005-04-21 | AX80: 2.6611 | AY80: 2005-04-21 | AZ80: 2.8818 | BA80: 2012-01-20 | BB80: 648 | BC80: 2012-01-24 | BD80: 407.167 | BE80: 2012-11-30 | BF80: 499.976 | BG80: 2008-01-24 | BH80: 116.616 | BI80: 2005-04-22 | BJ80: 29 | BK80: 2005-04-22 | BL80: -16.1 | BM80: 2005-04-21 | BN80: -29.22 | BO80: 2005-04-21 | BP80: 0.9 | BQ80: 2005-04-21 | BR80: -70 | BS80: 2005-04-21 | BT80: -2.2 | BU80: 2005-04-21 | BV80: 13.1 | BW80: 2005-04-21 | BX80: 72.1 | BY80: 2005-04-21 | BZ80: 1.304 | CA80: 2005-04-21 | CB80: 1.9083 | CC80: 2005-04-21 | CD80: 0.6833 | CE80: 2005-04-21 | CF80: 107.02 | CG80: 2005-04-21 | CH80: 1.2391 | CI80: 2005-04-21 | CJ80: 104.28 | CK80: 2005-04-21 | CL80: 83.7 | CM80: 2005-04-21 | CN80: 0.7751 | CO80: 2005-04-21 | CP80: 7.0413 | CQ80: 2005-04-21 | CR80: 6.2579 | CS80: 2005-04-21 | CT80: 31.54 | CU80: 2005-04-21 | CV80: 2.5495 | CW80: 2010-12-09 | CX80: 0.9996 | CY80: 2005-04-21 | CZ80: 9677 | DA80: 2005-04-21 | DB80: 43.755 | DC80: 2005-04-21 | DD80: 27.7085 | DE80: 2005-04-21 | DF80: 6.0785 | DG80: 2005-04-26 | DH80: 14.91 | DI80: 2005-04-22 | DJ80: 15.2649 | DK80: 2005-04-26 | DL80: 79.2 | DM80: 2005-04-25 | DN80: 1164 | DO80: 38464 | DP80: 1431.5 | DQ80: 2005-04-25 | DR80: 290.1 | DS80: 2005-04-25 | DT80: 31024
A81: 2005-04-22 | B81: 434.24 | C81: 2005-04-26 | D81: 2942 | E81: 2005-04-22 | F81: 3.597 | G81: 2005-04-22 | H81: 3.916 | I81: 2005-04-22 | J81: 4.2449 | K81: 2005-04-22 | L81: 4.5793 | M81: 2005-04-22 | N81: 2.312 | O81: 2005-04-22 | P81: 2.862 | Q81: 2005-04-22 | R81: 3.469 | S81: 2005-04-22 | T81: 4.033 | U81: 2005-04-22 | V81: 0.085 | W81: 2005-04-22 | X81: 0.495 | Y81: 2005-04-22 | Z81: 1.299 | AA81: 2005-04-22 | AB81: 2.29 | AC81: 2005-04-22 | AD81: 4.588 | AE81: 2005-04-22 | AF81: 4.58 | AG81: 2005-04-22 | AH81: 4.597 | AI81: 2005-04-22 | AJ81: 4.495 | AK81: 2005-04-22 | AL81: 2.334 | AM81: 2005-04-22 | AN81: 2.901 | AO81: 2005-04-22 | AP81: 3.627 | AQ81: 2005-04-22 | AR81: 4.288 | AS81: 2005-04-22 | AT81: 3.3 | AU81: 2005-04-22 | AV81: 2.8064 | AW81: 2005-04-22 | AX81: 2.6585 | AY81: 2005-04-22 | AZ81: 2.8571 | BA81: 2012-01-23 | BB81: 633.517 | BC81: 2012-01-25 | BD81: 394.25 | BE81: 2012-12-03 | BF81: 505.9 | BG81: 2008-01-25 | BH81: 110.131 | BI81: 2005-04-25 | BJ81: 29.167 | BK81: 2005-04-25 | BL81: -19.2 | BM81: 2005-04-22 | BN81: -28.59 | BO81: 2005-04-22 | BP81: 1 | BQ81: 2005-04-22 | BR81: -70.9 | BS81: 2005-04-22 | BT81: -3.4 | BU81: 2005-04-22 | BV81: 12 | BW81: 2005-04-22 | BX81: 69.3 | BY81: 2005-04-22 | BZ81: 1.3056 | CA81: 2005-04-22 | CB81: 1.9136 | CC81: 2005-04-22 | CD81: 0.68225 | CE81: 2005-04-22 | CF81: 105.92 | CG81: 2005-04-22 | CH81: 1.2369 | CI81: 2005-04-22 | CJ81: 104.55 | CK81: 2005-04-22 | CL81: 83.5 | CM81: 2005-04-22 | CN81: 0.7813 | CO81: 2005-04-22 | CP81: 7.0194 | CQ81: 2005-04-22 | CR81: 6.2457 | CS81: 2005-04-22 | CT81: 31.5 | CU81: 2005-04-22 | CV81: 2.5325 | CW81: 2010-12-10 | CX81: 0.9989 | CY81: 2005-04-22 | CZ81: 9675 | DA81: 2005-04-22 | DB81: 43.735 | DC81: 2005-04-22 | DD81: 27.709 | DE81: 2005-04-22 | DF81: 6.0447 | DG81: 2005-04-27 | DH81: 14.87 | DI81: 2005-04-25 | DJ81: 15.1246 | DK81: 2005-04-27 | DL81: 79.12 | DM81: 2005-04-26 | DN81: 1153.75 | DO81: 38467 | DP81: 1441.5 | DQ81: 2005-04-26 | DR81: 289.1 | DS81: 2005-04-26 | DT81: 30968
A82: 2005-04-25 | B82: 434.47 | C82: 2005-04-27 | D82: 2921 | E82: 2005-04-25 | F82: 3.6304 | G82: 2005-04-25 | H82: 3.9369 | I82: 2005-04-25 | J82: 4.2469 | K82: 2005-04-25 | L82: 4.5534 | M82: 2005-04-25 | N82: 2.309 | O82: 2005-04-25 | P82: 2.851 | Q82: 2005-04-25 | R82: 3.45 | S82: 2005-04-25 | T82: 4.01 | U82: 2005-04-25 | V82: 0.085 | W82: 2005-04-25 | X82: 0.475 | Y82: 2005-04-25 | Z82: 1.274 | AA82: 2005-04-25 | AB82: 2.265 | AC82: 2005-04-25 | AD82: 4.578 | AE82: 2005-04-25 | AF82: 4.569 | AG82: 2005-04-25 | AH82: 4.581 | AI82: 2005-04-25 | AJ82: 4.481 | AK82: 2005-04-25 | AL82: 2.329 | AM82: 2005-04-25 | AN82: 2.89 | AO82: 2005-04-25 | AP82: 3.608 | AQ82: 2005-04-25 | AR82: 4.263 | AS82: 2005-04-25 | AT82: 3.3298 | AU82: 2005-04-25 | AV82: 2.801 | AW82: 2005-04-25 | AX82: 2.6432 | AY82: 2005-04-25 | AZ82: 2.8224 | BA82: 2012-01-24 | BB82: 635.917 | BC82: 2012-01-26 | BD82: 368.5 | BE82: 2012-12-04 | BF82: 516.345 | BG82: 2008-01-28 | BH82: 119.035 | BI82: 2005-04-26 | BJ82: 29.25 | BK82: 2005-04-26 | BL82: -16.4 | BM82: 2005-04-25 | BN82: -30.51 | BO82: 2005-04-25 | BP82: 1.5 | BQ82: 2005-04-25 | BR82: -78.5 | BS82: 2005-04-25 | BT82: -7.6 | BU82: 2005-04-25 | BV82: 6.6 | BW82: 2005-04-25 | BX82: 56.7 | BY82: 2005-04-25 | BZ82: 1.2978 | CA82: 2005-04-25 | CB82: 1.9108 | CC82: 2005-04-25 | CD82: 0.67915 | CE82: 2005-04-25 | CF82: 105.64 | CG82: 2005-04-25 | CH82: 1.2393 | CI82: 2005-04-25 | CJ82: 104.52 | CK82: 2005-04-25 | CL82: 83.82 | CM82: 2005-04-25 | CN82: 0.7791 | CO82: 2005-04-25 | CP82: 7.0483 | CQ82: 2005-04-25 | CR82: 6.2715 | CS82: 2005-04-25 | CT82: 31.37 | CU82: 2005-04-25 | CV82: 2.5253 | CW82: 2010-12-13 | CX82: 0.9988 | CY82: 2005-04-25 | CZ82: 9754 | DA82: 2005-04-25 | DB82: 43.705 | DC82: 2005-04-25 | DD82: 27.7488 | DE82: 2005-04-25 | DF82: 6.0568 | DG82: 2005-04-28 | DH82: 16.86 | DI82: 2005-04-26 | DJ82: 15.0498 | DK82: 2005-04-28 | DL82: 78.25 | DM82: 2005-04-27 | DN82: 1157.25 | DO82: 38468 | DP82: 1429 | DQ82: 2005-04-27 | DR82: 287.6 | DS82: 2005-04-27 | DT82: 30557
A83: 2005-04-26 | B83: 436.92 | C83: 2005-04-28 | D83: 2899 | E83: 2005-04-26 | F83: 3.6472 | G83: 2005-04-26 | H83: 3.9543 | I83: 2005-04-26 | J83: 4.2649 | K83: 2005-04-26 | L83: 4.5715 | M83: 2005-04-26 | N83: 2.312 | O83: 2005-04-26 | P83: 2.855 | Q83: 2005-04-26 | R83: 3.449 | S83: 2005-04-26 | T83: 3.996 | U83: 2005-04-26 | V83: 0.081 | W83: 2005-04-26 | X83: 0.465 | Y83: 2005-04-26 | Z83: 1.264 | AA83: 2005-04-26 | AB83: 2.254 | AC83: 2005-04-26 | AD83: 4.563 | AE83: 2005-04-26 | AF83: 4.56 | AG83: 2005-04-26 | AH83: 4.579 | AI83: 2005-04-26 | AJ83: 4.486 | AK83: 2005-04-26 | AL83: 2.333 | AM83: 2005-04-26 | AN83: 2.897 | AO83: 2005-04-26 | AP83: 3.609 | AQ83: 2005-04-26 | AR83: 4.259 | AS83: 2005-04-26 | AT83: 3.2719 | AU83: 2005-04-26 | AV83: 2.7987 | AW83: 2005-04-26 | AX83: 2.628 | AY83: 2005-04-26 | AZ83: 2.7939 | BA83: 2012-01-25 | BB83: 635.5 | BC83: 2012-01-27 | BD83: 367.5 | BE83: 2012-12-05 | BF83: 495.557 | BG83: 2008-01-29 | BH83: 112.526 | BI83: 2005-04-27 | BJ83: 28.833 | BK83: 2005-04-27 | BL83: -19 | BM83: 2005-04-26 | BN83: -24.53 | BO83: 2005-04-26 | BP83: 12.3 | BQ83: 2005-04-26 | BR83: -79.9 | BS83: 2005-04-26 | BT83: -7.5 | BU83: 2005-04-26 | BV83: 6.9 | BW83: 2005-04-26 | BX83: 56.1 | BY83: 2005-04-26 | BZ83: 1.2961 | CA83: 2005-04-26 | CB83: 1.904 | CC83: 2005-04-26 | CD83: 0.68065 | CE83: 2005-04-26 | CF83: 106.07 | CG83: 2005-04-26 | CH83: 1.2466 | CI83: 2005-04-26 | CJ83: 104.44 | CK83: 2005-04-26 | CL83: 83.96 | CM83: 2005-04-26 | CN83: 0.7774 | CO83: 2005-04-26 | CP83: 7.0599 | CQ83: 2005-04-26 | CR83: 6.2769 | CS83: 2005-04-26 | CT83: 31.41 | CU83: 2005-04-26 | CV83: 2.544 | CW83: 2010-12-14 | CX83: 0.9997 | CY83: 2005-04-26 | CZ83: 9694 | DA83: 2005-04-26 | DB83: 43.67 | DC83: 2005-04-26 | DD83: 27.7538 | DE83: 2005-04-26 | DF83: 6.1 | DG83: 2005-04-29 | DH83: 15.31 | DI83: 2005-04-27 | DJ83: 16.5913 | DK83: 2005-04-29 | DL83: 82.53 | DM83: 2005-04-28 | DN83: 1143 | DO83: 38469 | DP83: 1427 | DQ83: 2005-04-28 | DR83: 284.6 | DS83: 2005-04-28 | DT83: 30496
A84: 2005-04-27 | B84: 432.42 | C84: 2005-04-29 | D84: 2908 | E84: 2005-04-27 | F84: 3.6131 | G84: 2005-04-27 | H84: 3.9089 | I84: 2005-04-27 | J84: 4.2232 | K84: 2005-04-27 | L84: 4.5476 | M84: 2005-04-27 | N84: 2.282 | O84: 2005-04-27 | P84: 2.818 | Q84: 2005-04-27 | R84: 3.413 | S84: 2005-04-27 | T84: 3.96 | U84: 2005-04-27 | V84: 0.09 | W84: 2005-04-27 | X84: 0.464 | Y84: 2005-04-27 | Z84: 1.265 | AA84: 2005-04-27 | AB84: 2.264 | AC84: 2005-04-27 | AD84: 4.543 | AE84: 2005-04-27 | AF84: 4.535 | AG84: 2005-04-27 | AH84: 4.555 | AI84: 2005-04-27 | AJ84: 4.472 | AK84: 2005-04-27 | AL84: 2.305 | AM84: 2005-04-27 | AN84: 2.86 | AO84: 2005-04-27 | AP84: 3.578 | AQ84: 2005-04-27 | AR84: 4.223 | AS84: 2005-04-27 | AT84: 3.2513 | AU84: 2005-04-27 | AV84: 2.7531 | AW84: 2005-04-27 | AX84: 2.5898 | AY84: 2005-04-27 | AZ84: 2.7627 | BA84: 2012-01-26 | BB84: 602.25 | BC84: 2012-01-30 | BD84: 393.125 | BE84: 2012-12-06 | BF84: 489.669 | BG84: 2008-01-30 | BH84: 115.63 | BI84: 2005-04-28 | BJ84: 29.063 | BK84: 2005-04-28 | BL84: -21.9 | BM84: 2005-04-27 | BN84: -28.64 | BO84: 2005-04-27 | BP84: 10.4 | BQ84: 2005-04-27 | BR84: -94.5 | BS84: 2005-04-27 | BT84: -6 | BU84: 2005-04-27 | BV84: 8.6 | BW84: 2005-04-27 | BX84: 55.4 | BY84: 2005-04-27 | BZ84: 1.2936 | CA84: 2005-04-27 | CB84: 1.9036 | CC84: 2005-04-27 | CD84: 0.67955 | CE84: 2005-04-27 | CF84: 106.05 | CG84: 2005-04-27 | CH84: 1.2492 | CI84: 2005-04-27 | CJ84: 104.54 | CK84: 2005-04-27 | CL84: 84.12 | CM84: 2005-04-27 | CN84: 0.7757 | CO84: 2005-04-27 | CP84: 7.0663 | CQ84: 2005-04-27 | CR84: 6.2829 | CS84: 2005-04-27 | CT84: 31.44 | CU84: 2005-04-27 | CV84: 2.515 | CW84: 2010-12-15 | CX84: 0.9996 | CY84: 2005-04-27 | CZ84: 9555 | DA84: 2005-04-27 | DB84: 43.7213 | DC84: 2005-04-27 | DD84: 27.73 | DE84: 2005-04-27 | DF84: 6.075 | DG84: 2005-05-02 | DH84: 15.12 | DI84: 2005-04-28 | DJ84: 16.5344 | DK84: 2005-05-02 | DL84: 82.3 | DM84: 2005-04-29 | DN84: 1158.5 | DO84: 38470 | DP84: 1412.5 | DQ84: 2005-04-29 | DR84: 282.9 | DS84: 2005-04-29 | DT84: 30544
A85: 2005-04-28 | B85: 431.61 | C85: 2005-05-02 | D85: 2925 | E85: 2005-04-28 | F85: 3.5594 | G85: 2005-04-28 | H85: 3.8115 | I85: 2005-04-28 | J85: 4.1442 | K85: 2005-04-28 | L85: 4.4851 | M85: 2005-04-28 | N85: 2.257 | O85: 2005-04-28 | P85: 2.796 | Q85: 2005-04-28 | R85: 3.398 | S85: 2005-04-28 | T85: 3.959 | U85: 2005-04-28 | V85: 0.09 | W85: 2005-04-28 | X85: 0.449 | Y85: 2005-04-28 | Z85: 1.245 | AA85: 2005-04-28 | AB85: 2.25 | AC85: 2005-04-28 | AD85: 4.515 | AE85: 2005-04-28 | AF85: 4.506 | AG85: 2005-04-28 | AH85: 4.538 | AI85: 2005-04-28 | AJ85: 4.458 | AK85: 2005-04-28 | AL85: 2.28 | AM85: 2005-04-28 | AN85: 2.843 | AO85: 2005-04-28 | AP85: 3.568 | AQ85: 2005-04-28 | AR85: 4.218 | AS85: 2005-04-28 | AT85: 3.2376 | AU85: 2005-04-28 | AV85: 2.7404 | AW85: 2005-04-28 | AX85: 2.6219 | AY85: 2005-04-28 | AZ85: 2.7922 | BA85: 2012-01-27 | BB85: 605 | BC85: 2012-01-31 | BD85: 383.333 | BE85: 2012-12-07 | BF85: 486.705 | BG85: 2008-01-31 | BH85: 125.229 | BI85: 2005-04-29 | BJ85: 30.063 | BK85: 2005-04-29 | BL85: -19.9 | BM85: 2005-04-28 | BN85: -32.94 | BO85: 2005-04-28 | BP85: 2.8 | BQ85: 2005-04-28 | BR85: -95.1 | BS85: 2005-04-28 | BT85: -6.6 | BU85: 2005-04-28 | BV85: 8.2 | BW85: 2005-04-28 | BX85: 54.6 | BY85: 2005-04-28 | BZ85: 1.2896 | CA85: 2005-04-28 | CB85: 1.9077 | CC85: 2005-04-28 | CD85: 0.67602 | CE85: 2005-04-28 | CF85: 105.93 | CG85: 2005-04-28 | CH85: 1.2522 | CI85: 2005-04-28 | CJ85: 104.47 | CK85: 2005-04-28 | CL85: 84.35 | CM85: 2005-04-28 | CN85: 0.7792 | CO85: 2005-04-28 | CP85: 7.1012 | CQ85: 2005-04-28 | CR85: 6.3122 | CS85: 2005-04-28 | CT85: 31.424 | CU85: 2005-04-28 | CV85: 2.5255 | CW85: 2010-12-16 | CX85: 0.998 | CY85: 2005-04-28 | CZ85: 9575 | DA85: 2005-04-28 | DB85: 43.705 | DC85: 2005-04-28 | DD85: 27.803 | DE85: 2005-04-28 | DF85: 6.1276 | DG85: 2005-05-03 | DH85: 14.53 | DI85: 2005-04-29 | DJ85: 16.792 | DK85: 2005-05-03 | DL85: 81.5 | DM85: 2005-05-02 | DN85: 1163.5 | DO85: 38471 | DP85: 1425.5 | DQ85: 2005-05-02 | DR85: 285.2 | DS85: 2005-05-02 | DT85: 30797
A86: 2005-04-29 | B86: 436.01 | C86: 2005-05-03 | D86: 2941 | E86: 2005-04-29 | F86: 3.6495 | G86: 2005-04-29 | H86: 3.8947 | I86: 2005-04-29 | J86: 4.1976 | K86: 2005-04-29 | L86: 4.5133 | M86: 2005-04-29 | N86: 2.248 | O86: 2005-04-29 | P86: 2.79 | Q86: 2005-04-29 | R86: 3.396 | S86: 2005-04-29 | T86: 3.948 | U86: 2005-04-29 | V86: 0.09 | W86: 2005-04-29 | X86: 0.45 | Y86: 2005-04-29 | Z86: 1.245 | AA86: 2005-04-29 | AB86: 2.25 | AC86: 2005-04-29 | AD86: 4.518 | AE86: 2005-04-29 | AF86: 4.502 | AG86: 2005-04-29 | AH86: 4.531 | AI86: 2005-04-29 | AJ86: 4.439 | AK86: 2005-04-29 | AL86: 2.271 | AM86: 2005-04-29 | AN86: 2.839 | AO86: 2005-04-29 | AP86: 3.57 | AQ86: 2005-04-29 | AR86: 4.209 | AS86: 2005-04-29 | AT86: 3.2173 | AU86: 2005-04-29 | AV86: 2.7448 | AW86: 2005-04-29 | AX86: 2.6026 | AY86: 2005-04-29 | AZ86: 2.7883 | BA86: 2012-01-30 | BB86: 636.125 | BC86: 2012-02-01 | BD86: 361 | BE86: 2012-12-10 | BF86: 475.728 | BG86: 2008-02-01 | BH86: 123.112 | BI86: 2005-05-02 | BJ86: 30.25 | BK86: 2005-05-02 | BL86: -21.8 | BM86: 2005-04-29 | BN86: -30.55 | BO86: 2005-04-29 | BP86: 6.3 | BQ86: 2005-04-29 | BR86: -93.5 | BS86: 2005-04-29 | BT86: -4.9 | BU86: 2005-04-29 | BV86: 10.9 | BW86: 2005-04-29 | BX86: 53.9 | BY86: 2005-04-29 | BZ86: 1.2904 | CA86: 2005-04-29 | CB86: 1.9102 | CC86: 2005-04-29 | CD86: 0.67545 | CE86: 2005-04-29 | CF86: 104.77 | CG86: 2005-04-29 | CH86: 1.2558 | CI86: 2005-04-29 | CJ86: 104.94 | CK86: 2005-04-29 | CL86: 84.43 | CM86: 2005-04-29 | CN86: 0.7823 | CO86: 2005-04-29 | CP86: 7.1285 | CQ86: 2005-04-29 | CR86: 6.2895 | CS86: 2005-04-29 | CT86: 31.271 | CU86: 2005-04-29 | CV86: 2.5328 | CW86: 2010-12-17 | CX86: 0.9983 | CY86: 2005-04-29 | CZ86: 9560 | DA86: 2005-04-29 | DB86: 43.535 | DC86: 2005-04-29 | DD86: 27.781 | DE86: 2005-04-29 | DF86: 6.0744 | DG86: 2005-05-04 | DH86: 13.85 | DI86: 2005-05-02 | DJ86: 15.9563 | DK86: 2005-05-04 | DL86: 86.9 | DM86: 2005-05-03 | DN86: 1166 | DO86: 38474 | DP86: 1427.5 | DQ86: 2005-05-03 | DR86: 288.5 | DS86: 2005-05-03 | DT86: 30846
A87: 2005-05-02 | B87: 429.49 | C87: 2005-05-04 | D87: 2969 | E87: 2005-05-02 | F87: 3.6249 | G87: 2005-05-02 | H87: 3.8737 | I87: 2005-05-02 | J87: 4.1858 | K87: 2005-05-02 | L87: 4.5132 | M87: 2005-05-02 | N87: 2.249 | O87: 2005-05-02 | P87: 2.787 | Q87: 2005-05-02 | R87: 3.399 | S87: 2005-05-02 | T87: 3.951 | U87: 2005-05-02 | V87: 0.085 | W87: 2005-05-02 | X87: 0.439 | Y87: 2005-05-02 | Z87: 1.24 | AA87: 2005-05-02 | AB87: 2.25 | AC87: 2005-05-02 | AD87: 4.517 | AE87: 2005-05-02 | AF87: 4.501 | AG87: 2005-05-02 | AH87: 4.53 | AI87: 2005-05-02 | AJ87: 4.438 | AK87: 2005-05-02 | AL87: 2.272 | AM87: 2005-05-02 | AN87: 2.838 | AO87: 2005-05-02 | AP87: 3.572 | AQ87: 2005-05-02 | AR87: 4.215 | AS87: 2005-05-02 | AT87: 3.1883 | AU87: 2005-05-02 | AV87: 2.7237 | AW87: 2005-05-02 | AX87: 2.603 | AY87: 2005-05-02 | AZ87: 2.7919 | BA87: 2012-01-31 | BB87: 620.417 | BC87: 2012-02-02 | BD87: 351.792 | BE87: 2012-12-11 | BF87: 467.713 | BG87: 2008-02-04 | BH87: 118.335 | BI87: 2005-05-03 | BJ87: 30.417 | BK87: 2005-05-03 | BL87: -23.7 | BM87: 2005-05-02 | BN87: -32.01 | BO87: 2005-05-02 | BP87: 2.2 | BQ87: 2005-05-02 | BR87: -97.6 | BS87: 2005-05-02 | BT87: -6.2 | BU87: 2005-05-02 | BV87: 8.6 | BW87: 2005-05-02 | BX87: 51.3 | BY87: 2005-05-02 | BZ87: 1.2845 | CA87: 2005-05-02 | CB87: 1.893 | CC87: 2005-05-02 | CD87: 0.67845 | CE87: 2005-05-02 | CF87: 105.04 | CG87: 2005-05-02 | CH87: 1.254 | CI87: 2005-05-02 | CJ87: 104.68 | CK87: 2005-05-02 | CL87: 84.49 | CM87: 2005-05-02 | CN87: 0.7793 | CO87: 2005-05-02 | CP87: 7.1662 | CQ87: 2005-05-02 | CR87: 6.3308 | CS87: 2005-05-02 | CT87: 31.273 | CU87: 2005-05-02 | CV87: 2.5159 | CW87: 2010-12-20 | CX87: 0.999 | CY87: 2005-05-02 | CZ87: 9525 | DA87: 2005-05-02 | DB87: 43.575 | DC87: 2005-05-02 | DD87: 27.781 | DE87: 2005-05-02 | DF87: 6.1032 | DG87: 2005-05-05 | DH87: 13.98 | DI87: 2005-05-03 | DJ87: 15.148 | DK87: 2005-05-05 | DL87: 82.98 | DM87: 2005-05-04 | DN87: 1175.25 | DO87: 38475 | DP87: 1438 | DQ87: 2005-05-04 | DR87: 291.5 | DS87: 2005-05-04 | DT87: 30886
A88: 2005-05-03 | B88: 427.3 | C88: 2005-05-05 | D88: 2969 | E88: 2005-05-03 | F88: 3.633 | G88: 2005-05-03 | H88: 3.8631 | I88: 2005-05-03 | J88: 4.1641 | K88: 2005-05-03 | L88: 4.482 | M88: 2005-05-03 | N88: 2.223 | O88: 2005-05-03 | P88: 2.764 | Q88: 2005-05-03 | R88: 3.378 | S88: 2005-05-03 | T88: 3.936 | U88: 2005-05-03 | V88: 0.085 | W88: 2005-05-03 | X88: 0.44 | Y88: 2005-05-03 | Z88: 1.24 | AA88: 2005-05-03 | AB88: 2.25 | AC88: 2005-05-03 | AD88: 4.5 | AE88: 2005-05-03 | AF88: 4.483 | AG88: 2005-05-03 | AH88: 4.512 | AI88: 2005-05-03 | AJ88: 4.424 | AK88: 2005-05-03 | AL88: 2.245 | AM88: 2005-05-03 | AN88: 2.809 | AO88: 2005-05-03 | AP88: 3.548 | AQ88: 2005-05-03 | AR88: 4.198 | AS88: 2005-05-03 | AT88: 3.1474 | AU88: 2005-05-03 | AV88: 2.667 | AW88: 2005-05-03 | AX88: 2.5673 | AY88: 2005-05-03 | AZ88: 2.7639 | BA88: 2012-02-01 | BB88: 586.031 | BC88: 2012-02-03 | BD88: 338 | BE88: 2012-12-12 | BF88: 469.883 | BG88: 2008-02-05 | BH88: 125.817 | BI88: 2005-05-04 | BJ88: 30.417 | BK88: 2005-05-04 | BL88: -23.8 | BM88: 2005-05-03 | BN88: -32.79 | BO88: 2005-05-03 | BP88: 3 | BQ88: 2005-05-03 | BR88: -100.4 | BS88: 2005-05-03 | BT88: -9.6 | BU88: 2005-05-03 | BV88: 8.2 | BW88: 2005-05-03 | BX88: 50.4 | BY88: 2005-05-03 | BZ88: 1.2891 | CA88: 2005-05-03 | CB88: 1.8917 | CC88: 2005-05-03 | CD88: 0.68149 | CE88: 2005-05-03 | CF88: 105.09 | CG88: 2005-05-03 | CH88: 1.255 | CI88: 2005-05-03 | CJ88: 104.7 | CK88: 2005-05-03 | CL88: 84.51 | CM88: 2005-05-03 | CN88: 0.7737 | CO88: 2005-05-03 | CP88: 7.1301 | CQ88: 2005-05-03 | CR88: 6.3056 | CS88: 2005-05-03 | CT88: 31.273 | CU88: 2005-05-03 | CV88: 2.5 | CW88: 2010-12-21 | CX88: 1.0002 | CY88: 2005-05-03 | CZ88: 9530 | DA88: 2005-05-03 | DB88: 43.59 | DC88: 2005-05-03 | DD88: 27.805 | DE88: 2005-05-03 | DF88: 6.1233 | DG88: 2005-05-06 | DH88: 14.05 | DI88: 2005-05-04 | DJ88: 14.3329 | DK88: 2005-05-06 | DL88: 78.4 | DM88: 2005-05-05 | DN88: 1175 | DO88: 38476 | DP88: 1452 | DQ88: 2005-05-05 | DR88: 290.2 | DS88: 2005-05-05 | DT88: 31078
A89: 2005-05-04 | B89: 429.44 | C89: 2005-05-06 | D89: 2991 | E89: 2005-05-04 | F89: 3.6083 | G89: 2005-05-04 | H89: 3.8526 | I89: 2005-05-04 | J89: 4.1859 | K89: 2005-05-04 | L89: 4.5903 | M89: 2005-05-04 | N89: 2.242 | O89: 2005-05-04 | P89: 2.794 | Q89: 2005-05-04 | R89: 3.416 | S89: 2005-05-04 | T89: 3.988 | U89: 2005-05-04 | V89: 0.085 | W89: 2005-05-04 | X89: 0.44 | Y89: 2005-05-04 | Z89: 1.24 | AA89: 2005-05-04 | AB89: 2.25 | AC89: 2005-05-04 | AD89: 4.509 | AE89: 2005-05-04 | AF89: 4.51 | AG89: 2005-05-04 | AH89: 4.547 | AI89: 2005-05-04 | AJ89: 4.469 | AK89: 2005-05-04 | AL89: 2.264 | AM89: 2005-05-04 | AN89: 2.835 | AO89: 2005-05-04 | AP89: 3.584 | AQ89: 2005-05-04 | AR89: 4.25 | AS89: 2005-05-04 | AT89: 3.1183 | AU89: 2005-05-04 | AV89: 2.676 | AW89: 2005-05-04 | AX89: 2.5909 | AY89: 2005-05-04 | AZ89: 2.8178 | BA89: 2012-02-02 | BB89: 578.167 | BC89: 2012-02-06 | BD89: 336 | BE89: 2012-12-13 | BF89: 477.278 | BG89: 2008-02-06 | BH89: 116.88 | BI89: 2005-05-05 | BJ89: 30.125 | BK89: 2005-05-05 | BL89: -24.2 | BM89: 2005-05-04 | BN89: -33.19 | BO89: 2005-05-04 | BP89: 4.6 | BQ89: 2005-05-04 | BR89: -105.5 | BS89: 2005-05-04 | BT89: -8.6 | BU89: 2005-05-04 | BV89: 9.1 | BW89: 2005-05-04 | BX89: 49.4 | BY89: 2005-05-04 | BZ89: 1.2937 | CA89: 2005-05-04 | CB89: 1.9001 | CC89: 2005-05-04 | CD89: 0.68083 | CE89: 2005-05-04 | CF89: 104.77 | CG89: 2005-05-04 | CH89: 1.2501 | CI89: 2005-05-04 | CJ89: 104.88 | CK89: 2005-05-04 | CL89: 84 | CM89: 2005-05-04 | CN89: 0.7779 | CO89: 2005-05-04 | CP89: 7.0935 | CQ89: 2005-05-04 | CR89: 6.2664 | CS89: 2005-05-04 | CT89: 31.06 | CU89: 2005-05-04 | CV89: 2.4737 | CW89: 2010-12-22 | CX89: 0.9999 | CY89: 2005-05-04 | CZ89: 9510 | DA89: 2005-05-04 | DB89: 43.5238 | DC89: 2005-05-04 | DD89: 27.7886 | DE89: 2005-05-04 | DF89: 5.9902 | DG89: 2005-05-09 | DH89: 13.75 | DI89: 2005-05-05 | DJ89: 13.5342 | DK89: 2005-05-09 | DL89: 78.7 | DM89: 2005-05-06 | DN89: 1171.25 | DO89: 38477 | DP89: 1456.5 | DQ89: 2005-05-06 | DR89: 291.6 | DS89: 2005-05-06 | DT89: 31010
A90: 2005-05-05 | B90: 429.15 | C90: 2005-05-09 | D90: 2994 | E90: 2005-05-05 | F90: 3.5425 | G90: 2005-05-05 | H90: 3.8037 | I90: 2005-05-05 | J90: 4.1543 | K90: 2005-05-05 | L90: 4.5769 | M90: 2005-05-05 | N90: 2.229 | O90: 2005-05-05 | P90: 2.781 | Q90: 2005-05-05 | R90: 3.401 | S90: 2005-05-05 | T90: 3.985 | U90: 2005-05-05 | V90: 0.085 | W90: 2005-05-05 | X90: 0.44 | Y90: 2005-05-05 | Z90: 1.24 | AA90: 2005-05-05 | AB90: 2.25 | AC90: 2005-05-05 | AD90: 4.48 | AE90: 2005-05-05 | AF90: 4.488 | AG90: 2005-05-05 | AH90: 4.527 | AI90: 2005-05-05 | AJ90: 4.453 | AK90: 2005-05-05 | AL90: 2.25 | AM90: 2005-05-05 | AN90: 2.82 | AO90: 2005-05-05 | AP90: 3.567 | AQ90: 2005-05-05 | AR90: 4.243 | AS90: 2005-05-05 | AT90: 3.048 | AU90: 2005-05-05 | AV90: 2.6467 | AW90: 2005-05-05 | AX90: 2.5645 | AY90: 2005-05-05 | AZ90: 2.8118 | BA90: 2012-02-03 | BB90: 548.5 | BC90: 2012-02-07 | BD90: 332 | BE90: 2012-12-14 | BF90: 480.301 | BG90: 2008-02-07 | BH90: 131.65 | BI90: 2005-05-06 | BJ90: 29.813 | BK90: 2005-05-06 | BL90: -19.8 | BM90: 2005-05-05 | BN90: -33.12 | BO90: 2005-05-05 | BP90: 4.4 | BQ90: 2005-05-05 | BR90: -105.2 | BS90: 2005-05-05 | BT90: -9.6 | BU90: 2005-05-05 | BV90: 8.7 | BW90: 2005-05-05 | BX90: 48.3 | BY90: 2005-05-05 | BZ90: 1.2954 | CA90: 2005-05-05 | CB90: 1.9068 | CC90: 2005-05-05 | CD90: 0.67935 | CE90: 2005-05-05 | CF90: 104.36 | CG90: 2005-05-05 | CH90: 1.244 | CI90: 2005-05-05 | CJ90: 104.91 | CK90: 2005-05-05 | CL90: 83.94 | CM90: 2005-05-05 | CN90: 0.7817 | CO90: 2005-05-05 | CP90: 7.0737 | CQ90: 2005-05-05 | CR90: 6.256 | CS90: 2005-05-05 | CT90: 31.14 | CU90: 2005-05-05 | CV90: 2.483 | CW90: 2010-12-23 | CX90: 1.0004 | CY90: 2005-05-05 | CZ90: 9518 | DA90: 2005-05-05 | DB90: 43.415 | DC90: 2005-05-05 | DD90: 27.8 | DE90: 2005-05-05 | DF90: 5.9682 | DG90: 2005-05-10 | DH90: 14.91 | DI90: 2005-05-06 | DJ90: 13.3008 | DK90: 2005-05-10 | DL90: 78.9 | DM90: 2005-05-09 | DN90: 1178.25 | DO90: 38478 | DP90: 1458 | DQ90: 2005-05-09 | DR90: 292.4 | DS90: 2005-05-09 | DT90: 30949
A91: 2005-05-06 | B91: 425.3 | C91: 2005-05-10 | D91: 2959 | E91: 2005-05-06 | F91: 3.7156 | G91: 2005-05-06 | H91: 3.9503 | I91: 2005-05-06 | J91: 4.2576 | K91: 2005-05-06 | L91: 4.6278 | M91: 2005-05-06 | N91: 2.267 | O91: 2005-05-06 | P91: 2.834 | Q91: 2005-05-06 | R91: 3.445 | S91: 2005-05-06 | T91: 4.008 | U91: 2005-05-06 | V91: 0.082 | W91: 2005-05-06 | X91: 0.43 | Y91: 2005-05-06 | Z91: 1.226 | AA91: 2005-05-06 | AB91: 2.263 | AC91: 2005-05-06 | AD91: 4.518 | AE91: 2005-05-06 | AF91: 4.546 | AG91: 2005-05-06 | AH91: 4.597 | AI91: 2005-05-06 | AJ91: 4.524 | AK91: 2005-05-06 | AL91: 2.287 | AM91: 2005-05-06 | AN91: 2.879 | AO91: 2005-05-06 | AP91: 3.611 | AQ91: 2005-05-06 | AR91: 4.269 | AS91: 2005-05-06 | AT91: 3.09 | AU91: 2005-05-06 | AV91: 2.6739 | AW91: 2005-05-06 | AX91: 2.5926 | AY91: 2005-05-06 | AZ91: 2.8258 | BA91: 2012-02-06 | BB91: 551.5 | BC91: 2012-02-08 | BD91: 343.292 | BE91: 2012-12-17 | BF91: 464.691 | BG91: 2008-02-08 | BH91: 131.315 | BI91: 2005-05-09 | BJ91: 30.563 | BK91: 2005-05-09 | BL91: -21.2 | BM91: 2005-05-06 | BN91: -25.01 | BO91: 2005-05-06 | BP91: 14.5 | BQ91: 2005-05-06 | BR91: -91.7 | BS91: 2005-05-06 | BT91: -11.6 | BU91: 2005-05-06 | BV91: 7 | BW91: 2005-05-06 | BX91: 47.1 | BY91: 2005-05-06 | BZ91: 1.2838 | CA91: 2005-05-06 | CB91: 1.8926 | CC91: 2005-05-06 | CD91: 0.67833 | CE91: 2005-05-06 | CF91: 104.78 | CG91: 2005-05-06 | CH91: 1.2396 | CI91: 2005-05-06 | CJ91: 104.81 | CK91: 2005-05-06 | CL91: 84.62 | CM91: 2005-05-06 | CN91: 0.7758 | CO91: 2005-05-06 | CP91: 7.1488 | CQ91: 2005-05-06 | CR91: 6.323 | CS91: 2005-05-06 | CT91: 31.15 | CU91: 2005-05-06 | CV91: 2.4645 | CW91: 2010-12-24 | CX91: 1.0039 | CY91: 2005-05-06 | CZ91: 9495 | DA91: 2005-05-06 | DB91: 43.435 | DC91: 2005-05-06 | DD91: 27.8195 | DE91: 2005-05-06 | DF91: 6.044 | DG91: 2005-05-11 | DH91: 14.45 | DI91: 2005-05-09 | DJ91: 14.2322 | DK91: 2005-05-11 | DL91: 83 | DM91: 2005-05-10 | DN91: 1166.25 | DO91: 38481 | DP91: 1463.5 | DQ91: 2005-05-10 | DR91: 288.7 | DS91: 2005-05-10 | DT91: 30673
A92: 2005-05-09 | B92: 426.34 | C92: 2005-05-11 | D92: 2951 | E92: 2005-05-09 | F92: 3.7489 | G92: 2005-05-09 | H92: 3.9854 | I92: 2005-05-09 | J92: 4.2816 | K92: 2005-05-09 | L92: 4.6239 | M92: 2005-05-09 | N92: 2.253 | O92: 2005-05-09 | P92: 2.814 | Q92: 2005-05-09 | R92: 3.417 | S92: 2005-05-09 | T92: 3.97 | U92: 2005-05-09 | V92: 0.089 | W92: 2005-05-09 | X92: 0.475 | Y92: 2005-05-09 | Z92: 1.289 | AA92: 2005-05-09 | AB92: 2.315 | AC92: 2005-05-09 | AD92: 4.49 | AE92: 2005-05-09 | AF92: 4.516 | AG92: 2005-05-09 | AH92: 4.563 | AI92: 2005-05-09 | AJ92: 4.493 | AK92: 2005-05-09 | AL92: 2.276 | AM92: 2005-05-09 | AN92: 2.854 | AO92: 2005-05-09 | AP92: 3.582 | AQ92: 2005-05-09 | AR92: 4.227 | AS92: 2005-05-09 | AT92: 3.1186 | AU92: 2005-05-09 | AV92: 2.7221 | AW92: 2005-05-09 | AX92: 2.6166 | AY92: 2005-05-09 | AZ92: 2.8281 | BA92: 2012-02-07 | BB92: 554.292 | BC92: 2012-02-09 | BD92: 339 | BE92: 2012-12-18 | BF92: 451.626 | BG92: 2008-02-11 | BH92: 148.909 | BI92: 2005-05-10 | BJ92: 30.75 | BK92: 2005-05-10 | BL92: -21.7 | BM92: 2005-05-09 | BN92: -27.43 | BO92: 2005-05-09 | BP92: 13.1 | BQ92: 2005-05-09 | BR92: -93.8 | BS92: 2005-05-09 | BT92: -10.8 | BU92: 2005-05-09 | BV92: 7.2 | BW92: 2005-05-09 | BX92: 43.1 | BY92: 2005-05-09 | BZ92: 1.2832 | CA92: 2005-05-09 | CB92: 1.8821 | CC92: 2005-05-09 | CD92: 0.6817 | CE92: 2005-05-09 | CF92: 105.63 | CG92: 2005-05-09 | CH92: 1.2377 | CI92: 2005-05-09 | CJ92: 104.6 | CK92: 2005-05-09 | CL92: 84.64 | CM92: 2005-05-09 | CN92: 0.7726 | CO92: 2005-05-09 | CP92: 7.1513 | CQ92: 2005-05-09 | CR92: 6.3314 | CS92: 2005-05-09 | CT92: 31.225 | CU92: 2005-05-09 | CV92: 2.4523 | CW92: 2010-12-27 | CX92: 1.0009 | CY92: 2005-05-09 | CZ92: 9485 | DA92: 2005-05-09 | DB92: 43.48 | DC92: 2005-05-09 | DD92: 27.8195 | DE92: 2005-05-09 | DF92: 6.1311 | DG92: 2005-05-12 | DH92: 16.12 | DI92: 2005-05-10 | DJ92: 15.2831 | DK92: 2005-05-12 | DL92: 82.17 | DM92: 2005-05-11 | DN92: 1172.5 | DO92: 38482 | DP92: 1454 | DQ92: 2005-05-11 | DR92: 289.2 | DS92: 2005-05-11 | DT92: 30736
A93: 2005-05-10 | B93: 427.91 | C93: 2005-05-12 | D93: 2967 | E93: 2005-05-10 | F93: 3.666 | G93: 2005-05-10 | H93: 3.8975 | I93: 2005-05-10 | J93: 4.2 | K93: 2005-05-10 | L93: 4.568 | M93: 2005-05-10 | N93: 2.216 | O93: 2005-05-10 | P93: 2.758 | Q93: 2005-05-10 | R93: 3.36 | S93: 2005-05-10 | T93: 3.909 | U93: 2005-05-10 | V93: 0.09 | W93: 2005-05-10 | X93: 0.48 | Y93: 2005-05-10 | Z93: 1.295 | AA93: 2005-05-10 | AB93: 2.32 | AC93: 2005-05-10 | AD93: 4.464 | AE93: 2005-05-10 | AF93: 4.475 | AG93: 2005-05-10 | AH93: 4.509 | AI93: 2005-05-10 | AJ93: 4.443 | AK93: 2005-05-10 | AL93: 2.239 | AM93: 2005-05-10 | AN93: 2.798 | AO93: 2005-05-10 | AP93: 3.52 | AQ93: 2005-05-10 | AR93: 4.169 | AS93: 2005-05-10 | AT93: 3.1036 | AU93: 2005-05-10 | AV93: 2.6837 | AW93: 2005-05-10 | AX93: 2.5876 | AY93: 2005-05-10 | AZ93: 2.8108 | BA93: 2012-02-08 | BB93: 562.133 | BC93: 2012-02-10 | BD93: 362.5 | BE93: 2012-12-19 | BF93: 457.364 | BG93: 2008-02-12 | BH93: 155.965 | BI93: 2005-05-11 | BJ93: 32.5 | BK93: 2005-05-11 | BL93: -14 | BM93: 2005-05-10 | BN93: -27.15 | BO93: 2005-05-10 | BP93: 12.4 | BQ93: 2005-05-10 | BR93: -93.5 | BS93: 2005-05-10 | BT93: -12.7 | BU93: 2005-05-10 | BV93: 4.2 | BW93: 2005-05-10 | BX93: 41.4 | BY93: 2005-05-10 | BZ93: 1.2876 | CA93: 2005-05-10 | CB93: 1.8819 | CC93: 2005-05-10 | CD93: 0.68425 | CE93: 2005-05-10 | CF93: 105.59 | CG93: 2005-05-10 | CH93: 1.2374 | CI93: 2005-05-10 | CJ93: 104.72 | CK93: 2005-05-10 | CL93: 84.45 | CM93: 2005-05-10 | CN93: 0.7759 | CO93: 2005-05-10 | CP93: 7.1537 | CQ93: 2005-05-10 | CR93: 6.2885 | CS93: 2005-05-10 | CT93: 31.214 | CU93: 2005-05-10 | CV93: 2.469 | CW93: 2010-12-28 | CX93: 1.0008 | CY93: 2005-05-10 | CZ93: 9450 | DA93: 2005-05-10 | DB93: 43.435 | DC93: 2005-05-10 | DD93: 27.8195 | DE93: 2005-05-10 | DF93: 6.165 | DG93: 2005-05-13 | DH93: 16.32 | DI93: 2005-05-11 | DJ93: 15.6572 | DK93: 2005-05-13 | DL93: 87.1 | DM93: 2005-05-12 | DN93: 1159.25 | DO93: 38483 | DP93: 1461 | DQ93: 2005-05-12 | DR93: 290.3 | DS93: 2005-05-12 | DT93: 30953
A94: 2005-05-11 | B94: 427.25 | C94: 2005-05-13 | D94: 2966 | E94: 2005-05-11 | F94: 3.6743 | G94: 2005-05-11 | H94: 3.901 | I94: 2005-05-11 | J94: 4.202 | K94: 2005-05-11 | L94: 4.5451 | M94: 2005-05-11 | N94: 2.206 | O94: 2005-05-11 | P94: 2.726 | Q94: 2005-05-11 | R94: 3.322 | S94: 2005-05-11 | T94: 3.865 | U94: 2005-05-11 | V94: 0.086 | W94: 2005-05-11 | X94: 0.469 | Y94: 2005-05-11 | Z94: 1.28 | AA94: 2005-05-11 | AB94: 2.315 | AC94: 2005-05-11 | AD94: 4.381 | AE94: 2005-05-11 | AF94: 4.388 | AG94: 2005-05-11 | AH94: 4.437 | AI94: 2005-05-11 | AJ94: 4.386 | AK94: 2005-05-11 | AL94: 2.229 | AM94: 2005-05-11 | AN94: 2.771 | AO94: 2005-05-11 | AP94: 3.483 | AQ94: 2005-05-11 | AR94: 4.125 | AS94: 2005-05-11 | AT94: 3.0982 | AU94: 2005-05-11 | AV94: 2.677 | AW94: 2005-05-11 | AX94: 2.5808 | AY94: 2005-05-11 | AZ94: 2.8085 | BA94: 2012-02-09 | BB94: 567 | BC94: 2012-02-13 | BD94: 365.5 | BE94: 2012-12-20 | BF94: 454.458 | BG94: 2008-02-13 | BH94: 153.281 | BI94: 2005-05-12 | BJ94: 32.75 | BK94: 2005-05-12 | BL94: -11.5 | BM94: 2005-05-11 | BN94: -15.02 | BO94: 2005-05-11 | BP94: 42.1 | BQ94: 2005-05-11 | BR94: -93.2 | BS94: 2005-05-11 | BT94: -14.2 | BU94: 2005-05-11 | BV94: 3.4 | BW94: 2005-05-11 | BX94: 39.6 | BY94: 2005-05-11 | BZ94: 1.281 | CA94: 2005-05-11 | CB94: 1.8725 | CC94: 2005-05-11 | CD94: 0.68411 | CE94: 2005-05-11 | CF94: 105.63 | CG94: 2005-05-11 | CH94: 1.2481 | CI94: 2005-05-11 | CJ94: 104.79 | CK94: 2005-05-11 | CL94: 84.89 | CM94: 2005-05-11 | CN94: 0.7754 | CO94: 2005-05-11 | CP94: 7.2076 | CQ94: 2005-05-11 | CR94: 6.3073 | CS94: 2005-05-11 | CT94: 31.209 | CU94: 2005-05-11 | CV94: 2.4876 | CW94: 2010-12-29 | CX94: 0.9989 | CY94: 2005-05-11 | CZ94: 9460 | DA94: 2005-05-11 | DB94: 43.29 | DC94: 2005-05-11 | DD94: 27.8584 | DE94: 2005-05-11 | DF94: 6.1765 | DG94: 2005-05-16 | DH94: 15.68 | DI94: 2005-05-12 | DJ94: 14.8536 | DK94: 2005-05-16 | DL94: 88.5 | DM94: 2005-05-13 | DN94: 1156.75 | DO94: 38484 | DP94: 1457.5 | DQ94: 2005-05-13 | DR94: 290.1 | DS94: 2005-05-13 | DT94: 30997
A95: 2005-05-12 | B95: 421.3 | C95: 2005-05-16 | D95: 2981 | E95: 2005-05-12 | F95: 3.6411 | G95: 2005-05-12 | H95: 3.8646 | I95: 2005-05-12 | J95: 4.1703 | K95: 2005-05-12 | L95: 4.5146 | M95: 2005-05-12 | N95: 2.227 | O95: 2005-05-12 | P95: 2.75 | Q95: 2005-05-12 | R95: 3.33 | S95: 2005-05-12 | T95: 3.873 | U95: 2005-05-12 | V95: 0.085 | W95: 2005-05-12 | X95: 0.47 | Y95: 2005-05-12 | Z95: 1.289 | AA95: 2005-05-12 | AB95: 2.345 | AC95: 2005-05-12 | AD95: 4.337 | AE95: 2005-05-12 | AF95: 4.358 | AG95: 2005-05-12 | AH95: 4.411 | AI95: 2005-05-12 | AJ95: 4.383 | AK95: 2005-05-12 | AL95: 2.245 | AM95: 2005-05-12 | AN95: 2.793 | AO95: 2005-05-12 | AP95: 3.491 | AQ95: 2005-05-12 | AR95: 4.13 | AS95: 2005-05-12 | AT95: 3.0056 | AU95: 2005-05-12 | AV95: 2.6271 | AW95: 2005-05-12 | AX95: 2.5457 | AY95: 2005-05-12 | AZ95: 2.7903 | BA95: 2012-02-10 | BB95: 596.75 | BC95: 2012-02-14 | BD95: 389.125 | BE95: 2012-12-21 | BF95: 472.651 | BG95: 2008-02-14 | BH95: 144.851 | BI95: 2005-05-13 | BJ95: 34.167 | BK95: 2005-05-13 | BL95: -12.7 | BM95: 2005-05-12 | BN95: -7.42 | BO95: 2005-05-12 | BP95: 53.4 | BQ95: 2005-05-12 | BR95: -87.6 | BS95: 2005-05-12 | BT95: -18 | BU95: 2005-05-12 | BV95: 5.4 | BW95: 2005-05-12 | BX95: 37.5 | BY95: 2005-05-12 | BZ95: 1.2704 | CA95: 2005-05-12 | CB95: 1.8653 | CC95: 2005-05-12 | CD95: 0.6809 | CE95: 2005-05-12 | CF95: 106.74 | CG95: 2005-05-12 | CH95: 1.2498 | CI95: 2005-05-12 | CJ95: 104.44 | CK95: 2005-05-12 | CL95: 85.49 | CM95: 2005-05-12 | CN95: 0.7665 | CO95: 2005-05-12 | CP95: 7.2596 | CQ95: 2005-05-12 | CR95: 6.3707 | CS95: 2005-05-12 | CT95: 31.42 | CU95: 2005-05-12 | CV95: 2.465 | CW95: 2010-12-30 | CX95: 0.9993 | CY95: 2005-05-12 | CZ95: 9470 | DA95: 2005-05-12 | DB95: 43.37 | DC95: 2005-05-12 | DD95: 27.8912 | DE95: 2005-05-12 | DF95: 6.2693 | DG95: 2005-05-17 | DH95: 14.57 | DI95: 2005-05-13 | DJ95: 15.0693 | DK95: 2005-05-17 | DL95: 84.7 | DM95: 2005-05-16 | DN95: 1167 | DO95: 38485 | DP95: 1474 | DQ95: 2005-05-16 | DR95: 292.5 | DS95: 2005-05-16 | DT95: 30964
A96: 2005-05-13 | B96: 419.6 | C96: 2005-05-17 | D96: 2971 | E96: 2005-05-13 | F96: 3.5826 | G96: 2005-05-13 | H96: 3.8161 | I96: 2005-05-13 | J96: 4.1173 | K96: 2005-05-13 | L96: 4.4805 | M96: 2005-05-13 | N96: 2.234 | O96: 2005-05-13 | P96: 2.74 | Q96: 2005-05-13 | R96: 3.307 | S96: 2005-05-13 | T96: 3.844 | U96: 2005-05-13 | V96: 0.085 | W96: 2005-05-13 | X96: 0.47 | Y96: 2005-05-13 | Z96: 1.285 | AA96: 2005-05-13 | AB96: 2.355 | AC96: 2005-05-13 | AD96: 4.296 | AE96: 2005-05-13 | AF96: 4.314 | AG96: 2005-05-13 | AH96: 4.371 | AI96: 2005-05-13 | AJ96: 4.345 | AK96: 2005-05-13 | AL96: 2.252 | AM96: 2005-05-13 | AN96: 2.781 | AO96: 2005-05-13 | AP96: 3.476 | AQ96: 2005-05-13 | AR96: 4.104 | AS96: 2005-05-13 | AT96: 2.9328 | AU96: 2005-05-13 | AV96: 2.5415 | AW96: 2005-05-13 | AX96: 2.475 | AY96: 2005-05-13 | AZ96: 2.7571 | BA96: 2012-02-13 | BB96: 588.854 | BC96: 2012-02-15 | BD96: 409.125 | BE96: 2012-12-24 | BF96: 475.977 | BG96: 2008-02-15 | BH96: 155.465 | BI96: 2005-05-16 | BJ96: 33.75 | BK96: 2005-05-16 | BL96: -18.8 | BM96: 2005-05-13 | BN96: -8.45 | BO96: 2005-05-13 | BP96: 50.8 | BQ96: 2005-05-13 | BR96: -87.4 | BS96: 2005-05-13 | BT96: -19.3 | BU96: 2005-05-13 | BV96: 4.3 | BW96: 2005-05-13 | BX96: 35.2 | BY96: 2005-05-13 | BZ96: 1.2627 | CA96: 2005-05-13 | CB96: 1.8487 | CC96: 2005-05-13 | CD96: 0.6829 | CE96: 2005-05-13 | CF96: 107.4 | CG96: 2005-05-13 | CH96: 1.2627 | CI96: 2005-05-13 | CJ96: 104.42 | CK96: 2005-05-13 | CL96: 86.1 | CM96: 2005-05-13 | CN96: 0.7609 | CO96: 2005-05-13 | CP96: 7.2916 | CQ96: 2005-05-13 | CR96: 6.4068 | CS96: 2005-05-13 | CT96: 31.313 | CU96: 2005-05-13 | CV96: 2.4667 | CW96: 2010-12-31 | CX96: 0.9959 | CY96: 2005-05-13 | CZ96: 9475 | DA96: 2005-05-13 | DB96: 43.43 | DC96: 2005-05-13 | DD96: 27.9653 | DE96: 2005-05-13 | DF96: 6.3245 | DG96: 2005-05-18 | DH96: 13.63 | DI96: 2005-05-16 | DJ96: 15.5249 | DK96: 2005-05-18 | DL96: 81.22 | DM96: 2005-05-17 | DN96: 1175.25 | DO96: 38488 | DP96: 1481.5 | DQ96: 2005-05-17 | DR96: 290.3 | DS96: 2005-05-17 | DT96: 30680
A97: 2005-05-16 | B97: 419.6 | C97: 2005-05-18 | D97: 3029 | E97: 2005-05-16 | F97: 3.5909 | G97: 2005-05-16 | H97: 3.823 | I97: 2005-05-16 | J97: 4.1269 | K97: 2005-05-16 | L97: 4.4956 | M97: 2005-05-16 | N97: 2.228 | O97: 2005-05-16 | P97: 2.737 | Q97: 2005-05-16 | R97: 3.308 | S97: 2005-05-16 | T97: 3.846 | U97: 2005-05-16 | V97: 0.095 | W97: 2005-05-16 | X97: 0.495 | Y97: 2005-05-16 | Z97: 1.31 | AA97: 2005-05-16 | AB97: 2.39 | AC97: 2005-05-16 | AD97: 4.304 | AE97: 2005-05-16 | AF97: 4.317 | AG97: 2005-05-16 | AH97: 4.371 | AI97: 2005-05-16 | AJ97: 4.34 | AK97: 2005-05-16 | AL97: 2.248 | AM97: 2005-05-16 | AN97: 2.783 | AO97: 2005-05-16 | AP97: 3.481 | AQ97: 2005-05-16 | AR97: 4.112 | AS97: 2005-05-16 | AT97: 2.9362 | AU97: 2005-05-16 | AV97: 2.5482 | AW97: 2005-05-16 | AX97: 2.4828 | AY97: 2005-05-16 | AZ97: 2.7601 | BA97: 2012-02-14 | BB97: 604.333 | BC97: 2012-02-16 | BD97: 396.792 | BE97: 2012-12-26 | BF97: 485.09 | BG97: 2008-02-18 | BH97: 156.873 | BI97: 2005-05-17 | BJ97: 34.667 | BK97: 2005-05-17 | BL97: -20.1 | BM97: 2005-05-16 | BN97: -14.04 | BO97: 2005-05-16 | BP97: 32.4 | BQ97: 2005-05-16 | BR97: -87.1 | BS97: 2005-05-16 | BT97: -22.6 | BU97: 2005-05-16 | BV97: 4.4 | BW97: 2005-05-16 | BX97: 24.5 | BY97: 2005-05-16 | BZ97: 1.2636 | CA97: 2005-05-16 | CB97: 1.8374 | CC97: 2005-05-16 | CD97: 0.68775 | CE97: 2005-05-16 | CF97: 107.02 | CG97: 2005-05-16 | CH97: 1.2708 | CI97: 2005-05-16 | CJ97: 104.31 | CK97: 2005-05-16 | CL97: 86.12 | CM97: 2005-05-16 | CN97: 0.755 | CO97: 2005-05-16 | CP97: 7.303 | CQ97: 2005-05-16 | CR97: 6.4085 | CS97: 2005-05-16 | CT97: 31.409 | CU97: 2005-05-16 | CV97: 2.4803 | CW97: 2011-01-03 | CX97: 0.9933 | CY97: 2005-05-16 | CZ97: 9483 | DA97: 2005-05-16 | DB97: 43.4975 | DC97: 2005-05-16 | DD97: 28.0095 | DE97: 2005-05-16 | DF97: 6.373 | DG97: 2005-05-19 | DH97: 13.32 | DI97: 2005-05-17 | DJ97: 15.6896 | DK97: 2005-05-19 | DL97: 77.19 | DM97: 2005-05-18 | DN97: 1186.75 | DO97: 38489 | DP97: 1494 | DQ97: 2005-05-18 | DR97: 295.5 | DS97: 2005-05-18 | DT97: 31168
A98: 2005-05-17 | B98: 420.95 | C98: 2005-05-19 | D98: 3032 | E98: 2005-05-17 | F98: 3.5908 | G98: 2005-05-17 | H98: 3.8091 | I98: 2005-05-17 | J98: 4.1134 | K98: 2005-05-17 | L98: 4.4729 | M98: 2005-05-17 | N98: 2.224 | O98: 2005-05-17 | P98: 2.73 | Q98: 2005-05-17 | R98: 3.303 | S98: 2005-05-17 | T98: 3.847 | U98: 2005-05-17 | V98: 0.105 | W98: 2005-05-17 | X98: 0.499 | Y98: 2005-05-17 | Z98: 1.304 | AA98: 2005-05-17 | AB98: 2.38 | AC98: 2005-05-17 | AD98: 4.293 | AE98: 2005-05-17 | AF98: 4.303 | AG98: 2005-05-17 | AH98: 4.355 | AI98: 2005-05-17 | AJ98: 4.32 | AK98: 2005-05-17 | AL98: 2.242 | AM98: 2005-05-17 | AN98: 2.777 | AO98: 2005-05-17 | AP98: 3.481 | AQ98: 2005-05-17 | AR98: 4.112 | AS98: 2005-05-17 | AT98: 2.9497 | AU98: 2005-05-17 | AV98: 2.5474 | AW98: 2005-05-17 | AX98: 2.4834 | AY98: 2005-05-17 | AZ98: 2.7563 | BA98: 2012-02-15 | BB98: 633.417 | BC98: 2012-02-17 | BD98: 380 | BE98: 2012-12-27 | BF98: 487.815 | BG98: 2008-02-19 | BH98: 159.333 | BI98: 2005-05-18 | BJ98: 38.75 | BK98: 2005-05-18 | BL98: -22.9 | BM98: 2005-05-17 | BN98: -10.96 | BO98: 2005-05-17 | BP98: 28.2 | BQ98: 2005-05-17 | BR98: -86.2 | BS98: 2005-05-17 | BT98: -29.4 | BU98: 2005-05-17 | BV98: 2.2 | BW98: 2005-05-17 | BX98: 18.3 | BY98: 2005-05-17 | BZ98: 1.2645 | CA98: 2005-05-17 | CB98: 1.8396 | CC98: 2005-05-17 | CD98: 0.6873 | CE98: 2005-05-17 | CF98: 107.15 | CG98: 2005-05-17 | CH98: 1.2652 | CI98: 2005-05-17 | CJ98: 104.32 | CK98: 2005-05-17 | CL98: 86.21 | CM98: 2005-05-17 | CN98: 0.7574 | CO98: 2005-05-17 | CP98: 7.2811 | CQ98: 2005-05-17 | CR98: 6.404 | CS98: 2005-05-17 | CT98: 31.371 | CU98: 2005-05-17 | CV98: 2.479 | CW98: 2011-01-04 | CX98: 0.9951 | CY98: 2005-05-17 | CZ98: 9428 | DA98: 2005-05-17 | DB98: 43.4913 | DC98: 2005-05-17 | DD98: 27.9928 | DE98: 2005-05-17 | DF98: 6.421 | DG98: 2005-05-20 | DH98: 13.14 | DI98: 2005-05-18 | DJ98: 14.0947 | DK98: 2005-05-20 | DL98: 76.6 | DM98: 2005-05-19 | DN98: 1191.25 | DO98: 38490 | DP98: 1512.5 | DQ98: 2005-05-19 | DR98: 296.1 | DS98: 2005-05-19 | DT98: 31261
A99: 2005-05-18 | B99: 421.35 | C99: 2005-05-20 | D99: 3053 | E99: 2005-05-18 | F99: 3.5823 | G99: 2005-05-18 | H99: 3.7952 | I99: 2005-05-18 | J99: 4.0884 | K99: 2005-05-18 | L99: 4.4392 | M99: 2005-05-18 | N99: 2.221 | O99: 2005-05-18 | P99: 2.718 | Q99: 2005-05-18 | R99: 3.33 | S99: 2005-05-18 | T99: 3.807 | U99: 2005-05-18 | V99: 0.105 | W99: 2005-05-18 | X99: 0.485 | Y99: 2005-05-18 | Z99: 1.28 | AA99: 2005-05-18 | AB99: 2.35 | AC99: 2005-05-18 | AD99: 4.283 | AE99: 2005-05-18 | AF99: 4.294 | AG99: 2005-05-18 | AH99: 4.35 | AI99: 2005-05-18 | AJ99: 4.314 | AK99: 2005-05-18 | AL99: 2.238 | AM99: 2005-05-18 | AN99: 2.77 | AO99: 2005-05-18 | AP99: 3.464 | AQ99: 2005-05-18 | AR99: 4.083 | AS99: 2005-05-18 | AT99: 2.9641 | AU99: 2005-05-18 | AV99: 2.5166 | AW99: 2005-05-18 | AX99: 2.432 | AY99: 2005-05-18 | AZ99: 2.7034 | BA99: 2012-02-16 | BB99: 604 | BC99: 2012-02-20 | BD99: 365.5 | BE99: 2012-12-28 | BF99: 531.752 | BG99: 2008-02-20 | BH99: 167.214 | BI99: 2005-05-19 | BJ99: 35.583 | BK99: 2005-05-19 | BL99: -23.3 | BM99: 2005-05-18 | BN99: -14.47 | BO99: 2005-05-18 | BP99: 22 | BQ99: 2005-05-18 | BR99: -85.3 | BS99: 2005-05-18 | BT99: -32.6 | BU99: 2005-05-18 | BV99: -3.3 | BW99: 2005-05-18 | BX99: 4.1 | BY99: 2005-05-18 | BZ99: 1.2671 | CA99: 2005-05-18 | CB99: 1.8382 | CC99: 2005-05-18 | CD99: 0.68928 | CE99: 2005-05-18 | CF99: 106.98 | CG99: 2005-05-18 | CH99: 1.2614 | CI99: 2005-05-18 | CJ99: 104.68 | CK99: 2005-05-18 | CL99: 85.77 | CM99: 2005-05-18 | CN99: 0.7607 | CO99: 2005-05-18 | CP99: 7.2581 | CQ99: 2005-05-18 | CR99: 6.396 | CS99: 2005-05-18 | CT99: 31.381 | CU99: 2005-05-18 | CV99: 2.459 | CW99: 2011-01-05 | CX99: 0.9952 | CY99: 2005-05-18 | CZ99: 9450 | DA99: 2005-05-18 | DB99: 43.475 | DC99: 2005-05-18 | DD99: 28 | DE99: 2005-05-18 | DF99: 6.402 | DG99: 2005-05-23 | DH99: 12.95 | DI99: 2005-05-19 | DJ99: 13.7944 | DK99: 2005-05-23 | DL99: 73.86 | DM99: 2005-05-20 | DN99: 1190.25 | DO99: 38491 | DP99: 1524 | DQ99: 2005-05-20 | DR99: 297.5 | DS99: 2005-05-20 | DT99: 31276
A100: 2005-05-19 | B100: 420.42 | C100: 2005-05-23 | D100: 3069 | E100: 2005-05-19 | F100: 3.6325 | G100: 2005-05-19 | H100: 3.8471 | I100: 2005-05-19 | J100: 4.1115 | K100: 2005-05-19 | L100: 4.4429 | M100: 2005-05-19 | N100: 2.24 | O100: 2005-05-19 | P100: 2.745 | Q100: 2005-05-19 | R100: 3.354 | S100: 2005-05-19 | T100: 3.815 | U100: 2005-05-19 | V100: 0.105 | W100: 2005-05-19 | X100: 0.475 | Y100: 2005-05-19 | Z100: 1.27 | AA100: 2005-05-19 | AB100: 2.326 | AC100: 2005-05-19 | AD100: 4.308 | AE100: 2005-05-19 | AF100: 4.318 | AG100: 2005-05-19 | AH100: 4.372 | AI100: 2005-05-19 | AJ100: 4.321 | AK100: 2005-05-19 | AL100: 2.256 | AM100: 2005-05-19 | AN100: 2.797 | AO100: 2005-05-19 | AP100: 3.493 | AQ100: 2005-05-19 | AR100: 4.095 | AS100: 2005-05-19 | AT100: 2.9541 | AU100: 2005-05-19 | AV100: 2.5216 | AW100: 2005-05-19 | AX100: 2.4515 | AY100: 2005-05-19 | AZ100: 2.7071 | BA100: 2012-02-17 | BB100: 599 | BC100: 2012-02-21 | BD100: 370.5 | BE100: 2012-12-31 | BF100: 484.36 | BG100: 2008-02-21 | BH100: 165.092 | BI100: 2005-05-20 | BJ100: 35 | BK100: 2005-05-20 | BL100: -21.6 | BM100: 2005-05-19 | BN100: -15.52 | BO100: 2005-05-19 | BP100: 16.5 | BQ100: 2005-05-19 | BR100: -84.2 | BS100: 2005-05-19 | BT100: -32.1 | BU100: 2005-05-19 | BV100: -3 | BW100: 2005-05-19 | BX100: 4.1 | BY100: 2005-05-19 | BZ100: 1.263 | CA100: 2005-05-19 | CB100: 1.836 | CC100: 2005-05-19 | CD100: 0.68785 | CE100: 2005-05-19 | CF100: 107.56 | CG100: 2005-05-19 | CH100: 1.2619 | CI100: 2005-05-19 | CJ100: 104.41 | CK100: 2005-05-19 | CL100: 86.09 | CM100: 2005-05-19 | CN100: 0.7578 | CO100: 2005-05-19 | CP100: 7.2851 | CQ100: 2005-05-19 | CR100: 6.4208 | CS100: 2005-05-19 | CT100: 31.298 | CU100: 2005-05-19 | CV100: 2.4442 | CW100: 2011-01-06 | CX100: 0.9947 | CY100: 2005-05-19 | CZ100: 9450 | DA100: 2005-05-19 | DB100: 43.4788 | DC100: 2005-05-19 | DD100: 27.9775 | DE100: 2005-05-19 | DF100: 6.3905 | DG100: 2005-05-24 | DH100: 12.69 | DI100: 2005-05-20 | DJ100: 13.5132 | DK100: 2005-05-24 | DL100: 73.82 | DM100: 2005-05-23 | DN100: 1196.25 | DO100: 38492 | DP100: 1530.5 | DQ100: 2005-05-23 | DR100: 298.1 | DS100: 2005-05-23 | DT100: 31600
A101: 2005-05-20 | B101: 417.46 | C101: 2005-05-24 | D101: 3059 | E101: 2005-05-20 | F101: 3.6577 | G101: 2005-05-20 | H101: 3.8679 | I101: 2005-05-20 | J101: 4.121 | K101: 2005-05-20 | L101: 4.4381 | M101: 2005-05-20 | N101: 2.272 | O101: 2005-05-20 | P101: 2.775 | Q101: 2005-05-20 | R101: 3.378 | S101: 2005-05-20 | T101: 3.832 | U101: 2005-05-20 | V101: 0.099 | W101: 2005-05-20 | X101: 0.469 | Y101: 2005-05-20 | Z101: 1.274 | AA101: 2005-05-20 | AB101: 2.316 | AC101: 2005-05-20 | AD101: 4.324 | AE101: 2005-05-20 | AF101: 4.338 | AG101: 2005-05-20 | AH101: 4.396 | AI101: 2005-05-20 | AJ101: 4.342 | AK101: 2005-05-20 | AL101: 2.285 | AM101: 2005-05-20 | AN101: 2.831 | AO101: 2005-05-20 | AP101: 3.516 | AQ101: 2005-05-20 | AR101: 4.115 | AS101: 2005-05-20 | AT101: 2.9738 | AU101: 2005-05-20 | AV101: 2.5483 | AW101: 2005-05-20 | AX101: 2.4681 | AY101: 2005-05-20 | AZ101: 2.7268 | BA101: 2012-02-20 | BB101: 570 | BC101: 2012-02-22 | BD101: 383.95 | BE101: 2013-01-02 | BF101: 439.748 | BG101: 2008-02-22 | BH101: 170.669 | BI101: 2005-05-23 | BJ101: 34.042 | BK101: 2005-05-23 | BL101: -20.5 | BM101: 2005-05-20 | BN101: -14.31 | BO101: 2005-05-20 | BP101: 16.4 | BQ101: 2005-05-20 | BR101: -83 | BS101: 2005-05-20 | BT101: -29.7 | BU101: 2005-05-20 | BV101: -3 | BW101: 2005-05-20 | BX101: 4 | BY101: 2005-05-20 | BZ101: 1.2551 | CA101: 2005-05-20 | CB101: 1.8247 | CC101: 2005-05-20 | CD101: 0.6878 | CE101: 2005-05-20 | CF101: 108.28 | CG101: 2005-05-20 | CH101: 1.2635 | CI101: 2005-05-20 | CJ101: 104.21 | CK101: 2005-05-20 | CL101: 86.63 | CM101: 2005-05-20 | CN101: 0.755 | CO101: 2005-05-20 | CP101: 7.3107 | CQ101: 2005-05-20 | CR101: 6.4743 | CS101: 2005-05-20 | CT101: 31.475 | CU101: 2005-05-20 | CV101: 2.4521 | CW101: 2011-01-07 | CX101: 0.9948 | CY101: 2005-05-20 | CZ101: 9450 | DA101: 2005-05-20 | DB101: 43.4563 | DC101: 2005-05-20 | DD101: 28.0292 | DE101: 2005-05-20 | DF101: 6.5248 | DG101: 2005-05-25 | DH101: 12.58 | DI101: 2005-05-23 | DJ101: 13.2149 | DK101: 2005-05-25 | DL101: 74.06 | DM101: 2005-05-24 | DN101: 1193.75 | DO101: 38495 | DP101: 1539 | DQ101: 2005-05-24 | DR101: 296 | DS101: 2005-05-24 | DT101: 31575
A102: 2005-05-23 | B102: 417.45 | C102: 2005-05-25 | D102: 3051 | E102: 2005-05-23 | F102: 3.6156 | G102: 2005-05-23 | H102: 3.8087 | I102: 2005-05-23 | J102: 4.0538 | K102: 2005-05-23 | L102: 4.3796 | M102: 2005-05-23 | N102: 2.257 | O102: 2005-05-23 | P102: 2.745 | Q102: 2005-05-23 | R102: 3.339 | S102: 2005-05-23 | T102: 3.79 | U102: 2005-05-23 | V102: 0.1 | W102: 2005-05-23 | X102: 0.485 | Y102: 2005-05-23 | Z102: 1.3 | AA102: 2005-05-23 | AB102: 2.335 | AC102: 2005-05-23 | AD102: 4.285 | AE102: 2005-05-23 | AF102: 4.301 | AG102: 2005-05-23 | AH102: 4.359 | AI102: 2005-05-23 | AJ102: 4.312 | AK102: 2005-05-23 | AL102: 2.274 | AM102: 2005-05-23 | AN102: 2.903 | AO102: 2005-05-23 | AP102: 3.536 | AQ102: 2005-05-23 | AR102: 4.082 | AS102: 2005-05-23 | AT102: 2.9453 | AU102: 2005-05-23 | AV102: 2.5057 | AW102: 2005-05-23 | AX102: 2.4396 | AY102: 2005-05-23 | AZ102: 2.702 | BA102: 2012-02-21 | BB102: 570.417 | BC102: 2012-02-23 | BD102: 372.875 | BE102: 2013-01-03 | BF102: 444.019 | BG102: 2008-02-25 | BH102: 156.655 | BI102: 2005-05-24 | BJ102: 33.792 | BK102: 2005-05-24 | BL102: -23 | BM102: 2005-05-23 | BN102: -11.71 | BO102: 2005-05-23 | BP102: 16 | BQ102: 2005-05-23 | BR102: -75.3 | BS102: 2005-05-23 | BT102: -30.8 | BU102: 2005-05-23 | BV102: -4.9 | BW102: 2005-05-23 | BX102: 4 | BY102: 2005-05-23 | BZ102: 1.2563 | CA102: 2005-05-23 | CB102: 1.8278 | CC102: 2005-05-23 | CD102: 0.68726 | CE102: 2005-05-23 | CF102: 107.8 | CG102: 2005-05-23 | CH102: 1.2596 | CI102: 2005-05-23 | CJ102: 104.33 | CK102: 2005-05-23 | CL102: 86.4 | CM102: 2005-05-23 | CN102: 0.7583 | CO102: 2005-05-23 | CP102: 7.3015 | CQ102: 2005-05-23 | CR102: 6.459 | CS102: 2005-05-23 | CT102: 31.405 | CU102: 2005-05-23 | CV102: 2.431 | CW102: 2011-01-10 | CX102: 0.9941 | CY102: 2005-05-23 | CZ102: 9470 | DA102: 2005-05-23 | DB102: 43.4563 | DC102: 2005-05-23 | DD102: 28.0405 | DE102: 2005-05-23 | DF102: 6.5385 | DG102: 2005-05-26 | DH102: 12.24 | DI102: 2005-05-24 | DJ102: 13.386 | DK102: 2005-05-26 | DL102: 72.6 | DM102: 2005-05-25 | DN102: 1192.5 | DO102: 38496 | DP102: 1540.5 | DQ102: 2005-05-25 | DR102: 297.4 | DS102: 2005-05-25 | DT102: 31603
A103: 2005-05-24 | B103: 417.85 | C103: 2005-05-26 | D103: 3080 | E103: 2005-05-24 | F103: 3.5902 | G103: 2005-05-24 | H103: 3.7705 | I103: 2005-05-24 | J103: 4.0271 | K103: 2005-05-24 | L103: 4.3584 | M103: 2005-05-24 | N103: 2.213 | O103: 2005-05-24 | P103: 2.698 | Q103: 2005-05-24 | R103: 3.302 | S103: 2005-05-24 | T103: 3.775 | U103: 2005-05-24 | V103: 0.087 | W103: 2005-05-24 | X103: 0.455 | Y103: 2005-05-24 | Z103: 1.265 | AA103: 2005-05-24 | AB103: 2.305 | AC103: 2005-05-24 | AD103: 4.265 | AE103: 2005-05-24 | AF103: 4.276 | AG103: 2005-05-24 | AH103: 4.332 | AI103: 2005-05-24 | AJ103: 4.296 | AK103: 2005-05-24 | AL103: 2.228 | AM103: 2005-05-24 | AN103: 2.862 | AO103: 2005-05-24 | AP103: 3.508 | AQ103: 2005-05-24 | AR103: 4.069 | AS103: 2005-05-24 | AT103: 2.9057 | AU103: 2005-05-24 | AV103: 2.494 | AW103: 2005-05-24 | AX103: 2.4163 | AY103: 2005-05-24 | AZ103: 2.7083 | BA103: 2012-02-22 | BB103: 585.633 | BC103: 2012-02-24 | BD103: 359.833 | BE103: 2013-01-04 | BF103: 442.519 | BG103: 2008-02-26 | BH103: 147.036 | BI103: 2005-05-25 | BJ103: 33.313 | BK103: 2005-05-25 | BL103: -23.3 | BM103: 2005-05-24 | BN103: -15.74 | BO103: 2005-05-24 | BP103: 16.1 | BQ103: 2005-05-24 | BR103: -87.3 | BS103: 2005-05-24 | BT103: -31 | BU103: 2005-05-24 | BV103: -5.7 | BW103: 2005-05-24 | BX103: 4 | BY103: 2005-05-24 | BZ103: 1.2578 | CA103: 2005-05-24 | CB103: 1.8283 | CC103: 2005-05-24 | CD103: 0.68797 | CE103: 2005-05-24 | CF103: 107.5 | CG103: 2005-05-24 | CH103: 1.2622 | CI103: 2005-05-24 | CJ103: 104.52 | CK103: 2005-05-24 | CL103: 86.37 | CM103: 2005-05-24 | CN103: 0.7623 | CO103: 2005-05-24 | CP103: 7.2932 | CQ103: 2005-05-24 | CR103: 6.429 | CS103: 2005-05-24 | CT103: 31.355 | CU103: 2005-05-24 | CV103: 2.4315 | CW103: 2011-01-11 | CX103: 0.9948 | CY103: 2005-05-24 | CZ103: 9470 | DA103: 2005-05-24 | DB103: 43.5063 | DC103: 2005-05-24 | DD103: 28.012 | DE103: 2005-05-24 | DF103: 6.5749 | DG103: 2005-05-27 | DH103: 12.15 | DI103: 2005-05-25 | DJ103: 13.4681 | DK103: 2005-05-27 | DL103: 73.75 | DM103: 2005-05-26 | DN103: 1198 | DO103: 38497 | DP103: 1538.5 | DQ103: 2005-05-26 | DR103: 297.2 | DS103: 2005-05-26 | DT103: 31823
A104: 2005-05-25 | B104: 418.65 | C104: 2005-05-27 | D104: 3081 | E104: 2005-05-25 | F104: 3.5986 | G104: 2005-05-25 | H104: 3.8121 | I104: 2005-05-25 | J104: 4.0864 | K104: 2005-05-25 | L104: 4.4323 | M104: 2005-05-25 | N104: 2.184 | O104: 2005-05-25 | P104: 2.685 | Q104: 2005-05-25 | R104: 3.306 | S104: 2005-05-25 | T104: 3.783 | U104: 2005-05-25 | V104: 0.081 | W104: 2005-05-25 | X104: 0.43 | Y104: 2005-05-25 | Z104: 1.229 | AA104: 2005-05-25 | AB104: 2.26 | AC104: 2005-05-25 | AD104: 4.257 | AE104: 2005-05-25 | AF104: 4.267 | AG104: 2005-05-25 | AH104: 4.326 | AI104: 2005-05-25 | AJ104: 4.279 | AK104: 2005-05-25 | AL104: 2.201 | AM104: 2005-05-25 | AN104: 2.851 | AO104: 2005-05-25 | AP104: 3.503 | AQ104: 2005-05-25 | AR104: 4.07 | AS104: 2005-05-25 | AT104: 2.8531 | AU104: 2005-05-25 | AV104: 2.5019 | AW104: 2005-05-25 | AX104: 2.437 | AY104: 2005-05-25 | AZ104: 2.719 | BA104: 2012-02-23 | BB104: 582 | BC104: 2012-02-27 | BD104: 366 | BE104: 2013-01-07 | BF104: 440.983 | BG104: 2008-02-27 | BH104: 147.226 | BI104: 2005-05-26 | BJ104: 33.5 | BK104: 2005-05-26 | BL104: -23.9 | BM104: 2005-05-25 | BN104: -17.33 | BO104: 2005-05-25 | BP104: 16.1 | BQ104: 2005-05-25 | BR104: -94 | BS104: 2005-05-25 | BT104: -29 | BU104: 2005-05-25 | BV104: -3.8 | BW104: 2005-05-25 | BX104: 3.9 | BY104: 2005-05-25 | BZ104: 1.2606 | CA104: 2005-05-25 | CB104: 1.8317 | CC104: 2005-05-25 | CD104: 0.6882 | CE104: 2005-05-25 | CF104: 107.77 | CG104: 2005-05-25 | CH104: 1.2651 | CI104: 2005-05-25 | CJ104: 104.43 | CK104: 2005-05-25 | CL104: 86.35 | CM104: 2005-05-25 | CN104: 0.7623 | CO104: 2005-05-25 | CP104: 7.2875 | CQ104: 2005-05-25 | CR104: 6.3717 | CS104: 2005-05-25 | CT104: 31.354 | CU104: 2005-05-25 | CV104: 2.4097 | CW104: 2011-01-12 | CX104: 0.9952 | CY104: 2005-05-25 | CZ104: 9478 | DA104: 2005-05-25 | DB104: 43.535 | DC104: 2005-05-25 | DD104: 28.025 | DE104: 2005-05-25 | DF104: 6.494 | DG104: 2005-05-31 | DH104: 13.29 | DI104: 2005-05-26 | DJ104: 12.7135 | DK104: 2005-05-31 | DL104: 75 | DM104: 2005-05-27 | DN104: 1200.25 | DO104: 38498 | DP104: 1549 | DQ104: 2005-05-27 | DR104: 299.2 | DS104: 2005-05-27 | DT104: 31736
A105: 2005-05-26 | B105: 418.4 | C105: 2005-05-30 | D105: 3099 | E105: 2005-05-26 | F105: 3.6225 | G105: 2005-05-26 | H105: 3.8121 | I105: 2005-05-26 | J105: 4.0787 | K105: 2005-05-26 | L105: 4.4276 | M105: 2005-05-26 | N105: 2.189 | O105: 2005-05-26 | P105: 2.69 | Q105: 2005-05-26 | R105: 3.323 | S105: 2005-05-26 | T105: 3.831 | U105: 2005-05-26 | V105: 0.08 | W105: 2005-05-26 | X105: 0.435 | Y105: 2005-05-26 | Z105: 1.245 | AA105: 2005-05-26 | AB105: 2.27 | AC105: 2005-05-26 | AD105: 4.299 | AE105: 2005-05-26 | AF105: 4.304 | AG105: 2005-05-26 | AH105: 4.359 | AI105: 2005-05-26 | AJ105: 4.327 | AK105: 2005-05-26 | AL105: 2.204 | AM105: 2005-05-26 | AN105: 2.857 | AO105: 2005-05-26 | AP105: 3.515 | AQ105: 2005-05-26 | AR105: 4.108 | AS105: 2005-05-26 | AT105: 2.8437 | AU105: 2005-05-26 | AV105: 2.4882 | AW105: 2005-05-26 | AX105: 2.4081 | AY105: 2005-05-26 | AZ105: 2.6745 | BA105: 2012-02-24 | BB105: 575 | BC105: 2012-02-28 | BD105: 349 | BE105: 2013-01-08 | BF105: 443.883 | BG105: 2008-02-28 | BH105: 150.264 | BI105: 2005-05-27 | BJ105: 32.583 | BK105: 2005-05-27 | BL105: -26.4 | BM105: 2005-05-26 | BN105: -18.25 | BO105: 2005-05-26 | BP105: 14.3 | BQ105: 2005-05-26 | BR105: -93.8 | BS105: 2005-05-26 | BT105: -28.9 | BU105: 2005-05-26 | BV105: -3.8 | BW105: 2005-05-26 | BX105: 3.9 | BY105: 2005-05-26 | BZ105: 1.2519 | CA105: 2005-05-26 | CB105: 1.8208 | CC105: 2005-05-26 | CD105: 0.68752 | CE105: 2005-05-26 | CF105: 107.97 | CG105: 2005-05-26 | CH105: 1.2676 | CI105: 2005-05-26 | CJ105: 104.34 | CK105: 2005-05-26 | CL105: 86.85 | CM105: 2005-05-26 | CN105: 0.7601 | CO105: 2005-05-26 | CP105: 7.3508 | CQ105: 2005-05-26 | CR105: 6.3785 | CS105: 2005-05-26 | CT105: 31.4 | CU105: 2005-05-26 | CV105: 2.4095 | CW105: 2011-01-13 | CX105: 0.9967 | CY105: 2005-05-26 | CZ105: 9488 | DA105: 2005-05-26 | DB105: 43.53 | DC105: 2005-05-26 | DD105: 28.08 | DE105: 2005-05-26 | DF105: 6.6076 | DG105: 2005-06-01 | DH105: 12.36 | DI105: 2005-05-27 | DJ105: 12.9451 | DK105: 2005-06-01 | DL105: 79.13 | DM105: 2005-05-30 | DN105: 1201.75 | DO105: 38499 | DP105: 1552 | DQ105: 2005-05-30 | DR105: 302 | DS105: 2005-05-30 | DT105: 31904
A106: 2005-05-27 | B106: 420.35 | C106: 2005-05-31 | D106: 3090 | E106: 2005-05-27 | F106: 3.6389 | G106: 2005-05-27 | H106: 3.8084 | I106: 2005-05-27 | J106: 4.0709 | K106: 2005-05-27 | L106: 4.4293 | M106: 2005-05-27 | N106: 2.179 | O106: 2005-05-27 | P106: 2.689 | Q106: 2005-05-27 | R106: 3.333 | S106: 2005-05-27 | T106: 3.867 | U106: 2005-05-27 | V106: 0.09 | W106: 2005-05-27 | X106: 0.445 | Y106: 2005-05-27 | Z106: 1.254 | AA106: 2005-05-27 | AB106: 2.289 | AC106: 2005-05-27 | AD106: 4.308 | AE106: 2005-05-27 | AF106: 4.323 | AG106: 2005-05-27 | AH106: 4.39 | AI106: 2005-05-27 | AJ106: 4.379 | AK106: 2005-05-27 | AL106: 2.195 | AM106: 2005-05-27 | AN106: 2.863 | AO106: 2005-05-27 | AP106: 3.541 | AQ106: 2005-05-27 | AR106: 4.153 | AS106: 2005-05-27 | AT106: 2.8016 | AU106: 2005-05-27 | AV106: 2.4903 | AW106: 2005-05-27 | AX106: 2.425 | AY106: 2005-05-27 | AZ106: 2.6802 | BA106: 2012-02-27 | BB106: 581.125 | BC106: 2012-02-29 | BD106: 357.417 | BE106: 2013-01-09 | BF106: 445.321 | BG106: 2008-02-29 | BH106: 165.226 | BI106: 2005-05-30 | BJ106: 32 | BK106: 2005-05-31 | BL106: -27.7 | BM106: 2005-05-27 | BN106: -19.82 | BO106: 2005-05-27 | BP106: 15 | BQ106: 2005-05-27 | BR106: -104.8 | BS106: 2005-05-27 | BT106: -30.5 | BU106: 2005-05-27 | BV106: -4.4 | BW106: 2005-05-27 | BX106: 3.9 | BY106: 2005-05-27 | BZ106: 1.2586 | CA106: 2005-05-27 | CB106: 1.8234 | CC106: 2005-05-27 | CD106: 0.69026 | CE106: 2005-05-27 | CF106: 107.93 | CG106: 2005-05-27 | CH106: 1.2545 | CI106: 2005-05-27 | CJ106: 104.35 | CK106: 2005-05-27 | CL106: 86.42 | CM106: 2005-05-27 | CN106: 0.7634 | CO106: 2005-05-27 | CP106: 7.3062 | CQ106: 2005-05-27 | CR106: 6.3406 | CS106: 2005-05-27 | CT106: 31.358 | CU106: 2005-05-27 | CV106: 2.396 | CW106: 2011-01-14 | CX106: 0.9971 | CY106: 2005-05-27 | CZ106: 9488 | DA106: 2005-05-27 | DB106: 43.5363 | DC106: 2005-05-27 | DD106: 28.08 | DE106: 2005-05-27 | DF106: 6.568 | DG106: 2005-06-02 | DH106: 11.84 | DI106: 2005-05-30 | DJ106: 12.8239 | DK106: 2005-06-02 | DL106: 80.76 | DM106: 2005-05-31 | DN106: 1192.25 | DO106: 38502 | DP106: 1556.5 | DQ106: 2005-05-31 | DR106: 301.7 | DS106: 2005-05-31 | DT106: 31785
A107: 2005-05-30 | B107: 418.65 | C107: 2005-06-01 | D107: 3132 | E107: 2005-05-30 | F107: 3.639 | G107: 2005-05-30 | H107: 3.8048 | I107: 2005-05-30 | J107: 4.069 | K107: 2005-05-30 | L107: 4.4292 | M107: 2005-05-30 | N107: 2.182 | O107: 2005-05-30 | P107: 2.691 | Q107: 2005-05-30 | R107: 3.332 | S107: 2005-05-30 | T107: 3.876 | U107: 2005-05-30 | V107: 0.09 | W107: 2005-05-30 | X107: 0.445 | Y107: 2005-05-30 | Z107: 1.244 | AA107: 2005-05-30 | AB107: 2.28 | AC107: 2005-05-30 | AD107: 4.307 | AE107: 2005-05-30 | AF107: 4.322 | AG107: 2005-05-30 | AH107: 4.39 | AI107: 2005-05-30 | AJ107: 4.379 | AK107: 2005-05-30 | AL107: 2.2 | AM107: 2005-05-30 | AN107: 2.87 | AO107: 2005-05-30 | AP107: 3.548 | AQ107: 2005-05-30 | AR107: 4.168 | AS107: 2005-05-31 | AT107: 2.7782 | AU107: 2005-05-31 | AV107: 2.474 | AW107: 2005-05-31 | AX107: 2.3774 | AY107: 2005-05-31 | AZ107: 2.6349 | BA107: 2012-02-28 | BB107: 564.5 | BC107: 2012-03-01 | BD107: 342.5 | BE107: 2013-01-10 | BF107: 436.37 | BG107: 2008-03-27 | BH107: 182 | BI107: 2005-05-31 | BJ107: 32.583 | BK107: 2005-06-01 | BL107: -29.1 | BM107: 2005-05-30 | BN107: -17.84 | BO107: 2005-05-30 | BP107: 16 | BQ107: 2005-05-30 | BR107: -104.6 | BS107: 2005-05-30 | BT107: -30.4 | BU107: 2005-05-30 | BV107: -4.3 | BW107: 2005-05-30 | BX107: 3.8 | BY107: 2005-05-30 | BZ107: 1.2469 | CA107: 2005-05-30 | CB107: 1.8231 | CC107: 2005-05-30 | CD107: 0.68381 | CE107: 2005-05-30 | CF107: 107.98 | CG107: 2005-05-30 | CH107: 1.256 | CI107: 2005-05-30 | CJ107: 104.33 | CK107: 2005-05-30 | CL107: 86.94 | CM107: 2005-05-30 | CN107: 0.7613 | CO107: 2005-05-30 | CP107: 7.3632 | CQ107: 2005-05-30 | CR107: 6.3992 | CS107: 2005-05-30 | CT107: 31.328 | CU107: 2005-05-30 | CV107: 2.3752 | CW107: 2011-01-17 | CX107: 0.9989 | CY107: 2005-05-30 | CZ107: 9486 | DA107: 2005-05-30 | DB107: 43.58 | DC107: 2005-05-30 | DD107: 28.12 | DE107: 2005-05-30 | DF107: 6.654 | DG107: 2005-06-03 | DH107: 12.15 | DI107: 2005-05-31 | DJ107: 13.5138 | DK107: 2005-06-03 | DL107: 78.9 | DM107: 2005-06-01 | DN107: 1201.25 | DO107: 38503 | DP107: 1545 | DQ107: 2005-06-01 | DR107: 305.2 | DS107: 2005-06-01 | DT107: 32126
A108: 2005-05-31 | B108: 417.1 | C108: 2005-06-02 | D108: 3135 | E108: 2005-05-31 | F108: 3.5736 | G108: 2005-05-31 | H108: 3.7352 | I108: 2005-05-31 | J108: 3.981 | K108: 2005-05-31 | L108: 4.3205 | M108: 2005-05-31 | N108: 2.141 | O108: 2005-05-31 | P108: 2.638 | Q108: 2005-05-31 | R108: 3.274 | S108: 2005-05-31 | T108: 3.805 | U108: 2005-05-31 | V108: 0.09 | W108: 2005-05-31 | X108: 0.445 | Y108: 2005-05-31 | Z108: 1.249 | AA108: 2005-05-31 | AB108: 2.298 | AC108: 2005-05-31 | AD108: 4.248 | AE108: 2005-05-31 | AF108: 4.248 | AG108: 2005-05-31 | AH108: 4.315 | AI108: 2005-05-31 | AJ108: 4.326 | AK108: 2005-05-31 | AL108: 2.158 | AM108: 2005-05-31 | AN108: 2.814 | AO108: 2005-05-31 | AP108: 3.488 | AQ108: 2005-05-31 | AR108: 4.091 | AS108: 2005-06-01 | AT108: 2.7316 | AU108: 2005-06-01 | AV108: 2.4497 | AW108: 2005-06-01 | AX108: 2.3821 | AY108: 2005-06-01 | AZ108: 2.645 | BA108: 2012-02-29 | BB108: 567.6 | BC108: 2012-03-02 | BD108: 352 | BE108: 2013-01-11 | BF108: 443.793 | BG108: 2008-03-28 | BH108: 184.5 | BI108: 2005-06-01 | BJ108: 32.958 | BK108: 2005-06-02 | BL108: -29.8 | BM108: 2005-05-31 | BN108: -17.22 | BO108: 2005-05-31 | BP108: 17.2 | BQ108: 2005-05-31 | BR108: -103.9 | BS108: 2005-05-31 | BT108: -37.8 | BU108: 2005-05-31 | BV108: -4.8 | BW108: 2005-05-31 | BX108: 3.8 | BY108: 2005-05-31 | BZ108: 1.2338 | CA108: 2005-05-31 | CB108: 1.8225 | CC108: 2005-05-31 | CD108: 0.677 | CE108: 2005-05-31 | CF108: 108.03 | CG108: 2005-05-31 | CH108: 1.2527 | CI108: 2005-05-31 | CJ108: 104.04 | CK108: 2005-05-31 | CL108: 87.76 | CM108: 2005-05-31 | CN108: 0.7569 | CO108: 2005-05-31 | CP108: 7.4228 | CQ108: 2005-05-31 | CR108: 6.4377 | CS108: 2005-05-31 | CT108: 31.359 | CU108: 2005-05-31 | CV108: 2.4114 | CW108: 2011-01-18 | CX108: 0.9985 | CY108: 2005-05-31 | CZ108: 9510 | DA108: 2005-05-31 | DB108: 43.655 | DC108: 2005-05-31 | DD108: 28.2405 | DE108: 2005-05-31 | DF108: 6.7663 | DG108: 2005-06-06 | DH108: 12.28 | DI108: 2005-06-01 | DJ108: 12.9959 | DK108: 2005-06-06 | DL108: 78.44 | DM108: 2005-06-02 | DN108: 1205.25 | DO108: 38504 | DP108: 1557.5 | DQ108: 2005-06-02 | DR108: 305.8 | DS108: 2005-06-02 | DT108: 32157
A109: 2005-06-01 | B109: 416.55 | C109: 2005-06-03 | D109: 3108 | E109: 2005-06-01 | F109: 3.4754 | G109: 2005-06-01 | H109: 3.6209 | I109: 2005-06-01 | J109: 3.8844 | K109: 2005-06-01 | L109: 4.2365 | M109: 2005-06-01 | N109: 2.089 | O109: 2005-06-01 | P109: 2.587 | Q109: 2005-06-01 | R109: 3.239 | S109: 2005-06-01 | T109: 3.794 | U109: 2005-06-01 | V109: 0.089 | W109: 2005-06-01 | X109: 0.424 | Y109: 2005-06-01 | Z109: 1.224 | AA109: 2005-06-01 | AB109: 2.284 | AC109: 2005-06-01 | AD109: 4.189 | AE109: 2005-06-01 | AF109: 4.185 | AG109: 2005-06-01 | AH109: 4.252 | AI109: 2005-06-01 | AJ109: 4.27 | AK109: 2005-06-01 | AL109: 2.105 | AM109: 2005-06-01 | AN109: 2.768 | AO109: 2005-06-01 | AP109: 3.459 | AQ109: 2005-06-01 | AR109: 4.085 | AS109: 2005-06-02 | AT109: 2.7471 | AU109: 2005-06-02 | AV109: 2.4238 | AW109: 2005-06-02 | AX109: 2.3626 | AY109: 2005-06-02 | AZ109: 2.6463 | BA109: 2012-03-01 | BB109: 556.667 | BC109: 2012-03-05 | BD109: 356.792 | BE109: 2013-01-14 | BF109: 451.019 | BG109: 2008-04-01 | BH109: 182 | BI109: 2005-06-02 | BJ109: 32.375 | BK109: 2005-06-03 | BL109: -33.2 | BM109: 2005-06-01 | BN109: -19.09 | BO109: 2005-06-01 | BP109: 15.2 | BQ109: 2005-06-01 | BR109: -104.6 | BS109: 2005-06-01 | BT109: -38.6 | BU109: 2005-06-01 | BV109: -6.2 | BW109: 2005-06-01 | BX109: 3.7 | BY109: 2005-06-01 | BZ109: 1.2228 | CA109: 2005-06-01 | CB109: 1.8117 | CC109: 2005-06-01 | CD109: 0.67493 | CE109: 2005-06-01 | CF109: 108.47 | CG109: 2005-06-01 | CH109: 1.2479 | CI109: 2005-06-01 | CJ109: 103.68 | CK109: 2005-06-01 | CL109: 88.11 | CM109: 2005-06-01 | CN109: 0.7506 | CO109: 2005-06-01 | CP109: 7.4849 | CQ109: 2005-06-01 | CR109: 6.4667 | CS109: 2005-06-01 | CT109: 31.475 | CU109: 2005-06-01 | CV109: 2.44 | CW109: 2011-01-19 | CX109: 0.9995 | CY109: 2005-06-01 | CZ109: 9570 | DA109: 2005-06-01 | DB109: 43.775 | DC109: 2005-06-01 | DD109: 28.3863 | DE109: 2005-06-01 | DF109: 6.925 | DG109: 2005-06-07 | DH109: 12.39 | DI109: 2005-06-02 | DJ109: 12.8725 | DK109: 2005-06-07 | DL109: 77.86 | DM109: 2005-06-03 | DN109: 1198.5 | DO109: 38505 | DP109: 1571.5 | DQ109: 2005-06-03 | DR109: 303 | DS109: 2005-06-03 | DT109: 31968
A110: 2005-06-02 | B110: 423.27 | C110: 2005-06-06 | D110: 3108 | E110: 2005-06-02 | F110: 3.5244 | G110: 2005-06-02 | H110: 3.6554 | I110: 2005-06-02 | J110: 3.9032 | K110: 2005-06-02 | L110: 4.24 | M110: 2005-06-02 | N110: 2.102 | O110: 2005-06-02 | P110: 2.584 | Q110: 2005-06-02 | R110: 3.217 | S110: 2005-06-02 | T110: 3.748 | U110: 2005-06-02 | V110: 0.09 | W110: 2005-06-02 | X110: 0.433 | Y110: 2005-06-02 | Z110: 1.223 | AA110: 2005-06-02 | AB110: 2.288 | AC110: 2005-06-02 | AD110: 4.186 | AE110: 2005-06-02 | AF110: 4.175 | AG110: 2005-06-02 | AH110: 4.239 | AI110: 2005-06-02 | AJ110: 4.248 | AK110: 2005-06-02 | AL110: 2.119 | AM110: 2005-06-02 | AN110: 2.761 | AO110: 2005-06-02 | AP110: 3.433 | AQ110: 2005-06-02 | AR110: 4.04 | AS110: 2005-06-03 | AT110: 2.6688 | AU110: 2005-06-03 | AV110: 2.4386 | AW110: 2005-06-03 | AX110: 2.3836 | AY110: 2005-06-03 | AZ110: 2.6456 | BA110: 2012-03-02 | BB110: 574 | BC110: 2012-03-06 | BD110: 372.75 | BE110: 2013-01-15 | BF110: 447.711 | BG110: 2008-04-02 | BH110: 164 | BI110: 2005-06-03 | BJ110: 31.917 | BK110: 2005-06-06 | BL110: -35.6 | BM110: 2005-06-02 | BN110: -18.62 | BO110: 2005-06-02 | BP110: 15.2 | BQ110: 2005-06-02 | BR110: -104.4 | BS110: 2005-06-02 | BT110: -41.1 | BU110: 2005-06-02 | BV110: -8.7 | BW110: 2005-06-02 | BX110: 3.7 | BY110: 2005-06-02 | BZ110: 1.2279 | CA110: 2005-06-02 | CB110: 1.8171 | CC110: 2005-06-02 | CD110: 0.67568 | CE110: 2005-06-02 | CF110: 108.31 | CG110: 2005-06-02 | CH110: 1.2476 | CI110: 2005-06-02 | CJ110: 103.87 | CK110: 2005-06-02 | CL110: 87.75 | CM110: 2005-06-02 | CN110: 0.7534 | CO110: 2005-06-02 | CP110: 7.44 | CQ110: 2005-06-02 | CR110: 6.4488 | CS110: 2005-06-02 | CT110: 31.371 | CU110: 2005-06-02 | CV110: 2.4175 | CW110: 2011-01-20 | CX110: 0.9992 | CY110: 2005-06-02 | CZ110: 9572 | DA110: 2005-06-02 | DB110: 43.69 | DC110: 2005-06-02 | DD110: 28.35 | DE110: 2005-06-02 | DF110: 6.8064 | DG110: 2005-06-08 | DH110: 12.7 | DI110: 2005-06-03 | DJ110: 12.9397 | DK110: 2005-06-08 | DL110: 82.96 | DM110: 2005-06-06 | DN110: 1198 | DO110: 38506 | DP110: 1550.5 | DQ110: 2005-06-06 | DR110: 303.7 | DS110: 2005-06-06 | DT110: 31887
A111: 2005-06-03 | B111: 423.79 | C111: 2005-06-07 | D111: 3133 | E111: 2005-06-03 | F111: 3.5573 | G111: 2005-06-03 | H111: 3.7279 | I111: 2005-06-03 | J111: 3.9732 | K111: 2005-06-03 | L111: 4.2812 | M111: 2005-06-03 | N111: 2.114 | O111: 2005-06-03 | P111: 2.586 | Q111: 2005-06-03 | R111: 3.237 | S111: 2005-06-03 | T111: 3.757 | U111: 2005-06-03 | V111: 0.095 | W111: 2005-06-03 | X111: 0.439 | Y111: 2005-06-03 | Z111: 1.245 | AA111: 2005-06-03 | AB111: 2.265 | AC111: 2005-06-03 | AD111: 4.199 | AE111: 2005-06-03 | AF111: 4.195 | AG111: 2005-06-03 | AH111: 4.265 | AI111: 2005-06-03 | AJ111: 4.259 | AK111: 2005-06-03 | AL111: 2.131 | AM111: 2005-06-03 | AN111: 2.773 | AO111: 2005-06-03 | AP111: 3.459 | AQ111: 2005-06-03 | AR111: 4.057 | AS111: 2005-06-06 | AT111: 2.6703 | AU111: 2005-06-06 | AV111: 2.421 | AW111: 2005-06-06 | AX111: 2.3644 | AY111: 2005-06-06 | AZ111: 2.6255 | BA111: 2012-03-05 | BB111: 591.5 | BC111: 2012-03-07 | BD111: 358.292 | BE111: 2013-01-16 | BF111: 446.609 | BG111: 2008-04-03 | BH111: 157.5 | BI111: 2005-06-06 | BJ111: 31.938 | BK111: 2005-06-07 | BL111: -32.8 | BM111: 2005-06-03 | BN111: -24.2 | BO111: 2005-06-03 | BP111: 3.6 | BQ111: 2005-06-03 | BR111: -104.3 | BS111: 2005-06-03 | BT111: -41.5 | BU111: 2005-06-03 | BV111: -9.4 | BW111: 2005-06-03 | BX111: 3.7 | BY111: 2005-06-03 | BZ111: 1.2218 | CA111: 2005-06-03 | CB111: 1.811 | CC111: 2005-06-03 | CD111: 0.67455 | CE111: 2005-06-03 | CF111: 107.95 | CG111: 2005-06-03 | CH111: 1.2495 | CI111: 2005-06-03 | CJ111: 104.08 | CK111: 2005-06-03 | CL111: 88.04 | CM111: 2005-06-03 | CN111: 0.7547 | CO111: 2005-06-03 | CP111: 7.48 | CQ111: 2005-06-03 | CR111: 6.4658 | CS111: 2005-06-03 | CT111: 31.27 | CU111: 2005-06-03 | CV111: 2.4132 | CW111: 2011-01-21 | CX111: 0.9989 | CY111: 2005-06-03 | CZ111: 9585 | DA111: 2005-06-03 | DB111: 43.615 | DC111: 2005-06-03 | DD111: 28.3705 | DE111: 2005-06-03 | DF111: 6.8747 | DG111: 2005-06-09 | DH111: 12.08 | DI111: 2005-06-06 | DJ111: 13.3629 | DK111: 2005-06-09 | DL111: 80.86 | DM111: 2005-06-07 | DN111: 1199 | DO111: 38509 | DP111: 1545.5 | DQ111: 2005-06-07 | DR111: 306.6 | DS111: 2005-06-07 | DT111: 32167
A112: 2005-06-06 | B112: 426.84 | C112: 2005-06-08 | D112: 3124 | E112: 2005-06-06 | F112: 3.5739 | G112: 2005-06-06 | H112: 3.7139 | I112: 2005-06-06 | J112: 3.9522 | K112: 2005-06-06 | L112: 4.2434 | M112: 2005-06-06 | N112: 2.094 | O112: 2005-06-06 | P112: 2.575 | Q112: 2005-06-06 | R112: 3.216 | S112: 2005-06-06 | T112: 3.719 | U112: 2005-06-06 | V112: 0.095 | W112: 2005-06-06 | X112: 0.445 | Y112: 2005-06-06 | Z112: 1.249 | AA112: 2005-06-06 | AB112: 2.269 | AC112: 2005-06-06 | AD112: 4.227 | AE112: 2005-06-06 | AF112: 4.216 | AG112: 2005-06-06 | AH112: 4.283 | AI112: 2005-06-06 | AJ112: 4.266 | AK112: 2005-06-06 | AL112: 2.107 | AM112: 2005-06-06 | AN112: 2.763 | AO112: 2005-06-06 | AP112: 3.443 | AQ112: 2005-06-06 | AR112: 4.023 | AS112: 2005-06-07 | AT112: 2.6196 | AU112: 2005-06-07 | AV112: 2.396 | AW112: 2005-06-07 | AX112: 2.329 | AY112: 2005-06-07 | AZ112: 2.587 | BA112: 2012-03-06 | BB112: 618.45 | BC112: 2012-03-08 | BD112: 352 | BE112: 2013-01-17 | BF112: 441.176 | BG112: 2008-04-04 | BH112: 141 | BI112: 2005-06-07 | BJ112: 33.083 | BK112: 2005-06-08 | BL112: -32.4 | BM112: 2005-06-06 | BN112: -27.3 | BO112: 2005-06-06 | BP112: 4.1 | BQ112: 2005-06-06 | BR112: -119.7 | BS112: 2005-06-06 | BT112: -41.7 | BU112: 2005-06-06 | BV112: -9.6 | BW112: 2005-06-06 | BX112: 3.6 | BY112: 2005-06-06 | BZ112: 1.2275 | CA112: 2005-06-06 | CB112: 1.8225 | CC112: 2005-06-06 | CD112: 0.67351 | CE112: 2005-06-06 | CF112: 106.93 | CG112: 2005-06-06 | CH112: 1.2442 | CI112: 2005-06-06 | CJ112: 104.24 | CK112: 2005-06-06 | CL112: 87.6 | CM112: 2005-06-06 | CN112: 0.7661 | CO112: 2005-06-06 | CP112: 7.4492 | CQ112: 2005-06-06 | CR112: 6.4125 | CS112: 2005-06-06 | CT112: 31.224 | CU112: 2005-06-06 | CV112: 2.4708 | CW112: 2011-01-24 | CX112: 0.9986 | CY112: 2005-06-06 | CZ112: 9595 | DA112: 2005-06-06 | DB112: 43.575 | DC112: 2005-06-06 | DD112: 28.4113 | DE112: 2005-06-06 | DF112: 6.7358 | DG112: 2005-06-10 | DH112: 11.96 | DI112: 2005-06-07 | DJ112: 12.6671 | DK112: 2005-06-10 | DL112: 82.53 | DM112: 2005-06-08 | DN112: 1196 | DO112: 38510 | DP112: 1534 | DQ112: 2005-06-08 | DR112: 304 | DS112: 2005-06-08 | DT112: 32207
A113: 2005-06-07 | B113: 425.2 | C113: 2005-06-09 | D113: 3132 | E113: 2005-06-07 | F113: 3.5574 | G113: 2005-06-07 | H113: 3.679 | I113: 2005-06-07 | J113: 3.901 | K113: 2005-06-07 | L113: 4.1907 | M113: 2005-06-07 | N113: 2.053 | O113: 2005-06-07 | P113: 2.519 | Q113: 2005-06-07 | R113: 3.158 | S113: 2005-06-07 | T113: 3.649 | U113: 2005-06-07 | V113: 0.09 | W113: 2005-06-07 | X113: 0.425 | Y113: 2005-06-07 | Z113: 1.24 | AA113: 2005-06-07 | AB113: 2.27 | AC113: 2005-06-07 | AD113: 4.199 | AE113: 2005-06-07 | AF113: 4.18 | AG113: 2005-06-07 | AH113: 4.242 | AI113: 2005-06-07 | AJ113: 4.233 | AK113: 2005-06-07 | AL113: 2.065 | AM113: 2005-06-07 | AN113: 2.713 | AO113: 2005-06-07 | AP113: 3.384 | AQ113: 2005-06-07 | AR113: 3.957 | AS113: 2005-06-08 | AT113: 2.617 | AU113: 2005-06-08 | AV113: 2.3935 | AW113: 2005-06-08 | AX113: 2.333 | AY113: 2005-06-08 | AZ113: 2.5799 | BA113: 2012-03-07 | BB113: 588.429 | BC113: 2012-03-09 | BD113: 356.5 | BE113: 2013-01-18 | BF113: 438.879 | BG113: 2008-04-07 | BH113: 135.5 | BI113: 2005-06-08 | BJ113: 33.5 | BK113: 2005-06-09 | BL113: -31.6 | BM113: 2005-06-07 | BN113: -25.48 | BO113: 2005-06-07 | BP113: 4.5 | BQ113: 2005-06-07 | BR113: -114.3 | BS113: 2005-06-07 | BT113: -37.2 | BU113: 2005-06-07 | BV113: -7.2 | BW113: 2005-06-07 | BX113: 3.6 | BY113: 2005-06-07 | BZ113: 1.2269 | CA113: 2005-06-07 | CB113: 1.8346 | CC113: 2005-06-07 | CD113: 0.66875 | CE113: 2005-06-07 | CF113: 106.61 | CG113: 2005-06-07 | CH113: 1.2479 | CI113: 2005-06-07 | CJ113: 104.27 | CK113: 2005-06-07 | CL113: 87.49 | CM113: 2005-06-07 | CN113: 0.7695 | CO113: 2005-06-07 | CP113: 7.4442 | CQ113: 2005-06-07 | CR113: 6.4023 | CS113: 2005-06-07 | CT113: 31.225 | CU113: 2005-06-07 | CV113: 2.4609 | CW113: 2011-01-25 | CX113: 0.9989 | CY113: 2005-06-07 | CZ113: 9545 | DA113: 2005-06-07 | DB113: 43.55 | DC113: 2005-06-07 | DD113: 28.4055 | DE113: 2005-06-07 | DF113: 6.6638 | DG113: 2005-06-13 | DH113: 11.65 | DI113: 2005-06-08 | DJ113: 12.9902 | DK113: 2005-06-13 | DL113: 80.53 | DM113: 2005-06-09 | DN113: 1201 | DO113: 38511 | DP113: 1530.5 | DQ113: 2005-06-09 | DR113: 306.2 | DS113: 2005-06-09 | DT113: 32297
A114: 2005-06-08 | B114: 425.4 | C114: 2005-06-10 | D114: 3143 | E114: 2005-06-08 | F114: 3.5988 | G114: 2005-06-08 | H114: 3.7172 | I114: 2005-06-08 | J114: 3.9331 | K114: 2005-06-08 | L114: 4.22 | M114: 2005-06-08 | N114: 2.033 | O114: 2005-06-08 | P114: 2.495 | Q114: 2005-06-08 | R114: 3.128 | S114: 2005-06-08 | T114: 3.616 | U114: 2005-06-08 | V114: 0.09 | W114: 2005-06-08 | X114: 0.435 | Y114: 2005-06-08 | Z114: 1.24 | AA114: 2005-06-08 | AB114: 2.28 | AC114: 2005-06-08 | AD114: 4.183 | AE114: 2005-06-08 | AF114: 4.158 | AG114: 2005-06-08 | AH114: 4.215 | AI114: 2005-06-08 | AJ114: 4.203 | AK114: 2005-06-08 | AL114: 2.046 | AM114: 2005-06-08 | AN114: 2.687 | AO114: 2005-06-08 | AP114: 3.347 | AQ114: 2005-06-08 | AR114: 3.919 | AS114: 2005-06-09 | AT114: 2.6376 | AU114: 2005-06-09 | AV114: 2.3914 | AW114: 2005-06-09 | AX114: 2.3323 | AY114: 2005-06-09 | AZ114: 2.5898 | BA114: 2012-03-08 | BB114: 572.5 | BC114: 2012-03-12 | BD114: 360 | BE114: 2013-01-22 | BF114: 436.251 | BG114: 2008-04-08 | BH114: 137 | BI114: 2005-06-09 | BJ114: 33.938 | BK114: 2005-06-10 | BL114: -27.8 | BM114: 2005-06-08 | BN114: -25.22 | BO114: 2005-06-08 | BP114: 5.3 | BQ114: 2005-06-08 | BR114: -113.1 | BS114: 2005-06-08 | BT114: -36.8 | BU114: 2005-06-08 | BV114: -6.3 | BW114: 2005-06-08 | BX114: 3.5 | BY114: 2005-06-08 | BZ114: 1.2284 | CA114: 2005-06-08 | CB114: 1.833 | CC114: 2005-06-08 | CD114: 0.67015 | CE114: 2005-06-08 | CF114: 106.96 | CG114: 2005-06-08 | CH114: 1.2472 | CI114: 2005-06-08 | CJ114: 104.16 | CK114: 2005-06-08 | CL114: 87.88 | CM114: 2005-06-08 | CN114: 0.7674 | CO114: 2005-06-08 | CP114: 7.4806 | CQ114: 2005-06-08 | CR114: 6.4424 | CS114: 2005-06-08 | CT114: 31.255 | CU114: 2005-06-08 | CV114: 2.447 | CW114: 2011-01-26 | CX114: 0.9992 | CY114: 2005-06-08 | CZ114: 9581 | DA114: 2005-06-08 | DB114: 43.485 | DC114: 2005-06-08 | DD114: 28.3537 | DE114: 2005-06-08 | DF114: 6.7431 | DG114: 2005-06-14 | DH114: 11.79 | DI114: 2005-06-09 | DJ114: 13.22 | DK114: 2005-06-14 | DL114: 80.17 | DM114: 2005-06-10 | DN114: 1199 | DO114: 38512 | DP114: 1537.5 | DQ114: 2005-06-10 | DR114: 306.7 | DS114: 2005-06-10 | DT114: 32388
A115: 2005-06-09 | B115: 424.6 | C115: 2005-06-13 | D115: 3153 | E115: 2005-06-09 | F115: 3.6155 | G115: 2005-06-09 | H115: 3.739 | I115: 2005-06-09 | J115: 3.9483 | K115: 2005-06-09 | L115: 4.2315 | M115: 2005-06-09 | N115: 2.048 | O115: 2005-06-09 | P115: 2.506 | Q115: 2005-06-09 | R115: 3.131 | S115: 2005-06-09 | T115: 3.622 | U115: 2005-06-09 | V115: 0.089 | W115: 2005-06-09 | X115: 0.42 | Y115: 2005-06-09 | Z115: 1.225 | AA115: 2005-06-09 | AB115: 2.27 | AC115: 2005-06-09 | AD115: 4.239 | AE115: 2005-06-09 | AF115: 4.189 | AG115: 2005-06-09 | AH115: 4.241 | AI115: 2005-06-09 | AJ115: 4.218 | AK115: 2005-06-09 | AL115: 2.058 | AM115: 2005-06-09 | AN115: 2.692 | AO115: 2005-06-09 | AP115: 3.344 | AQ115: 2005-06-09 | AR115: 3.921 | AS115: 2005-06-10 | AT115: 2.6183 | AU115: 2005-06-10 | AV115: 2.3895 | AW115: 2005-06-10 | AX115: 2.329 | AY115: 2005-06-10 | AZ115: 2.5853 | BA115: 2012-03-09 | BB115: 581.5 | BC115: 2012-03-13 | BD115: 351 | BE115: 2013-01-23 | BF115: 436.239 | BG115: 2008-04-09 | BH115: 141.5 | BI115: 2005-06-10 | BJ115: 34.075 | BK115: 2005-06-13 | BL115: -28.3 | BM115: 2005-06-09 | BN115: -24.91 | BO115: 2005-06-09 | BP115: 5 | BQ115: 2005-06-09 | BR115: -111.9 | BS115: 2005-06-09 | BT115: -35.3 | BU115: 2005-06-09 | BV115: -6.3 | BW115: 2005-06-09 | BX115: 3.5 | BY115: 2005-06-09 | BZ115: 1.2237 | CA115: 2005-06-09 | CB115: 1.8217 | CC115: 2005-06-09 | CD115: 0.67175 | CE115: 2005-06-09 | CF115: 107.44 | CG115: 2005-06-09 | CH115: 1.2545 | CI115: 2005-06-09 | CJ115: 104.1 | CK115: 2005-06-09 | CL115: 88.07 | CM115: 2005-06-09 | CN115: 0.7686 | CO115: 2005-06-09 | CP115: 7.5204 | CQ115: 2005-06-09 | CR115: 6.456 | CS115: 2005-06-09 | CT115: 31.303 | CU115: 2005-06-09 | CV115: 2.4878 | CW115: 2011-01-27 | CX115: 0.999 | CY115: 2005-06-09 | CZ115: 9628 | DA115: 2005-06-09 | DB115: 43.51 | DC115: 2005-06-09 | DD115: 28.4462 | DE115: 2005-06-09 | DF115: 6.7419 | DG115: 2005-06-15 | DH115: 11.46 | DI115: 2005-06-10 | DJ115: 12.7016 | DK115: 2005-06-15 | DL115: 75.24 | DM115: 2005-06-13 | DN115: 1202.5 | DO115: 38513 | DP115: 1524 | DQ115: 2005-06-13 | DR115: 307.3 | DS115: 2005-06-13 | DT115: 32596
A116: 2005-06-10 | B116: 427.19 | C116: 2005-06-14 | D116: 3173 | E116: 2005-06-10 | F116: 3.6908 | G116: 2005-06-10 | H116: 3.8433 | I116: 2005-06-10 | J116: 4.0514 | K116: 2005-06-10 | L116: 4.3244 | M116: 2005-06-10 | N116: 2.082 | O116: 2005-06-10 | P116: 2.529 | Q116: 2005-06-10 | R116: 3.145 | S116: 2005-06-10 | T116: 3.632 | U116: 2005-06-10 | V116: 0.09 | W116: 2005-06-10 | X116: 0.455 | Y116: 2005-06-10 | Z116: 1.226 | AA116: 2005-06-10 | AB116: 2.275 | AC116: 2005-06-10 | AD116: 4.256 | AE116: 2005-06-10 | AF116: 4.205 | AG116: 2005-06-10 | AH116: 4.256 | AI116: 2005-06-10 | AJ116: 4.226 | AK116: 2005-06-10 | AL116: 2.089 | AM116: 2005-06-10 | AN116: 2.71 | AO116: 2005-06-10 | AP116: 3.355 | AQ116: 2005-06-10 | AR116: 3.929 | AS116: 2005-06-13 | AT116: 2.6224 | AU116: 2005-06-13 | AV116: 2.3931 | AW116: 2005-06-13 | AX116: 2.3444 | AY116: 2005-06-13 | AZ116: 2.5986 | BA116: 2012-03-12 | BB116: 586.667 | BC116: 2012-03-14 | BD116: 341 | BE116: 2013-01-24 | BF116: 436.937 | BG116: 2008-04-10 | BH116: 142 | BI116: 2005-06-13 | BJ116: 34.083 | BK116: 2005-06-14 | BL116: -30.2 | BM116: 2005-06-10 | BN116: -22.28 | BO116: 2005-06-10 | BP116: 9 | BQ116: 2005-06-10 | BR116: -110.6 | BS116: 2005-06-10 | BT116: -30 | BU116: 2005-06-10 | BV116: 2 | BW116: 2005-06-10 | BX116: 3.5 | BY116: 2005-06-10 | BZ116: 1.2127 | CA116: 2005-06-10 | CB116: 1.8124 | CC116: 2005-06-10 | CD116: 0.66908 | CE116: 2005-06-10 | CF116: 108.56 | CG116: 2005-06-10 | CH116: 1.2494 | CI116: 2005-06-10 | CJ116: 103.92 | CK116: 2005-06-10 | CL116: 88.69 | CM116: 2005-06-10 | CN116: 0.7624 | CO116: 2005-06-10 | CP116: 7.6095 | CQ116: 2005-06-10 | CR116: 6.4725 | CS116: 2005-06-10 | CT116: 31.33 | CU116: 2005-06-10 | CV116: 2.4728 | CW116: 2011-01-28 | CX116: 0.9997 | CY116: 2005-06-10 | CZ116: 9620 | DA116: 2005-06-10 | DB116: 43.515 | DC116: 2005-06-10 | DD116: 28.4863 | DE116: 2005-06-10 | DF116: 6.7513 | DG116: 2005-06-16 | DH116: 11.15 | DI116: 2005-06-13 | DJ116: 12.7563 | DK116: 2005-06-16 | DL116: 73.4 | DM116: 2005-06-14 | DN116: 1205 | DO116: 38516 | DP116: 1531 | DQ116: 2005-06-14 | DR116: 308 | DS116: 2005-06-14 | DT116: 32675
A117: 2005-06-13 | B117: 429.71 | C117: 2005-06-15 | D117: 3153 | E117: 2005-06-13 | F117: 3.691 | G117: 2005-06-13 | H117: 3.8642 | I117: 2005-06-13 | J117: 4.0918 | K117: 2005-06-13 | L117: 4.373 | M117: 2005-06-13 | N117: 2.073 | O117: 2005-06-13 | P117: 2.548 | Q117: 2005-06-13 | R117: 3.188 | S117: 2005-06-13 | T117: 3.699 | U117: 2005-06-13 | V117: 0.09 | W117: 2005-06-13 | X117: 0.464 | Y117: 2005-06-13 | Z117: 1.246 | AA117: 2005-06-13 | AB117: 2.3 | AC117: 2005-06-13 | AD117: 4.272 | AE117: 2005-06-13 | AF117: 4.238 | AG117: 2005-06-13 | AH117: 4.298 | AI117: 2005-06-13 | AJ117: 4.26 | AK117: 2005-06-13 | AL117: 2.085 | AM117: 2005-06-13 | AN117: 2.733 | AO117: 2005-06-13 | AP117: 3.406 | AQ117: 2005-06-13 | AR117: 4.008 | AS117: 2005-06-14 | AT117: 2.6084 | AU117: 2005-06-14 | AV117: 2.3996 | AW117: 2005-06-14 | AX117: 2.3508 | AY117: 2005-06-14 | AZ117: 2.6124 | BA117: 2012-03-13 | BB117: 566.458 | BC117: 2012-03-15 | BD117: 338 | BE117: 2013-01-25 | BF117: 430.366 | BG117: 2008-04-11 | BH117: 140 | BI117: 2005-06-14 | BJ117: 33.938 | BK117: 2005-06-15 | BL117: -29.1 | BM117: 2005-06-13 | BN117: -23.41 | BO117: 2005-06-13 | BP117: 7.7 | BQ117: 2005-06-13 | BR117: -106.3 | BS117: 2005-06-13 | BT117: -29.3 | BU117: 2005-06-13 | BV117: 1.4 | BW117: 2005-06-13 | BX117: 4.3 | BY117: 2005-06-13 | BZ117: 1.2068 | CA117: 2005-06-13 | CB117: 1.8043 | CC117: 2005-06-13 | CD117: 0.66886 | CE117: 2005-06-13 | CF117: 109.66 | CG117: 2005-06-13 | CH117: 1.2569 | CI117: 2005-06-13 | CJ117: 103.63 | CK117: 2005-06-13 | CL117: 88.95 | CM117: 2005-06-13 | CN117: 0.7608 | CO117: 2005-06-13 | CP117: 7.6941 | CQ117: 2005-06-13 | CR117: 6.5123 | CS117: 2005-06-13 | CT117: 31.483 | CU117: 2005-06-13 | CV117: 2.4598 | CW117: 2011-01-31 | CX117: 0.9989 | CY117: 2005-06-13 | CZ117: 9620 | DA117: 2005-06-13 | DB117: 43.66 | DC117: 2005-06-13 | DD117: 28.4863 | DE117: 2005-06-13 | DF117: 6.8495 | DG117: 2005-06-17 | DH117: 11.48 | DI117: 2005-06-14 | DJ117: 12.3775 | DK117: 2005-06-17 | DL117: 72.4 | DM117: 2005-06-15 | DN117: 1206.5 | DO117: 38517 | DP117: 1526.5 | DQ117: 2005-06-15 | DR117: 308.7 | DS117: 2005-06-15 | DT117: 32614
A118: 2005-06-14 | B118: 427.32 | C118: 2005-06-16 | D118: 3159 | E118: 2005-06-14 | F118: 3.6828 | G118: 2005-06-14 | H118: 3.8677 | I118: 2005-06-14 | J118: 4.1072 | K118: 2005-06-14 | L118: 4.4137 | M118: 2005-06-14 | N118: 2.086 | O118: 2005-06-14 | P118: 2.567 | Q118: 2005-06-14 | R118: 3.201 | S118: 2005-06-14 | T118: 3.718 | U118: 2005-06-14 | V118: 0.09 | W118: 2005-06-14 | X118: 0.464 | Y118: 2005-06-14 | Z118: 1.245 | AA118: 2005-06-14 | AB118: 2.305 | AC118: 2005-06-14 | AD118: 4.319 | AE118: 2005-06-14 | AF118: 4.282 | AG118: 2005-06-14 | AH118: 4.33 | AI118: 2005-06-14 | AJ118: 4.283 | AK118: 2005-06-14 | AL118: 2.099 | AM118: 2005-06-14 | AN118: 2.752 | AO118: 2005-06-14 | AP118: 3.423 | AQ118: 2005-06-14 | AR118: 4.029 | AS118: 2005-06-15 | AT118: 2.5692 | AU118: 2005-06-15 | AV118: 2.3962 | AW118: 2005-06-15 | AX118: 2.3394 | AY118: 2005-06-15 | AZ118: 2.6188 | BA118: 2012-03-14 | BB118: 555.125 | BC118: 2012-03-16 | BD118: 329 | BE118: 2013-01-28 | BF118: 433.078 | BG118: 2008-04-14 | BH118: 155.5 | BI118: 2005-06-15 | BJ118: 33.938 | BK118: 2005-06-16 | BL118: -29.6 | BM118: 2005-06-14 | BN118: -24.79 | BO118: 2005-06-14 | BP118: 0.4 | BQ118: 2005-06-14 | BR118: -104.3 | BS118: 2005-06-14 | BT118: -31.5 | BU118: 2005-06-14 | BV118: 1.4 | BW118: 2005-06-14 | BX118: 4.3 | BY118: 2005-06-14 | BZ118: 1.2042 | CA118: 2005-06-14 | CB118: 1.8063 | CC118: 2005-06-14 | CD118: 0.66664 | CE118: 2005-06-14 | CF118: 109.38 | CG118: 2005-06-14 | CH118: 1.2526 | CI118: 2005-06-14 | CJ118: 103.73 | CK118: 2005-06-14 | CL118: 89.3 | CM118: 2005-06-14 | CN118: 0.7652 | CO118: 2005-06-14 | CP118: 7.7131 | CQ118: 2005-06-14 | CR118: 6.5436 | CS118: 2005-06-14 | CT118: 31.45 | CU118: 2005-06-14 | CV118: 2.4684 | CW118: 2011-02-01 | CX118: 0.9964 | CY118: 2005-06-14 | CZ118: 9600 | DA118: 2005-06-14 | DB118: 43.6088 | DC118: 2005-06-14 | DD118: 28.5535 | DE118: 2005-06-14 | DF118: 6.8709 | DG118: 2005-06-20 | DH118: 11.47 | DI118: 2005-06-15 | DJ118: 13.4793 | DK118: 2005-06-20 | DL118: 72.2 | DM118: 2005-06-16 | DN118: 1210.5 | DO118: 38518 | DP118: 1528 | DQ118: 2005-06-16 | DR118: 310.6 | DS118: 2005-06-16 | DT118: 32757
A119: 2005-06-15 | B119: 429.6 | C119: 2005-06-17 | D119: 3185.42 | E119: 2005-06-15 | F119: 3.7082 | G119: 2005-06-15 | H119: 3.8783 | I119: 2005-06-15 | J119: 4.0995 | K119: 2005-06-15 | L119: 4.4016 | M119: 2005-06-15 | N119: 2.173 | O119: 2005-06-15 | P119: 2.651 | Q119: 2005-06-15 | R119: 3.294 | S119: 2005-06-15 | T119: 3.828 | U119: 2005-06-15 | V119: 0.089 | W119: 2005-06-15 | X119: 0.464 | Y119: 2005-06-15 | Z119: 1.25 | AA119: 2005-06-15 | AB119: 2.314 | AC119: 2005-06-15 | AD119: 4.351 | AE119: 2005-06-15 | AF119: 4.332 | AG119: 2005-06-15 | AH119: 4.4 | AI119: 2005-06-15 | AJ119: 4.357 | AK119: 2005-06-15 | AL119: 2.157 | AM119: 2005-06-15 | AN119: 2.839 | AO119: 2005-06-15 | AP119: 3.51 | AQ119: 2005-06-15 | AR119: 4.135 | AS119: 2005-06-16 | AT119: 2.5509 | AU119: 2005-06-16 | AV119: 2.3951 | AW119: 2005-06-16 | AX119: 2.3531 | AY119: 2005-06-16 | AZ119: 2.6371 | BA119: 2012-03-15 | BB119: 546.5 | BC119: 2012-03-19 | BD119: 315 | BE119: 2013-01-29 | BF119: 434.465 | BG119: 2008-04-15 | BH119: 151.5 | BI119: 2005-06-16 | BJ119: 33.638 | BK119: 2005-06-17 | BL119: -29.3 | BM119: 2005-06-15 | BN119: -25.99 | BO119: 2005-06-15 | BP119: -6.6 | BQ119: 2005-06-15 | BR119: -102.1 | BS119: 2005-06-15 | BT119: -24.6 | BU119: 2005-06-15 | BV119: 10.5 | BW119: 2005-06-15 | BX119: 27.1 | BY119: 2005-06-15 | BZ119: 1.2102 | CA119: 2005-06-15 | CB119: 1.8231 | CC119: 2005-06-15 | CD119: 0.66375 | CE119: 2005-06-15 | CF119: 109.22 | CG119: 2005-06-15 | CH119: 1.2383 | CI119: 2005-06-15 | CJ119: 103.87 | CK119: 2005-06-15 | CL119: 88.62 | CM119: 2005-06-15 | CN119: 0.7692 | CO119: 2005-06-15 | CP119: 7.6629 | CQ119: 2005-06-15 | CR119: 6.5131 | CS119: 2005-06-15 | CT119: 31.385 | CU119: 2005-06-15 | CV119: 2.4451 | CW119: 2011-02-02 | CX119: 0.9968 | CY119: 2005-06-15 | CZ119: 9603 | DA119: 2005-06-15 | DB119: 43.655 | DC119: 2005-06-15 | DD119: 28.5713 | DE119: 2005-06-15 | DF119: 6.7881 | DG119: 2005-06-21 | DH119: 11.08 | DI119: 2005-06-16 | DJ119: 13.0157 | DK119: 2005-06-21 | DL119: 73.5 | DM119: 2005-06-17 | DN119: 1222.68 | DO119: 38519 | DP119: 1535.5 | DQ119: 2005-06-17 | DR119: 312.14 | DS119: 2005-06-17 | DT119: 32928
A120: 2005-06-16 | B120: 435.45 | C120: 2005-06-20 | D120: 3175 | E120: 2005-06-16 | F120: 3.6665 | G120: 2005-06-16 | H120: 3.8365 | I120: 2005-06-16 | J120: 4.0667 | K120: 2005-06-16 | L120: 4.3673 | M120: 2005-06-16 | N120: 2.19 | O120: 2005-06-16 | P120: 2.677 | Q120: 2005-06-16 | R120: 3.313 | S120: 2005-06-16 | T120: 3.811 | U120: 2005-06-16 | V120: 0.09 | W120: 2005-06-16 | X120: 0.5 | Y120: 2005-06-16 | Z120: 1.299 | AA120: 2005-06-16 | AB120: 2.345 | AC120: 2005-06-16 | AD120: 4.344 | AE120: 2005-06-16 | AF120: 4.342 | AG120: 2005-06-16 | AH120: 4.415 | AI120: 2005-06-16 | AJ120: 4.365 | AK120: 2005-06-16 | AL120: 2.17 | AM120: 2005-06-16 | AN120: 2.864 | AO120: 2005-06-16 | AP120: 3.531 | AQ120: 2005-06-16 | AR120: 4.116 | AS120: 2005-06-17 | AT120: 2.6163 | AU120: 2005-06-17 | AV120: 2.4394 | AW120: 2005-06-17 | AX120: 2.3711 | AY120: 2005-06-17 | AZ120: 2.6157 | BA120: 2012-03-16 | BB120: 528 | BC120: 2012-03-20 | BD120: 312 | BE120: 2013-01-30 | BF120: 450.565 | BG120: 2008-04-16 | BH120: 138.5 | BI120: 2005-06-17 | BJ120: 33.575 | BK120: 2005-06-20 | BL120: -26.9 | BM120: 2005-06-16 | BN120: -28.29 | BO120: 2005-06-16 | BP120: -14.3 | BQ120: 2005-06-16 | BR120: -99.7 | BS120: 2005-06-16 | BT120: -22.5 | BU120: 2005-06-16 | BV120: 13.6 | BW120: 2005-06-16 | BX120: 27 | BY120: 2005-06-16 | BZ120: 1.2089 | CA120: 2005-06-16 | CB120: 1.8226 | CC120: 2005-06-16 | CD120: 0.66322 | CE120: 2005-06-16 | CF120: 109.03 | CG120: 2005-06-16 | CH120: 1.2373 | CI120: 2005-06-16 | CJ120: 103.74 | CK120: 2005-06-16 | CL120: 88.64 | CM120: 2005-06-16 | CN120: 0.7724 | CO120: 2005-06-16 | CP120: 7.6671 | CQ120: 2005-06-16 | CR120: 6.5142 | CS120: 2005-06-16 | CT120: 31.405 | CU120: 2005-06-16 | CV120: 2.41 | CW120: 2011-02-03 | CX120: 0.9964 | CY120: 2005-06-16 | CZ120: 9632 | DA120: 2005-06-16 | DB120: 43.585 | DC120: 2005-06-16 | DD120: 28.5575 | DE120: 2005-06-16 | DF120: 6.7226 | DG120: 2005-06-22 | DH120: 11.05 | DI120: 2005-06-17 | DJ120: 12.5633 | DK120: 2005-06-22 | DL120: 77.18 | DM120: 2005-06-20 | DN120: 1220 | DO120: 38520 | DP120: 1553.96 | DQ120: 2005-06-20 | DR120: 310.6 | DS120: 2005-06-20 | DT120: 32440
A121: 2005-06-17 | B121: 438.8 | C121: 2005-06-21 | D121: 3188 | E121: 2005-06-17 | F121: 3.7007 | G121: 2005-06-17 | H121: 3.8612 | I121: 2005-06-17 | J121: 4.0705 | K121: 2005-06-17 | L121: 4.3607 | M121: 2005-06-17 | N121: 2.176 | O121: 2005-06-17 | P121: 2.66 | Q121: 2005-06-17 | R121: 3.291 | S121: 2005-06-17 | T121: 3.781 | U121: 2005-06-17 | V121: 0.09 | W121: 2005-06-17 | X121: 0.515 | Y121: 2005-06-17 | Z121: 1.311 | AA121: 2005-06-17 | AB121: 2.356 | AC121: 2005-06-17 | AD121: 4.335 | AE121: 2005-06-17 | AF121: 4.329 | AG121: 2005-06-17 | AH121: 4.399 | AI121: 2005-06-17 | AJ121: 4.348 | AK121: 2005-06-17 | AL121: 2.161 | AM121: 2005-06-17 | AN121: 2.847 | AO121: 2005-06-17 | AP121: 3.504 | AQ121: 2005-06-17 | AR121: 4.087 | AS121: 2005-06-20 | AT121: 2.5993 | AU121: 2005-06-20 | AV121: 2.4501 | AW121: 2005-06-20 | AX121: 2.3829 | AY121: 2005-06-20 | AZ121: 2.6217 | BA121: 2012-03-19 | BB121: 503.5 | BC121: 2012-03-21 | BD121: 312 | BE121: 2013-01-31 | BF121: 446.129 | BG121: 2008-04-17 | BH121: 125 | BI121: 2005-06-20 | BJ121: 33.575 | BK121: 2005-06-21 | BL121: -24.9 | BM121: 2005-06-17 | BN121: -25.28 | BO121: 2005-06-17 | BP121: -10.5 | BQ121: 2005-06-17 | BR121: -96.8 | BS121: 2005-06-17 | BT121: -25.3 | BU121: 2005-06-17 | BV121: 11.3 | BW121: 2005-06-17 | BX121: 26.9 | BY121: 2005-06-17 | BZ121: 1.2244 | CA121: 2005-06-17 | CB121: 1.8267 | CC121: 2005-06-17 | CD121: 0.67024 | CE121: 2005-06-17 | CF121: 108.85 | CG121: 2005-06-17 | CH121: 1.2326 | CI121: 2005-06-17 | CJ121: 103.95 | CK121: 2005-06-17 | CL121: 87.65 | CM121: 2005-06-17 | CN121: 0.7778 | CO121: 2005-06-17 | CP121: 7.5243 | CQ121: 2005-06-17 | CR121: 6.4386 | CS121: 2005-06-17 | CT121: 31.319 | CU121: 2005-06-17 | CV121: 2.3955 | CW121: 2011-02-04 | CX121: 0.9968 | CY121: 2005-06-17 | CZ121: 9605 | DA121: 2005-06-17 | DB121: 43.525 | DC121: 2005-06-17 | DD121: 28.521 | DE121: 2005-06-17 | DF121: 6.6303 | DG121: 2005-06-23 | DH121: 12.13 | DI121: 2005-06-20 | DJ121: 12.9133 | DK121: 2005-06-23 | DL121: 76.51 | DM121: 2005-06-21 | DN121: 1221 | DO121: 38523 | DP121: 1545.5 | DQ121: 2005-06-21 | DR121: 310.5 | DS121: 2005-06-21 | DT121: 32570
A122: 2005-06-20 | B122: 437.84 | C122: 2005-06-22 | D122: 3189 | E122: 2005-06-20 | F122: 3.7094 | G122: 2005-06-20 | H122: 3.8893 | I122: 2005-06-20 | J122: 4.1091 | K122: 2005-06-20 | L122: 4.3874 | M122: 2005-06-20 | N122: 2.13 | O122: 2005-06-20 | P122: 2.639 | Q122: 2005-06-20 | R122: 3.298 | S122: 2005-06-20 | T122: 3.803 | U122: 2005-06-20 | V122: 0.09 | W122: 2005-06-20 | X122: 0.499 | Y122: 2005-06-20 | Z122: 1.294 | AA122: 2005-06-20 | AB122: 2.345 | AC122: 2005-06-20 | AD122: 4.352 | AE122: 2005-06-20 | AF122: 4.348 | AG122: 2005-06-20 | AH122: 4.419 | AI122: 2005-06-20 | AJ122: 4.366 | AK122: 2005-06-20 | AL122: 2.116 | AM122: 2005-06-20 | AN122: 2.828 | AO122: 2005-06-20 | AP122: 3.506 | AQ122: 2005-06-20 | AR122: 4.112 | AS122: 2005-06-21 | AT122: 2.5583 | AU122: 2005-06-21 | AV122: 2.4074 | AW122: 2005-06-21 | AX122: 2.3437 | AY122: 2005-06-21 | AZ122: 2.5758 | BA122: 2012-03-20 | BB122: 556 | BC122: 2012-03-22 | BD122: 323 | BE122: 2013-02-01 | BF122: 434.389 | BG122: 2008-04-18 | BH122: 120.5 | BI122: 2005-06-21 | BJ122: 33.875 | BK122: 2005-06-22 | BL122: -24 | BM122: 2005-06-20 | BN122: -22.61 | BO122: 2005-06-20 | BP122: -12.2 | BQ122: 2005-06-20 | BR122: -83 | BS122: 2005-06-20 | BT122: -24.1 | BU122: 2005-06-20 | BV122: 12.2 | BW122: 2005-06-20 | BX122: 26.6 | BY122: 2005-06-20 | BZ122: 1.2152 | CA122: 2005-06-20 | CB122: 1.8233 | CC122: 2005-06-20 | CD122: 0.66635 | CE122: 2005-06-20 | CF122: 109.41 | CG122: 2005-06-20 | CH122: 1.2332 | CI122: 2005-06-20 | CJ122: 103.73 | CK122: 2005-06-20 | CL122: 88.49 | CM122: 2005-06-20 | CN122: 0.7768 | CO122: 2005-06-20 | CP122: 7.5987 | CQ122: 2005-06-20 | CR122: 6.4763 | CS122: 2005-06-20 | CT122: 31.375 | CU122: 2005-06-20 | CV122: 2.3838 | CW122: 2011-02-07 | CX122: 0.9963 | CY122: 2005-06-20 | CZ122: 9670 | DA122: 2005-06-20 | DB122: 43.565 | DC122: 2005-06-20 | DD122: 28.526 | DE122: 2005-06-20 | DF122: 6.689 | DG122: 2005-06-24 | DH122: 12.18 | DI122: 2005-06-21 | DJ122: 12.4507 | DK122: 2005-06-24 | DL122: 76 | DM122: 2005-06-22 | DN122: 1221 | DO122: 38524 | DP122: 1551 | DQ122: 2005-06-22 | DR122: 312.4 | DS122: 2005-06-22 | DT122: 32506
A123: 2005-06-21 | B123: 437.7 | C123: 2005-06-23 | D123: 3180 | E123: 2005-06-21 | F123: 3.6843 | G123: 2005-06-21 | H123: 3.8264 | I123: 2005-06-21 | J123: 4.0396 | K123: 2005-06-21 | L123: 4.3249 | M123: 2005-06-21 | N123: 2.066 | O123: 2005-06-21 | P123: 2.559 | Q123: 2005-06-21 | R123: 3.222 | S123: 2005-06-21 | T123: 3.725 | U123: 2005-06-21 | V123: 0.091 | W123: 2005-06-21 | X123: 0.504 | Y123: 2005-06-21 | Z123: 1.3 | AA123: 2005-06-21 | AB123: 2.345 | AC123: 2005-06-21 | AD123: 4.302 | AE123: 2005-06-21 | AF123: 4.284 | AG123: 2005-06-21 | AH123: 4.353 | AI123: 2005-06-21 | AJ123: 4.326 | AK123: 2005-06-21 | AL123: 2.055 | AM123: 2005-06-21 | AN123: 2.744 | AO123: 2005-06-21 | AP123: 3.428 | AQ123: 2005-06-21 | AR123: 4.032 | AS123: 2005-06-22 | AT123: 2.4681 | AU123: 2005-06-22 | AV123: 2.3435 | AW123: 2005-06-22 | AX123: 2.2851 | AY123: 2005-06-22 | AZ123: 2.531 | BA123: 2012-03-21 | BB123: 569.5 | BC123: 2012-03-23 | BD123: 330.5 | BE123: 2013-02-04 | BF123: 453.413 | BG123: 2008-04-21 | BH123: 103 | BI123: 2005-06-22 | BJ123: 34 | BK123: 2005-06-23 | BL123: -23 | BM123: 2005-06-21 | BN123: -21.64 | BO123: 2005-06-21 | BP123: -12.7 | BQ123: 2005-06-21 | BR123: -79.8 | BS123: 2005-06-21 | BT123: -20.8 | BU123: 2005-06-21 | BV123: 12.9 | BW123: 2005-06-21 | BX123: 26.5 | BY123: 2005-06-21 | BZ123: 1.2144 | CA123: 2005-06-21 | CB123: 1.8257 | CC123: 2005-06-21 | CD123: 0.66515 | CE123: 2005-06-21 | CF123: 108.39 | CG123: 2005-06-21 | CH123: 1.2303 | CI123: 2005-06-21 | CJ123: 103.96 | CK123: 2005-06-21 | CL123: 88.12 | CM123: 2005-06-21 | CN123: 0.7798 | CO123: 2005-06-21 | CP123: 7.6098 | CQ123: 2005-06-21 | CR123: 6.4674 | CS123: 2005-06-21 | CT123: 31.325 | CU123: 2005-06-21 | CV123: 2.3796 | CW123: 2011-02-08 | CX123: 0.9954 | CY123: 2005-06-21 | CZ123: 9657 | DA123: 2005-06-21 | DB123: 43.525 | DC123: 2005-06-21 | DD123: 28.582 | DE123: 2005-06-21 | DF123: 6.7235 | DG123: 2005-06-27 | DH123: 12.52 | DI123: 2005-06-22 | DJ123: 12.3862 | DK123: 2005-06-27 | DL123: 74.5 | DM123: 2005-06-23 | DN123: 1204 | DO123: 38525 | DP123: 1548 | DQ123: 2005-06-23 | DR123: 310.5 | DS123: 2005-06-23 | DT123: 32499
A124: 2005-06-22 | B124: 437.35 | C124: 2005-06-24 | D124: 3153 | E124: 2005-06-22 | F124: 3.6002 | G124: 2005-06-22 | H124: 3.7185 | I124: 2005-06-22 | J124: 3.94 | K124: 2005-06-22 | L124: 4.2424 | M124: 2005-06-22 | N124: 2.015 | O124: 2005-06-22 | P124: 2.493 | Q124: 2005-06-22 | R124: 3.146 | S124: 2005-06-22 | T124: 3.641 | U124: 2005-06-22 | V124: 0.089 | W124: 2005-06-22 | X124: 0.49 | Y124: 2005-06-22 | Z124: 1.275 | AA124: 2005-06-22 | AB124: 2.315 | AC124: 2005-06-22 | AD124: 4.187 | AE124: 2005-06-22 | AF124: 4.176 | AG124: 2005-06-22 | AH124: 4.259 | AI124: 2005-06-22 | AJ124: 4.269 | AK124: 2005-06-22 | AL124: 2.01 | AM124: 2005-06-22 | AN124: 2.677 | AO124: 2005-06-22 | AP124: 3.352 | AQ124: 2005-06-22 | AR124: 3.947 | AS124: 2005-06-23 | AT124: 2.4606 | AU124: 2005-06-23 | AV124: 2.3538 | AW124: 2005-06-23 | AX124: 2.2893 | AY124: 2005-06-23 | AZ124: 2.5385 | BA124: 2012-03-22 | BB124: 599.5 | BC124: 2012-03-26 | BD124: 324.5 | BE124: 2013-02-05 | BF124: 444.568 | BG124: 2008-04-22 | BH124: 107.5 | BI124: 2005-06-23 | BJ124: 34.075 | BK124: 2005-06-24 | BL124: -22.2 | BM124: 2005-06-22 | BN124: -20.84 | BO124: 2005-06-22 | BP124: -12.8 | BQ124: 2005-06-22 | BR124: -78.1 | BS124: 2005-06-22 | BT124: -19.9 | BU124: 2005-06-22 | BV124: 13.8 | BW124: 2005-06-22 | BX124: 26.4 | BY124: 2005-06-22 | BZ124: 1.2108 | CA124: 2005-06-22 | CB124: 1.8195 | CC124: 2005-06-22 | CD124: 0.66547 | CE124: 2005-06-22 | CF124: 109 | CG124: 2005-06-22 | CH124: 1.2366 | CI124: 2005-06-22 | CJ124: 103.85 | CK124: 2005-06-22 | CL124: 88.56 | CM124: 2005-06-22 | CN124: 0.777 | CO124: 2005-06-22 | CP124: 7.6948 | CQ124: 2005-06-22 | CR124: 6.5088 | CS124: 2005-06-22 | CT124: 31.352 | CU124: 2005-06-22 | CV124: 2.376 | CW124: 2011-02-09 | CX124: 0.9967 | CY124: 2005-06-22 | CZ124: 9650 | DA124: 2005-06-22 | DB124: 43.495 | DC124: 2005-06-22 | DD124: 28.581 | DE124: 2005-06-22 | DF124: 6.7305 | DG124: 2005-06-28 | DH124: 11.58 | DI124: 2005-06-23 | DJ124: 11.9247 | DK124: 2005-06-28 | DL124: 75.7 | DM124: 2005-06-24 | DN124: 1195.75 | DO124: 38526 | DP124: 1527.5 | DQ124: 2005-06-24 | DR124: 307.7 | DS124: 2005-06-24 | DT124: 32199
A125: 2005-06-23 | B125: 441.45 | C125: 2005-06-27 | D125: 3124 | E125: 2005-06-23 | F125: 3.6087 | G125: 2005-06-23 | H125: 3.7324 | I125: 2005-06-23 | J125: 3.9514 | K125: 2005-06-23 | L125: 4.2523 | M125: 2005-06-23 | N125: 2.035 | O125: 2005-06-23 | P125: 2.511 | Q125: 2005-06-23 | R125: 3.156 | S125: 2005-06-23 | T125: 3.665 | U125: 2005-06-23 | V125: 0.084 | W125: 2005-06-23 | X125: 0.454 | Y125: 2005-06-23 | Z125: 1.234 | AA125: 2005-06-23 | AB125: 2.27 | AC125: 2005-06-23 | AD125: 4.152 | AE125: 2005-06-23 | AF125: 4.163 | AG125: 2005-06-23 | AH125: 4.261 | AI125: 2005-06-23 | AJ125: 4.288 | AK125: 2005-06-23 | AL125: 2.03 | AM125: 2005-06-23 | AN125: 2.693 | AO125: 2005-06-23 | AP125: 3.363 | AQ125: 2005-06-23 | AR125: 3.967 | AS125: 2005-06-24 | AT125: 2.4286 | AU125: 2005-06-24 | AV125: 2.3421 | AW125: 2005-06-24 | AX125: 2.2833 | AY125: 2005-06-24 | AZ125: 2.5266 | BA125: 2012-03-23 | BB125: 597 | BC125: 2012-03-27 | BD125: 320.5 | BE125: 2013-02-06 | BF125: 449.261 | BG125: 2008-04-23 | BH125: 105 | BI125: 2005-06-24 | BJ125: 34.25 | BK125: 2005-06-27 | BL125: -18.6 | BM125: 2005-06-23 | BN125: -19.67 | BO125: 2005-06-23 | BP125: -12.9 | BQ125: 2005-06-23 | BR125: -76.2 | BS125: 2005-06-23 | BT125: -18.9 | BU125: 2005-06-23 | BV125: 13.8 | BW125: 2005-06-23 | BX125: 26.2 | BY125: 2005-06-23 | BZ125: 1.2049 | CA125: 2005-06-23 | CB125: 1.8172 | CC125: 2005-06-23 | CD125: 0.663 | CE125: 2005-06-23 | CF125: 108.78 | CG125: 2005-06-23 | CH125: 1.2306 | CI125: 2005-06-23 | CJ125: 103.85 | CK125: 2005-06-23 | CL125: 89.12 | CM125: 2005-06-23 | CN125: 0.7735 | CO125: 2005-06-23 | CP125: 7.797 | CQ125: 2005-06-23 | CR125: 6.6016 | CS125: 2005-06-23 | CT125: 31.36 | CU125: 2005-06-23 | CV125: 2.3928 | CW125: 2011-02-10 | CX125: 0.997 | CY125: 2005-06-23 | CZ125: 9645 | DA125: 2005-06-23 | DB125: 43.555 | DC125: 2005-06-23 | DD125: 28.6625 | DE125: 2005-06-23 | DF125: 6.7504 | DG125: 2005-06-29 | DH125: 11.77 | DI125: 2005-06-24 | DJ125: 12.5237 | DK125: 2005-06-29 | DL125: 76.79 | DM125: 2005-06-27 | DN125: 1196.25 | DO125: 38527 | DP125: 1511.5 | DQ125: 2005-06-27 | DR125: 305.1 | DS125: 2005-06-27 | DT125: 31873
A126: 2005-06-24 | B126: 439.49 | C126: 2005-06-28 | D126: 3174 | E126: 2005-06-24 | F126: 3.5751 | G126: 2005-06-24 | H126: 3.6942 | I126: 2005-06-24 | J126: 3.917 | K126: 2005-06-24 | L126: 4.2207 | M126: 2005-06-24 | N126: 2.035 | O126: 2005-06-24 | P126: 2.499 | Q126: 2005-06-24 | R126: 3.135 | S126: 2005-06-24 | T126: 3.639 | U126: 2005-06-24 | V126: 0.084 | W126: 2005-06-24 | X126: 0.44 | Y126: 2005-06-24 | Z126: 1.215 | AA126: 2005-06-24 | AB126: 2.254 | AC126: 2005-06-24 | AD126: 4.144 | AE126: 2005-06-24 | AF126: 4.14 | AG126: 2005-06-24 | AH126: 4.226 | AI126: 2005-06-24 | AJ126: 4.241 | AK126: 2005-06-24 | AL126: 2.031 | AM126: 2005-06-24 | AN126: 2.683 | AO126: 2005-06-24 | AP126: 3.343 | AQ126: 2005-06-24 | AR126: 3.941 | AS126: 2005-06-27 | AT126: 2.4525 | AU126: 2005-06-27 | AV126: 2.3621 | AW126: 2005-06-27 | AX126: 2.2982 | AY126: 2005-06-27 | AZ126: 2.5278 | BA126: 2012-03-26 | BB126: 591 | BC126: 2012-03-28 | BD126: 337 | BE126: 2013-02-07 | BF126: 449.197 | BG126: 2008-04-24 | BH126: 107.5 | BI126: 2005-06-27 | BJ126: 35.083 | BK126: 2005-06-28 | BL126: -14.6 | BM126: 2005-06-24 | BN126: -17.47 | BO126: 2005-06-24 | BP126: -9.7 | BQ126: 2005-06-24 | BR126: -74 | BS126: 2005-06-24 | BT126: -20.2 | BU126: 2005-06-24 | BV126: 15.5 | BW126: 2005-06-24 | BX126: 26.1 | BY126: 2005-06-24 | BZ126: 1.2085 | CA126: 2005-06-24 | CB126: 1.8225 | CC126: 2005-06-24 | CD126: 0.66312 | CE126: 2005-06-24 | CF126: 109.07 | CG126: 2005-06-24 | CH126: 1.2326 | CI126: 2005-06-24 | CJ126: 103.77 | CK126: 2005-06-24 | CL126: 88.78 | CM126: 2005-06-24 | CN126: 0.7683 | CO126: 2005-06-24 | CP126: 7.7746 | CQ126: 2005-06-24 | CR126: 6.5782 | CS126: 2005-06-24 | CT126: 31.385 | CU126: 2005-06-24 | CV126: 2.384 | CW126: 2011-02-11 | CX126: 0.9977 | CY126: 2005-06-24 | CZ126: 9647 | DA126: 2005-06-24 | DB126: 43.525 | DC126: 2005-06-24 | DD126: 28.6438 | DE126: 2005-06-24 | DF126: 6.7005 | DG126: 2005-06-30 | DH126: 12.04 | DI126: 2005-06-27 | DJ126: 13.3037 | DK126: 2005-06-30 | DL126: 75.6 | DM126: 2005-06-28 | DN126: 1206.75 | DO126: 38530 | DP126: 1506 | DQ126: 2005-06-28 | DR126: 308.6 | DS126: 2005-06-28 | DT126: 32165
A127: 2005-06-27 | B127: 439.65 | C127: 2005-06-29 | D127: 3178 | E127: 2005-06-27 | F127: 3.5752 | G127: 2005-06-27 | H127: 3.6803 | I127: 2005-06-27 | J127: 3.9017 | K127: 2005-06-27 | L127: 4.1912 | M127: 2005-06-27 | N127: 2.01 | O127: 2005-06-27 | P127: 2.474 | Q127: 2005-06-27 | R127: 3.115 | S127: 2005-06-27 | T127: 3.618 | U127: 2005-06-27 | V127: 0.08 | W127: 2005-06-27 | X127: 0.429 | Y127: 2005-06-27 | Z127: 1.189 | AA127: 2005-06-27 | AB127: 2.229 | AC127: 2005-06-27 | AD127: 4.11 | AE127: 2005-06-27 | AF127: 4.098 | AG127: 2005-06-27 | AH127: 4.183 | AI127: 2005-06-27 | AJ127: 4.202 | AK127: 2005-06-27 | AL127: 2.012 | AM127: 2005-06-27 | AN127: 2.609 | AO127: 2005-06-27 | AP127: 3.326 | AQ127: 2005-06-27 | AR127: 3.919 | AS127: 2005-06-28 | AT127: 2.4744 | AU127: 2005-06-28 | AV127: 2.3839 | AW127: 2005-06-28 | AX127: 2.3206 | AY127: 2005-06-28 | AZ127: 2.547 | BA127: 2012-03-27 | BB127: 578 | BC127: 2012-03-29 | BD127: 361 | BE127: 2013-02-08 | BF127: 450.412 | BG127: 2008-04-25 | BH127: 102 | BI127: 2005-06-28 | BJ127: 35.417 | BK127: 2005-06-29 | BL127: -13.1 | BM127: 2005-06-27 | BN127: -13.04 | BO127: 2005-06-27 | BP127: -10.2 | BQ127: 2005-06-27 | BR127: -64.7 | BS127: 2005-06-27 | BT127: -17.2 | BU127: 2005-06-27 | BV127: 18.2 | BW127: 2005-06-27 | BX127: 25.7 | BY127: 2005-06-27 | BZ127: 1.2159 | CA127: 2005-06-27 | CB127: 1.8278 | CC127: 2005-06-27 | CD127: 0.66515 | CE127: 2005-06-27 | CF127: 109.28 | CG127: 2005-06-27 | CH127: 1.2301 | CI127: 2005-06-27 | CJ127: 103.77 | CK127: 2005-06-27 | CL127: 88.45 | CM127: 2005-06-27 | CN127: 0.7686 | CO127: 2005-06-27 | CP127: 7.7291 | CQ127: 2005-06-27 | CR127: 6.5379 | CS127: 2005-06-27 | CT127: 31.35 | CU127: 2005-06-27 | CV127: 2.3843 | CW127: 2011-02-14 | CX127: 0.9978 | CY127: 2005-06-27 | CZ127: 9662 | DA127: 2005-06-27 | DB127: 43.485 | DC127: 2005-06-27 | DD127: 28.56 | DE127: 2005-06-27 | DF127: 6.65 | DG127: 2005-07-01 | DH127: 11.4 | DI127: 2005-06-28 | DJ127: 12.6795 | DK127: 2005-07-01 | DL127: 78.85 | DM127: 2005-06-29 | DN127: 1203 | DO127: 38531 | DP127: 1517 | DQ127: 2005-06-29 | DR127: 308.9 | DS127: 2005-06-29 | DT127: 32341
A128: 2005-06-28 | B128: 436.8 | C128: 2005-06-30 | D128: 3198 | E128: 2005-06-28 | F128: 3.6433 | G128: 2005-06-28 | H128: 3.757 | I128: 2005-06-28 | J128: 3.9703 | K128: 2005-06-28 | L128: 4.2475 | M128: 2005-06-28 | N128: 2.047 | O128: 2005-06-28 | P128: 2.514 | Q128: 2005-06-28 | R128: 3.164 | S128: 2005-06-28 | T128: 3.683 | U128: 2005-06-28 | V128: 0.08 | W128: 2005-06-28 | X128: 0.44 | Y128: 2005-06-28 | Z128: 1.209 | AA128: 2005-06-28 | AB128: 2.234 | AC128: 2005-06-28 | AD128: 4.15 | AE128: 2005-06-28 | AF128: 4.148 | AG128: 2005-06-28 | AH128: 4.235 | AI128: 2005-06-28 | AJ128: 4.238 | AK128: 2005-06-28 | AL128: 2.05 | AM128: 2005-06-28 | AN128: 2.654 | AO128: 2005-06-28 | AP128: 3.378 | AQ128: 2005-06-28 | AR128: 3.986 | AS128: 2005-06-29 | AT128: 2.4367 | AU128: 2005-06-29 | AV128: 2.3665 | AW128: 2005-06-29 | AX128: 2.314 | AY128: 2005-06-29 | AZ128: 2.55 | BA128: 2012-03-28 | BB128: 592 | BC128: 2012-03-30 | BD128: 359.5 | BE128: 2013-02-11 | BF128: 445.591 | BG128: 2008-04-28 | BH128: 91 | BI128: 2005-06-29 | BJ128: 34.667 | BK128: 2005-06-30 | BL128: -13 | BM128: 2005-06-28 | BN128: -7.94 | BO128: 2005-06-28 | BP128: -8.7 | BQ128: 2005-06-28 | BR128: -47.2 | BS128: 2005-06-28 | BT128: -17 | BU128: 2005-06-28 | BV128: 18.1 | BW128: 2005-06-28 | BX128: 25.6 | BY128: 2005-06-28 | BZ128: 1.2073 | CA128: 2005-06-28 | CB128: 1.8162 | CC128: 2005-06-28 | CD128: 0.66475 | CE128: 2005-06-28 | CF128: 109.89 | CG128: 2005-06-28 | CH128: 1.2293 | CI128: 2005-06-28 | CJ128: 103.43 | CK128: 2005-06-28 | CL128: 88.99 | CM128: 2005-06-28 | CN128: 0.7652 | CO128: 2005-06-28 | CP128: 7.7921 | CQ128: 2005-06-28 | CR128: 6.5869 | CS128: 2005-06-28 | CT128: 31.431 | CU128: 2005-06-28 | CV128: 2.3713 | CW128: 2011-02-15 | CX128: 0.9975 | CY128: 2005-06-28 | CZ128: 9705 | DA128: 2005-06-28 | DB128: 43.485 | DC128: 2005-06-28 | DD128: 28.633 | DE128: 2005-06-28 | DF128: 6.6468 | DG128: 2005-07-05 | DH128: 11.68 | DI128: 2005-06-29 | DJ128: 12.2629 | DK128: 2005-07-05 | DL128: 78.35 | DM128: 2005-06-30 | DN128: 1195.5 | DO128: 38532 | DP128: 1511.5 | DQ128: 2005-06-30 | DR128: 311 | DS128: 2005-06-30 | DT128: 32415
A129: 2005-06-29 | B129: 437.45 | C129: 2005-07-01 | D129: 3216 | E129: 2005-06-29 | F129: 3.652 | G129: 2005-06-29 | H129: 3.7571 | I129: 2005-06-29 | J129: 3.9779 | K129: 2005-06-29 | L129: 4.26 | M129: 2005-06-29 | N129: 2.047 | O129: 2005-06-29 | P129: 2.519 | Q129: 2005-06-29 | R129: 3.187 | S129: 2005-06-29 | T129: 3.72 | U129: 2005-06-29 | V129: 0.08 | W129: 2005-06-29 | X129: 0.42 | Y129: 2005-06-29 | Z129: 1.184 | AA129: 2005-06-29 | AB129: 2.19 | AC129: 2005-06-29 | AD129: 4.135 | AE129: 2005-06-29 | AF129: 4.131 | AG129: 2005-06-29 | AH129: 4.22 | AI129: 2005-06-29 | AJ129: 4.238 | AK129: 2005-06-29 | AL129: 2.058 | AM129: 2005-06-29 | AN129: 2.66 | AO129: 2005-06-29 | AP129: 3.399 | AQ129: 2005-06-29 | AR129: 4.031 | AS129: 2005-06-30 | AT129: 2.3913 | AU129: 2005-06-30 | AV129: 2.3206 | AW129: 2005-06-30 | AX129: 2.2739 | AY129: 2005-06-30 | AZ129: 2.5232 | BA129: 2012-03-29 | BB129: 619 | BC129: 2012-04-02 | BD129: 357.5 | BE129: 2013-02-12 | BF129: 438.505 | BG129: 2008-04-29 | BH129: 95 | BI129: 2005-06-30 | BJ129: 34.275 | BK129: 2005-07-01 | BL129: -7.3 | BM129: 2005-06-29 | BN129: -5.84 | BO129: 2005-06-29 | BP129: -6.6 | BQ129: 2005-06-29 | BR129: -46 | BS129: 2005-06-29 | BT129: -16.3 | BU129: 2005-06-29 | BV129: 17.6 | BW129: 2005-06-29 | BX129: 25.4 | BY129: 2005-06-29 | BZ129: 1.2087 | CA129: 2005-06-29 | CB129: 1.8059 | CC129: 2005-06-29 | CD129: 0.66925 | CE129: 2005-06-29 | CF129: 110.36 | CG129: 2005-06-29 | CH129: 1.2269 | CI129: 2005-06-29 | CJ129: 103.19 | CK129: 2005-06-29 | CL129: 89.11 | CM129: 2005-06-29 | CN129: 0.7616 | CO129: 2005-06-29 | CP129: 7.8248 | CQ129: 2005-06-29 | CR129: 6.5449 | CS129: 2005-06-29 | CT129: 31.63 | CU129: 2005-06-29 | CV129: 2.349 | CW129: 2011-02-16 | CX129: 0.9962 | CY129: 2005-06-29 | CZ129: 9718 | DA129: 2005-06-29 | DB129: 43.535 | DC129: 2005-06-29 | DD129: 28.68 | DE129: 2005-06-29 | DF129: 6.6837 | DG129: 2005-07-06 | DH129: 12.27 | DI129: 2005-06-30 | DJ129: 12.3777 | DK129: 2005-07-06 | DL129: 86.29 | DM129: 2005-07-01 | DN129: 1200 | DO129: 38533 | DP129: 1503 | DQ129: 2005-07-01 | DR129: 312.5 | DS129: 2005-07-01 | DT129: 32595
A130: 2005-06-30 | B130: 435.88 | C130: 2005-07-04 | D130: 3219 | E130: 2005-06-30 | F130: 3.6331 | G130: 2005-06-30 | H130: 3.6978 | I130: 2005-06-30 | J130: 3.913 | K130: 2005-06-30 | L130: 4.1911 | M130: 2005-06-30 | N130: 2.023 | O130: 2005-06-30 | P130: 2.481 | Q130: 2005-06-30 | R130: 3.134 | S130: 2005-06-30 | T130: 3.653 | U130: 2005-06-30 | V130: 0.08 | W130: 2005-06-30 | X130: 0.41 | Y130: 2005-06-30 | Z130: 1.174 | AA130: 2005-06-30 | AB130: 2.204 | AC130: 2005-06-30 | AD130: 4.065 | AE130: 2005-06-30 | AF130: 4.067 | AG130: 2005-06-30 | AH130: 4.173 | AI130: 2005-06-30 | AJ130: 4.203 | AK130: 2005-06-30 | AL130: 2.037 | AM130: 2005-06-30 | AN130: 2.623 | AO130: 2005-06-30 | AP130: 3.35 | AQ130: 2005-06-30 | AR130: 3.971 | AS130: 2005-07-01 | AT130: 2.4319 | AU130: 2005-07-01 | AV130: 2.3424 | AW130: 2005-07-01 | AX130: 2.3223 | AY130: 2005-07-01 | AZ130: 2.5659 | BA130: 2012-03-30 | BB130: 612.5 | BC130: 2012-04-03 | BD130: 356.458 | BE130: 2013-02-13 | BF130: 434.042 | BG130: 2008-04-30 | BH130: 94 | BI130: 2005-07-01 | BJ130: 34.017 | BK130: 2005-07-04 | BL130: -4.1 | BM130: 2005-06-30 | BN130: -5.68 | BO130: 2005-06-30 | BP130: -7 | BQ130: 2005-06-30 | BR130: -44.5 | BS130: 2005-06-30 | BT130: -15.3 | BU130: 2005-06-30 | BV130: 19.8 | BW130: 2005-06-30 | BX130: 25.3 | BY130: 2005-06-30 | BZ130: 1.2094 | CA130: 2005-06-30 | CB130: 1.7918 | CC130: 2005-06-30 | CD130: 0.67485 | CE130: 2005-06-30 | CF130: 110.93 | CG130: 2005-06-30 | CH130: 1.2273 | CI130: 2005-06-30 | CJ130: 103.08 | CK130: 2005-06-30 | CL130: 89.09 | CM130: 2005-06-30 | CN130: 0.7619 | CO130: 2005-06-30 | CP130: 7.8139 | CQ130: 2005-06-30 | CR130: 6.5446 | CS130: 2005-06-30 | CT130: 31.65 | CU130: 2005-06-30 | CV130: 2.359 | CW130: 2011-02-17 | CX130: 0.9971 | CY130: 2005-06-30 | CZ130: 9760 | DA130: 2005-06-30 | DB130: 43.525 | DC130: 2005-06-30 | DD130: 28.63 | DE130: 2005-06-30 | DF130: 6.6763 | DG130: 2005-07-07 | DH130: 12.49 | DI130: 2005-07-01 | DJ130: 11.9381 | DK130: 2005-07-07 | DL130: 87.85 | DM130: 2005-07-04 | DN130: 1198.25 | DO130: 38534 | DP130: 1500 | DQ130: 2005-07-04 | DR130: 311.6 | DS130: 2005-07-04 | DT130: 32724
A131: 2005-07-01 | B131: 427.3 | C131: 2005-07-05 | D131: 3220 | E131: 2005-07-01 | F131: 3.7401 | G131: 2005-07-01 | H131: 3.824 | I131: 2005-07-01 | J131: 4.0489 | K131: 2005-07-01 | L131: 4.2942 | M131: 2005-07-01 | N131: 2.066 | O131: 2005-07-01 | P131: 2.516 | Q131: 2005-07-01 | R131: 3.157 | S131: 2005-07-01 | T131: 3.675 | U131: 2005-07-01 | V131: 0.081 | W131: 2005-07-01 | X131: 0.42 | Y131: 2005-07-01 | Z131: 1.179 | AA131: 2005-07-01 | AB131: 2.205 | AC131: 2005-07-01 | AD131: 4.095 | AE131: 2005-07-01 | AF131: 4.106 | AG131: 2005-07-01 | AH131: 4.21 | AI131: 2005-07-01 | AJ131: 4.226 | AK131: 2005-07-01 | AL131: 2.083 | AM131: 2005-07-01 | AN131: 2.658 | AO131: 2005-07-01 | AP131: 3.371 | AQ131: 2005-07-01 | AR131: 3.992 | AS131: 2005-07-04 | AT131: 2.4237 | AU131: 2005-07-04 | AV131: 2.3424 | AW131: 2005-07-04 | AX131: 2.3107 | AY131: 2005-07-04 | AZ131: 2.5713 | BA131: 2012-04-02 | BB131: 610 | BC131: 2012-04-04 | BD131: 371.5 | BE131: 2013-02-14 | BF131: 435.469 | BG131: 2008-05-01 | BH131: 97.5 | BI131: 2005-07-04 | BJ131: 34 | BK131: 2005-07-05 | BL131: -3.4 | BM131: 2005-07-01 | BN131: 0.13 | BO131: 2005-07-01 | BP131: 1.8 | BQ131: 2005-07-01 | BR131: -42.9 | BS131: 2005-07-01 | BT131: -13.5 | BU131: 2005-07-01 | BV131: 21.5 | BW131: 2005-07-01 | BX131: 25.1 | BY131: 2005-07-01 | BZ131: 1.1957 | CA131: 2005-07-01 | CB131: 1.7705 | CC131: 2005-07-01 | CD131: 0.67545 | CE131: 2005-07-01 | CF131: 111.65 | CG131: 2005-07-01 | CH131: 1.2414 | CI131: 2005-07-01 | CJ131: 102.96 | CK131: 2005-07-01 | CL131: 90.13 | CM131: 2005-07-01 | CN131: 0.7514 | CO131: 2005-07-01 | CP131: 7.9276 | CQ131: 2005-07-01 | CR131: 6.5941 | CS131: 2005-07-01 | CT131: 31.685 | CU131: 2005-07-01 | CV131: 2.3488 | CW131: 2011-02-18 | CX131: 0.9975 | CY131: 2005-07-01 | CZ131: 9796 | DA131: 2005-07-01 | DB131: 43.52 | DC131: 2005-07-01 | DD131: 28.63 | DE131: 2005-07-01 | DF131: 6.84 | DG131: 2005-07-08 | DH131: 11.45 | DI131: 2005-07-04 | DJ131: 12.0091 | DK131: 2005-07-08 | DL131: 80.12 | DM131: 2005-07-05 | DN131: 1209 | DO131: 38537 | DP131: 1498.5 | DQ131: 2005-07-05 | DR131: 312.6 | DS131: 2005-07-05 | DT131: 32649
A132: 2005-07-04 | B132: 427.9 | C132: 2005-07-06 | D132: 3231 | E132: 2005-07-04 | F132: 3.7319 | G132: 2005-07-04 | H132: 3.8241 | I132: 2005-07-04 | J132: 4.0373 | K132: 2005-07-04 | L132: 4.2996 | M132: 2005-07-04 | N132: 2.107 | O132: 2005-07-04 | P132: 2.543 | Q132: 2005-07-04 | R132: 3.173 | S132: 2005-07-04 | T132: 3.68 | U132: 2005-07-04 | V132: 0.085 | W132: 2005-07-04 | X132: 0.455 | Y132: 2005-07-04 | Z132: 1.225 | AA132: 2005-07-04 | AB132: 2.259 | AC132: 2005-07-04 | AD132: 4.107 | AE132: 2005-07-04 | AF132: 4.118 | AG132: 2005-07-04 | AH132: 4.222 | AI132: 2005-07-04 | AJ132: 4.237 | AK132: 2005-07-04 | AL132: 2.123 | AM132: 2005-07-04 | AN132: 2.686 | AO132: 2005-07-04 | AP132: 3.39 | AQ132: 2005-07-04 | AR132: 4.001 | AS132: 2005-07-05 | AT132: 2.4261 | AU132: 2005-07-05 | AV132: 2.3607 | AW132: 2005-07-05 | AX132: 2.319 | AY132: 2005-07-05 | AZ132: 2.5701 | BA132: 2012-04-03 | BB132: 609 | BC132: 2012-04-05 | BD132: 380 | BE132: 2013-02-15 | BF132: 437.687 | BG132: 2008-05-02 | BH132: 88.5 | BI132: 2005-07-05 | BJ132: 32.9 | BK132: 2005-07-06 | BL132: 0.7 | BM132: 2005-07-04 | BN132: 1.93 | BO132: 2005-07-04 | BP132: 2.4 | BQ132: 2005-07-04 | BR132: -34.8 | BS132: 2005-07-04 | BT132: -9.1 | BU132: 2005-07-04 | BV132: 22.2 | BW132: 2005-07-04 | BX132: 24.6 | BY132: 2005-07-04 | BZ132: 1.1901 | CA132: 2005-07-04 | CB132: 1.7583 | CC132: 2005-07-04 | CD132: 0.67685 | CE132: 2005-07-04 | CF132: 111.59 | CG132: 2005-07-04 | CH132: 1.2406 | CI132: 2005-07-04 | CJ132: 102.76 | CK132: 2005-07-04 | CL132: 90.46 | CM132: 2005-07-04 | CN132: 0.7498 | CO132: 2005-07-04 | CP132: 7.9579 | CQ132: 2005-07-04 | CR132: 6.6313 | CS132: 2005-07-04 | CT132: 31.78 | CU132: 2005-07-04 | CV132: 2.3738 | CW132: 2011-02-21 | CX132: 0.9983 | CY132: 2005-07-04 | CZ132: 9865 | DA132: 2005-07-04 | DB132: 43.545 | DC132: 2005-07-04 | DD132: 28.79 | DE132: 2005-07-04 | DF132: 6.8238 | DG132: 2005-07-11 | DH132: 11.28 | DI132: 2005-07-05 | DJ132: 12.5991 | DK132: 2005-07-11 | DL132: 82.93 | DM132: 2005-07-06 | DN132: 1198.5 | DO132: 38538 | DP132: 1513.5 | DQ132: 2005-07-06 | DR132: 312.4 | DS132: 2005-07-06 | DT132: 32800
A133: 2005-07-05 | B133: 422.5 | C133: 2005-07-07 | D133: 3197 | E133: 2005-07-05 | F133: 3.7816 | G133: 2005-07-05 | H133: 3.8911 | I133: 2005-07-05 | J133: 4.105 | K133: 2005-07-05 | L133: 4.3617 | M133: 2005-07-05 | N133: 2.161 | O133: 2005-07-05 | P133: 2.592 | Q133: 2005-07-05 | R133: 3.213 | S133: 2005-07-05 | T133: 3.714 | U133: 2005-07-05 | V133: 0.086 | W133: 2005-07-05 | X133: 0.461 | Y133: 2005-07-05 | Z133: 1.234 | AA133: 2005-07-05 | AB133: 2.29 | AC133: 2005-07-05 | AD133: 4.152 | AE133: 2005-07-05 | AF133: 4.168 | AG133: 2005-07-05 | AH133: 4.267 | AI133: 2005-07-05 | AJ133: 4.268 | AK133: 2005-07-05 | AL133: 2.173 | AM133: 2005-07-05 | AN133: 2.735 | AO133: 2005-07-05 | AP133: 3.43 | AQ133: 2005-07-05 | AR133: 4.037 | AS133: 2005-07-06 | AT133: 2.454 | AU133: 2005-07-06 | AV133: 2.3667 | AW133: 2005-07-06 | AX133: 2.3091 | AY133: 2005-07-06 | AZ133: 2.5561 | BA133: 2012-04-04 | BB133: 632 | BC133: 2012-04-10 | BD133: 413.5 | BE133: 2013-02-19 | BF133: 430.215 | BG133: 2008-05-05 | BH133: 88.5 | BI133: 2005-07-06 | BJ133: 32.9 | BK133: 2005-07-07 | BL133: 1.7 | BM133: 2005-07-05 | BN133: 2.35 | BO133: 2005-07-05 | BP133: 2.7 | BQ133: 2005-07-05 | BR133: -33.2 | BS133: 2005-07-05 | BT133: -8 | BU133: 2005-07-05 | BV133: 22.1 | BW133: 2005-07-05 | BX133: 24.4 | BY133: 2005-07-05 | BZ133: 1.1903 | CA133: 2005-07-05 | CB133: 1.7542 | CC133: 2005-07-05 | CD133: 0.6785 | CE133: 2005-07-05 | CF133: 111.78 | CG133: 2005-07-05 | CH133: 1.2436 | CI133: 2005-07-05 | CJ133: 102.52 | CK133: 2005-07-05 | CL133: 90.44 | CM133: 2005-07-05 | CN133: 0.7409 | CO133: 2005-07-05 | CP133: 7.9136 | CQ133: 2005-07-05 | CR133: 6.639 | CS133: 2005-07-05 | CT133: 31.963 | CU133: 2005-07-05 | CV133: 2.3633 | CW133: 2011-02-22 | CX133: 0.9988 | CY133: 2005-07-05 | CZ133: 9885 | DA133: 2005-07-05 | DB133: 43.59 | DC133: 2005-07-05 | DD133: 28.8313 | DE133: 2005-07-05 | DF133: 6.8823 | DG133: 2005-07-12 | DH133: 10.95 | DI133: 2005-07-06 | DJ133: 12.2459 | DK133: 2005-07-12 | DL133: 81.08 | DM133: 2005-07-07 | DN133: 1202.75 | DO133: 38539 | DP133: 1507 | DQ133: 2005-07-07 | DR133: 309 | DS133: 2005-07-07 | DT133: 32218
A134: 2005-07-06 | B134: 424.35 | C134: 2005-07-08 | D134: 3244 | E134: 2005-07-06 | F134: 3.7651 | G134: 2005-07-06 | H134: 3.8594 | I134: 2005-07-06 | J134: 4.0682 | K134: 2005-07-06 | L134: 4.3269 | M134: 2005-07-06 | N134: 2.168 | O134: 2005-07-06 | P134: 2.602 | Q134: 2005-07-06 | R134: 3.22 | S134: 2005-07-06 | T134: 3.722 | U134: 2005-07-06 | V134: 0.09 | W134: 2005-07-06 | X134: 0.475 | Y134: 2005-07-06 | Z134: 1.255 | AA134: 2005-07-06 | AB134: 2.315 | AC134: 2005-07-06 | AD134: 4.153 | AE134: 2005-07-06 | AF134: 4.182 | AG134: 2005-07-06 | AH134: 4.287 | AI134: 2005-07-06 | AJ134: 4.287 | AK134: 2005-07-06 | AL134: 2.177 | AM134: 2005-07-06 | AN134: 2.744 | AO134: 2005-07-06 | AP134: 3.439 | AQ134: 2005-07-06 | AR134: 4.053 | AS134: 2005-07-07 | AT134: 2.4489 | AU134: 2005-07-07 | AV134: 2.3488 | AW134: 2005-07-07 | AX134: 2.2959 | AY134: 2005-07-07 | AZ134: 2.5424 | BA134: 2012-04-05 | BB134: 636.5 | BC134: 2012-04-11 | BD134: 397.208 | BE134: 2013-02-20 | BF134: 441.205 | BG134: 2008-05-06 | BH134: 90 | BI134: 2005-07-07 | BJ134: 33.25 | BK134: 2005-07-08 | BL134: -0.5 | BM134: 2005-07-06 | BN134: 8.07 | BO134: 2005-07-06 | BP134: 10.3 | BQ134: 2005-07-06 | BR134: -22.4 | BS134: 2005-07-06 | BT134: -7.6 | BU134: 2005-07-06 | BV134: 21.8 | BW134: 2005-07-06 | BX134: 24.2 | BY134: 2005-07-06 | BZ134: 1.1928 | CA134: 2005-07-06 | CB134: 1.7583 | CC134: 2005-07-06 | CD134: 0.6783 | CE134: 2005-07-06 | CF134: 112.14 | CG134: 2005-07-06 | CH134: 1.2363 | CI134: 2005-07-06 | CJ134: 102.54 | CK134: 2005-07-06 | CL134: 90.38 | CM134: 2005-07-06 | CN134: 0.7401 | CO134: 2005-07-06 | CP134: 7.8691 | CQ134: 2005-07-06 | CR134: 6.6408 | CS134: 2005-07-06 | CT134: 31.923 | CU134: 2005-07-06 | CV134: 2.3884 | CW134: 2011-02-23 | CX134: 0.9991 | CY134: 2005-07-06 | CZ134: 9780 | DA134: 2005-07-06 | DB134: 43.565 | DC134: 2005-07-06 | DD134: 28.835 | DE134: 2005-07-06 | DF134: 6.88 | DG134: 2005-07-13 | DH134: 10.84 | DI134: 2005-07-07 | DJ134: 15.7155 | DK134: 2005-07-13 | DL134: 81.49 | DM134: 2005-07-08 | DN134: 1216.5 | DO134: 38540 | DP134: 1512.5 | DQ134: 2005-07-08 | DR134: 312.8 | DS134: 2005-07-08 | DT134: 32801
A135: 2005-07-07 | B135: 425.05 | C135: 2005-07-11 | D135: 3245 | E135: 2005-07-07 | F135: 3.7156 | G135: 2005-07-07 | H135: 3.8383 | I135: 2005-07-07 | J135: 4.0605 | K135: 2005-07-07 | L135: 4.3186 | M135: 2005-07-07 | N135: 2.113 | O135: 2005-07-07 | P135: 2.553 | Q135: 2005-07-07 | R135: 3.184 | S135: 2005-07-07 | T135: 3.704 | U135: 2005-07-07 | V135: 0.085 | W135: 2005-07-07 | X135: 0.46 | Y135: 2005-07-07 | Z135: 1.235 | AA135: 2005-07-07 | AB135: 2.295 | AC135: 2005-07-07 | AD135: 4.045 | AE135: 2005-07-07 | AF135: 4.081 | AG135: 2005-07-07 | AH135: 4.204 | AI135: 2005-07-07 | AJ135: 4.231 | AK135: 2005-07-07 | AL135: 2.135 | AM135: 2005-07-07 | AN135: 2.696 | AO135: 2005-07-07 | AP135: 3.403 | AQ135: 2005-07-07 | AR135: 4.034 | AS135: 2005-07-08 | AT135: 2.4486 | AU135: 2005-07-08 | AV135: 2.3522 | AW135: 2005-07-08 | AX135: 2.2943 | AY135: 2005-07-08 | AZ135: 2.5198 | BA135: 2012-04-10 | BB135: 699 | BC135: 2012-04-12 | BD135: 384.375 | BE135: 2013-02-21 | BF135: 447.384 | BG135: 2008-05-07 | BH135: 93 | BI135: 2005-07-08 | BJ135: 33.375 | BK135: 2005-07-11 | BL135: 2.7 | BM135: 2005-07-07 | BN135: 9.07 | BO135: 2005-07-07 | BP135: 10.7 | BQ135: 2005-07-07 | BR135: -21.6 | BS135: 2005-07-07 | BT135: -6.7 | BU135: 2005-07-07 | BV135: 18.9 | BW135: 2005-07-07 | BX135: 24 | BY135: 2005-07-07 | BZ135: 1.1932 | CA135: 2005-07-07 | CB135: 1.742 | CC135: 2005-07-07 | CD135: 0.68495 | CE135: 2005-07-07 | CF135: 112.07 | CG135: 2005-07-07 | CH135: 1.2289 | CI135: 2005-07-07 | CJ135: 102.37 | CK135: 2005-07-07 | CL135: 90.28 | CM135: 2005-07-07 | CN135: 0.7402 | CO135: 2005-07-07 | CP135: 7.8811 | CQ135: 2005-07-07 | CR135: 6.608 | CS135: 2005-07-07 | CT135: 32.013 | CU135: 2005-07-07 | CV135: 2.385 | CW135: 2011-02-24 | CX135: 0.9993 | CY135: 2005-07-07 | CZ135: 9796 | DA135: 2005-07-07 | DB135: 43.59 | DC135: 2005-07-07 | DD135: 28.825 | DE135: 2005-07-07 | DF135: 6.8599 | DG135: 2005-07-14 | DH135: 10.81 | DI135: 2005-07-08 | DJ135: 12.9572 | DK135: 2005-07-14 | DL135: 76.47 | DM135: 2005-07-11 | DN135: 1223.5 | DO135: 38541 | DP135: 1544.5 | DQ135: 2005-07-11 | DR135: 313.9 | DS135: 2005-07-11 | DT135: 33037
A136: 2005-07-08 | B136: 422.45 | C136: 2005-07-12 | D136: 3253 | E136: 2005-07-08 | F136: 3.7657 | G136: 2005-07-08 | H136: 3.8775 | I136: 2005-07-08 | J136: 4.0914 | K136: 2005-07-08 | L136: 4.3413 | M136: 2005-07-08 | N136: 2.146 | O136: 2005-07-08 | P136: 2.567 | Q136: 2005-07-08 | R136: 3.181 | S136: 2005-07-08 | T136: 3.691 | U136: 2005-07-08 | V136: 0.082 | W136: 2005-07-08 | X136: 0.44 | Y136: 2005-07-08 | Z136: 1.215 | AA136: 2005-07-08 | AB136: 2.285 | AC136: 2005-07-08 | AD136: 4.057 | AE136: 2005-07-08 | AF136: 4.103 | AG136: 2005-07-08 | AH136: 4.219 | AI136: 2005-07-08 | AJ136: 4.237 | AK136: 2005-07-08 | AL136: 2.164 | AM136: 2005-07-08 | AN136: 2.706 | AO136: 2005-07-08 | AP136: 3.399 | AQ136: 2005-07-08 | AR136: 4.026 | AS136: 2005-07-11 | AT136: 2.4793 | AU136: 2005-07-11 | AV136: 2.3696 | AW136: 2005-07-11 | AX136: 2.3052 | AY136: 2005-07-11 | AZ136: 2.5273 | BA136: 2012-04-11 | BB136: 675.625 | BC136: 2012-04-13 | BD136: 405 | BE136: 2013-02-22 | BF136: 434.911 | BG136: 2008-05-08 | BH136: 100.5 | BI136: 2005-07-11 | BJ136: 32.75 | BK136: 2005-07-12 | BL136: 7.1 | BM136: 2005-07-08 | BN136: 6.35 | BO136: 2005-07-08 | BP136: 7.3 | BQ136: 2005-07-08 | BR136: -19.4 | BS136: 2005-07-08 | BT136: -8.8 | BU136: 2005-07-08 | BV136: 16 | BW136: 2005-07-08 | BX136: 23.8 | BY136: 2005-07-08 | BZ136: 1.1921 | CA136: 2005-07-08 | CB136: 1.7337 | CC136: 2005-07-08 | CD136: 0.68755 | CE136: 2005-07-08 | CF136: 112.34 | CG136: 2005-07-08 | CH136: 1.2204 | CI136: 2005-07-08 | CJ136: 102.27 | CK136: 2005-07-08 | CL136: 90.25 | CM136: 2005-07-08 | CN136: 0.7403 | CO136: 2005-07-08 | CP136: 7.9204 | CQ136: 2005-07-08 | CR136: 6.6021 | CS136: 2005-07-08 | CT136: 32.08 | CU136: 2005-07-08 | CV136: 2.367 | CW136: 2011-02-25 | CX136: 0.9999 | CY136: 2005-07-08 | CZ136: 9805 | DA136: 2005-07-08 | DB136: 43.555 | DC136: 2005-07-08 | DD136: 28.776 | DE136: 2005-07-08 | DF136: 6.8894 | DG136: 2005-07-15 | DH136: 10.33 | DI136: 2005-07-11 | DJ136: 13.1677 | DK136: 2005-07-15 | DL136: 77.5 | DM136: 2005-07-12 | DN136: 1225.5 | DO136: 38544 | DP136: 1557.5 | DQ136: 2005-07-12 | DR136: 315.5 | DS136: 2005-07-12 | DT136: 32929
A137: 2005-07-11 | B137: 426.3 | C137: 2005-07-13 | D137: 3265 | E137: 2005-07-11 | F137: 3.7825 | G137: 2005-07-11 | H137: 3.8917 | I137: 2005-07-11 | J137: 4.0933 | K137: 2005-07-11 | L137: 4.3394 | M137: 2005-07-11 | N137: 2.184 | O137: 2005-07-11 | P137: 2.613 | Q137: 2005-07-11 | R137: 3.231 | S137: 2005-07-11 | T137: 3.751 | U137: 2005-07-11 | V137: 0.085 | W137: 2005-07-11 | X137: 0.465 | Y137: 2005-07-11 | Z137: 1.24 | AA137: 2005-07-11 | AB137: 2.32 | AC137: 2005-07-11 | AD137: 4.113 | AE137: 2005-07-11 | AF137: 4.17 | AG137: 2005-07-11 | AH137: 4.295 | AI137: 2005-07-11 | AJ137: 4.302 | AK137: 2005-07-11 | AL137: 2.196 | AM137: 2005-07-11 | AN137: 2.755 | AO137: 2005-07-11 | AP137: 3.449 | AQ137: 2005-07-11 | AR137: 4.085 | AS137: 2005-07-12 | AT137: 2.5229 | AU137: 2005-07-12 | AV137: 2.3946 | AW137: 2005-07-12 | AX137: 2.3266 | AY137: 2005-07-12 | AZ137: 2.5493 | BA137: 2012-04-12 | BB137: 640.125 | BC137: 2012-04-16 | BD137: 408 | BE137: 2013-02-25 | BF137: 451.511 | BG137: 2008-05-09 | BH137: 102 | BI137: 2005-07-12 | BJ137: 31.767 | BK137: 2005-07-13 | BL137: 7.4 | BM137: 2005-07-11 | BN137: 8.72 | BO137: 2005-07-11 | BP137: 10.8 | BQ137: 2005-07-11 | BR137: -16.4 | BS137: 2005-07-11 | BT137: -4.6 | BU137: 2005-07-11 | BV137: 18.5 | BW137: 2005-07-11 | BX137: 23 | BY137: 2005-07-11 | BZ137: 1.2069 | CA137: 2005-07-11 | CB137: 1.7568 | CC137: 2005-07-11 | CD137: 0.68695 | CE137: 2005-07-11 | CF137: 111.95 | CG137: 2005-07-11 | CH137: 1.2147 | CI137: 2005-07-11 | CJ137: 102.66 | CK137: 2005-07-11 | CL137: 89.46 | CM137: 2005-07-11 | CN137: 0.7485 | CO137: 2005-07-11 | CP137: 7.848 | CQ137: 2005-07-11 | CR137: 6.5529 | CS137: 2005-07-11 | CT137: 31.935 | CU137: 2005-07-11 | CV137: 2.3505 | CW137: 2011-02-28 | CX137: 0.9995 | CY137: 2005-07-11 | CZ137: 9760 | DA137: 2005-07-11 | DB137: 43.5625 | DC137: 2005-07-11 | DD137: 28.7138 | DE137: 2005-07-11 | DF137: 6.7085 | DG137: 2005-07-18 | DH137: 10.77 | DI137: 2005-07-12 | DJ137: 13.8737 | DK137: 2005-07-18 | DL137: 76.62 | DM137: 2005-07-13 | DN137: 1228 | DO137: 38545 | DP137: 1562 | DQ137: 2005-07-13 | DR137: 317 | DS137: 2005-07-13 | DT137: 33187
A138: 2005-07-12 | B138: 425.3 | C138: 2005-07-14 | D138: 3281 | E138: 2005-07-12 | F138: 3.8327 | G138: 2005-07-12 | H138: 3.938 | I138: 2005-07-12 | J138: 4.142 | K138: 2005-07-12 | L138: 4.3854 | M138: 2005-07-12 | N138: 2.188 | O138: 2005-07-12 | P138: 2.61 | Q138: 2005-07-12 | R138: 3.226 | S138: 2005-07-12 | T138: 3.739 | U138: 2005-07-12 | V138: 0.085 | W138: 2005-07-12 | X138: 0.465 | Y138: 2005-07-12 | Z138: 1.245 | AA138: 2005-07-12 | AB138: 2.329 | AC138: 2005-07-12 | AD138: 4.134 | AE138: 2005-07-12 | AF138: 4.191 | AG138: 2005-07-12 | AH138: 4.312 | AI138: 2005-07-12 | AJ138: 4.322 | AK138: 2005-07-12 | AL138: 2.2 | AM138: 2005-07-12 | AN138: 2.752 | AO138: 2005-07-12 | AP138: 3.443 | AQ138: 2005-07-12 | AR138: 4.075 | AS138: 2005-07-13 | AT138: 2.5185 | AU138: 2005-07-13 | AV138: 2.3632 | AW138: 2005-07-13 | AX138: 2.3021 | AY138: 2005-07-13 | AZ138: 2.5217 | BA138: 2012-04-13 | BB138: 682 | BC138: 2012-04-17 | BD138: 398 | BE138: 2013-02-26 | BF138: 446.361 | BG138: 2008-05-12 | BH138: 101.5 | BI138: 2005-07-13 | BJ138: 31.333 | BK138: 2005-07-14 | BL138: 7.2 | BM138: 2005-07-12 | BN138: 9.23 | BO138: 2005-07-12 | BP138: 10.2 | BQ138: 2005-07-12 | BR138: -15.1 | BS138: 2005-07-12 | BT138: 5.8 | BU138: 2005-07-12 | BV138: 35.2 | BW138: 2005-07-12 | BX138: 42.4 | BY138: 2005-07-12 | BZ138: 1.2205 | CA138: 2005-07-12 | CB138: 1.7759 | CC138: 2005-07-12 | CD138: 0.68725 | CE138: 2005-07-12 | CF138: 111 | CG138: 2005-07-12 | CH138: 1.2046 | CI138: 2005-07-12 | CJ138: 102.87 | CK138: 2005-07-12 | CL138: 88.35 | CM138: 2005-07-12 | CN138: 0.7564 | CO138: 2005-07-12 | CP138: 7.7216 | CQ138: 2005-07-12 | CR138: 6.4778 | CS138: 2005-07-12 | CT138: 31.823 | CU138: 2005-07-12 | CV138: 2.3374 | CW138: 2011-03-01 | CX138: 0.9987 | CY138: 2005-07-12 | CZ138: 9772 | DA138: 2005-07-12 | DB138: 43.5363 | DC138: 2005-07-12 | DD138: 28.5825 | DE138: 2005-07-12 | DF138: 6.535 | DG138: 2005-07-19 | DH138: 10.45 | DI138: 2005-07-13 | DJ138: 13.1659 | DK138: 2005-07-19 | DL138: 77.42 | DM138: 2005-07-14 | DN138: 1231.75 | DO138: 38546 | DP138: 1567 | DQ138: 2005-07-14 | DR138: 320.5 | DS138: 2005-07-14 | DT138: 33390
A139: 2005-07-13 | B139: 424.2 | C139: 2005-07-15 | D139: 3287 | E139: 2005-07-13 | F139: 3.8246 | G139: 2005-07-13 | H139: 3.9488 | I139: 2005-07-13 | J139: 4.1556 | K139: 2005-07-13 | L139: 4.3947 | M139: 2005-07-13 | N139: 2.205 | O139: 2005-07-13 | P139: 2.631 | Q139: 2005-07-13 | R139: 3.249 | S139: 2005-07-13 | T139: 3.769 | U139: 2005-07-13 | V139: 0.086 | W139: 2005-07-13 | X139: 0.48 | Y139: 2005-07-13 | Z139: 1.265 | AA139: 2005-07-13 | AB139: 2.35 | AC139: 2005-07-13 | AD139: 4.111 | AE139: 2005-07-13 | AF139: 4.184 | AG139: 2005-07-13 | AH139: 4.32 | AI139: 2005-07-13 | AJ139: 4.339 | AK139: 2005-07-13 | AL139: 2.213 | AM139: 2005-07-13 | AN139: 2.772 | AO139: 2005-07-13 | AP139: 3.467 | AQ139: 2005-07-13 | AR139: 4.109 | AS139: 2005-07-14 | AT139: 2.3858 | AU139: 2005-07-14 | AV139: 2.2673 | AW139: 2005-07-14 | AX139: 2.2373 | AY139: 2005-07-14 | AZ139: 2.4767 | BA139: 2012-04-16 | BB139: 680.5 | BC139: 2012-04-18 | BD139: 407.5 | BE139: 2013-02-27 | BF139: 438.142 | BG139: 2008-05-13 | BH139: 97 | BI139: 2005-07-14 | BJ139: 30.917 | BK139: 2005-07-15 | BL139: 10.7 | BM139: 2005-07-13 | BN139: 11.12 | BO139: 2005-07-13 | BP139: 17 | BQ139: 2005-07-13 | BR139: -13.6 | BS139: 2005-07-13 | BT139: 3.3 | BU139: 2005-07-13 | BV139: 35.1 | BW139: 2005-07-13 | BX139: 41.9 | BY139: 2005-07-13 | BZ139: 1.2094 | CA139: 2005-07-13 | CB139: 1.7557 | CC139: 2005-07-13 | CD139: 0.68886 | CE139: 2005-07-13 | CF139: 112.14 | CG139: 2005-07-13 | CH139: 1.2075 | CI139: 2005-07-13 | CJ139: 102.73 | CK139: 2005-07-13 | CL139: 89.25 | CM139: 2005-07-13 | CN139: 0.7493 | CO139: 2005-07-13 | CP139: 7.7511 | CQ139: 2005-07-13 | CR139: 6.535 | CS139: 2005-07-13 | CT139: 31.99 | CU139: 2005-07-13 | CV139: 2.3487 | CW139: 2011-03-02 | CX139: 0.9992 | CY139: 2005-07-13 | CZ139: 9793 | DA139: 2005-07-13 | DB139: 43.51 | DC139: 2005-07-13 | DD139: 28.65 | DE139: 2005-07-13 | DF139: 6.677 | DG139: 2005-07-20 | DH139: 10.23 | DI139: 2005-07-14 | DJ139: 12.9773 | DK139: 2005-07-20 | DL139: 74.16 | DM139: 2005-07-15 | DN139: 1231.25 | DO139: 38547 | DP139: 1584 | DQ139: 2005-07-15 | DR139: 319.7 | DS139: 2005-07-15 | DT139: 33213
A140: 2005-07-14 | B140: 419.25 | C140: 2005-07-18 | D140: 3284 | E140: 2005-07-14 | F140: 3.8332 | G140: 2005-07-14 | H140: 3.9689 | I140: 2005-07-14 | J140: 4.1732 | K140: 2005-07-14 | L140: 4.4141 | M140: 2005-07-14 | N140: 2.222 | O140: 2005-07-14 | P140: 2.66 | Q140: 2005-07-14 | R140: 3.287 | S140: 2005-07-14 | T140: 3.813 | U140: 2005-07-14 | V140: 0.079 | W140: 2005-07-14 | X140: 0.475 | Y140: 2005-07-14 | Z140: 1.26 | AA140: 2005-07-14 | AB140: 2.34 | AC140: 2005-07-14 | AD140: 4.122 | AE140: 2005-07-14 | AF140: 4.21 | AG140: 2005-07-14 | AH140: 4.348 | AI140: 2005-07-14 | AJ140: 4.376 | AK140: 2005-07-14 | AL140: 2.225 | AM140: 2005-07-14 | AN140: 2.795 | AO140: 2005-07-14 | AP140: 3.504 | AQ140: 2005-07-14 | AR140: 4.149 | AS140: 2005-07-15 | AT140: 2.3594 | AU140: 2005-07-15 | AV140: 2.2589 | AW140: 2005-07-15 | AX140: 2.21 | AY140: 2005-07-15 | AZ140: 2.4604 | BA140: 2012-04-17 | BB140: 656.333 | BC140: 2012-04-19 | BD140: 412.5 | BE140: 2013-02-28 | BF140: 440.413 | BG140: 2008-05-14 | BH140: 96.5 | BI140: 2005-07-15 | BJ140: 30.183 | BK140: 2005-07-18 | BL140: 10.9 | BM140: 2005-07-14 | BN140: 10.06 | BO140: 2005-07-14 | BP140: 15.5 | BQ140: 2005-07-14 | BR140: -11.8 | BS140: 2005-07-14 | BT140: 3.4 | BU140: 2005-07-14 | BV140: 34.9 | BW140: 2005-07-14 | BX140: 41.5 | BY140: 2005-07-14 | BZ140: 1.2093 | CA140: 2005-07-14 | CB140: 1.7581 | CC140: 2005-07-14 | CD140: 0.6878 | CE140: 2005-07-14 | CF140: 112.24 | CG140: 2005-07-14 | CH140: 1.2095 | CI140: 2005-07-14 | CJ140: 102.81 | CK140: 2005-07-14 | CL140: 89.48 | CM140: 2005-07-14 | CN140: 0.7515 | CO140: 2005-07-14 | CP140: 7.7724 | CQ140: 2005-07-14 | CR140: 6.557 | CS140: 2005-07-14 | CT140: 31.945 | CU140: 2005-07-14 | CV140: 2.3409 | CW140: 2011-03-03 | CX140: 0.9989 | CY140: 2005-07-14 | CZ140: 9800 | DA140: 2005-07-14 | DB140: 43.535 | DC140: 2005-07-14 | DD140: 28.6663 | DE140: 2005-07-14 | DF140: 6.6213 | DG140: 2005-07-21 | DH140: 10.97 | DI140: 2005-07-15 | DJ140: 12.7737 | DK140: 2005-07-21 | DL140: 78.5 | DM140: 2005-07-18 | DN140: 1226.5 | DO140: 38548 | DP140: 1587 | DQ140: 2005-07-18 | DR140: 320.2 | DS140: 2005-07-18 | DT140: 33288
A141: 2005-07-15 | B141: 420.9 | C141: 2005-07-19 | D141: 3318 | E141: 2005-07-15 | F141: 3.8591 | G141: 2005-07-15 | H141: 3.9724 | I141: 2005-07-15 | J141: 4.1635 | K141: 2005-07-15 | L141: 4.3963 | M141: 2005-07-15 | N141: 2.225 | O141: 2005-07-15 | P141: 2.664 | Q141: 2005-07-15 | R141: 3.283 | S141: 2005-07-15 | T141: 3.801 | U141: 2005-07-15 | V141: 0.08 | W141: 2005-07-15 | X141: 0.494 | Y141: 2005-07-15 | Z141: 1.279 | AA141: 2005-07-15 | AB141: 2.368 | AC141: 2005-07-15 | AD141: 4.108 | AE141: 2005-07-15 | AF141: 4.198 | AG141: 2005-07-15 | AH141: 4.338 | AI141: 2005-07-15 | AJ141: 4.36 | AK141: 2005-07-15 | AL141: 2.228 | AM141: 2005-07-15 | AN141: 2.799 | AO141: 2005-07-15 | AP141: 3.496 | AQ141: 2005-07-15 | AR141: 4.138 | AS141: 2005-07-18 | AT141: 2.336 | AU141: 2005-07-18 | AV141: 2.2475 | AW141: 2005-07-18 | AX141: 2.2417 | AY141: 2005-07-18 | AZ141: 2.4703 | BA141: 2012-04-18 | BB141: 674 | BC141: 2012-04-20 | BD141: 411 | BE141: 2013-03-01 | BF141: 432.57 | BG141: 2008-05-15 | BH141: 94 | BI141: 2005-07-18 | BJ141: 30.183 | BK141: 2005-07-19 | BL141: 16.8 | BM141: 2005-07-15 | BN141: 14.6 | BO141: 2005-07-15 | BP141: 25.2 | BQ141: 2005-07-15 | BR141: -9.6 | BS141: 2005-07-15 | BT141: 5.2 | BU141: 2005-07-15 | BV141: 34.1 | BW141: 2005-07-15 | BX141: 40.9 | BY141: 2005-07-15 | BZ141: 1.2057 | CA141: 2005-07-15 | CB141: 1.7534 | CC141: 2005-07-15 | CD141: 0.6875 | CE141: 2005-07-15 | CF141: 112.22 | CG141: 2005-07-15 | CH141: 1.2198 | CI141: 2005-07-15 | CJ141: 102.84 | CK141: 2005-07-15 | CL141: 89.72 | CM141: 2005-07-15 | CN141: 0.7499 | CO141: 2005-07-15 | CP141: 7.7931 | CQ141: 2005-07-15 | CR141: 6.6033 | CS141: 2005-07-15 | CT141: 31.942 | CU141: 2005-07-15 | CV141: 2.3457 | CW141: 2011-03-04 | CX141: 0.999 | CY141: 2005-07-15 | CZ141: 9782 | DA141: 2005-07-15 | DB141: 43.52 | DC141: 2005-07-15 | DD141: 28.6947 | DE141: 2005-07-15 | DF141: 6.65 | DG141: 2005-07-22 | DH141: 10.52 | DI141: 2005-07-18 | DJ141: 12.6721 | DK141: 2005-07-22 | DL141: 75.54 | DM141: 2005-07-19 | DN141: 1233.25 | DO141: 38551 | DP141: 1582 | DQ141: 2005-07-19 | DR141: 323.9 | DS141: 2005-07-19 | DT141: 33616
A142: 2005-07-18 | B142: 421.95 | C142: 2005-07-20 | D142: 3325 | E142: 2005-07-18 | F142: 3.8847 | G142: 2005-07-18 | H142: 4.0179 | I142: 2005-07-18 | J142: 4.2204 | K142: 2005-07-18 | L142: 4.4645 | M142: 2005-07-18 | N142: 2.211 | O142: 2005-07-18 | P142: 2.642 | Q142: 2005-07-18 | R142: 3.259 | S142: 2005-07-18 | T142: 3.773 | U142: 2005-07-18 | V142: 0.08 | W142: 2005-07-18 | X142: 0.494 | Y142: 2005-07-18 | Z142: 1.279 | AA142: 2005-07-18 | AB142: 2.368 | AC142: 2005-07-18 | AD142: 4.079 | AE142: 2005-07-18 | AF142: 4.163 | AG142: 2005-07-18 | AH142: 4.295 | AI142: 2005-07-18 | AJ142: 4.321 | AK142: 2005-07-18 | AL142: 2.217 | AM142: 2005-07-18 | AN142: 2.774 | AO142: 2005-07-18 | AP142: 3.464 | AQ142: 2005-07-18 | AR142: 4.108 | AS142: 2005-07-19 | AT142: 2.3582 | AU142: 2005-07-19 | AV142: 2.2685 | AW142: 2005-07-19 | AX142: 2.263 | AY142: 2005-07-19 | AZ142: 2.4831 | BA142: 2012-04-19 | BB142: 684.5 | BC142: 2012-04-23 | BD142: 421.688 | BE142: 2013-03-04 | BF142: 421.805 | BG142: 2008-05-16 | BH142: 87 | BI142: 2005-07-19 | BJ142: 30.525 | BK142: 2005-07-20 | BL142: 18.4 | BM142: 2005-07-18 | BN142: 14.8 | BO142: 2005-07-18 | BP142: 22.1 | BQ142: 2005-07-18 | BR142: -1 | BS142: 2005-07-18 | BT142: 4.3 | BU142: 2005-07-18 | BV142: 30.6 | BW142: 2005-07-18 | BX142: 37.6 | BY142: 2005-07-18 | BZ142: 1.2071 | CA142: 2005-07-18 | CB142: 1.7507 | CC142: 2005-07-18 | CD142: 0.68955 | CE142: 2005-07-18 | CF142: 111.75 | CG142: 2005-07-18 | CH142: 1.2159 | CI142: 2005-07-18 | CJ142: 102.89 | CK142: 2005-07-18 | CL142: 89.64 | CM142: 2005-07-18 | CN142: 0.7542 | CO142: 2005-07-18 | CP142: 7.8001 | CQ142: 2005-07-18 | CR142: 6.6446 | CS142: 2005-07-18 | CT142: 31.885 | CU142: 2005-07-18 | CV142: 2.3295 | CW142: 2011-03-07 | CX142: 0.999 | CY142: 2005-07-18 | CZ142: 9800 | DA142: 2005-07-18 | DB142: 43.545 | DC142: 2005-07-18 | DD142: 28.6807 | DE142: 2005-07-18 | DF142: 6.645 | DG142: 2005-07-25 | DH142: 11.1 | DI142: 2005-07-19 | DJ142: 12.498 | DK142: 2005-07-25 | DL142: 75.77 | DM142: 2005-07-20 | DN142: 1236.5 | DO142: 38552 | DP142: 1600 | DQ142: 2005-07-20 | DR142: 326 | DS142: 2005-07-20 | DT142: 33521
A143: 2005-07-19 | B143: 420.2 | C143: 2005-07-21 | D143: 3301 | E143: 2005-07-19 | F143: 3.8512 | G143: 2005-07-19 | H143: 3.983 | I143: 2005-07-19 | J143: 4.1792 | K143: 2005-07-19 | L143: 4.4232 | M143: 2005-07-19 | N143: 2.229 | O143: 2005-07-19 | P143: 2.663 | Q143: 2005-07-19 | R143: 3.283 | S143: 2005-07-19 | T143: 3.787 | U143: 2005-07-19 | V143: 0.08 | W143: 2005-07-19 | X143: 0.495 | Y143: 2005-07-19 | Z143: 1.281 | AA143: 2005-07-19 | AB143: 2.365 | AC143: 2005-07-19 | AD143: 4.104 | AE143: 2005-07-19 | AF143: 4.195 | AG143: 2005-07-19 | AH143: 4.329 | AI143: 2005-07-19 | AJ143: 4.351 | AK143: 2005-07-19 | AL143: 2.227 | AM143: 2005-07-19 | AN143: 2.791 | AO143: 2005-07-19 | AP143: 3.487 | AQ143: 2005-07-19 | AR143: 4.116 | AS143: 2005-07-20 | AT143: 2.3683 | AU143: 2005-07-20 | AV143: 2.2787 | AW143: 2005-07-20 | AX143: 2.2656 | AY143: 2005-07-20 | AZ143: 2.4896 | BA143: 2012-04-20 | BB143: 673.208 | BC143: 2012-04-24 | BD143: 421.208 | BE143: 2013-03-05 | BF143: 417.385 | BG143: 2008-05-19 | BH143: 84.5 | BI143: 2005-07-20 | BJ143: 30.183 | BK143: 2005-07-21 | BL143: 21 | BM143: 2005-07-19 | BN143: 22.9 | BO143: 2005-07-19 | BP143: 19.4 | BQ143: 2005-07-19 | BR143: 31.4 | BS143: 2005-07-19 | BT143: 6.4 | BU143: 2005-07-19 | BV143: 30.5 | BW143: 2005-07-19 | BX143: 38 | BY143: 2005-07-19 | BZ143: 1.2024 | CA143: 2005-07-19 | CB143: 1.7383 | CC143: 2005-07-19 | CD143: 0.6917 | CE143: 2005-07-19 | CF143: 112.88 | CG143: 2005-07-19 | CH143: 1.2193 | CI143: 2005-07-19 | CJ143: 102.65 | CK143: 2005-07-19 | CL143: 89.85 | CM143: 2005-07-19 | CN143: 0.7502 | CO143: 2005-07-19 | CP143: 7.8299 | CQ143: 2005-07-19 | CR143: 6.6618 | CS143: 2005-07-19 | CT143: 32.01 | CU143: 2005-07-19 | CV143: 2.341 | CW143: 2011-03-08 | CX143: 0.9981 | CY143: 2005-07-19 | CZ143: 9805 | DA143: 2005-07-19 | DB143: 43.545 | DC143: 2005-07-19 | DD143: 28.705 | DE143: 2005-07-19 | DF143: 6.708 | DG143: 2005-07-26 | DH143: 10.99 | DI143: 2005-07-20 | DJ143: 13.0295 | DK143: 2005-07-26 | DL143: 74.07 | DM143: 2005-07-21 | DN143: 1230 | DO143: 38553 | DP143: 1608.5 | DQ143: 2005-07-21 | DR143: 327 | DS143: 2005-07-21 | DT143: 33514
A144: 2005-07-20 | B144: 421.85 | C144: 2005-07-22 | D144: 3298 | E144: 2005-07-20 | F144: 3.8684 | G144: 2005-07-20 | H144: 3.976 | I144: 2005-07-20 | J144: 4.1576 | K144: 2005-07-20 | L144: 4.3934 | M144: 2005-07-20 | N144: 2.236 | O144: 2005-07-20 | P144: 2.678 | Q144: 2005-07-20 | R144: 3.301 | S144: 2005-07-20 | T144: 3.807 | U144: 2005-07-20 | V144: 0.08 | W144: 2005-07-20 | X144: 0.495 | Y144: 2005-07-20 | Z144: 1.275 | AA144: 2005-07-20 | AB144: 2.369 | AC144: 2005-07-20 | AD144: 4.107 | AE144: 2005-07-20 | AF144: 4.207 | AG144: 2005-07-20 | AH144: 4.345 | AI144: 2005-07-20 | AJ144: 4.375 | AK144: 2005-07-20 | AL144: 2.232 | AM144: 2005-07-20 | AN144: 2.806 | AO144: 2005-07-20 | AP144: 3.508 | AQ144: 2005-07-20 | AR144: 4.133 | AS144: 2005-07-21 | AT144: 2.4291 | AU144: 2005-07-21 | AV144: 2.3376 | AW144: 2005-07-21 | AX144: 2.3318 | AY144: 2005-07-21 | AZ144: 2.5431 | BA144: 2012-04-23 | BB144: 691.542 | BC144: 2012-04-25 | BD144: 411.583 | BE144: 2013-03-06 | BF144: 418.783 | BG144: 2008-05-20 | BH144: 87 | BI144: 2005-07-21 | BJ144: 31.313 | BK144: 2005-07-22 | BL144: 20.3 | BM144: 2005-07-20 | BN144: 22.63 | BO144: 2005-07-20 | BP144: 19.1 | BQ144: 2005-07-20 | BR144: 31.8 | BS144: 2005-07-20 | BT144: 10.6 | BU144: 2005-07-20 | BV144: 37 | BW144: 2005-07-20 | BX144: 55.4 | BY144: 2005-07-20 | BZ144: 1.2046 | CA144: 2005-07-20 | CB144: 1.7291 | CC144: 2005-07-20 | CD144: 0.69665 | CE144: 2005-07-20 | CF144: 113.4 | CG144: 2005-07-20 | CH144: 1.2244 | CI144: 2005-07-20 | CJ144: 102.72 | CK144: 2005-07-20 | CL144: 89.34 | CM144: 2005-07-20 | CN144: 0.7527 | CO144: 2005-07-20 | CP144: 7.8477 | CQ144: 2005-07-20 | CR144: 6.6224 | CS144: 2005-07-20 | CT144: 31.983 | CU144: 2005-07-20 | CV144: 2.3625 | CW144: 2011-03-09 | CX144: 0.9982 | CY144: 2005-07-20 | CZ144: 9845 | DA144: 2005-07-20 | DB144: 43.5213 | DC144: 2005-07-20 | DD144: 28.66 | DE144: 2005-07-20 | DF144: 6.675 | DG144: 2005-07-27 | DH144: 10.36 | DI144: 2005-07-21 | DJ144: 13.7472 | DK144: 2005-07-27 | DL144: 73.78 | DM144: 2005-07-22 | DN144: 1237 | DO144: 38554 | DP144: 1606 | DQ144: 2005-07-22 | DR144: 325.4 | DS144: 2005-07-22 | DT144: 33603
A145: 2005-07-21 | B145: 425.15 | C145: 2005-07-25 | D145: 3301 | E145: 2005-07-21 | F145: 3.9364 | G145: 2005-07-21 | H145: 4.0848 | I145: 2005-07-21 | J145: 4.2757 | K145: 2005-07-21 | L145: 4.5003 | M145: 2005-07-21 | N145: 2.221 | O145: 2005-07-21 | P145: 2.666 | Q145: 2005-07-21 | R145: 3.292 | S145: 2005-07-21 | T145: 3.809 | U145: 2005-07-21 | V145: 0.08 | W145: 2005-07-21 | X145: 0.485 | Y145: 2005-07-21 | Z145: 1.265 | AA145: 2005-07-21 | AB145: 2.375 | AC145: 2005-07-21 | AD145: 4.164 | AE145: 2005-07-21 | AF145: 4.248 | AG145: 2005-07-21 | AH145: 4.36 | AI145: 2005-07-21 | AJ145: 4.388 | AK145: 2005-07-21 | AL145: 2.217 | AM145: 2005-07-21 | AN145: 2.791 | AO145: 2005-07-21 | AP145: 3.498 | AQ145: 2005-07-21 | AR145: 4.133 | AS145: 2005-07-22 | AT145: 2.4592 | AU145: 2005-07-22 | AV145: 2.3472 | AW145: 2005-07-22 | AX145: 2.3369 | AY145: 2005-07-22 | AZ145: 2.5383 | BA145: 2012-04-24 | BB145: 676.25 | BC145: 2012-04-26 | BD145: 410 | BE145: 2013-03-07 | BF145: 412.873 | BG145: 2008-05-21 | BH145: 91 | BI145: 2005-07-22 | BJ145: 31.313 | BK145: 2005-07-25 | BL145: 20.7 | BM145: 2005-07-21 | BN145: 23.47 | BO145: 2005-07-21 | BP145: 18.4 | BQ145: 2005-07-21 | BR145: 29.2 | BS145: 2005-07-21 | BT145: 15.9 | BU145: 2005-07-21 | BV145: 38.4 | BW145: 2005-07-21 | BX145: 57.1 | BY145: 2005-07-21 | BZ145: 1.2162 | CA145: 2005-07-21 | CB145: 1.7533 | CC145: 2005-07-21 | CD145: 0.69381 | CE145: 2005-07-21 | CF145: 110.34 | CG145: 2005-07-21 | CH145: 1.214 | CI145: 2005-07-21 | CJ145: 104.26 | CK145: 2005-07-21 | CL145: 88.93 | CM145: 2005-07-21 | CN145: 0.7649 | CO145: 2005-07-21 | CP145: 7.7722 | CQ145: 2005-07-21 | CR145: 6.5558 | CS145: 2005-07-21 | CT145: 31.56 | CU145: 2005-07-21 | CV145: 2.3475 | CW145: 2011-03-10 | CX145: 0.9994 | CY145: 2005-07-21 | CZ145: 9790 | DA145: 2005-07-21 | DB145: 43.175 | DC145: 2005-07-21 | DD145: 28.61 | DE145: 2005-07-21 | DF145: 6.5775 | DG145: 2005-07-28 | DH145: 10.52 | DI145: 2005-07-22 | DJ145: 13.65 | DK145: 2005-07-28 | DL145: 72.51 | DM145: 2005-07-25 | DN145: 1234 | DO145: 38555 | DP145: 1609.5 | DQ145: 2005-07-25 | DR145: 324.3 | DS145: 2005-07-25 | DT145: 33711
